Workbook

Sheet Off.Cap.
A1: # Offered Capacity values (MW) for Daily bilateral coordinated auction for a date:
A2: 2017-10-03 | AA2: PL-CZ | AB2: PL-DE(50Hz) | AC2: DE(50Hz)-PL | AD2: CZ-PL | AE2: PL-SK | AF2: SK-PL | AG2: HR-SI | AH2: HU-AT | AI2: CZ-DE(TenneT) | AJ2: AT-CZ | AK2: AT-HU | AL2: CZ-AT | AM2: DE(50Hz)-CZ | AN2: HR-HU | AO2: CZ-DE(50Hz) | AP2: DE(TenneT)-CZ | AQ2: SI-HR | AR2: HU-HR
A3: profile | B3: H01 | C3: H02 | D3: H03 | E3: H04 | F3: H05 | G3: H06 | H3: H07 | I3: H08 | J3: H09 | K3: H10 | L3: H11 | M3: H12 | N3: H13 | O3: H14 | P3: H15 | Q3: H16 | R3: H17 | S3: H18 | T3: H19 | U3: H20 | V3: H21 | W3: H22 | X3: H23 | Y3: H24 | AA3: PSE>CEPS Yearly Auction Price | AB3: PSE>50Hz Yearly Auction Price | AC3: 50Hz>PSE Yearly Auction Price | AD3: CEPS>PSE Yearly Auction Price | AE3: PSE>SEPS Yearly Auction Price | AF3: SEPS>PSE Yearly Auction Price | AG3: HOPS>ELESE Daily Auction Price | AH3: MAVIR>APG Yearly Auction Price | AI3: CEPS>EON Yearly Auction Price | AJ3: APG>CEPS Yearly Auction Price | AK3: APG>MAVIR Yearly Auction Price | AL3: CEPS>APG Yearly Auction Price | AM3: 50Hz>CEPS Yearly Auction Price | AN3: HOPS>MAVIR Yearly Auction Price | AO3: CEPS-50Hz Yearly Auction Price | AP3: EON>CEPS Yearly Auction Price | AQ3: ELES>HOPS Yearly Auction Price | AR3: MAVIR>HOPS Yearly Auction Price
A4: AT-CZ | B4: 690 | C4: 690 | D4: 690 | E4: 690 | F4: 690 | G4: 690 | H4: 690 | I4: 690 | J4: 690 | K4: 690 | L4: 690 | M4: 690 | N4: 690 | O4: 690 | P4: 690 | Q4: 690 | R4: 690 | S4: 690 | T4: 690 | U4: 690 | V4: 690 | W4: 690 | X4: 690 | Y4: 690 | AA4: =HLOOKUP(AA2,$B$24:$Q$25,2,0) -> 900 | AD4: 600 | AE4: 550 | AF4: 500 | AG4: 1827 | AH4: 975 | AI4: 1329 | AJ4: 615 | AK4: 225 | AL4: 785 | AN4: 1231 | AP4: 1321 | AQ4: 1173 | AR4: 969
A5: AT-HU | B5: 222 | C5: 222 | D5: 222 | E5: 222 | F5: 222 | G5: 222 | H5: 222 | I5: 222 | J5: 222 | K5: 222 | L5: 222 | M5: 222 | N5: 222 | O5: 222 | P5: 222 | Q5: 222 | R5: 222 | S5: 222 | T5: 222 | U5: 222 | V5: 222 | W5: 222 | X5: 222 | Y5: 222 | AA5: =HLOOKUP(AA2,$B$24:$Q$25,2,0) -> 900
A6: CZ-AT | B6: 960 | C6: 960 | D6: 960 | E6: 960 | F6: 960 | G6: 910 | H6: 860 | I6: 810 | J6: 810 | K6: 810 | L6: 810 | M6: 810 | N6: 810 | O6: 810 | P6: 810 | Q6: 810 | R6: 810 | S6: 810 | T6: 810 | U6: 810 | V6: 860 | W6: 860 | X6: 860 | Y6: 860
A7: CZ-PL | B7: 600 | C7: 600 | D7: 600 | E7: 600 | F7: 600 | G7: 600 | H7: 600 | I7: 600 | J7: 600 | K7: 600 | L7: 600 | M7: 600 | N7: 600 | O7: 600 | P7: 600 | Q7: 600 | R7: 600 | S7: 600 | T7: 600 | U7: 600 | V7: 600 | W7: 600 | X7: 600 | Y7: 600
A8: CZ-DE(TenneT) | B8: 1462 | C8: 1462 | D8: 1462 | E8: 1462 | F8: 1462 | G8: 1462 | H8: 1462 | I8: 1462 | J8: 1477 | K8: 1477 | L8: 1477 | M8: 1477 | N8: 1477 | O8: 1477 | P8: 1477 | Q8: 1477 | R8: 1477 | S8: 1477 | T8: 1477 | U8: 1477 | V8: 1462 | W8: 1462 | X8: 1462 | Y8: 1462 | AA8: PL-CZ | AB8: PL-DE(50Hz) | AC8: DE(50Hz)-PL | AD8: CZ-PL | AE8: PL-SK | AF8: SK-PL | AG8: HR-SI | AH8: HU-AT | AI8: CZ-DE(TenneT) | AJ8: AT-CZ | AK8: AT-HU | AL8: CZ-AT | AM8: DE(50Hz)-CZ | AN8: HR-HU | AO8: CZ-DE(50Hz) | AP8: DE(TenneT)-CZ | AQ8: SI-HR | AR8: HU-HR
A9: SI-HR | B9: 1183 | C9: 1183 | D9: 1183 | E9: 1183 | F9: 1183 | G9: 1184 | H9: 1184 | I9: 1184 | J9: 1184 | K9: 1184 | L9: 1059 | M9: 1059 | N9: 1059 | O9: 1059 | P9: 1059 | Q9: 1059 | R9: 1059 | S9: 1059 | T9: 1059 | U9: 1059 | V9: 1059 | W9: 1058 | X9: 1183 | Y9: 1183 | AA9: PSE>CEPS Yearly Auction Price | AB9: PSE>50Hz Yearly Auction Price | AC9: 50Hz>PSE Yearly Auction Price | AD9: CEPS>PSE Yearly Auction Price | AE9: PSE>SEPS Yearly Auction Price | AF9: SEPS>PSE Yearly Auction Price | AG9: HOPS>ELESE Daily Auction Price | AH9: MAVIR>APG Yearly Auction Price | AI9: CEPS>EON Yearly Auction Price | AJ9: APG>CEPS Yearly Auction Price | AK9: APG>MAVIR Yearly Auction Price | AL9: CEPS>APG Yearly Auction Price | AM9: 50Hz>CEPS Yearly Auction Price | AN9: HOPS>MAVIR Yearly Auction Price | AO9: CEPS-50Hz Yearly Auction Price | AP9: EON>CEPS Yearly Auction Price | AQ9: ELES>HOPS Yearly Auction Price | AR9: MAVIR>HOPS Yearly Auction Price
A10: HR-SI | B10: 1817 | C10: 1817 | D10: 1817 | E10: 1817 | F10: 1817 | G10: 1816 | H10: 1816 | I10: 1816 | J10: 1816 | K10: 1816 | L10: 1941 | M10: 1941 | N10: 1941 | O10: 1941 | P10: 1941 | Q10: 1941 | R10: 1941 | S10: 1941 | T10: 1941 | U10: 1941 | V10: 1941 | W10: 1942 | X10: 1817 | Y10: 1817 | AA10: =HLOOKUP(AA$2,CHOOSE({1;2},$B$24:$Q$24,$B25:$Q25),2,0) -> 900 | AB10: =HLOOKUP(AB$2,CHOOSE({1;2},$B$24:$Q$24,$B25:$Q25),2,0) ->  | AC10: =HLOOKUP(AC$2,CHOOSE({1;2},$B$24:$Q$24,$B25:$Q25),2,0) ->  | AD10: =HLOOKUP(AD$2,CHOOSE({1;2},$B$24:$Q$24,$B25:$Q25),2,0) -> 600 | AE10: =HLOOKUP(AE$2,CHOOSE({1;2},$B$24:$Q$24,$B25:$Q25),2,0) -> 550 | AF10: =HLOOKUP(AF$2,CHOOSE({1;2},$B$24:$Q$24,$B25:$Q25),2,0) -> 500 | AG10: =HLOOKUP(AG$2,CHOOSE({1;2},$B$24:$Q$24,$B25:$Q25),2,0) -> 1827 | AH10: =HLOOKUP(AH$2,CHOOSE({1;2},$B$24:$Q$24,$B25:$Q25),2,0) -> 975 | AI10: =HLOOKUP(AI$2,CHOOSE({1;2},$B$24:$Q$24,$B25:$Q25),2,0) -> 1329 | AJ10: =HLOOKUP(AJ$2,CHOOSE({1;2},$B$24:$Q$24,$B25:$Q25),2,0) -> 615 | AK10: =HLOOKUP(AK$2,CHOOSE({1;2},$B$24:$Q$24,$B25:$Q25),2,0) -> 225 | AL10: =HLOOKUP(AL$2,CHOOSE({1;2},$B$24:$Q$24,$B25:$Q25),2,0) -> 785 | AM10: =HLOOKUP(AM$2,CHOOSE({1;2},$B$24:$Q$24,$B25:$Q25),2,0) ->  | AN10: =HLOOKUP(AN$2,CHOOSE({1;2},$B$24:$Q$24,$B25:$Q25),2,0) -> 1231 | AO10: =HLOOKUP(AO$2,CHOOSE({1;2},$B$24:$Q$24,$B25:$Q25),2,0) ->  | AP10: =HLOOKUP(AP$2,CHOOSE({1;2},$B$24:$Q$24,$B25:$Q25),2,0) -> 1321 | AQ10: =HLOOKUP(AQ$2,CHOOSE({1;2},$B$24:$Q$24,$B25:$Q25),2,0) -> 1173 | AR10: =HLOOKUP(AR$2,CHOOSE({1;2},$B$24:$Q$24,$B25:$Q25),2,0) -> 969 | AS10: H01
A11: HR-HU | B11: 1118 | C11: 1118 | D11: 1118 | E11: 1118 | F11: 1118 | G11: 1118 | H11: 1118 | I11: 1118 | J11: 1118 | K11: 1118 | L11: 993 | M11: 993 | N11: 993 | O11: 993 | P11: 993 | Q11: 993 | R11: 993 | S11: 993 | T11: 993 | U11: 993 | V11: 993 | W11: 993 | X11: 1118 | Y11: 1118 | AA11: =HLOOKUP(AA$2,CHOOSE({1;2},$B$24:$Q$24,$B26:$Q26),2,0) -> 900 | AB11: =HLOOKUP(AB$2,CHOOSE({1;2},$B$24:$Q$24,$B26:$Q26),2,0) ->  | AC11: =HLOOKUP(AC$2,CHOOSE({1;2},$B$24:$Q$24,$B26:$Q26),2,0) ->  | AD11: =HLOOKUP(AD$2,CHOOSE({1;2},$B$24:$Q$24,$B26:$Q26),2,0) -> 600 | AE11: =HLOOKUP(AE$2,CHOOSE({1;2},$B$24:$Q$24,$B26:$Q26),2,0) -> 550 | AF11: =HLOOKUP(AF$2,CHOOSE({1;2},$B$24:$Q$24,$B26:$Q26),2,0) -> 500 | AG11: =HLOOKUP(AG$2,CHOOSE({1;2},$B$24:$Q$24,$B26:$Q26),2,0) -> 1826 | AH11: =HLOOKUP(AH$2,CHOOSE({1;2},$B$24:$Q$24,$B26:$Q26),2,0) -> 975 | AI11: =HLOOKUP(AI$2,CHOOSE({1;2},$B$24:$Q$24,$B26:$Q26),2,0) -> 1329 | AJ11: =HLOOKUP(AJ$2,CHOOSE({1;2},$B$24:$Q$24,$B26:$Q26),2,0) -> 615 | AK11: =HLOOKUP(AK$2,CHOOSE({1;2},$B$24:$Q$24,$B26:$Q26),2,0) -> 225 | AL11: =HLOOKUP(AL$2,CHOOSE({1;2},$B$24:$Q$24,$B26:$Q26),2,0) -> 785 | AM11: =HLOOKUP(AM$2,CHOOSE({1;2},$B$24:$Q$24,$B26:$Q26),2,0) ->  | AN11: =HLOOKUP(AN$2,CHOOSE({1;2},$B$24:$Q$24,$B26:$Q26),2,0) -> 1229 | AO11: =HLOOKUP(AO$2,CHOOSE({1;2},$B$24:$Q$24,$B26:$Q26),2,0) ->  | AP11: =HLOOKUP(AP$2,CHOOSE({1;2},$B$24:$Q$24,$B26:$Q26),2,0) -> 1271 | AQ11: =HLOOKUP(AQ$2,CHOOSE({1;2},$B$24:$Q$24,$B26:$Q26),2,0) -> 1174 | AR11: =HLOOKUP(AR$2,CHOOSE({1;2},$B$24:$Q$24,$B26:$Q26),2,0) -> 971 | AS11: H02
A12: HU-AT | B12: 878 | C12: 878 | D12: 878 | E12: 878 | F12: 878 | G12: 878 | H12: 878 | I12: 878 | J12: 878 | K12: 878 | L12: 878 | M12: 878 | N12: 878 | O12: 878 | P12: 878 | Q12: 878 | R12: 878 | S12: 878 | T12: 878 | U12: 878 | V12: 878 | W12: 878 | X12: 878 | Y12: 878 | AA12: =HLOOKUP(AA$2,CHOOSE({1;2},$B$24:$Q$24,$B27:$Q27),2,0) -> 900 | AB12: =HLOOKUP(AB$2,CHOOSE({1;2},$B$24:$Q$24,$B27:$Q27),2,0) ->  | AC12: =HLOOKUP(AC$2,CHOOSE({1;2},$B$24:$Q$24,$B27:$Q27),2,0) ->  | AD12: =HLOOKUP(AD$2,CHOOSE({1;2},$B$24:$Q$24,$B27:$Q27),2,0) -> 600 | AE12: =HLOOKUP(AE$2,CHOOSE({1;2},$B$24:$Q$24,$B27:$Q27),2,0) -> 550 | AF12: =HLOOKUP(AF$2,CHOOSE({1;2},$B$24:$Q$24,$B27:$Q27),2,0) -> 500 | AG12: =HLOOKUP(AG$2,CHOOSE({1;2},$B$24:$Q$24,$B27:$Q27),2,0) -> 1826 | AH12: =HLOOKUP(AH$2,CHOOSE({1;2},$B$24:$Q$24,$B27:$Q27),2,0) -> 975 | AI12: =HLOOKUP(AI$2,CHOOSE({1;2},$B$24:$Q$24,$B27:$Q27),2,0) -> 1329 | AJ12: =HLOOKUP(AJ$2,CHOOSE({1;2},$B$24:$Q$24,$B27:$Q27),2,0) -> 615 | AK12: =HLOOKUP(AK$2,CHOOSE({1;2},$B$24:$Q$24,$B27:$Q27),2,0) -> 225 | AL12: =HLOOKUP(AL$2,CHOOSE({1;2},$B$24:$Q$24,$B27:$Q27),2,0) -> 785 | AM12: =HLOOKUP(AM$2,CHOOSE({1;2},$B$24:$Q$24,$B27:$Q27),2,0) ->  | AN12: =HLOOKUP(AN$2,CHOOSE({1;2},$B$24:$Q$24,$B27:$Q27),2,0) -> 1228 | AO12: =HLOOKUP(AO$2,CHOOSE({1;2},$B$24:$Q$24,$B27:$Q27),2,0) ->  | AP12: =HLOOKUP(AP$2,CHOOSE({1;2},$B$24:$Q$24,$B27:$Q27),2,0) -> 1221 | AQ12: =HLOOKUP(AQ$2,CHOOSE({1;2},$B$24:$Q$24,$B27:$Q27),2,0) -> 1174 | AR12: =HLOOKUP(AR$2,CHOOSE({1;2},$B$24:$Q$24,$B27:$Q27),2,0) -> 972 | AS12: H03
A13: HU-HR | B13: 1082 | C13: 1082 | D13: 1082 | E13: 1082 | F13: 1082 | G13: 1082 | H13: 1082 | I13: 1082 | J13: 1082 | K13: 1082 | L13: 1207 | M13: 1207 | N13: 1207 | O13: 1207 | P13: 1207 | Q13: 1207 | R13: 1207 | S13: 1207 | T13: 1207 | U13: 1207 | V13: 1207 | W13: 1207 | X13: 1082 | Y13: 1082 | AA13: =HLOOKUP(AA$2,CHOOSE({1;2},$B$24:$Q$24,$B28:$Q28),2,0) -> 900 | AB13: =HLOOKUP(AB$2,CHOOSE({1;2},$B$24:$Q$24,$B28:$Q28),2,0) ->  | AC13: =HLOOKUP(AC$2,CHOOSE({1;2},$B$24:$Q$24,$B28:$Q28),2,0) ->  | AD13: =HLOOKUP(AD$2,CHOOSE({1;2},$B$24:$Q$24,$B28:$Q28),2,0) -> 600 | AE13: =HLOOKUP(AE$2,CHOOSE({1;2},$B$24:$Q$24,$B28:$Q28),2,0) -> 550 | AF13: =HLOOKUP(AF$2,CHOOSE({1;2},$B$24:$Q$24,$B28:$Q28),2,0) -> 500 | AG13: =HLOOKUP(AG$2,CHOOSE({1;2},$B$24:$Q$24,$B28:$Q28),2,0) -> 1816 | AH13: =HLOOKUP(AH$2,CHOOSE({1;2},$B$24:$Q$24,$B28:$Q28),2,0) -> 975 | AI13: =HLOOKUP(AI$2,CHOOSE({1;2},$B$24:$Q$24,$B28:$Q28),2,0) -> 1329 | AJ13: =HLOOKUP(AJ$2,CHOOSE({1;2},$B$24:$Q$24,$B28:$Q28),2,0) -> 615 | AK13: =HLOOKUP(AK$2,CHOOSE({1;2},$B$24:$Q$24,$B28:$Q28),2,0) -> 225 | AL13: =HLOOKUP(AL$2,CHOOSE({1;2},$B$24:$Q$24,$B28:$Q28),2,0) -> 785 | AM13: =HLOOKUP(AM$2,CHOOSE({1;2},$B$24:$Q$24,$B28:$Q28),2,0) ->  | AN13: =HLOOKUP(AN$2,CHOOSE({1;2},$B$24:$Q$24,$B28:$Q28),2,0) -> 1228 | AO13: =HLOOKUP(AO$2,CHOOSE({1;2},$B$24:$Q$24,$B28:$Q28),2,0) ->  | AP13: =HLOOKUP(AP$2,CHOOSE({1;2},$B$24:$Q$24,$B28:$Q28),2,0) -> 1221 | AQ13: =HLOOKUP(AQ$2,CHOOSE({1;2},$B$24:$Q$24,$B28:$Q28),2,0) -> 1184 | AR13: =HLOOKUP(AR$2,CHOOSE({1;2},$B$24:$Q$24,$B28:$Q28),2,0) -> 972 | AS13: H04
A14: PL-CZ | B14: 900 | C14: 900 | D14: 900 | E14: 900 | F14: 900 | G14: 900 | H14: 900 | I14: 900 | J14: 900 | K14: 900 | L14: 900 | M14: 900 | N14: 900 | O14: 900 | P14: 900 | Q14: 900 | R14: 900 | S14: 900 | T14: 900 | U14: 900 | V14: 900 | W14: 900 | X14: 900 | Y14: 900 | AA14: =HLOOKUP(AA$2,CHOOSE({1;2},$B$24:$Q$24,$B29:$Q29),2,0) -> 900 | AB14: =HLOOKUP(AB$2,CHOOSE({1;2},$B$24:$Q$24,$B29:$Q29),2,0) ->  | AC14: =HLOOKUP(AC$2,CHOOSE({1;2},$B$24:$Q$24,$B29:$Q29),2,0) ->  | AD14: =HLOOKUP(AD$2,CHOOSE({1;2},$B$24:$Q$24,$B29:$Q29),2,0) -> 600 | AE14: =HLOOKUP(AE$2,CHOOSE({1;2},$B$24:$Q$24,$B29:$Q29),2,0) -> 550 | AF14: =HLOOKUP(AF$2,CHOOSE({1;2},$B$24:$Q$24,$B29:$Q29),2,0) -> 500 | AG14: =HLOOKUP(AG$2,CHOOSE({1;2},$B$24:$Q$24,$B29:$Q29),2,0) -> 1815 | AH14: =HLOOKUP(AH$2,CHOOSE({1;2},$B$24:$Q$24,$B29:$Q29),2,0) -> 975 | AI14: =HLOOKUP(AI$2,CHOOSE({1;2},$B$24:$Q$24,$B29:$Q29),2,0) -> 1329 | AJ14: =HLOOKUP(AJ$2,CHOOSE({1;2},$B$24:$Q$24,$B29:$Q29),2,0) -> 615 | AK14: =HLOOKUP(AK$2,CHOOSE({1;2},$B$24:$Q$24,$B29:$Q29),2,0) -> 225 | AL14: =HLOOKUP(AL$2,CHOOSE({1;2},$B$24:$Q$24,$B29:$Q29),2,0) -> 785 | AM14: =HLOOKUP(AM$2,CHOOSE({1;2},$B$24:$Q$24,$B29:$Q29),2,0) ->  | AN14: =HLOOKUP(AN$2,CHOOSE({1;2},$B$24:$Q$24,$B29:$Q29),2,0) -> 1229 | AO14: =HLOOKUP(AO$2,CHOOSE({1;2},$B$24:$Q$24,$B29:$Q29),2,0) ->  | AP14: =HLOOKUP(AP$2,CHOOSE({1;2},$B$24:$Q$24,$B29:$Q29),2,0) -> 1221 | AQ14: =HLOOKUP(AQ$2,CHOOSE({1;2},$B$24:$Q$24,$B29:$Q29),2,0) -> 1185 | AR14: =HLOOKUP(AR$2,CHOOSE({1;2},$B$24:$Q$24,$B29:$Q29),2,0) -> 971 | AS14: H05
A15: DE(50Hz)+CZ+SK-PL | B15: 0 | C15: 0 | D15: 0 | E15: 0 | F15: 0 | G15: 0 | H15: 0 | I15: 0 | J15: 0 | K15: 0 | L15: 0 | M15: 0 | N15: 0 | O15: 0 | P15: 0 | Q15: 0 | R15: 0 | S15: 0 | T15: 0 | U15: 0 | V15: 0 | W15: 0 | X15: 0 | Y15: 0 | AA15: =HLOOKUP(AA$2,CHOOSE({1;2},$B$24:$Q$24,$B30:$Q30),2,0) -> 900 | AB15: =HLOOKUP(AB$2,CHOOSE({1;2},$B$24:$Q$24,$B30:$Q30),2,0) ->  | AC15: =HLOOKUP(AC$2,CHOOSE({1;2},$B$24:$Q$24,$B30:$Q30),2,0) ->  | AD15: =HLOOKUP(AD$2,CHOOSE({1;2},$B$24:$Q$24,$B30:$Q30),2,0) -> 600 | AE15: =HLOOKUP(AE$2,CHOOSE({1;2},$B$24:$Q$24,$B30:$Q30),2,0) -> 550 | AF15: =HLOOKUP(AF$2,CHOOSE({1;2},$B$24:$Q$24,$B30:$Q30),2,0) -> 500 | AG15: =HLOOKUP(AG$2,CHOOSE({1;2},$B$24:$Q$24,$B30:$Q30),2,0) -> 1819 | AH15: =HLOOKUP(AH$2,CHOOSE({1;2},$B$24:$Q$24,$B30:$Q30),2,0) -> 975 | AI15: =HLOOKUP(AI$2,CHOOSE({1;2},$B$24:$Q$24,$B30:$Q30),2,0) -> 1329 | AJ15: =HLOOKUP(AJ$2,CHOOSE({1;2},$B$24:$Q$24,$B30:$Q30),2,0) -> 615 | AK15: =HLOOKUP(AK$2,CHOOSE({1;2},$B$24:$Q$24,$B30:$Q30),2,0) -> 225 | AL15: =HLOOKUP(AL$2,CHOOSE({1;2},$B$24:$Q$24,$B30:$Q30),2,0) -> 785 | AM15: =HLOOKUP(AM$2,CHOOSE({1;2},$B$24:$Q$24,$B30:$Q30),2,0) ->  | AN15: =HLOOKUP(AN$2,CHOOSE({1;2},$B$24:$Q$24,$B30:$Q30),2,0) -> 1232 | AO15: =HLOOKUP(AO$2,CHOOSE({1;2},$B$24:$Q$24,$B30:$Q30),2,0) ->  | AP15: =HLOOKUP(AP$2,CHOOSE({1;2},$B$24:$Q$24,$B30:$Q30),2,0) -> 1171 | AQ15: =HLOOKUP(AQ$2,CHOOSE({1;2},$B$24:$Q$24,$B30:$Q30),2,0) -> 1181 | AR15: =HLOOKUP(AR$2,CHOOSE({1;2},$B$24:$Q$24,$B30:$Q30),2,0) -> 968 | AS15: H06
A16: PL-DE(50Hz)+CZ+SK | B16: 900 | C16: 900 | D16: 900 | E16: 900 | F16: 900 | G16: 900 | H16: 450 | I16: 0 | J16: 0 | K16: 0 | L16: 0 | M16: 0 | N16: 0 | O16: 0 | P16: 0 | Q16: 0 | R16: 0 | S16: 0 | T16: 0 | U16: 0 | V16: 0 | W16: 39 | X16: 900 | Y16: 900 | AA16: =HLOOKUP(AA$2,CHOOSE({1;2},$B$24:$Q$24,$B31:$Q31),2,0) -> 900 | AB16: =HLOOKUP(AB$2,CHOOSE({1;2},$B$24:$Q$24,$B31:$Q31),2,0) ->  | AC16: =HLOOKUP(AC$2,CHOOSE({1;2},$B$24:$Q$24,$B31:$Q31),2,0) ->  | AD16: =HLOOKUP(AD$2,CHOOSE({1;2},$B$24:$Q$24,$B31:$Q31),2,0) -> 600 | AE16: =HLOOKUP(AE$2,CHOOSE({1;2},$B$24:$Q$24,$B31:$Q31),2,0) -> 550 | AF16: =HLOOKUP(AF$2,CHOOSE({1;2},$B$24:$Q$24,$B31:$Q31),2,0) -> 500 | AG16: =HLOOKUP(AG$2,CHOOSE({1;2},$B$24:$Q$24,$B31:$Q31),2,0) -> 1822 | AH16: =HLOOKUP(AH$2,CHOOSE({1;2},$B$24:$Q$24,$B31:$Q31),2,0) -> 975 | AI16: =HLOOKUP(AI$2,CHOOSE({1;2},$B$24:$Q$24,$B31:$Q31),2,0) -> 1339 | AJ16: =HLOOKUP(AJ$2,CHOOSE({1;2},$B$24:$Q$24,$B31:$Q31),2,0) -> 610 | AK16: =HLOOKUP(AK$2,CHOOSE({1;2},$B$24:$Q$24,$B31:$Q31),2,0) -> 225 | AL16: =HLOOKUP(AL$2,CHOOSE({1;2},$B$24:$Q$24,$B31:$Q31),2,0) -> 790 | AM16: =HLOOKUP(AM$2,CHOOSE({1;2},$B$24:$Q$24,$B31:$Q31),2,0) ->  | AN16: =HLOOKUP(AN$2,CHOOSE({1;2},$B$24:$Q$24,$B31:$Q31),2,0) -> 1159 | AO16: =HLOOKUP(AO$2,CHOOSE({1;2},$B$24:$Q$24,$B31:$Q31),2,0) ->  | AP16: =HLOOKUP(AP$2,CHOOSE({1;2},$B$24:$Q$24,$B31:$Q31),2,0) -> 1011 | AQ16: =HLOOKUP(AQ$2,CHOOSE({1;2},$B$24:$Q$24,$B31:$Q31),2,0) -> 1178 | AR16: =HLOOKUP(AR$2,CHOOSE({1;2},$B$24:$Q$24,$B31:$Q31),2,0) -> 1041 | AS16: H07
A17: PL-SK | B17: 550 | C17: 550 | D17: 550 | E17: 550 | F17: 550 | G17: 550 | H17: 550 | I17: 550 | J17: 550 | K17: 550 | L17: 550 | M17: 550 | N17: 550 | O17: 550 | P17: 550 | Q17: 550 | R17: 550 | S17: 550 | T17: 550 | U17: 550 | V17: 550 | W17: 550 | X17: 550 | Y17: 550 | AA17: =HLOOKUP(AA$2,CHOOSE({1;2},$B$24:$Q$24,$B32:$Q32),2,0) -> 900 | AB17: =HLOOKUP(AB$2,CHOOSE({1;2},$B$24:$Q$24,$B32:$Q32),2,0) ->  | AC17: =HLOOKUP(AC$2,CHOOSE({1;2},$B$24:$Q$24,$B32:$Q32),2,0) ->  | AD17: =HLOOKUP(AD$2,CHOOSE({1;2},$B$24:$Q$24,$B32:$Q32),2,0) -> 600 | AE17: =HLOOKUP(AE$2,CHOOSE({1;2},$B$24:$Q$24,$B32:$Q32),2,0) -> 550 | AF17: =HLOOKUP(AF$2,CHOOSE({1;2},$B$24:$Q$24,$B32:$Q32),2,0) -> 500 | AG17: =HLOOKUP(AG$2,CHOOSE({1;2},$B$24:$Q$24,$B32:$Q32),2,0) -> 1822 | AH17: =HLOOKUP(AH$2,CHOOSE({1;2},$B$24:$Q$24,$B32:$Q32),2,0) -> 975 | AI17: =HLOOKUP(AI$2,CHOOSE({1;2},$B$24:$Q$24,$B32:$Q32),2,0) -> 1339 | AJ17: =HLOOKUP(AJ$2,CHOOSE({1;2},$B$24:$Q$24,$B32:$Q32),2,0) -> 610 | AK17: =HLOOKUP(AK$2,CHOOSE({1;2},$B$24:$Q$24,$B32:$Q32),2,0) -> 225 | AL17: =HLOOKUP(AL$2,CHOOSE({1;2},$B$24:$Q$24,$B32:$Q32),2,0) -> 790 | AM17: =HLOOKUP(AM$2,CHOOSE({1;2},$B$24:$Q$24,$B32:$Q32),2,0) ->  | AN17: =HLOOKUP(AN$2,CHOOSE({1;2},$B$24:$Q$24,$B32:$Q32),2,0) -> 1166 | AO17: =HLOOKUP(AO$2,CHOOSE({1;2},$B$24:$Q$24,$B32:$Q32),2,0) ->  | AP17: =HLOOKUP(AP$2,CHOOSE({1;2},$B$24:$Q$24,$B32:$Q32),2,0) -> 1011 | AQ17: =HLOOKUP(AQ$2,CHOOSE({1;2},$B$24:$Q$24,$B32:$Q32),2,0) -> 1178 | AR17: =HLOOKUP(AR$2,CHOOSE({1;2},$B$24:$Q$24,$B32:$Q32),2,0) -> 1034 | AS17: H08
A18: SK-PL | B18: 500 | C18: 500 | D18: 500 | E18: 500 | F18: 500 | G18: 500 | H18: 500 | I18: 500 | J18: 500 | K18: 500 | L18: 500 | M18: 500 | N18: 500 | O18: 500 | P18: 500 | Q18: 500 | R18: 500 | S18: 500 | T18: 500 | U18: 500 | V18: 500 | W18: 500 | X18: 500 | Y18: 500 | AA18: =HLOOKUP(AA$2,CHOOSE({1;2},$B$24:$Q$24,$B33:$Q33),2,0) -> 900 | AB18: =HLOOKUP(AB$2,CHOOSE({1;2},$B$24:$Q$24,$B33:$Q33),2,0) ->  | AC18: =HLOOKUP(AC$2,CHOOSE({1;2},$B$24:$Q$24,$B33:$Q33),2,0) ->  | AD18: =HLOOKUP(AD$2,CHOOSE({1;2},$B$24:$Q$24,$B33:$Q33),2,0) -> 600 | AE18: =HLOOKUP(AE$2,CHOOSE({1;2},$B$24:$Q$24,$B33:$Q33),2,0) -> 550 | AF18: =HLOOKUP(AF$2,CHOOSE({1;2},$B$24:$Q$24,$B33:$Q33),2,0) -> 500 | AG18: =HLOOKUP(AG$2,CHOOSE({1;2},$B$24:$Q$24,$B33:$Q33),2,0) -> 1933 | AH18: =HLOOKUP(AH$2,CHOOSE({1;2},$B$24:$Q$24,$B33:$Q33),2,0) -> 975 | AI18: =HLOOKUP(AI$2,CHOOSE({1;2},$B$24:$Q$24,$B33:$Q33),2,0) -> 1354 | AJ18: =HLOOKUP(AJ$2,CHOOSE({1;2},$B$24:$Q$24,$B33:$Q33),2,0) -> 610 | AK18: =HLOOKUP(AK$2,CHOOSE({1;2},$B$24:$Q$24,$B33:$Q33),2,0) -> 225 | AL18: =HLOOKUP(AL$2,CHOOSE({1;2},$B$24:$Q$24,$B33:$Q33),2,0) -> 790 | AM18: =HLOOKUP(AM$2,CHOOSE({1;2},$B$24:$Q$24,$B33:$Q33),2,0) ->  | AN18: =HLOOKUP(AN$2,CHOOSE({1;2},$B$24:$Q$24,$B33:$Q33),2,0) -> 1040 | AO18: =HLOOKUP(AO$2,CHOOSE({1;2},$B$24:$Q$24,$B33:$Q33),2,0) ->  | AP18: =HLOOKUP(AP$2,CHOOSE({1;2},$B$24:$Q$24,$B33:$Q33),2,0) -> 896 | AQ18: =HLOOKUP(AQ$2,CHOOSE({1;2},$B$24:$Q$24,$B33:$Q33),2,0) -> 1067 | AR18: =HLOOKUP(AR$2,CHOOSE({1;2},$B$24:$Q$24,$B33:$Q33),2,0) -> 1160 | AS18: H09
A19: DE(TenneT)-CZ | B19: 238 | C19: 238 | D19: 238 | E19: 238 | F19: 238 | G19: 238 | H19: 238 | I19: 438 | J19: 423 | K19: 373 | L19: 223 | M19: 223 | N19: 223 | O19: 223 | P19: 223 | Q19: 223 | R19: 223 | S19: 223 | T19: 223 | U19: 223 | V19: 238 | W19: 238 | X19: 238 | Y19: 238 | AA19: =HLOOKUP(AA$2,CHOOSE({1;2},$B$24:$Q$24,$B34:$Q34),2,0) -> 900 | AB19: =HLOOKUP(AB$2,CHOOSE({1;2},$B$24:$Q$24,$B34:$Q34),2,0) ->  | AC19: =HLOOKUP(AC$2,CHOOSE({1;2},$B$24:$Q$24,$B34:$Q34),2,0) ->  | AD19: =HLOOKUP(AD$2,CHOOSE({1;2},$B$24:$Q$24,$B34:$Q34),2,0) -> 600 | AE19: =HLOOKUP(AE$2,CHOOSE({1;2},$B$24:$Q$24,$B34:$Q34),2,0) -> 550 | AF19: =HLOOKUP(AF$2,CHOOSE({1;2},$B$24:$Q$24,$B34:$Q34),2,0) -> 500 | AG19: =HLOOKUP(AG$2,CHOOSE({1;2},$B$24:$Q$24,$B34:$Q34),2,0) -> 1932 | AH19: =HLOOKUP(AH$2,CHOOSE({1;2},$B$24:$Q$24,$B34:$Q34),2,0) -> 975 | AI19: =HLOOKUP(AI$2,CHOOSE({1;2},$B$24:$Q$24,$B34:$Q34),2,0) -> 1354 | AJ19: =HLOOKUP(AJ$2,CHOOSE({1;2},$B$24:$Q$24,$B34:$Q34),2,0) -> 610 | AK19: =HLOOKUP(AK$2,CHOOSE({1;2},$B$24:$Q$24,$B34:$Q34),2,0) -> 225 | AL19: =HLOOKUP(AL$2,CHOOSE({1;2},$B$24:$Q$24,$B34:$Q34),2,0) -> 790 | AM19: =HLOOKUP(AM$2,CHOOSE({1;2},$B$24:$Q$24,$B34:$Q34),2,0) ->  | AN19: =HLOOKUP(AN$2,CHOOSE({1;2},$B$24:$Q$24,$B34:$Q34),2,0) -> 1040 | AO19: =HLOOKUP(AO$2,CHOOSE({1;2},$B$24:$Q$24,$B34:$Q34),2,0) ->  | AP19: =HLOOKUP(AP$2,CHOOSE({1;2},$B$24:$Q$24,$B34:$Q34),2,0) -> 896 | AQ19: =HLOOKUP(AQ$2,CHOOSE({1;2},$B$24:$Q$24,$B34:$Q34),2,0) -> 1068 | AR19: =HLOOKUP(AR$2,CHOOSE({1;2},$B$24:$Q$24,$B34:$Q34),2,0) -> 1160 | AS19: H10
A20: PL+CZ-DE(50Hz) | B20: 1451 | C20: 1451 | D20: 1451 | E20: 1451 | F20: 1451 | G20: 1451 | H20: 1451 | I20: 1451 | J20: 1451 | K20: 1451 | L20: 1451 | M20: 1451 | N20: 1451 | O20: 1451 | P20: 1451 | Q20: 1451 | R20: 1451 | S20: 1451 | T20: 1451 | U20: 1451 | V20: 1451 | W20: 1451 | X20: 1451 | Y20: 1451 | AA20: =HLOOKUP(AA$2,CHOOSE({1;2},$B$24:$Q$24,$B35:$Q35),2,0) -> 900 | AB20: =HLOOKUP(AB$2,CHOOSE({1;2},$B$24:$Q$24,$B35:$Q35),2,0) ->  | AC20: =HLOOKUP(AC$2,CHOOSE({1;2},$B$24:$Q$24,$B35:$Q35),2,0) ->  | AD20: =HLOOKUP(AD$2,CHOOSE({1;2},$B$24:$Q$24,$B35:$Q35),2,0) -> 600 | AE20: =HLOOKUP(AE$2,CHOOSE({1;2},$B$24:$Q$24,$B35:$Q35),2,0) -> 550 | AF20: =HLOOKUP(AF$2,CHOOSE({1;2},$B$24:$Q$24,$B35:$Q35),2,0) -> 500 | AG20: =HLOOKUP(AG$2,CHOOSE({1;2},$B$24:$Q$24,$B35:$Q35),2,0) -> 1932 | AH20: =HLOOKUP(AH$2,CHOOSE({1;2},$B$24:$Q$24,$B35:$Q35),2,0) -> 975 | AI20: =HLOOKUP(AI$2,CHOOSE({1;2},$B$24:$Q$24,$B35:$Q35),2,0) -> 1354 | AJ20: =HLOOKUP(AJ$2,CHOOSE({1;2},$B$24:$Q$24,$B35:$Q35),2,0) -> 610 | AK20: =HLOOKUP(AK$2,CHOOSE({1;2},$B$24:$Q$24,$B35:$Q35),2,0) -> 225 | AL20: =HLOOKUP(AL$2,CHOOSE({1;2},$B$24:$Q$24,$B35:$Q35),2,0) -> 790 | AM20: =HLOOKUP(AM$2,CHOOSE({1;2},$B$24:$Q$24,$B35:$Q35),2,0) ->  | AN20: =HLOOKUP(AN$2,CHOOSE({1;2},$B$24:$Q$24,$B35:$Q35),2,0) -> 1040 | AO20: =HLOOKUP(AO$2,CHOOSE({1;2},$B$24:$Q$24,$B35:$Q35),2,0) ->  | AP20: =HLOOKUP(AP$2,CHOOSE({1;2},$B$24:$Q$24,$B35:$Q35),2,0) -> 996 | AQ20: =HLOOKUP(AQ$2,CHOOSE({1;2},$B$24:$Q$24,$B35:$Q35),2,0) -> 1068 | AR20: =HLOOKUP(AR$2,CHOOSE({1;2},$B$24:$Q$24,$B35:$Q35),2,0) -> 1160 | AS20: H11
A21: DE(50Hz)-PL+CZ | B21: 249 | C21: 249 | D21: 249 | E21: 249 | F21: 249 | G21: 249 | H21: 249 | I21: 449 | J21: 449 | K21: 399 | L21: 249 | M21: 249 | N21: 249 | O21: 249 | P21: 249 | Q21: 249 | R21: 249 | S21: 249 | T21: 249 | U21: 249 | V21: 249 | W21: 249 | X21: 249 | Y21: 249 | AA21: =HLOOKUP(AA$2,CHOOSE({1;2},$B$24:$Q$24,$B36:$Q36),2,0) -> 900 | AB21: =HLOOKUP(AB$2,CHOOSE({1;2},$B$24:$Q$24,$B36:$Q36),2,0) ->  | AC21: =HLOOKUP(AC$2,CHOOSE({1;2},$B$24:$Q$24,$B36:$Q36),2,0) ->  | AD21: =HLOOKUP(AD$2,CHOOSE({1;2},$B$24:$Q$24,$B36:$Q36),2,0) -> 600 | AE21: =HLOOKUP(AE$2,CHOOSE({1;2},$B$24:$Q$24,$B36:$Q36),2,0) -> 550 | AF21: =HLOOKUP(AF$2,CHOOSE({1;2},$B$24:$Q$24,$B36:$Q36),2,0) -> 500 | AG21: =HLOOKUP(AG$2,CHOOSE({1;2},$B$24:$Q$24,$B36:$Q36),2,0) -> 1932 | AH21: =HLOOKUP(AH$2,CHOOSE({1;2},$B$24:$Q$24,$B36:$Q36),2,0) -> 975 | AI21: =HLOOKUP(AI$2,CHOOSE({1;2},$B$24:$Q$24,$B36:$Q36),2,0) -> 1354 | AJ21: =HLOOKUP(AJ$2,CHOOSE({1;2},$B$24:$Q$24,$B36:$Q36),2,0) -> 610 | AK21: =HLOOKUP(AK$2,CHOOSE({1;2},$B$24:$Q$24,$B36:$Q36),2,0) -> 225 | AL21: =HLOOKUP(AL$2,CHOOSE({1;2},$B$24:$Q$24,$B36:$Q36),2,0) -> 790 | AM21: =HLOOKUP(AM$2,CHOOSE({1;2},$B$24:$Q$24,$B36:$Q36),2,0) ->  | AN21: =HLOOKUP(AN$2,CHOOSE({1;2},$B$24:$Q$24,$B36:$Q36),2,0) -> 1040 | AO21: =HLOOKUP(AO$2,CHOOSE({1;2},$B$24:$Q$24,$B36:$Q36),2,0) ->  | AP21: =HLOOKUP(AP$2,CHOOSE({1;2},$B$24:$Q$24,$B36:$Q36),2,0) -> 996 | AQ21: =HLOOKUP(AQ$2,CHOOSE({1;2},$B$24:$Q$24,$B36:$Q36),2,0) -> 1068 | AR21: =HLOOKUP(AR$2,CHOOSE({1;2},$B$24:$Q$24,$B36:$Q36),2,0) -> 1160 | AS21: H12
AA22: =HLOOKUP(AA$2,CHOOSE({1;2},$B$24:$Q$24,$B37:$Q37),2,0) -> 900 | AB22: =HLOOKUP(AB$2,CHOOSE({1;2},$B$24:$Q$24,$B37:$Q37),2,0) ->  | AC22: =HLOOKUP(AC$2,CHOOSE({1;2},$B$24:$Q$24,$B37:$Q37),2,0) ->  | AD22: =HLOOKUP(AD$2,CHOOSE({1;2},$B$24:$Q$24,$B37:$Q37),2,0) -> 600 | AE22: =HLOOKUP(AE$2,CHOOSE({1;2},$B$24:$Q$24,$B37:$Q37),2,0) -> 550 | AF22: =HLOOKUP(AF$2,CHOOSE({1;2},$B$24:$Q$24,$B37:$Q37),2,0) -> 500 | AG22: =HLOOKUP(AG$2,CHOOSE({1;2},$B$24:$Q$24,$B37:$Q37),2,0) -> 1933 | AH22: =HLOOKUP(AH$2,CHOOSE({1;2},$B$24:$Q$24,$B37:$Q37),2,0) -> 975 | AI22: =HLOOKUP(AI$2,CHOOSE({1;2},$B$24:$Q$24,$B37:$Q37),2,0) -> 1354 | AJ22: =HLOOKUP(AJ$2,CHOOSE({1;2},$B$24:$Q$24,$B37:$Q37),2,0) -> 610 | AK22: =HLOOKUP(AK$2,CHOOSE({1;2},$B$24:$Q$24,$B37:$Q37),2,0) -> 225 | AL22: =HLOOKUP(AL$2,CHOOSE({1;2},$B$24:$Q$24,$B37:$Q37),2,0) -> 790 | AM22: =HLOOKUP(AM$2,CHOOSE({1;2},$B$24:$Q$24,$B37:$Q37),2,0) ->  | AN22: =HLOOKUP(AN$2,CHOOSE({1;2},$B$24:$Q$24,$B37:$Q37),2,0) -> 1040 | AO22: =HLOOKUP(AO$2,CHOOSE({1;2},$B$24:$Q$24,$B37:$Q37),2,0) ->  | AP22: =HLOOKUP(AP$2,CHOOSE({1;2},$B$24:$Q$24,$B37:$Q37),2,0) -> 996 | AQ22: =HLOOKUP(AQ$2,CHOOSE({1;2},$B$24:$Q$24,$B37:$Q37),2,0) -> 1067 | AR22: =HLOOKUP(AR$2,CHOOSE({1;2},$B$24:$Q$24,$B37:$Q37),2,0) -> 1160 | AS22: H13
AA23: =HLOOKUP(AA$2,CHOOSE({1;2},$B$24:$Q$24,$B38:$Q38),2,0) -> 900 | AB23: =HLOOKUP(AB$2,CHOOSE({1;2},$B$24:$Q$24,$B38:$Q38),2,0) ->  | AC23: =HLOOKUP(AC$2,CHOOSE({1;2},$B$24:$Q$24,$B38:$Q38),2,0) ->  | AD23: =HLOOKUP(AD$2,CHOOSE({1;2},$B$24:$Q$24,$B38:$Q38),2,0) -> 600 | AE23: =HLOOKUP(AE$2,CHOOSE({1;2},$B$24:$Q$24,$B38:$Q38),2,0) -> 550 | AF23: =HLOOKUP(AF$2,CHOOSE({1;2},$B$24:$Q$24,$B38:$Q38),2,0) -> 500 | AG23: =HLOOKUP(AG$2,CHOOSE({1;2},$B$24:$Q$24,$B38:$Q38),2,0) -> 1933 | AH23: =HLOOKUP(AH$2,CHOOSE({1;2},$B$24:$Q$24,$B38:$Q38),2,0) -> 975 | AI23: =HLOOKUP(AI$2,CHOOSE({1;2},$B$24:$Q$24,$B38:$Q38),2,0) -> 1354 | AJ23: =HLOOKUP(AJ$2,CHOOSE({1;2},$B$24:$Q$24,$B38:$Q38),2,0) -> 610 | AK23: =HLOOKUP(AK$2,CHOOSE({1;2},$B$24:$Q$24,$B38:$Q38),2,0) -> 225 | AL23: =HLOOKUP(AL$2,CHOOSE({1;2},$B$24:$Q$24,$B38:$Q38),2,0) -> 790 | AM23: =HLOOKUP(AM$2,CHOOSE({1;2},$B$24:$Q$24,$B38:$Q38),2,0) ->  | AN23: =HLOOKUP(AN$2,CHOOSE({1;2},$B$24:$Q$24,$B38:$Q38),2,0) -> 1040 | AO23: =HLOOKUP(AO$2,CHOOSE({1;2},$B$24:$Q$24,$B38:$Q38),2,0) ->  | AP23: =HLOOKUP(AP$2,CHOOSE({1;2},$B$24:$Q$24,$B38:$Q38),2,0) -> 996 | AQ23: =HLOOKUP(AQ$2,CHOOSE({1;2},$B$24:$Q$24,$B38:$Q38),2,0) -> 1067 | AR23: =HLOOKUP(AR$2,CHOOSE({1;2},$B$24:$Q$24,$B38:$Q38),2,0) -> 1160 | AS23: H14
A24: Hour | B24: AT-CZ | C24: AT-HU | D24: CZ-AT | E24: CZ-PL | F24: CZ-DE(TenneT) | G24: SI-HR | H24: HR-SI | I24: HR-HU | J24: HU-AT | K24: HU-HR | L24: PL-CZ | M24: DE(50Hz)+CZ+SK-PL | N24: PL-DE(50Hz)+CZ+SK | O24: PL-SK | P24: SK-PL | Q24: DE(TenneT)-CZ | R24: PL+CZ-DE(50Hz) | S24: DE(50Hz)-PL+CZ | T24: Day | AA24: =HLOOKUP(AA$2,CHOOSE({1;2},$B$24:$Q$24,$B39:$Q39),2,0) -> 900 | AB24: =HLOOKUP(AB$2,CHOOSE({1;2},$B$24:$Q$24,$B39:$Q39),2,0) ->  | AC24: =HLOOKUP(AC$2,CHOOSE({1;2},$B$24:$Q$24,$B39:$Q39),2,0) ->  | AD24: =HLOOKUP(AD$2,CHOOSE({1;2},$B$24:$Q$24,$B39:$Q39),2,0) -> 600 | AE24: =HLOOKUP(AE$2,CHOOSE({1;2},$B$24:$Q$24,$B39:$Q39),2,0) -> 550 | AF24: =HLOOKUP(AF$2,CHOOSE({1;2},$B$24:$Q$24,$B39:$Q39),2,0) -> 500 | AG24: =HLOOKUP(AG$2,CHOOSE({1;2},$B$24:$Q$24,$B39:$Q39),2,0) -> 1933 | AH24: =HLOOKUP(AH$2,CHOOSE({1;2},$B$24:$Q$24,$B39:$Q39),2,0) -> 975 | AI24: =HLOOKUP(AI$2,CHOOSE({1;2},$B$24:$Q$24,$B39:$Q39),2,0) -> 1354 | AJ24: =HLOOKUP(AJ$2,CHOOSE({1;2},$B$24:$Q$24,$B39:$Q39),2,0) -> 610 | AK24: =HLOOKUP(AK$2,CHOOSE({1;2},$B$24:$Q$24,$B39:$Q39),2,0) -> 225 | AL24: =HLOOKUP(AL$2,CHOOSE({1;2},$B$24:$Q$24,$B39:$Q39),2,0) -> 790 | AM24: =HLOOKUP(AM$2,CHOOSE({1;2},$B$24:$Q$24,$B39:$Q39),2,0) ->  | AN24: =HLOOKUP(AN$2,CHOOSE({1;2},$B$24:$Q$24,$B39:$Q39),2,0) -> 1034 | AO24: =HLOOKUP(AO$2,CHOOSE({1;2},$B$24:$Q$24,$B39:$Q39),2,0) ->  | AP24: =HLOOKUP(AP$2,CHOOSE({1;2},$B$24:$Q$24,$B39:$Q39),2,0) -> 996 | AQ24: =HLOOKUP(AQ$2,CHOOSE({1;2},$B$24:$Q$24,$B39:$Q39),2,0) -> 1067 | AR24: =HLOOKUP(AR$2,CHOOSE({1;2},$B$24:$Q$24,$B39:$Q39),2,0) -> 1166 | AS24: H15
A25: H01 | B25: 615 | C25: 225 | D25: 785 | E25: 600 | F25: 1329 | G25: 1173 | H25: 1827 | I25: 1231 | J25: 975 | K25: 969 | L25: 900 | M25: 218 | N25: 1800 | O25: 550 | P25: 500 | Q25: 1321 | R25: 1534 | S25: 1116 | T25: 2017-12-01 | U25: 1 | AA25: =HLOOKUP(AA$2,CHOOSE({1;2},$B$24:$Q$24,$B40:$Q40),2,0) -> 900 | AB25: =HLOOKUP(AB$2,CHOOSE({1;2},$B$24:$Q$24,$B40:$Q40),2,0) ->  | AC25: =HLOOKUP(AC$2,CHOOSE({1;2},$B$24:$Q$24,$B40:$Q40),2,0) ->  | AD25: =HLOOKUP(AD$2,CHOOSE({1;2},$B$24:$Q$24,$B40:$Q40),2,0) -> 600 | AE25: =HLOOKUP(AE$2,CHOOSE({1;2},$B$24:$Q$24,$B40:$Q40),2,0) -> 550 | AF25: =HLOOKUP(AF$2,CHOOSE({1;2},$B$24:$Q$24,$B40:$Q40),2,0) -> 500 | AG25: =HLOOKUP(AG$2,CHOOSE({1;2},$B$24:$Q$24,$B40:$Q40),2,0) -> 1933 | AH25: =HLOOKUP(AH$2,CHOOSE({1;2},$B$24:$Q$24,$B40:$Q40),2,0) -> 975 | AI25: =HLOOKUP(AI$2,CHOOSE({1;2},$B$24:$Q$24,$B40:$Q40),2,0) -> 1354 | AJ25: =HLOOKUP(AJ$2,CHOOSE({1;2},$B$24:$Q$24,$B40:$Q40),2,0) -> 610 | AK25: =HLOOKUP(AK$2,CHOOSE({1;2},$B$24:$Q$24,$B40:$Q40),2,0) -> 225 | AL25: =HLOOKUP(AL$2,CHOOSE({1;2},$B$24:$Q$24,$B40:$Q40),2,0) -> 790 | AM25: =HLOOKUP(AM$2,CHOOSE({1;2},$B$24:$Q$24,$B40:$Q40),2,0) ->  | AN25: =HLOOKUP(AN$2,CHOOSE({1;2},$B$24:$Q$24,$B40:$Q40),2,0) -> 1033 | AO25: =HLOOKUP(AO$2,CHOOSE({1;2},$B$24:$Q$24,$B40:$Q40),2,0) ->  | AP25: =HLOOKUP(AP$2,CHOOSE({1;2},$B$24:$Q$24,$B40:$Q40),2,0) -> 996 | AQ25: =HLOOKUP(AQ$2,CHOOSE({1;2},$B$24:$Q$24,$B40:$Q40),2,0) -> 1067 | AR25: =HLOOKUP(AR$2,CHOOSE({1;2},$B$24:$Q$24,$B40:$Q40),2,0) -> 1167 | AS25: H16
A26: H02 | B26: 615 | C26: 225 | D26: 785 | E26: 600 | F26: 1329 | G26: 1174 | H26: 1826 | I26: 1229 | J26: 975 | K26: 971 | L26: 900 | M26: 0 | N26: 1800 | O26: 550 | P26: 500 | Q26: 1271 | R26: 1534 | S26: 1066 | T26: 2017-12-01 | AA26: =HLOOKUP(AA$2,CHOOSE({1;2},$B$24:$Q$24,$B41:$Q41),2,0) -> 900 | AB26: =HLOOKUP(AB$2,CHOOSE({1;2},$B$24:$Q$24,$B41:$Q41),2,0) ->  | AC26: =HLOOKUP(AC$2,CHOOSE({1;2},$B$24:$Q$24,$B41:$Q41),2,0) ->  | AD26: =HLOOKUP(AD$2,CHOOSE({1;2},$B$24:$Q$24,$B41:$Q41),2,0) -> 600 | AE26: =HLOOKUP(AE$2,CHOOSE({1;2},$B$24:$Q$24,$B41:$Q41),2,0) -> 550 | AF26: =HLOOKUP(AF$2,CHOOSE({1;2},$B$24:$Q$24,$B41:$Q41),2,0) -> 500 | AG26: =HLOOKUP(AG$2,CHOOSE({1;2},$B$24:$Q$24,$B41:$Q41),2,0) -> 1933 | AH26: =HLOOKUP(AH$2,CHOOSE({1;2},$B$24:$Q$24,$B41:$Q41),2,0) -> 975 | AI26: =HLOOKUP(AI$2,CHOOSE({1;2},$B$24:$Q$24,$B41:$Q41),2,0) -> 1354 | AJ26: =HLOOKUP(AJ$2,CHOOSE({1;2},$B$24:$Q$24,$B41:$Q41),2,0) -> 610 | AK26: =HLOOKUP(AK$2,CHOOSE({1;2},$B$24:$Q$24,$B41:$Q41),2,0) -> 225 | AL26: =HLOOKUP(AL$2,CHOOSE({1;2},$B$24:$Q$24,$B41:$Q41),2,0) -> 790 | AM26: =HLOOKUP(AM$2,CHOOSE({1;2},$B$24:$Q$24,$B41:$Q41),2,0) ->  | AN26: =HLOOKUP(AN$2,CHOOSE({1;2},$B$24:$Q$24,$B41:$Q41),2,0) -> 1016 | AO26: =HLOOKUP(AO$2,CHOOSE({1;2},$B$24:$Q$24,$B41:$Q41),2,0) ->  | AP26: =HLOOKUP(AP$2,CHOOSE({1;2},$B$24:$Q$24,$B41:$Q41),2,0) -> 996 | AQ26: =HLOOKUP(AQ$2,CHOOSE({1;2},$B$24:$Q$24,$B41:$Q41),2,0) -> 1067 | AR26: =HLOOKUP(AR$2,CHOOSE({1;2},$B$24:$Q$24,$B41:$Q41),2,0) -> 1184 | AS26: H17
A27: H03 | B27: 615 | C27: 225 | D27: 785 | E27: 600 | F27: 1329 | G27: 1174 | H27: 1826 | I27: 1228 | J27: 975 | K27: 972 | L27: 900 | M27: 0 | N27: 1800 | O27: 550 | P27: 500 | Q27: 1221 | R27: 1534 | S27: 1016 | T27: 2017-12-01 | AA27: =HLOOKUP(AA$2,CHOOSE({1;2},$B$24:$Q$24,$B42:$Q42),2,0) -> 900 | AB27: =HLOOKUP(AB$2,CHOOSE({1;2},$B$24:$Q$24,$B42:$Q42),2,0) ->  | AC27: =HLOOKUP(AC$2,CHOOSE({1;2},$B$24:$Q$24,$B42:$Q42),2,0) ->  | AD27: =HLOOKUP(AD$2,CHOOSE({1;2},$B$24:$Q$24,$B42:$Q42),2,0) -> 600 | AE27: =HLOOKUP(AE$2,CHOOSE({1;2},$B$24:$Q$24,$B42:$Q42),2,0) -> 550 | AF27: =HLOOKUP(AF$2,CHOOSE({1;2},$B$24:$Q$24,$B42:$Q42),2,0) -> 500 | AG27: =HLOOKUP(AG$2,CHOOSE({1;2},$B$24:$Q$24,$B42:$Q42),2,0) -> 1933 | AH27: =HLOOKUP(AH$2,CHOOSE({1;2},$B$24:$Q$24,$B42:$Q42),2,0) -> 975 | AI27: =HLOOKUP(AI$2,CHOOSE({1;2},$B$24:$Q$24,$B42:$Q42),2,0) -> 1354 | AJ27: =HLOOKUP(AJ$2,CHOOSE({1;2},$B$24:$Q$24,$B42:$Q42),2,0) -> 610 | AK27: =HLOOKUP(AK$2,CHOOSE({1;2},$B$24:$Q$24,$B42:$Q42),2,0) -> 225 | AL27: =HLOOKUP(AL$2,CHOOSE({1;2},$B$24:$Q$24,$B42:$Q42),2,0) -> 790 | AM27: =HLOOKUP(AM$2,CHOOSE({1;2},$B$24:$Q$24,$B42:$Q42),2,0) ->  | AN27: =HLOOKUP(AN$2,CHOOSE({1;2},$B$24:$Q$24,$B42:$Q42),2,0) -> 1030 | AO27: =HLOOKUP(AO$2,CHOOSE({1;2},$B$24:$Q$24,$B42:$Q42),2,0) ->  | AP27: =HLOOKUP(AP$2,CHOOSE({1;2},$B$24:$Q$24,$B42:$Q42),2,0) -> 1146 | AQ27: =HLOOKUP(AQ$2,CHOOSE({1;2},$B$24:$Q$24,$B42:$Q42),2,0) -> 1067 | AR27: =HLOOKUP(AR$2,CHOOSE({1;2},$B$24:$Q$24,$B42:$Q42),2,0) -> 1170 | AS27: H18
A28: H04 | B28: 615 | C28: 225 | D28: 785 | E28: 600 | F28: 1329 | G28: 1184 | H28: 1816 | I28: 1228 | J28: 975 | K28: 972 | L28: 900 | M28: 0 | N28: 1800 | O28: 550 | P28: 500 | Q28: 1221 | R28: 1534 | S28: 1016 | T28: 2017-12-01 | AA28: =HLOOKUP(AA$2,CHOOSE({1;2},$B$24:$Q$24,$B43:$Q43),2,0) -> 900 | AB28: =HLOOKUP(AB$2,CHOOSE({1;2},$B$24:$Q$24,$B43:$Q43),2,0) ->  | AC28: =HLOOKUP(AC$2,CHOOSE({1;2},$B$24:$Q$24,$B43:$Q43),2,0) ->  | AD28: =HLOOKUP(AD$2,CHOOSE({1;2},$B$24:$Q$24,$B43:$Q43),2,0) -> 600 | AE28: =HLOOKUP(AE$2,CHOOSE({1;2},$B$24:$Q$24,$B43:$Q43),2,0) -> 550 | AF28: =HLOOKUP(AF$2,CHOOSE({1;2},$B$24:$Q$24,$B43:$Q43),2,0) -> 500 | AG28: =HLOOKUP(AG$2,CHOOSE({1;2},$B$24:$Q$24,$B43:$Q43),2,0) -> 1933 | AH28: =HLOOKUP(AH$2,CHOOSE({1;2},$B$24:$Q$24,$B43:$Q43),2,0) -> 975 | AI28: =HLOOKUP(AI$2,CHOOSE({1;2},$B$24:$Q$24,$B43:$Q43),2,0) -> 1354 | AJ28: =HLOOKUP(AJ$2,CHOOSE({1;2},$B$24:$Q$24,$B43:$Q43),2,0) -> 610 | AK28: =HLOOKUP(AK$2,CHOOSE({1;2},$B$24:$Q$24,$B43:$Q43),2,0) -> 225 | AL28: =HLOOKUP(AL$2,CHOOSE({1;2},$B$24:$Q$24,$B43:$Q43),2,0) -> 790 | AM28: =HLOOKUP(AM$2,CHOOSE({1;2},$B$24:$Q$24,$B43:$Q43),2,0) ->  | AN28: =HLOOKUP(AN$2,CHOOSE({1;2},$B$24:$Q$24,$B43:$Q43),2,0) -> 1027 | AO28: =HLOOKUP(AO$2,CHOOSE({1;2},$B$24:$Q$24,$B43:$Q43),2,0) ->  | AP28: =HLOOKUP(AP$2,CHOOSE({1;2},$B$24:$Q$24,$B43:$Q43),2,0) -> 996 | AQ28: =HLOOKUP(AQ$2,CHOOSE({1;2},$B$24:$Q$24,$B43:$Q43),2,0) -> 1067 | AR28: =HLOOKUP(AR$2,CHOOSE({1;2},$B$24:$Q$24,$B43:$Q43),2,0) -> 1173 | AS28: H19
A29: H05 | B29: 615 | C29: 225 | D29: 785 | E29: 600 | F29: 1329 | G29: 1185 | H29: 1815 | I29: 1229 | J29: 975 | K29: 971 | L29: 900 | M29: 0 | N29: 1800 | O29: 550 | P29: 500 | Q29: 1221 | R29: 1534 | S29: 1016 | T29: 2017-12-01 | AA29: =HLOOKUP(AA$2,CHOOSE({1;2},$B$24:$Q$24,$B44:$Q44),2,0) -> 900 | AB29: =HLOOKUP(AB$2,CHOOSE({1;2},$B$24:$Q$24,$B44:$Q44),2,0) ->  | AC29: =HLOOKUP(AC$2,CHOOSE({1;2},$B$24:$Q$24,$B44:$Q44),2,0) ->  | AD29: =HLOOKUP(AD$2,CHOOSE({1;2},$B$24:$Q$24,$B44:$Q44),2,0) -> 600 | AE29: =HLOOKUP(AE$2,CHOOSE({1;2},$B$24:$Q$24,$B44:$Q44),2,0) -> 550 | AF29: =HLOOKUP(AF$2,CHOOSE({1;2},$B$24:$Q$24,$B44:$Q44),2,0) -> 500 | AG29: =HLOOKUP(AG$2,CHOOSE({1;2},$B$24:$Q$24,$B44:$Q44),2,0) -> 1933 | AH29: =HLOOKUP(AH$2,CHOOSE({1;2},$B$24:$Q$24,$B44:$Q44),2,0) -> 975 | AI29: =HLOOKUP(AI$2,CHOOSE({1;2},$B$24:$Q$24,$B44:$Q44),2,0) -> 1354 | AJ29: =HLOOKUP(AJ$2,CHOOSE({1;2},$B$24:$Q$24,$B44:$Q44),2,0) -> 610 | AK29: =HLOOKUP(AK$2,CHOOSE({1;2},$B$24:$Q$24,$B44:$Q44),2,0) -> 225 | AL29: =HLOOKUP(AL$2,CHOOSE({1;2},$B$24:$Q$24,$B44:$Q44),2,0) -> 790 | AM29: =HLOOKUP(AM$2,CHOOSE({1;2},$B$24:$Q$24,$B44:$Q44),2,0) ->  | AN29: =HLOOKUP(AN$2,CHOOSE({1;2},$B$24:$Q$24,$B44:$Q44),2,0) -> 1025 | AO29: =HLOOKUP(AO$2,CHOOSE({1;2},$B$24:$Q$24,$B44:$Q44),2,0) ->  | AP29: =HLOOKUP(AP$2,CHOOSE({1;2},$B$24:$Q$24,$B44:$Q44),2,0) -> 1046 | AQ29: =HLOOKUP(AQ$2,CHOOSE({1;2},$B$24:$Q$24,$B44:$Q44),2,0) -> 1067 | AR29: =HLOOKUP(AR$2,CHOOSE({1;2},$B$24:$Q$24,$B44:$Q44),2,0) -> 1175 | AS29: H20
A30: H06 | B30: 615 | C30: 225 | D30: 785 | E30: 600 | F30: 1329 | G30: 1181 | H30: 1819 | I30: 1232 | J30: 975 | K30: 968 | L30: 900 | M30: 0 | N30: 1800 | O30: 550 | P30: 500 | Q30: 1171 | R30: 1534 | S30: 966 | T30: 2017-12-01 | AA30: =HLOOKUP(AA$2,CHOOSE({1;2},$B$24:$Q$24,$B45:$Q45),2,0) -> 900 | AB30: =HLOOKUP(AB$2,CHOOSE({1;2},$B$24:$Q$24,$B45:$Q45),2,0) ->  | AC30: =HLOOKUP(AC$2,CHOOSE({1;2},$B$24:$Q$24,$B45:$Q45),2,0) ->  | AD30: =HLOOKUP(AD$2,CHOOSE({1;2},$B$24:$Q$24,$B45:$Q45),2,0) -> 600 | AE30: =HLOOKUP(AE$2,CHOOSE({1;2},$B$24:$Q$24,$B45:$Q45),2,0) -> 550 | AF30: =HLOOKUP(AF$2,CHOOSE({1;2},$B$24:$Q$24,$B45:$Q45),2,0) -> 500 | AG30: =HLOOKUP(AG$2,CHOOSE({1;2},$B$24:$Q$24,$B45:$Q45),2,0) -> 1833 | AH30: =HLOOKUP(AH$2,CHOOSE({1;2},$B$24:$Q$24,$B45:$Q45),2,0) -> 975 | AI30: =HLOOKUP(AI$2,CHOOSE({1;2},$B$24:$Q$24,$B45:$Q45),2,0) -> 1339 | AJ30: =HLOOKUP(AJ$2,CHOOSE({1;2},$B$24:$Q$24,$B45:$Q45),2,0) -> 610 | AK30: =HLOOKUP(AK$2,CHOOSE({1;2},$B$24:$Q$24,$B45:$Q45),2,0) -> 225 | AL30: =HLOOKUP(AL$2,CHOOSE({1;2},$B$24:$Q$24,$B45:$Q45),2,0) -> 790 | AM30: =HLOOKUP(AM$2,CHOOSE({1;2},$B$24:$Q$24,$B45:$Q45),2,0) ->  | AN30: =HLOOKUP(AN$2,CHOOSE({1;2},$B$24:$Q$24,$B45:$Q45),2,0) -> 1140 | AO30: =HLOOKUP(AO$2,CHOOSE({1;2},$B$24:$Q$24,$B45:$Q45),2,0) ->  | AP30: =HLOOKUP(AP$2,CHOOSE({1;2},$B$24:$Q$24,$B45:$Q45),2,0) -> 1161 | AQ30: =HLOOKUP(AQ$2,CHOOSE({1;2},$B$24:$Q$24,$B45:$Q45),2,0) -> 1167 | AR30: =HLOOKUP(AR$2,CHOOSE({1;2},$B$24:$Q$24,$B45:$Q45),2,0) -> 1060 | AS30: H21
A31: H07 | B31: 610 | C31: 225 | D31: 790 | E31: 600 | F31: 1339 | G31: 1178 | H31: 1822 | I31: 1159 | J31: 975 | K31: 1041 | L31: 900 | M31: 216 | N31: 623 | O31: 550 | P31: 500 | Q31: 1011 | R31: 1546 | S31: 804 | T31: 2017-12-01 | AA31: =HLOOKUP(AA$2,CHOOSE({1;2},$B$24:$Q$24,$B46:$Q46),2,0) -> 900 | AB31: =HLOOKUP(AB$2,CHOOSE({1;2},$B$24:$Q$24,$B46:$Q46),2,0) ->  | AC31: =HLOOKUP(AC$2,CHOOSE({1;2},$B$24:$Q$24,$B46:$Q46),2,0) ->  | AD31: =HLOOKUP(AD$2,CHOOSE({1;2},$B$24:$Q$24,$B46:$Q46),2,0) -> 600 | AE31: =HLOOKUP(AE$2,CHOOSE({1;2},$B$24:$Q$24,$B46:$Q46),2,0) -> 550 | AF31: =HLOOKUP(AF$2,CHOOSE({1;2},$B$24:$Q$24,$B46:$Q46),2,0) -> 500 | AG31: =HLOOKUP(AG$2,CHOOSE({1;2},$B$24:$Q$24,$B46:$Q46),2,0) -> 1833 | AH31: =HLOOKUP(AH$2,CHOOSE({1;2},$B$24:$Q$24,$B46:$Q46),2,0) -> 975 | AI31: =HLOOKUP(AI$2,CHOOSE({1;2},$B$24:$Q$24,$B46:$Q46),2,0) -> 1339 | AJ31: =HLOOKUP(AJ$2,CHOOSE({1;2},$B$24:$Q$24,$B46:$Q46),2,0) -> 610 | AK31: =HLOOKUP(AK$2,CHOOSE({1;2},$B$24:$Q$24,$B46:$Q46),2,0) -> 225 | AL31: =HLOOKUP(AL$2,CHOOSE({1;2},$B$24:$Q$24,$B46:$Q46),2,0) -> 790 | AM31: =HLOOKUP(AM$2,CHOOSE({1;2},$B$24:$Q$24,$B46:$Q46),2,0) ->  | AN31: =HLOOKUP(AN$2,CHOOSE({1;2},$B$24:$Q$24,$B46:$Q46),2,0) -> 1140 | AO31: =HLOOKUP(AO$2,CHOOSE({1;2},$B$24:$Q$24,$B46:$Q46),2,0) ->  | AP31: =HLOOKUP(AP$2,CHOOSE({1;2},$B$24:$Q$24,$B46:$Q46),2,0) -> 1261 | AQ31: =HLOOKUP(AQ$2,CHOOSE({1;2},$B$24:$Q$24,$B46:$Q46),2,0) -> 1167 | AR31: =HLOOKUP(AR$2,CHOOSE({1;2},$B$24:$Q$24,$B46:$Q46),2,0) -> 1060 | AS31: H22
A32: H08 | B32: 610 | C32: 225 | D32: 790 | E32: 600 | F32: 1339 | G32: 1178 | H32: 1822 | I32: 1166 | J32: 975 | K32: 1034 | L32: 900 | M32: 367 | N32: 0 | O32: 550 | P32: 500 | Q32: 1011 | R32: 1546 | S32: 804 | T32: 2017-12-01 | AA32: =HLOOKUP(AA$2,CHOOSE({1;2},$B$24:$Q$24,$B47:$Q47),2,0) -> 900 | AB32: =HLOOKUP(AB$2,CHOOSE({1;2},$B$24:$Q$24,$B47:$Q47),2,0) ->  | AC32: =HLOOKUP(AC$2,CHOOSE({1;2},$B$24:$Q$24,$B47:$Q47),2,0) ->  | AD32: =HLOOKUP(AD$2,CHOOSE({1;2},$B$24:$Q$24,$B47:$Q47),2,0) -> 600 | AE32: =HLOOKUP(AE$2,CHOOSE({1;2},$B$24:$Q$24,$B47:$Q47),2,0) -> 550 | AF32: =HLOOKUP(AF$2,CHOOSE({1;2},$B$24:$Q$24,$B47:$Q47),2,0) -> 500 | AG32: =HLOOKUP(AG$2,CHOOSE({1;2},$B$24:$Q$24,$B47:$Q47),2,0) -> 1830 | AH32: =HLOOKUP(AH$2,CHOOSE({1;2},$B$24:$Q$24,$B47:$Q47),2,0) -> 975 | AI32: =HLOOKUP(AI$2,CHOOSE({1;2},$B$24:$Q$24,$B47:$Q47),2,0) -> 1329 | AJ32: =HLOOKUP(AJ$2,CHOOSE({1;2},$B$24:$Q$24,$B47:$Q47),2,0) -> 615 | AK32: =HLOOKUP(AK$2,CHOOSE({1;2},$B$24:$Q$24,$B47:$Q47),2,0) -> 225 | AL32: =HLOOKUP(AL$2,CHOOSE({1;2},$B$24:$Q$24,$B47:$Q47),2,0) -> 785 | AM32: =HLOOKUP(AM$2,CHOOSE({1;2},$B$24:$Q$24,$B47:$Q47),2,0) ->  | AN32: =HLOOKUP(AN$2,CHOOSE({1;2},$B$24:$Q$24,$B47:$Q47),2,0) -> 1177 | AO32: =HLOOKUP(AO$2,CHOOSE({1;2},$B$24:$Q$24,$B47:$Q47),2,0) ->  | AP32: =HLOOKUP(AP$2,CHOOSE({1;2},$B$24:$Q$24,$B47:$Q47),2,0) -> 1471 | AQ32: =HLOOKUP(AQ$2,CHOOSE({1;2},$B$24:$Q$24,$B47:$Q47),2,0) -> 1170 | AR32: =HLOOKUP(AR$2,CHOOSE({1;2},$B$24:$Q$24,$B47:$Q47),2,0) -> 1023 | AS32: H23
A33: H09 | B33: 610 | C33: 225 | D33: 790 | E33: 600 | F33: 1354 | G33: 1067 | H33: 1933 | I33: 1040 | J33: 975 | K33: 1160 | L33: 900 | M33: 500 | N33: 0 | O33: 550 | P33: 500 | Q33: 896 | R33: 1546 | S33: 704 | T33: 2017-12-01 | AA33: =HLOOKUP(AA$2,CHOOSE({1;2},$B$24:$Q$24,$B48:$Q48),2,0) -> 900 | AB33: =HLOOKUP(AB$2,CHOOSE({1;2},$B$24:$Q$24,$B48:$Q48),2,0) ->  | AC33: =HLOOKUP(AC$2,CHOOSE({1;2},$B$24:$Q$24,$B48:$Q48),2,0) ->  | AD33: =HLOOKUP(AD$2,CHOOSE({1;2},$B$24:$Q$24,$B48:$Q48),2,0) -> 600 | AE33: =HLOOKUP(AE$2,CHOOSE({1;2},$B$24:$Q$24,$B48:$Q48),2,0) -> 550 | AF33: =HLOOKUP(AF$2,CHOOSE({1;2},$B$24:$Q$24,$B48:$Q48),2,0) -> 500 | AG33: =HLOOKUP(AG$2,CHOOSE({1;2},$B$24:$Q$24,$B48:$Q48),2,0) -> 1829 | AH33: =HLOOKUP(AH$2,CHOOSE({1;2},$B$24:$Q$24,$B48:$Q48),2,0) -> 975 | AI33: =HLOOKUP(AI$2,CHOOSE({1;2},$B$24:$Q$24,$B48:$Q48),2,0) -> 1329 | AJ33: =HLOOKUP(AJ$2,CHOOSE({1;2},$B$24:$Q$24,$B48:$Q48),2,0) -> 615 | AK33: =HLOOKUP(AK$2,CHOOSE({1;2},$B$24:$Q$24,$B48:$Q48),2,0) -> 225 | AL33: =HLOOKUP(AL$2,CHOOSE({1;2},$B$24:$Q$24,$B48:$Q48),2,0) -> 785 | AM33: =HLOOKUP(AM$2,CHOOSE({1;2},$B$24:$Q$24,$B48:$Q48),2,0) ->  | AN33: =HLOOKUP(AN$2,CHOOSE({1;2},$B$24:$Q$24,$B48:$Q48),2,0) -> 1160 | AO33: =HLOOKUP(AO$2,CHOOSE({1;2},$B$24:$Q$24,$B48:$Q48),2,0) ->  | AP33: =HLOOKUP(AP$2,CHOOSE({1;2},$B$24:$Q$24,$B48:$Q48),2,0) -> 1471 | AQ33: =HLOOKUP(AQ$2,CHOOSE({1;2},$B$24:$Q$24,$B48:$Q48),2,0) -> 1171 | AR33: =HLOOKUP(AR$2,CHOOSE({1;2},$B$24:$Q$24,$B48:$Q48),2,0) -> 1040 | AS33: H24
A34: H10 | B34: 610 | C34: 225 | D34: 790 | E34: 600 | F34: 1354 | G34: 1068 | H34: 1932 | I34: 1040 | J34: 975 | K34: 1160 | L34: 900 | M34: 500 | N34: 0 | O34: 550 | P34: 500 | Q34: 896 | R34: 1546 | S34: 704 | T34: 2017-12-01 | AA34: =HLOOKUP(AA$2,CHOOSE({1;2},$B$24:$Q$24,$B49:$Q49),2,0) -> 900 | AB34: =HLOOKUP(AB$2,CHOOSE({1;2},$B$24:$Q$24,$B49:$Q49),2,0) ->  | AC34: =HLOOKUP(AC$2,CHOOSE({1;2},$B$24:$Q$24,$B49:$Q49),2,0) ->  | AD34: =HLOOKUP(AD$2,CHOOSE({1;2},$B$24:$Q$24,$B49:$Q49),2,0) -> 600 | AE34: =HLOOKUP(AE$2,CHOOSE({1;2},$B$24:$Q$24,$B49:$Q49),2,0) -> 550 | AF34: =HLOOKUP(AF$2,CHOOSE({1;2},$B$24:$Q$24,$B49:$Q49),2,0) -> 500 | AG34: =HLOOKUP(AG$2,CHOOSE({1;2},$B$24:$Q$24,$B49:$Q49),2,0) -> 1826 | AH34: =HLOOKUP(AH$2,CHOOSE({1;2},$B$24:$Q$24,$B49:$Q49),2,0) -> 998 | AI34: =HLOOKUP(AI$2,CHOOSE({1;2},$B$24:$Q$24,$B49:$Q49),2,0) -> 1437 | AJ34: =HLOOKUP(AJ$2,CHOOSE({1;2},$B$24:$Q$24,$B49:$Q49),2,0) -> 655 | AK34: =HLOOKUP(AK$2,CHOOSE({1;2},$B$24:$Q$24,$B49:$Q49),2,0) -> 202 | AL34: =HLOOKUP(AL$2,CHOOSE({1;2},$B$24:$Q$24,$B49:$Q49),2,0) -> 745 | AM34: =HLOOKUP(AM$2,CHOOSE({1;2},$B$24:$Q$24,$B49:$Q49),2,0) ->  | AN34: =HLOOKUP(AN$2,CHOOSE({1;2},$B$24:$Q$24,$B49:$Q49),2,0) -> 1210 | AO34: =HLOOKUP(AO$2,CHOOSE({1;2},$B$24:$Q$24,$B49:$Q49),2,0) ->  | AP34: =HLOOKUP(AP$2,CHOOSE({1;2},$B$24:$Q$24,$B49:$Q49),2,0) -> 1013 | AQ34: =HLOOKUP(AQ$2,CHOOSE({1;2},$B$24:$Q$24,$B49:$Q49),2,0) -> 1174 | AR34: =HLOOKUP(AR$2,CHOOSE({1;2},$B$24:$Q$24,$B49:$Q49),2,0) -> 990 | AS34: H01
A35: H11 | B35: 610 | C35: 225 | D35: 790 | E35: 600 | F35: 1354 | G35: 1068 | H35: 1932 | I35: 1040 | J35: 975 | K35: 1160 | L35: 900 | M35: 0 | N35: 0 | O35: 550 | P35: 500 | Q35: 996 | R35: 1546 | S35: 804 | T35: 2017-12-01 | AA35: =HLOOKUP(AA$2,CHOOSE({1;2},$B$24:$Q$24,$B50:$Q50),2,0) -> 900 | AB35: =HLOOKUP(AB$2,CHOOSE({1;2},$B$24:$Q$24,$B50:$Q50),2,0) ->  | AC35: =HLOOKUP(AC$2,CHOOSE({1;2},$B$24:$Q$24,$B50:$Q50),2,0) ->  | AD35: =HLOOKUP(AD$2,CHOOSE({1;2},$B$24:$Q$24,$B50:$Q50),2,0) -> 600 | AE35: =HLOOKUP(AE$2,CHOOSE({1;2},$B$24:$Q$24,$B50:$Q50),2,0) -> 550 | AF35: =HLOOKUP(AF$2,CHOOSE({1;2},$B$24:$Q$24,$B50:$Q50),2,0) -> 500 | AG35: =HLOOKUP(AG$2,CHOOSE({1;2},$B$24:$Q$24,$B50:$Q50),2,0) -> 1826 | AH35: =HLOOKUP(AH$2,CHOOSE({1;2},$B$24:$Q$24,$B50:$Q50),2,0) -> 998 | AI35: =HLOOKUP(AI$2,CHOOSE({1;2},$B$24:$Q$24,$B50:$Q50),2,0) -> 1437 | AJ35: =HLOOKUP(AJ$2,CHOOSE({1;2},$B$24:$Q$24,$B50:$Q50),2,0) -> 655 | AK35: =HLOOKUP(AK$2,CHOOSE({1;2},$B$24:$Q$24,$B50:$Q50),2,0) -> 202 | AL35: =HLOOKUP(AL$2,CHOOSE({1;2},$B$24:$Q$24,$B50:$Q50),2,0) -> 745 | AM35: =HLOOKUP(AM$2,CHOOSE({1;2},$B$24:$Q$24,$B50:$Q50),2,0) ->  | AN35: =HLOOKUP(AN$2,CHOOSE({1;2},$B$24:$Q$24,$B50:$Q50),2,0) -> 1208 | AO35: =HLOOKUP(AO$2,CHOOSE({1;2},$B$24:$Q$24,$B50:$Q50),2,0) ->  | AP35: =HLOOKUP(AP$2,CHOOSE({1;2},$B$24:$Q$24,$B50:$Q50),2,0) -> 1013 | AQ35: =HLOOKUP(AQ$2,CHOOSE({1;2},$B$24:$Q$24,$B50:$Q50),2,0) -> 1174 | AR35: =HLOOKUP(AR$2,CHOOSE({1;2},$B$24:$Q$24,$B50:$Q50),2,0) -> 992 | AS35: H02
A36: H12 | B36: 610 | C36: 225 | D36: 790 | E36: 600 | F36: 1354 | G36: 1068 | H36: 1932 | I36: 1040 | J36: 975 | K36: 1160 | L36: 900 | M36: 0 | N36: 0 | O36: 550 | P36: 500 | Q36: 996 | R36: 1546 | S36: 804 | T36: 2017-12-01 | AA36: =HLOOKUP(AA$2,CHOOSE({1;2},$B$24:$Q$24,$B51:$Q51),2,0) -> 900 | AB36: =HLOOKUP(AB$2,CHOOSE({1;2},$B$24:$Q$24,$B51:$Q51),2,0) ->  | AC36: =HLOOKUP(AC$2,CHOOSE({1;2},$B$24:$Q$24,$B51:$Q51),2,0) ->  | AD36: =HLOOKUP(AD$2,CHOOSE({1;2},$B$24:$Q$24,$B51:$Q51),2,0) -> 600 | AE36: =HLOOKUP(AE$2,CHOOSE({1;2},$B$24:$Q$24,$B51:$Q51),2,0) -> 550 | AF36: =HLOOKUP(AF$2,CHOOSE({1;2},$B$24:$Q$24,$B51:$Q51),2,0) -> 500 | AG36: =HLOOKUP(AG$2,CHOOSE({1;2},$B$24:$Q$24,$B51:$Q51),2,0) -> 1826 | AH36: =HLOOKUP(AH$2,CHOOSE({1;2},$B$24:$Q$24,$B51:$Q51),2,0) -> 998 | AI36: =HLOOKUP(AI$2,CHOOSE({1;2},$B$24:$Q$24,$B51:$Q51),2,0) -> 1437 | AJ36: =HLOOKUP(AJ$2,CHOOSE({1;2},$B$24:$Q$24,$B51:$Q51),2,0) -> 655 | AK36: =HLOOKUP(AK$2,CHOOSE({1;2},$B$24:$Q$24,$B51:$Q51),2,0) -> 202 | AL36: =HLOOKUP(AL$2,CHOOSE({1;2},$B$24:$Q$24,$B51:$Q51),2,0) -> 745 | AM36: =HLOOKUP(AM$2,CHOOSE({1;2},$B$24:$Q$24,$B51:$Q51),2,0) ->  | AN36: =HLOOKUP(AN$2,CHOOSE({1;2},$B$24:$Q$24,$B51:$Q51),2,0) -> 1207 | AO36: =HLOOKUP(AO$2,CHOOSE({1;2},$B$24:$Q$24,$B51:$Q51),2,0) ->  | AP36: =HLOOKUP(AP$2,CHOOSE({1;2},$B$24:$Q$24,$B51:$Q51),2,0) -> 963 | AQ36: =HLOOKUP(AQ$2,CHOOSE({1;2},$B$24:$Q$24,$B51:$Q51),2,0) -> 1174 | AR36: =HLOOKUP(AR$2,CHOOSE({1;2},$B$24:$Q$24,$B51:$Q51),2,0) -> 993 | AS36: H03
A37: H13 | B37: 610 | C37: 225 | D37: 790 | E37: 600 | F37: 1354 | G37: 1067 | H37: 1933 | I37: 1040 | J37: 975 | K37: 1160 | L37: 900 | M37: 0 | N37: 0 | O37: 550 | P37: 500 | Q37: 996 | R37: 1546 | S37: 804 | T37: 2017-12-01 | AA37: =HLOOKUP(AA$2,CHOOSE({1;2},$B$24:$Q$24,$B52:$Q52),2,0) -> 900 | AB37: =HLOOKUP(AB$2,CHOOSE({1;2},$B$24:$Q$24,$B52:$Q52),2,0) ->  | AC37: =HLOOKUP(AC$2,CHOOSE({1;2},$B$24:$Q$24,$B52:$Q52),2,0) ->  | AD37: =HLOOKUP(AD$2,CHOOSE({1;2},$B$24:$Q$24,$B52:$Q52),2,0) -> 600 | AE37: =HLOOKUP(AE$2,CHOOSE({1;2},$B$24:$Q$24,$B52:$Q52),2,0) -> 550 | AF37: =HLOOKUP(AF$2,CHOOSE({1;2},$B$24:$Q$24,$B52:$Q52),2,0) -> 500 | AG37: =HLOOKUP(AG$2,CHOOSE({1;2},$B$24:$Q$24,$B52:$Q52),2,0) -> 1816 | AH37: =HLOOKUP(AH$2,CHOOSE({1;2},$B$24:$Q$24,$B52:$Q52),2,0) -> 998 | AI37: =HLOOKUP(AI$2,CHOOSE({1;2},$B$24:$Q$24,$B52:$Q52),2,0) -> 1437 | AJ37: =HLOOKUP(AJ$2,CHOOSE({1;2},$B$24:$Q$24,$B52:$Q52),2,0) -> 655 | AK37: =HLOOKUP(AK$2,CHOOSE({1;2},$B$24:$Q$24,$B52:$Q52),2,0) -> 202 | AL37: =HLOOKUP(AL$2,CHOOSE({1;2},$B$24:$Q$24,$B52:$Q52),2,0) -> 745 | AM37: =HLOOKUP(AM$2,CHOOSE({1;2},$B$24:$Q$24,$B52:$Q52),2,0) ->  | AN37: =HLOOKUP(AN$2,CHOOSE({1;2},$B$24:$Q$24,$B52:$Q52),2,0) -> 1207 | AO37: =HLOOKUP(AO$2,CHOOSE({1;2},$B$24:$Q$24,$B52:$Q52),2,0) ->  | AP37: =HLOOKUP(AP$2,CHOOSE({1;2},$B$24:$Q$24,$B52:$Q52),2,0) -> 1113 | AQ37: =HLOOKUP(AQ$2,CHOOSE({1;2},$B$24:$Q$24,$B52:$Q52),2,0) -> 1184 | AR37: =HLOOKUP(AR$2,CHOOSE({1;2},$B$24:$Q$24,$B52:$Q52),2,0) -> 993 | AS37: H04
A38: H14 | B38: 610 | C38: 225 | D38: 790 | E38: 600 | F38: 1354 | G38: 1067 | H38: 1933 | I38: 1040 | J38: 975 | K38: 1160 | L38: 900 | M38: 0 | N38: 0 | O38: 550 | P38: 500 | Q38: 996 | R38: 1546 | S38: 804 | T38: 2017-12-01 | AA38: =HLOOKUP(AA$2,CHOOSE({1;2},$B$24:$Q$24,$B53:$Q53),2,0) -> 900 | AB38: =HLOOKUP(AB$2,CHOOSE({1;2},$B$24:$Q$24,$B53:$Q53),2,0) ->  | AC38: =HLOOKUP(AC$2,CHOOSE({1;2},$B$24:$Q$24,$B53:$Q53),2,0) ->  | AD38: =HLOOKUP(AD$2,CHOOSE({1;2},$B$24:$Q$24,$B53:$Q53),2,0) -> 600 | AE38: =HLOOKUP(AE$2,CHOOSE({1;2},$B$24:$Q$24,$B53:$Q53),2,0) -> 550 | AF38: =HLOOKUP(AF$2,CHOOSE({1;2},$B$24:$Q$24,$B53:$Q53),2,0) -> 500 | AG38: =HLOOKUP(AG$2,CHOOSE({1;2},$B$24:$Q$24,$B53:$Q53),2,0) -> 1815 | AH38: =HLOOKUP(AH$2,CHOOSE({1;2},$B$24:$Q$24,$B53:$Q53),2,0) -> 998 | AI38: =HLOOKUP(AI$2,CHOOSE({1;2},$B$24:$Q$24,$B53:$Q53),2,0) -> 1437 | AJ38: =HLOOKUP(AJ$2,CHOOSE({1;2},$B$24:$Q$24,$B53:$Q53),2,0) -> 655 | AK38: =HLOOKUP(AK$2,CHOOSE({1;2},$B$24:$Q$24,$B53:$Q53),2,0) -> 202 | AL38: =HLOOKUP(AL$2,CHOOSE({1;2},$B$24:$Q$24,$B53:$Q53),2,0) -> 745 | AM38: =HLOOKUP(AM$2,CHOOSE({1;2},$B$24:$Q$24,$B53:$Q53),2,0) ->  | AN38: =HLOOKUP(AN$2,CHOOSE({1;2},$B$24:$Q$24,$B53:$Q53),2,0) -> 1207 | AO38: =HLOOKUP(AO$2,CHOOSE({1;2},$B$24:$Q$24,$B53:$Q53),2,0) ->  | AP38: =HLOOKUP(AP$2,CHOOSE({1;2},$B$24:$Q$24,$B53:$Q53),2,0) -> 1163 | AQ38: =HLOOKUP(AQ$2,CHOOSE({1;2},$B$24:$Q$24,$B53:$Q53),2,0) -> 1185 | AR38: =HLOOKUP(AR$2,CHOOSE({1;2},$B$24:$Q$24,$B53:$Q53),2,0) -> 993 | AS38: H05
A39: H15 | B39: 610 | C39: 225 | D39: 790 | E39: 600 | F39: 1354 | G39: 1067 | H39: 1933 | I39: 1034 | J39: 975 | K39: 1166 | L39: 900 | M39: 500 | N39: 0 | O39: 550 | P39: 500 | Q39: 996 | R39: 1546 | S39: 804 | T39: 2017-12-01 | AA39: =HLOOKUP(AA$2,CHOOSE({1;2},$B$24:$Q$24,$B54:$Q54),2,0) -> 900 | AB39: =HLOOKUP(AB$2,CHOOSE({1;2},$B$24:$Q$24,$B54:$Q54),2,0) ->  | AC39: =HLOOKUP(AC$2,CHOOSE({1;2},$B$24:$Q$24,$B54:$Q54),2,0) ->  | AD39: =HLOOKUP(AD$2,CHOOSE({1;2},$B$24:$Q$24,$B54:$Q54),2,0) -> 600 | AE39: =HLOOKUP(AE$2,CHOOSE({1;2},$B$24:$Q$24,$B54:$Q54),2,0) -> 550 | AF39: =HLOOKUP(AF$2,CHOOSE({1;2},$B$24:$Q$24,$B54:$Q54),2,0) -> 500 | AG39: =HLOOKUP(AG$2,CHOOSE({1;2},$B$24:$Q$24,$B54:$Q54),2,0) -> 1819 | AH39: =HLOOKUP(AH$2,CHOOSE({1;2},$B$24:$Q$24,$B54:$Q54),2,0) -> 998 | AI39: =HLOOKUP(AI$2,CHOOSE({1;2},$B$24:$Q$24,$B54:$Q54),2,0) -> 1437 | AJ39: =HLOOKUP(AJ$2,CHOOSE({1;2},$B$24:$Q$24,$B54:$Q54),2,0) -> 655 | AK39: =HLOOKUP(AK$2,CHOOSE({1;2},$B$24:$Q$24,$B54:$Q54),2,0) -> 202 | AL39: =HLOOKUP(AL$2,CHOOSE({1;2},$B$24:$Q$24,$B54:$Q54),2,0) -> 745 | AM39: =HLOOKUP(AM$2,CHOOSE({1;2},$B$24:$Q$24,$B54:$Q54),2,0) ->  | AN39: =HLOOKUP(AN$2,CHOOSE({1;2},$B$24:$Q$24,$B54:$Q54),2,0) -> 1208 | AO39: =HLOOKUP(AO$2,CHOOSE({1;2},$B$24:$Q$24,$B54:$Q54),2,0) ->  | AP39: =HLOOKUP(AP$2,CHOOSE({1;2},$B$24:$Q$24,$B54:$Q54),2,0) -> 1063 | AQ39: =HLOOKUP(AQ$2,CHOOSE({1;2},$B$24:$Q$24,$B54:$Q54),2,0) -> 1181 | AR39: =HLOOKUP(AR$2,CHOOSE({1;2},$B$24:$Q$24,$B54:$Q54),2,0) -> 992 | AS39: H06
A40: H16 | B40: 610 | C40: 225 | D40: 790 | E40: 600 | F40: 1354 | G40: 1067 | H40: 1933 | I40: 1033 | J40: 975 | K40: 1167 | L40: 900 | M40: 500 | N40: 0 | O40: 550 | P40: 500 | Q40: 996 | R40: 1546 | S40: 804 | T40: 2017-12-01 | AA40: =HLOOKUP(AA$2,CHOOSE({1;2},$B$24:$Q$24,$B55:$Q55),2,0) -> 900 | AB40: =HLOOKUP(AB$2,CHOOSE({1;2},$B$24:$Q$24,$B55:$Q55),2,0) ->  | AC40: =HLOOKUP(AC$2,CHOOSE({1;2},$B$24:$Q$24,$B55:$Q55),2,0) ->  | AD40: =HLOOKUP(AD$2,CHOOSE({1;2},$B$24:$Q$24,$B55:$Q55),2,0) -> 600 | AE40: =HLOOKUP(AE$2,CHOOSE({1;2},$B$24:$Q$24,$B55:$Q55),2,0) -> 550 | AF40: =HLOOKUP(AF$2,CHOOSE({1;2},$B$24:$Q$24,$B55:$Q55),2,0) -> 500 | AG40: =HLOOKUP(AG$2,CHOOSE({1;2},$B$24:$Q$24,$B55:$Q55),2,0) -> 1820 | AH40: =HLOOKUP(AH$2,CHOOSE({1;2},$B$24:$Q$24,$B55:$Q55),2,0) -> 998 | AI40: =HLOOKUP(AI$2,CHOOSE({1;2},$B$24:$Q$24,$B55:$Q55),2,0) -> 1447 | AJ40: =HLOOKUP(AJ$2,CHOOSE({1;2},$B$24:$Q$24,$B55:$Q55),2,0) -> 640 | AK40: =HLOOKUP(AK$2,CHOOSE({1;2},$B$24:$Q$24,$B55:$Q55),2,0) -> 202 | AL40: =HLOOKUP(AL$2,CHOOSE({1;2},$B$24:$Q$24,$B55:$Q55),2,0) -> 760 | AM40: =HLOOKUP(AM$2,CHOOSE({1;2},$B$24:$Q$24,$B55:$Q55),2,0) ->  | AN40: =HLOOKUP(AN$2,CHOOSE({1;2},$B$24:$Q$24,$B55:$Q55),2,0) -> 1130 | AO40: =HLOOKUP(AO$2,CHOOSE({1;2},$B$24:$Q$24,$B55:$Q55),2,0) ->  | AP40: =HLOOKUP(AP$2,CHOOSE({1;2},$B$24:$Q$24,$B55:$Q55),2,0) -> 1003 | AQ40: =HLOOKUP(AQ$2,CHOOSE({1;2},$B$24:$Q$24,$B55:$Q55),2,0) -> 1180 | AR40: =HLOOKUP(AR$2,CHOOSE({1;2},$B$24:$Q$24,$B55:$Q55),2,0) -> 1070 | AS40: H07
A41: H17 | B41: 610 | C41: 225 | D41: 790 | E41: 600 | F41: 1354 | G41: 1067 | H41: 1933 | I41: 1016 | J41: 975 | K41: 1184 | L41: 900 | M41: 500 | N41: 0 | O41: 550 | P41: 500 | Q41: 996 | R41: 1546 | S41: 804 | T41: 2017-12-01 | AA41: =HLOOKUP(AA$2,CHOOSE({1;2},$B$24:$Q$24,$B56:$Q56),2,0) -> 900 | AB41: =HLOOKUP(AB$2,CHOOSE({1;2},$B$24:$Q$24,$B56:$Q56),2,0) ->  | AC41: =HLOOKUP(AC$2,CHOOSE({1;2},$B$24:$Q$24,$B56:$Q56),2,0) ->  | AD41: =HLOOKUP(AD$2,CHOOSE({1;2},$B$24:$Q$24,$B56:$Q56),2,0) -> 600 | AE41: =HLOOKUP(AE$2,CHOOSE({1;2},$B$24:$Q$24,$B56:$Q56),2,0) -> 550 | AF41: =HLOOKUP(AF$2,CHOOSE({1;2},$B$24:$Q$24,$B56:$Q56),2,0) -> 500 | AG41: =HLOOKUP(AG$2,CHOOSE({1;2},$B$24:$Q$24,$B56:$Q56),2,0) -> 1821 | AH41: =HLOOKUP(AH$2,CHOOSE({1;2},$B$24:$Q$24,$B56:$Q56),2,0) -> 998 | AI41: =HLOOKUP(AI$2,CHOOSE({1;2},$B$24:$Q$24,$B56:$Q56),2,0) -> 1447 | AJ41: =HLOOKUP(AJ$2,CHOOSE({1;2},$B$24:$Q$24,$B56:$Q56),2,0) -> 640 | AK41: =HLOOKUP(AK$2,CHOOSE({1;2},$B$24:$Q$24,$B56:$Q56),2,0) -> 202 | AL41: =HLOOKUP(AL$2,CHOOSE({1;2},$B$24:$Q$24,$B56:$Q56),2,0) -> 760 | AM41: =HLOOKUP(AM$2,CHOOSE({1;2},$B$24:$Q$24,$B56:$Q56),2,0) ->  | AN41: =HLOOKUP(AN$2,CHOOSE({1;2},$B$24:$Q$24,$B56:$Q56),2,0) -> 1107 | AO41: =HLOOKUP(AO$2,CHOOSE({1;2},$B$24:$Q$24,$B56:$Q56),2,0) ->  | AP41: =HLOOKUP(AP$2,CHOOSE({1;2},$B$24:$Q$24,$B56:$Q56),2,0) -> 953 | AQ41: =HLOOKUP(AQ$2,CHOOSE({1;2},$B$24:$Q$24,$B56:$Q56),2,0) -> 1179 | AR41: =HLOOKUP(AR$2,CHOOSE({1;2},$B$24:$Q$24,$B56:$Q56),2,0) -> 1093 | AS41: H08
A42: H18 | B42: 610 | C42: 225 | D42: 790 | E42: 600 | F42: 1354 | G42: 1067 | H42: 1933 | I42: 1030 | J42: 975 | K42: 1170 | L42: 900 | M42: 500 | N42: 0 | O42: 550 | P42: 500 | Q42: 1146 | R42: 1546 | S42: 954 | T42: 2017-12-01 | AA42: =HLOOKUP(AA$2,CHOOSE({1;2},$B$24:$Q$24,$B57:$Q57),2,0) -> 900 | AB42: =HLOOKUP(AB$2,CHOOSE({1;2},$B$24:$Q$24,$B57:$Q57),2,0) ->  | AC42: =HLOOKUP(AC$2,CHOOSE({1;2},$B$24:$Q$24,$B57:$Q57),2,0) ->  | AD42: =HLOOKUP(AD$2,CHOOSE({1;2},$B$24:$Q$24,$B57:$Q57),2,0) -> 600 | AE42: =HLOOKUP(AE$2,CHOOSE({1;2},$B$24:$Q$24,$B57:$Q57),2,0) -> 550 | AF42: =HLOOKUP(AF$2,CHOOSE({1;2},$B$24:$Q$24,$B57:$Q57),2,0) -> 500 | AG42: =HLOOKUP(AG$2,CHOOSE({1;2},$B$24:$Q$24,$B57:$Q57),2,0) -> 1831 | AH42: =HLOOKUP(AH$2,CHOOSE({1;2},$B$24:$Q$24,$B57:$Q57),2,0) -> 998 | AI42: =HLOOKUP(AI$2,CHOOSE({1;2},$B$24:$Q$24,$B57:$Q57),2,0) -> 1527 | AJ42: =HLOOKUP(AJ$2,CHOOSE({1;2},$B$24:$Q$24,$B57:$Q57),2,0) -> 610 | AK42: =HLOOKUP(AK$2,CHOOSE({1;2},$B$24:$Q$24,$B57:$Q57),2,0) -> 202 | AL42: =HLOOKUP(AL$2,CHOOSE({1;2},$B$24:$Q$24,$B57:$Q57),2,0) -> 790 | AM42: =HLOOKUP(AM$2,CHOOSE({1;2},$B$24:$Q$24,$B57:$Q57),2,0) ->  | AN42: =HLOOKUP(AN$2,CHOOSE({1;2},$B$24:$Q$24,$B57:$Q57),2,0) -> 1127 | AO42: =HLOOKUP(AO$2,CHOOSE({1;2},$B$24:$Q$24,$B57:$Q57),2,0) ->  | AP42: =HLOOKUP(AP$2,CHOOSE({1;2},$B$24:$Q$24,$B57:$Q57),2,0) -> 973 | AQ42: =HLOOKUP(AQ$2,CHOOSE({1;2},$B$24:$Q$24,$B57:$Q57),2,0) -> 1169 | AR42: =HLOOKUP(AR$2,CHOOSE({1;2},$B$24:$Q$24,$B57:$Q57),2,0) -> 1073 | AS42: H09
A43: H19 | B43: 610 | C43: 225 | D43: 790 | E43: 600 | F43: 1354 | G43: 1067 | H43: 1933 | I43: 1027 | J43: 975 | K43: 1173 | L43: 900 | M43: 500 | N43: 0 | O43: 550 | P43: 500 | Q43: 996 | R43: 1546 | S43: 804 | T43: 2017-12-01 | AA43: =HLOOKUP(AA$2,CHOOSE({1;2},$B$24:$Q$24,$B58:$Q58),2,0) -> 900 | AB43: =HLOOKUP(AB$2,CHOOSE({1;2},$B$24:$Q$24,$B58:$Q58),2,0) ->  | AC43: =HLOOKUP(AC$2,CHOOSE({1;2},$B$24:$Q$24,$B58:$Q58),2,0) ->  | AD43: =HLOOKUP(AD$2,CHOOSE({1;2},$B$24:$Q$24,$B58:$Q58),2,0) -> 600 | AE43: =HLOOKUP(AE$2,CHOOSE({1;2},$B$24:$Q$24,$B58:$Q58),2,0) -> 550 | AF43: =HLOOKUP(AF$2,CHOOSE({1;2},$B$24:$Q$24,$B58:$Q58),2,0) -> 500 | AG43: =HLOOKUP(AG$2,CHOOSE({1;2},$B$24:$Q$24,$B58:$Q58),2,0) -> 1932 | AH43: =HLOOKUP(AH$2,CHOOSE({1;2},$B$24:$Q$24,$B58:$Q58),2,0) -> 998 | AI43: =HLOOKUP(AI$2,CHOOSE({1;2},$B$24:$Q$24,$B58:$Q58),2,0) -> 1527 | AJ43: =HLOOKUP(AJ$2,CHOOSE({1;2},$B$24:$Q$24,$B58:$Q58),2,0) -> 610 | AK43: =HLOOKUP(AK$2,CHOOSE({1;2},$B$24:$Q$24,$B58:$Q58),2,0) -> 202 | AL43: =HLOOKUP(AL$2,CHOOSE({1;2},$B$24:$Q$24,$B58:$Q58),2,0) -> 790 | AM43: =HLOOKUP(AM$2,CHOOSE({1;2},$B$24:$Q$24,$B58:$Q58),2,0) ->  | AN43: =HLOOKUP(AN$2,CHOOSE({1;2},$B$24:$Q$24,$B58:$Q58),2,0) -> 1040 | AO43: =HLOOKUP(AO$2,CHOOSE({1;2},$B$24:$Q$24,$B58:$Q58),2,0) ->  | AP43: =HLOOKUP(AP$2,CHOOSE({1;2},$B$24:$Q$24,$B58:$Q58),2,0) -> 1073 | AQ43: =HLOOKUP(AQ$2,CHOOSE({1;2},$B$24:$Q$24,$B58:$Q58),2,0) -> 1068 | AR43: =HLOOKUP(AR$2,CHOOSE({1;2},$B$24:$Q$24,$B58:$Q58),2,0) -> 1160 | AS43: H10
A44: H20 | B44: 610 | C44: 225 | D44: 790 | E44: 600 | F44: 1354 | G44: 1067 | H44: 1933 | I44: 1025 | J44: 975 | K44: 1175 | L44: 900 | M44: 500 | N44: 0 | O44: 550 | P44: 500 | Q44: 1046 | R44: 1546 | S44: 854 | T44: 2017-12-01 | AA44: =HLOOKUP(AA$2,CHOOSE({1;2},$B$24:$Q$24,$B59:$Q59),2,0) -> 900 | AB44: =HLOOKUP(AB$2,CHOOSE({1;2},$B$24:$Q$24,$B59:$Q59),2,0) ->  | AC44: =HLOOKUP(AC$2,CHOOSE({1;2},$B$24:$Q$24,$B59:$Q59),2,0) ->  | AD44: =HLOOKUP(AD$2,CHOOSE({1;2},$B$24:$Q$24,$B59:$Q59),2,0) -> 600 | AE44: =HLOOKUP(AE$2,CHOOSE({1;2},$B$24:$Q$24,$B59:$Q59),2,0) -> 550 | AF44: =HLOOKUP(AF$2,CHOOSE({1;2},$B$24:$Q$24,$B59:$Q59),2,0) -> 500 | AG44: =HLOOKUP(AG$2,CHOOSE({1;2},$B$24:$Q$24,$B59:$Q59),2,0) -> 1932 | AH44: =HLOOKUP(AH$2,CHOOSE({1;2},$B$24:$Q$24,$B59:$Q59),2,0) -> 998 | AI44: =HLOOKUP(AI$2,CHOOSE({1;2},$B$24:$Q$24,$B59:$Q59),2,0) -> 1527 | AJ44: =HLOOKUP(AJ$2,CHOOSE({1;2},$B$24:$Q$24,$B59:$Q59),2,0) -> 610 | AK44: =HLOOKUP(AK$2,CHOOSE({1;2},$B$24:$Q$24,$B59:$Q59),2,0) -> 202 | AL44: =HLOOKUP(AL$2,CHOOSE({1;2},$B$24:$Q$24,$B59:$Q59),2,0) -> 790 | AM44: =HLOOKUP(AM$2,CHOOSE({1;2},$B$24:$Q$24,$B59:$Q59),2,0) ->  | AN44: =HLOOKUP(AN$2,CHOOSE({1;2},$B$24:$Q$24,$B59:$Q59),2,0) -> 1041 | AO44: =HLOOKUP(AO$2,CHOOSE({1;2},$B$24:$Q$24,$B59:$Q59),2,0) ->  | AP44: =HLOOKUP(AP$2,CHOOSE({1;2},$B$24:$Q$24,$B59:$Q59),2,0) -> 1323 | AQ44: =HLOOKUP(AQ$2,CHOOSE({1;2},$B$24:$Q$24,$B59:$Q59),2,0) -> 1068 | AR44: =HLOOKUP(AR$2,CHOOSE({1;2},$B$24:$Q$24,$B59:$Q59),2,0) -> 1159 | AS44: H11
A45: H21 | B45: 610 | C45: 225 | D45: 790 | E45: 600 | F45: 1339 | G45: 1167 | H45: 1833 | I45: 1140 | J45: 975 | K45: 1060 | L45: 900 | M45: 500 | N45: 0 | O45: 550 | P45: 500 | Q45: 1161 | R45: 1546 | S45: 954 | T45: 2017-12-01 | AA45: =HLOOKUP(AA$2,CHOOSE({1;2},$B$24:$Q$24,$B60:$Q60),2,0) -> 900 | AB45: =HLOOKUP(AB$2,CHOOSE({1;2},$B$24:$Q$24,$B60:$Q60),2,0) ->  | AC45: =HLOOKUP(AC$2,CHOOSE({1;2},$B$24:$Q$24,$B60:$Q60),2,0) ->  | AD45: =HLOOKUP(AD$2,CHOOSE({1;2},$B$24:$Q$24,$B60:$Q60),2,0) -> 600 | AE45: =HLOOKUP(AE$2,CHOOSE({1;2},$B$24:$Q$24,$B60:$Q60),2,0) -> 550 | AF45: =HLOOKUP(AF$2,CHOOSE({1;2},$B$24:$Q$24,$B60:$Q60),2,0) -> 500 | AG45: =HLOOKUP(AG$2,CHOOSE({1;2},$B$24:$Q$24,$B60:$Q60),2,0) -> 1933 | AH45: =HLOOKUP(AH$2,CHOOSE({1;2},$B$24:$Q$24,$B60:$Q60),2,0) -> 998 | AI45: =HLOOKUP(AI$2,CHOOSE({1;2},$B$24:$Q$24,$B60:$Q60),2,0) -> 1527 | AJ45: =HLOOKUP(AJ$2,CHOOSE({1;2},$B$24:$Q$24,$B60:$Q60),2,0) -> 610 | AK45: =HLOOKUP(AK$2,CHOOSE({1;2},$B$24:$Q$24,$B60:$Q60),2,0) -> 202 | AL45: =HLOOKUP(AL$2,CHOOSE({1;2},$B$24:$Q$24,$B60:$Q60),2,0) -> 790 | AM45: =HLOOKUP(AM$2,CHOOSE({1;2},$B$24:$Q$24,$B60:$Q60),2,0) ->  | AN45: =HLOOKUP(AN$2,CHOOSE({1;2},$B$24:$Q$24,$B60:$Q60),2,0) -> 1041 | AO45: =HLOOKUP(AO$2,CHOOSE({1;2},$B$24:$Q$24,$B60:$Q60),2,0) ->  | AP45: =HLOOKUP(AP$2,CHOOSE({1;2},$B$24:$Q$24,$B60:$Q60),2,0) -> 1323 | AQ45: =HLOOKUP(AQ$2,CHOOSE({1;2},$B$24:$Q$24,$B60:$Q60),2,0) -> 1067 | AR45: =HLOOKUP(AR$2,CHOOSE({1;2},$B$24:$Q$24,$B60:$Q60),2,0) -> 1159 | AS45: H12
A46: H22 | B46: 610 | C46: 225 | D46: 790 | E46: 600 | F46: 1339 | G46: 1167 | H46: 1833 | I46: 1140 | J46: 975 | K46: 1060 | L46: 900 | M46: 500 | N46: 0 | O46: 550 | P46: 500 | Q46: 1261 | R46: 1546 | S46: 1054 | T46: 2017-12-01 | AA46: =HLOOKUP(AA$2,CHOOSE({1;2},$B$24:$Q$24,$B61:$Q61),2,0) -> 900 | AB46: =HLOOKUP(AB$2,CHOOSE({1;2},$B$24:$Q$24,$B61:$Q61),2,0) ->  | AC46: =HLOOKUP(AC$2,CHOOSE({1;2},$B$24:$Q$24,$B61:$Q61),2,0) ->  | AD46: =HLOOKUP(AD$2,CHOOSE({1;2},$B$24:$Q$24,$B61:$Q61),2,0) -> 600 | AE46: =HLOOKUP(AE$2,CHOOSE({1;2},$B$24:$Q$24,$B61:$Q61),2,0) -> 550 | AF46: =HLOOKUP(AF$2,CHOOSE({1;2},$B$24:$Q$24,$B61:$Q61),2,0) -> 500 | AG46: =HLOOKUP(AG$2,CHOOSE({1;2},$B$24:$Q$24,$B61:$Q61),2,0) -> 1933 | AH46: =HLOOKUP(AH$2,CHOOSE({1;2},$B$24:$Q$24,$B61:$Q61),2,0) -> 998 | AI46: =HLOOKUP(AI$2,CHOOSE({1;2},$B$24:$Q$24,$B61:$Q61),2,0) -> 1527 | AJ46: =HLOOKUP(AJ$2,CHOOSE({1;2},$B$24:$Q$24,$B61:$Q61),2,0) -> 610 | AK46: =HLOOKUP(AK$2,CHOOSE({1;2},$B$24:$Q$24,$B61:$Q61),2,0) -> 202 | AL46: =HLOOKUP(AL$2,CHOOSE({1;2},$B$24:$Q$24,$B61:$Q61),2,0) -> 790 | AM46: =HLOOKUP(AM$2,CHOOSE({1;2},$B$24:$Q$24,$B61:$Q61),2,0) ->  | AN46: =HLOOKUP(AN$2,CHOOSE({1;2},$B$24:$Q$24,$B61:$Q61),2,0) -> 1040 | AO46: =HLOOKUP(AO$2,CHOOSE({1;2},$B$24:$Q$24,$B61:$Q61),2,0) ->  | AP46: =HLOOKUP(AP$2,CHOOSE({1;2},$B$24:$Q$24,$B61:$Q61),2,0) -> 1323 | AQ46: =HLOOKUP(AQ$2,CHOOSE({1;2},$B$24:$Q$24,$B61:$Q61),2,0) -> 1067 | AR46: =HLOOKUP(AR$2,CHOOSE({1;2},$B$24:$Q$24,$B61:$Q61),2,0) -> 1160 | AS46: H13
A47: H23 | B47: 615 | C47: 225 | D47: 785 | E47: 600 | F47: 1329 | G47: 1170 | H47: 1830 | I47: 1177 | J47: 975 | K47: 1023 | L47: 900 | M47: 428 | N47: 1007 | O47: 550 | P47: 500 | Q47: 1471 | R47: 1534 | S47: 1266 | T47: 2017-12-01 | AA47: =HLOOKUP(AA$2,CHOOSE({1;2},$B$24:$Q$24,$B62:$Q62),2,0) -> 900 | AB47: =HLOOKUP(AB$2,CHOOSE({1;2},$B$24:$Q$24,$B62:$Q62),2,0) ->  | AC47: =HLOOKUP(AC$2,CHOOSE({1;2},$B$24:$Q$24,$B62:$Q62),2,0) ->  | AD47: =HLOOKUP(AD$2,CHOOSE({1;2},$B$24:$Q$24,$B62:$Q62),2,0) -> 600 | AE47: =HLOOKUP(AE$2,CHOOSE({1;2},$B$24:$Q$24,$B62:$Q62),2,0) -> 550 | AF47: =HLOOKUP(AF$2,CHOOSE({1;2},$B$24:$Q$24,$B62:$Q62),2,0) -> 500 | AG47: =HLOOKUP(AG$2,CHOOSE({1;2},$B$24:$Q$24,$B62:$Q62),2,0) -> 1933 | AH47: =HLOOKUP(AH$2,CHOOSE({1;2},$B$24:$Q$24,$B62:$Q62),2,0) -> 998 | AI47: =HLOOKUP(AI$2,CHOOSE({1;2},$B$24:$Q$24,$B62:$Q62),2,0) -> 1527 | AJ47: =HLOOKUP(AJ$2,CHOOSE({1;2},$B$24:$Q$24,$B62:$Q62),2,0) -> 610 | AK47: =HLOOKUP(AK$2,CHOOSE({1;2},$B$24:$Q$24,$B62:$Q62),2,0) -> 202 | AL47: =HLOOKUP(AL$2,CHOOSE({1;2},$B$24:$Q$24,$B62:$Q62),2,0) -> 790 | AM47: =HLOOKUP(AM$2,CHOOSE({1;2},$B$24:$Q$24,$B62:$Q62),2,0) ->  | AN47: =HLOOKUP(AN$2,CHOOSE({1;2},$B$24:$Q$24,$B62:$Q62),2,0) -> 1033 | AO47: =HLOOKUP(AO$2,CHOOSE({1;2},$B$24:$Q$24,$B62:$Q62),2,0) ->  | AP47: =HLOOKUP(AP$2,CHOOSE({1;2},$B$24:$Q$24,$B62:$Q62),2,0) -> 1323 | AQ47: =HLOOKUP(AQ$2,CHOOSE({1;2},$B$24:$Q$24,$B62:$Q62),2,0) -> 1067 | AR47: =HLOOKUP(AR$2,CHOOSE({1;2},$B$24:$Q$24,$B62:$Q62),2,0) -> 1167 | AS47: H14
A48: H24 | B48: 615 | C48: 225 | D48: 785 | E48: 600 | F48: 1329 | G48: 1171 | H48: 1829 | I48: 1160 | J48: 975 | K48: 1040 | L48: 900 | M48: 227 | N48: 1400 | O48: 550 | P48: 500 | Q48: 1471 | R48: 1534 | S48: 1266 | T48: 2017-12-01 | AA48: =HLOOKUP(AA$2,CHOOSE({1;2},$B$24:$Q$24,$B63:$Q63),2,0) -> 900 | AB48: =HLOOKUP(AB$2,CHOOSE({1;2},$B$24:$Q$24,$B63:$Q63),2,0) ->  | AC48: =HLOOKUP(AC$2,CHOOSE({1;2},$B$24:$Q$24,$B63:$Q63),2,0) ->  | AD48: =HLOOKUP(AD$2,CHOOSE({1;2},$B$24:$Q$24,$B63:$Q63),2,0) -> 600 | AE48: =HLOOKUP(AE$2,CHOOSE({1;2},$B$24:$Q$24,$B63:$Q63),2,0) -> 550 | AF48: =HLOOKUP(AF$2,CHOOSE({1;2},$B$24:$Q$24,$B63:$Q63),2,0) -> 500 | AG48: =HLOOKUP(AG$2,CHOOSE({1;2},$B$24:$Q$24,$B63:$Q63),2,0) -> 1931 | AH48: =HLOOKUP(AH$2,CHOOSE({1;2},$B$24:$Q$24,$B63:$Q63),2,0) -> 998 | AI48: =HLOOKUP(AI$2,CHOOSE({1;2},$B$24:$Q$24,$B63:$Q63),2,0) -> 1527 | AJ48: =HLOOKUP(AJ$2,CHOOSE({1;2},$B$24:$Q$24,$B63:$Q63),2,0) -> 610 | AK48: =HLOOKUP(AK$2,CHOOSE({1;2},$B$24:$Q$24,$B63:$Q63),2,0) -> 202 | AL48: =HLOOKUP(AL$2,CHOOSE({1;2},$B$24:$Q$24,$B63:$Q63),2,0) -> 790 | AM48: =HLOOKUP(AM$2,CHOOSE({1;2},$B$24:$Q$24,$B63:$Q63),2,0) ->  | AN48: =HLOOKUP(AN$2,CHOOSE({1;2},$B$24:$Q$24,$B63:$Q63),2,0) -> 1021 | AO48: =HLOOKUP(AO$2,CHOOSE({1;2},$B$24:$Q$24,$B63:$Q63),2,0) ->  | AP48: =HLOOKUP(AP$2,CHOOSE({1;2},$B$24:$Q$24,$B63:$Q63),2,0) -> 1323 | AQ48: =HLOOKUP(AQ$2,CHOOSE({1;2},$B$24:$Q$24,$B63:$Q63),2,0) -> 1069 | AR48: =HLOOKUP(AR$2,CHOOSE({1;2},$B$24:$Q$24,$B63:$Q63),2,0) -> 1179 | AS48: H15
A49: H01 | B49: 655 | C49: 202 | D49: 745 | E49: 600 | F49: 1437 | G49: 1174 | H49: 1826 | I49: 1210 | J49: 998 | K49: 990 | L49: 900 | M49: 500 | N49: 1800 | O49: 550 | P49: 500 | Q49: 1013 | R49: 1529 | S49: 921 | T49: 2017-12-02 | U49: 2 | AA49: =HLOOKUP(AA$2,CHOOSE({1;2},$B$24:$Q$24,$B64:$Q64),2,0) -> 900 | AB49: =HLOOKUP(AB$2,CHOOSE({1;2},$B$24:$Q$24,$B64:$Q64),2,0) ->  | AC49: =HLOOKUP(AC$2,CHOOSE({1;2},$B$24:$Q$24,$B64:$Q64),2,0) ->  | AD49: =HLOOKUP(AD$2,CHOOSE({1;2},$B$24:$Q$24,$B64:$Q64),2,0) -> 600 | AE49: =HLOOKUP(AE$2,CHOOSE({1;2},$B$24:$Q$24,$B64:$Q64),2,0) -> 550 | AF49: =HLOOKUP(AF$2,CHOOSE({1;2},$B$24:$Q$24,$B64:$Q64),2,0) -> 500 | AG49: =HLOOKUP(AG$2,CHOOSE({1;2},$B$24:$Q$24,$B64:$Q64),2,0) -> 1931 | AH49: =HLOOKUP(AH$2,CHOOSE({1;2},$B$24:$Q$24,$B64:$Q64),2,0) -> 998 | AI49: =HLOOKUP(AI$2,CHOOSE({1;2},$B$24:$Q$24,$B64:$Q64),2,0) -> 1527 | AJ49: =HLOOKUP(AJ$2,CHOOSE({1;2},$B$24:$Q$24,$B64:$Q64),2,0) -> 610 | AK49: =HLOOKUP(AK$2,CHOOSE({1;2},$B$24:$Q$24,$B64:$Q64),2,0) -> 202 | AL49: =HLOOKUP(AL$2,CHOOSE({1;2},$B$24:$Q$24,$B64:$Q64),2,0) -> 790 | AM49: =HLOOKUP(AM$2,CHOOSE({1;2},$B$24:$Q$24,$B64:$Q64),2,0) ->  | AN49: =HLOOKUP(AN$2,CHOOSE({1;2},$B$24:$Q$24,$B64:$Q64),2,0) -> 1021 | AO49: =HLOOKUP(AO$2,CHOOSE({1;2},$B$24:$Q$24,$B64:$Q64),2,0) ->  | AP49: =HLOOKUP(AP$2,CHOOSE({1;2},$B$24:$Q$24,$B64:$Q64),2,0) -> 1173 | AQ49: =HLOOKUP(AQ$2,CHOOSE({1;2},$B$24:$Q$24,$B64:$Q64),2,0) -> 1069 | AR49: =HLOOKUP(AR$2,CHOOSE({1;2},$B$24:$Q$24,$B64:$Q64),2,0) -> 1179 | AS49: H16
A50: H02 | B50: 655 | C50: 202 | D50: 745 | E50: 600 | F50: 1437 | G50: 1174 | H50: 1826 | I50: 1208 | J50: 998 | K50: 992 | L50: 900 | M50: 378 | N50: 1800 | O50: 550 | P50: 500 | Q50: 1013 | R50: 1529 | S50: 921 | T50: 2017-12-02 | AA50: =HLOOKUP(AA$2,CHOOSE({1;2},$B$24:$Q$24,$B65:$Q65),2,0) -> 900 | AB50: =HLOOKUP(AB$2,CHOOSE({1;2},$B$24:$Q$24,$B65:$Q65),2,0) ->  | AC50: =HLOOKUP(AC$2,CHOOSE({1;2},$B$24:$Q$24,$B65:$Q65),2,0) ->  | AD50: =HLOOKUP(AD$2,CHOOSE({1;2},$B$24:$Q$24,$B65:$Q65),2,0) -> 600 | AE50: =HLOOKUP(AE$2,CHOOSE({1;2},$B$24:$Q$24,$B65:$Q65),2,0) -> 550 | AF50: =HLOOKUP(AF$2,CHOOSE({1;2},$B$24:$Q$24,$B65:$Q65),2,0) -> 500 | AG50: =HLOOKUP(AG$2,CHOOSE({1;2},$B$24:$Q$24,$B65:$Q65),2,0) -> 1933 | AH50: =HLOOKUP(AH$2,CHOOSE({1;2},$B$24:$Q$24,$B65:$Q65),2,0) -> 998 | AI50: =HLOOKUP(AI$2,CHOOSE({1;2},$B$24:$Q$24,$B65:$Q65),2,0) -> 1527 | AJ50: =HLOOKUP(AJ$2,CHOOSE({1;2},$B$24:$Q$24,$B65:$Q65),2,0) -> 610 | AK50: =HLOOKUP(AK$2,CHOOSE({1;2},$B$24:$Q$24,$B65:$Q65),2,0) -> 202 | AL50: =HLOOKUP(AL$2,CHOOSE({1;2},$B$24:$Q$24,$B65:$Q65),2,0) -> 790 | AM50: =HLOOKUP(AM$2,CHOOSE({1;2},$B$24:$Q$24,$B65:$Q65),2,0) ->  | AN50: =HLOOKUP(AN$2,CHOOSE({1;2},$B$24:$Q$24,$B65:$Q65),2,0) -> 1023 | AO50: =HLOOKUP(AO$2,CHOOSE({1;2},$B$24:$Q$24,$B65:$Q65),2,0) ->  | AP50: =HLOOKUP(AP$2,CHOOSE({1;2},$B$24:$Q$24,$B65:$Q65),2,0) -> 1073 | AQ50: =HLOOKUP(AQ$2,CHOOSE({1;2},$B$24:$Q$24,$B65:$Q65),2,0) -> 1067 | AR50: =HLOOKUP(AR$2,CHOOSE({1;2},$B$24:$Q$24,$B65:$Q65),2,0) -> 1177 | AS50: H17
A51: H03 | B51: 655 | C51: 202 | D51: 745 | E51: 600 | F51: 1437 | G51: 1174 | H51: 1826 | I51: 1207 | J51: 998 | K51: 993 | L51: 900 | M51: 255 | N51: 1800 | O51: 550 | P51: 500 | Q51: 963 | R51: 1529 | S51: 871 | T51: 2017-12-02 | AA51: =HLOOKUP(AA$2,CHOOSE({1;2},$B$24:$Q$24,$B66:$Q66),2,0) -> 900 | AB51: =HLOOKUP(AB$2,CHOOSE({1;2},$B$24:$Q$24,$B66:$Q66),2,0) ->  | AC51: =HLOOKUP(AC$2,CHOOSE({1;2},$B$24:$Q$24,$B66:$Q66),2,0) ->  | AD51: =HLOOKUP(AD$2,CHOOSE({1;2},$B$24:$Q$24,$B66:$Q66),2,0) -> 600 | AE51: =HLOOKUP(AE$2,CHOOSE({1;2},$B$24:$Q$24,$B66:$Q66),2,0) -> 550 | AF51: =HLOOKUP(AF$2,CHOOSE({1;2},$B$24:$Q$24,$B66:$Q66),2,0) -> 500 | AG51: =HLOOKUP(AG$2,CHOOSE({1;2},$B$24:$Q$24,$B66:$Q66),2,0) -> 1933 | AH51: =HLOOKUP(AH$2,CHOOSE({1;2},$B$24:$Q$24,$B66:$Q66),2,0) -> 998 | AI51: =HLOOKUP(AI$2,CHOOSE({1;2},$B$24:$Q$24,$B66:$Q66),2,0) -> 1527 | AJ51: =HLOOKUP(AJ$2,CHOOSE({1;2},$B$24:$Q$24,$B66:$Q66),2,0) -> 610 | AK51: =HLOOKUP(AK$2,CHOOSE({1;2},$B$24:$Q$24,$B66:$Q66),2,0) -> 202 | AL51: =HLOOKUP(AL$2,CHOOSE({1;2},$B$24:$Q$24,$B66:$Q66),2,0) -> 790 | AM51: =HLOOKUP(AM$2,CHOOSE({1;2},$B$24:$Q$24,$B66:$Q66),2,0) ->  | AN51: =HLOOKUP(AN$2,CHOOSE({1;2},$B$24:$Q$24,$B66:$Q66),2,0) -> 1047 | AO51: =HLOOKUP(AO$2,CHOOSE({1;2},$B$24:$Q$24,$B66:$Q66),2,0) ->  | AP51: =HLOOKUP(AP$2,CHOOSE({1;2},$B$24:$Q$24,$B66:$Q66),2,0) -> 1223 | AQ51: =HLOOKUP(AQ$2,CHOOSE({1;2},$B$24:$Q$24,$B66:$Q66),2,0) -> 1067 | AR51: =HLOOKUP(AR$2,CHOOSE({1;2},$B$24:$Q$24,$B66:$Q66),2,0) -> 1153 | AS51: H18
A52: H04 | B52: 655 | C52: 202 | D52: 745 | E52: 600 | F52: 1437 | G52: 1184 | H52: 1816 | I52: 1207 | J52: 998 | K52: 993 | L52: 900 | M52: 241 | N52: 1800 | O52: 550 | P52: 500 | Q52: 1113 | R52: 1529 | S52: 1021 | T52: 2017-12-02 | AA52: =HLOOKUP(AA$2,CHOOSE({1;2},$B$24:$Q$24,$B67:$Q67),2,0) -> 900 | AB52: =HLOOKUP(AB$2,CHOOSE({1;2},$B$24:$Q$24,$B67:$Q67),2,0) ->  | AC52: =HLOOKUP(AC$2,CHOOSE({1;2},$B$24:$Q$24,$B67:$Q67),2,0) ->  | AD52: =HLOOKUP(AD$2,CHOOSE({1;2},$B$24:$Q$24,$B67:$Q67),2,0) -> 600 | AE52: =HLOOKUP(AE$2,CHOOSE({1;2},$B$24:$Q$24,$B67:$Q67),2,0) -> 550 | AF52: =HLOOKUP(AF$2,CHOOSE({1;2},$B$24:$Q$24,$B67:$Q67),2,0) -> 500 | AG52: =HLOOKUP(AG$2,CHOOSE({1;2},$B$24:$Q$24,$B67:$Q67),2,0) -> 1933 | AH52: =HLOOKUP(AH$2,CHOOSE({1;2},$B$24:$Q$24,$B67:$Q67),2,0) -> 998 | AI52: =HLOOKUP(AI$2,CHOOSE({1;2},$B$24:$Q$24,$B67:$Q67),2,0) -> 1527 | AJ52: =HLOOKUP(AJ$2,CHOOSE({1;2},$B$24:$Q$24,$B67:$Q67),2,0) -> 610 | AK52: =HLOOKUP(AK$2,CHOOSE({1;2},$B$24:$Q$24,$B67:$Q67),2,0) -> 202 | AL52: =HLOOKUP(AL$2,CHOOSE({1;2},$B$24:$Q$24,$B67:$Q67),2,0) -> 790 | AM52: =HLOOKUP(AM$2,CHOOSE({1;2},$B$24:$Q$24,$B67:$Q67),2,0) ->  | AN52: =HLOOKUP(AN$2,CHOOSE({1;2},$B$24:$Q$24,$B67:$Q67),2,0) -> 1043 | AO52: =HLOOKUP(AO$2,CHOOSE({1;2},$B$24:$Q$24,$B67:$Q67),2,0) ->  | AP52: =HLOOKUP(AP$2,CHOOSE({1;2},$B$24:$Q$24,$B67:$Q67),2,0) -> 1323 | AQ52: =HLOOKUP(AQ$2,CHOOSE({1;2},$B$24:$Q$24,$B67:$Q67),2,0) -> 1067 | AR52: =HLOOKUP(AR$2,CHOOSE({1;2},$B$24:$Q$24,$B67:$Q67),2,0) -> 1157 | AS52: H19
A53: H05 | B53: 655 | C53: 202 | D53: 745 | E53: 600 | F53: 1437 | G53: 1185 | H53: 1815 | I53: 1207 | J53: 998 | K53: 993 | L53: 900 | M53: 275 | N53: 1800 | O53: 550 | P53: 500 | Q53: 1163 | R53: 1529 | S53: 1071 | T53: 2017-12-02 | AA53: =HLOOKUP(AA$2,CHOOSE({1;2},$B$24:$Q$24,$B68:$Q68),2,0) -> 900 | AB53: =HLOOKUP(AB$2,CHOOSE({1;2},$B$24:$Q$24,$B68:$Q68),2,0) ->  | AC53: =HLOOKUP(AC$2,CHOOSE({1;2},$B$24:$Q$24,$B68:$Q68),2,0) ->  | AD53: =HLOOKUP(AD$2,CHOOSE({1;2},$B$24:$Q$24,$B68:$Q68),2,0) -> 600 | AE53: =HLOOKUP(AE$2,CHOOSE({1;2},$B$24:$Q$24,$B68:$Q68),2,0) -> 550 | AF53: =HLOOKUP(AF$2,CHOOSE({1;2},$B$24:$Q$24,$B68:$Q68),2,0) -> 500 | AG53: =HLOOKUP(AG$2,CHOOSE({1;2},$B$24:$Q$24,$B68:$Q68),2,0) -> 1933 | AH53: =HLOOKUP(AH$2,CHOOSE({1;2},$B$24:$Q$24,$B68:$Q68),2,0) -> 998 | AI53: =HLOOKUP(AI$2,CHOOSE({1;2},$B$24:$Q$24,$B68:$Q68),2,0) -> 1527 | AJ53: =HLOOKUP(AJ$2,CHOOSE({1;2},$B$24:$Q$24,$B68:$Q68),2,0) -> 610 | AK53: =HLOOKUP(AK$2,CHOOSE({1;2},$B$24:$Q$24,$B68:$Q68),2,0) -> 202 | AL53: =HLOOKUP(AL$2,CHOOSE({1;2},$B$24:$Q$24,$B68:$Q68),2,0) -> 790 | AM53: =HLOOKUP(AM$2,CHOOSE({1;2},$B$24:$Q$24,$B68:$Q68),2,0) ->  | AN53: =HLOOKUP(AN$2,CHOOSE({1;2},$B$24:$Q$24,$B68:$Q68),2,0) -> 1038 | AO53: =HLOOKUP(AO$2,CHOOSE({1;2},$B$24:$Q$24,$B68:$Q68),2,0) ->  | AP53: =HLOOKUP(AP$2,CHOOSE({1;2},$B$24:$Q$24,$B68:$Q68),2,0) -> 1173 | AQ53: =HLOOKUP(AQ$2,CHOOSE({1;2},$B$24:$Q$24,$B68:$Q68),2,0) -> 1067 | AR53: =HLOOKUP(AR$2,CHOOSE({1;2},$B$24:$Q$24,$B68:$Q68),2,0) -> 1162 | AS53: H20
A54: H06 | B54: 655 | C54: 202 | D54: 745 | E54: 600 | F54: 1437 | G54: 1181 | H54: 1819 | I54: 1208 | J54: 998 | K54: 992 | L54: 900 | M54: 389 | N54: 1800 | O54: 550 | P54: 500 | Q54: 1063 | R54: 1529 | S54: 971 | T54: 2017-12-02 | AA54: =HLOOKUP(AA$2,CHOOSE({1;2},$B$24:$Q$24,$B69:$Q69),2,0) -> 900 | AB54: =HLOOKUP(AB$2,CHOOSE({1;2},$B$24:$Q$24,$B69:$Q69),2,0) ->  | AC54: =HLOOKUP(AC$2,CHOOSE({1;2},$B$24:$Q$24,$B69:$Q69),2,0) ->  | AD54: =HLOOKUP(AD$2,CHOOSE({1;2},$B$24:$Q$24,$B69:$Q69),2,0) -> 600 | AE54: =HLOOKUP(AE$2,CHOOSE({1;2},$B$24:$Q$24,$B69:$Q69),2,0) -> 550 | AF54: =HLOOKUP(AF$2,CHOOSE({1;2},$B$24:$Q$24,$B69:$Q69),2,0) -> 500 | AG54: =HLOOKUP(AG$2,CHOOSE({1;2},$B$24:$Q$24,$B69:$Q69),2,0) -> 1833 | AH54: =HLOOKUP(AH$2,CHOOSE({1;2},$B$24:$Q$24,$B69:$Q69),2,0) -> 998 | AI54: =HLOOKUP(AI$2,CHOOSE({1;2},$B$24:$Q$24,$B69:$Q69),2,0) -> 1447 | AJ54: =HLOOKUP(AJ$2,CHOOSE({1;2},$B$24:$Q$24,$B69:$Q69),2,0) -> 640 | AK54: =HLOOKUP(AK$2,CHOOSE({1;2},$B$24:$Q$24,$B69:$Q69),2,0) -> 202 | AL54: =HLOOKUP(AL$2,CHOOSE({1;2},$B$24:$Q$24,$B69:$Q69),2,0) -> 760 | AM54: =HLOOKUP(AM$2,CHOOSE({1;2},$B$24:$Q$24,$B69:$Q69),2,0) ->  | AN54: =HLOOKUP(AN$2,CHOOSE({1;2},$B$24:$Q$24,$B69:$Q69),2,0) -> 1146 | AO54: =HLOOKUP(AO$2,CHOOSE({1;2},$B$24:$Q$24,$B69:$Q69),2,0) ->  | AP54: =HLOOKUP(AP$2,CHOOSE({1;2},$B$24:$Q$24,$B69:$Q69),2,0) -> 1103 | AQ54: =HLOOKUP(AQ$2,CHOOSE({1;2},$B$24:$Q$24,$B69:$Q69),2,0) -> 1167 | AR54: =HLOOKUP(AR$2,CHOOSE({1;2},$B$24:$Q$24,$B69:$Q69),2,0) -> 1054 | AS54: H21
A55: H07 | B55: 640 | C55: 202 | D55: 760 | E55: 600 | F55: 1447 | G55: 1180 | H55: 1820 | I55: 1130 | J55: 998 | K55: 1070 | L55: 900 | M55: 500 | N55: 678 | O55: 550 | P55: 500 | Q55: 1003 | R55: 1546 | S55: 904 | T55: 2017-12-02 | AA55: =HLOOKUP(AA$2,CHOOSE({1;2},$B$24:$Q$24,$B70:$Q70),2,0) -> 900 | AB55: =HLOOKUP(AB$2,CHOOSE({1;2},$B$24:$Q$24,$B70:$Q70),2,0) ->  | AC55: =HLOOKUP(AC$2,CHOOSE({1;2},$B$24:$Q$24,$B70:$Q70),2,0) ->  | AD55: =HLOOKUP(AD$2,CHOOSE({1;2},$B$24:$Q$24,$B70:$Q70),2,0) -> 600 | AE55: =HLOOKUP(AE$2,CHOOSE({1;2},$B$24:$Q$24,$B70:$Q70),2,0) -> 550 | AF55: =HLOOKUP(AF$2,CHOOSE({1;2},$B$24:$Q$24,$B70:$Q70),2,0) -> 500 | AG55: =HLOOKUP(AG$2,CHOOSE({1;2},$B$24:$Q$24,$B70:$Q70),2,0) -> 1832 | AH55: =HLOOKUP(AH$2,CHOOSE({1;2},$B$24:$Q$24,$B70:$Q70),2,0) -> 998 | AI55: =HLOOKUP(AI$2,CHOOSE({1;2},$B$24:$Q$24,$B70:$Q70),2,0) -> 1447 | AJ55: =HLOOKUP(AJ$2,CHOOSE({1;2},$B$24:$Q$24,$B70:$Q70),2,0) -> 640 | AK55: =HLOOKUP(AK$2,CHOOSE({1;2},$B$24:$Q$24,$B70:$Q70),2,0) -> 202 | AL55: =HLOOKUP(AL$2,CHOOSE({1;2},$B$24:$Q$24,$B70:$Q70),2,0) -> 760 | AM55: =HLOOKUP(AM$2,CHOOSE({1;2},$B$24:$Q$24,$B70:$Q70),2,0) ->  | AN55: =HLOOKUP(AN$2,CHOOSE({1;2},$B$24:$Q$24,$B70:$Q70),2,0) -> 1138 | AO55: =HLOOKUP(AO$2,CHOOSE({1;2},$B$24:$Q$24,$B70:$Q70),2,0) ->  | AP55: =HLOOKUP(AP$2,CHOOSE({1;2},$B$24:$Q$24,$B70:$Q70),2,0) -> 1053 | AQ55: =HLOOKUP(AQ$2,CHOOSE({1;2},$B$24:$Q$24,$B70:$Q70),2,0) -> 1168 | AR55: =HLOOKUP(AR$2,CHOOSE({1;2},$B$24:$Q$24,$B70:$Q70),2,0) -> 1062 | AS55: H22
A56: H08 | B56: 640 | C56: 202 | D56: 760 | E56: 600 | F56: 1447 | G56: 1179 | H56: 1821 | I56: 1107 | J56: 998 | K56: 1093 | L56: 900 | M56: 0 | N56: 744 | O56: 550 | P56: 500 | Q56: 953 | R56: 1546 | S56: 854 | T56: 2017-12-02 | AA56: =HLOOKUP(AA$2,CHOOSE({1;2},$B$24:$Q$24,$B71:$Q71),2,0) -> 900 | AB56: =HLOOKUP(AB$2,CHOOSE({1;2},$B$24:$Q$24,$B71:$Q71),2,0) ->  | AC56: =HLOOKUP(AC$2,CHOOSE({1;2},$B$24:$Q$24,$B71:$Q71),2,0) ->  | AD56: =HLOOKUP(AD$2,CHOOSE({1;2},$B$24:$Q$24,$B71:$Q71),2,0) -> 600 | AE56: =HLOOKUP(AE$2,CHOOSE({1;2},$B$24:$Q$24,$B71:$Q71),2,0) -> 550 | AF56: =HLOOKUP(AF$2,CHOOSE({1;2},$B$24:$Q$24,$B71:$Q71),2,0) -> 500 | AG56: =HLOOKUP(AG$2,CHOOSE({1;2},$B$24:$Q$24,$B71:$Q71),2,0) -> 1832 | AH56: =HLOOKUP(AH$2,CHOOSE({1;2},$B$24:$Q$24,$B71:$Q71),2,0) -> 998 | AI56: =HLOOKUP(AI$2,CHOOSE({1;2},$B$24:$Q$24,$B71:$Q71),2,0) -> 1437 | AJ56: =HLOOKUP(AJ$2,CHOOSE({1;2},$B$24:$Q$24,$B71:$Q71),2,0) -> 645 | AK56: =HLOOKUP(AK$2,CHOOSE({1;2},$B$24:$Q$24,$B71:$Q71),2,0) -> 202 | AL56: =HLOOKUP(AL$2,CHOOSE({1;2},$B$24:$Q$24,$B71:$Q71),2,0) -> 755 | AM56: =HLOOKUP(AM$2,CHOOSE({1;2},$B$24:$Q$24,$B71:$Q71),2,0) ->  | AN56: =HLOOKUP(AN$2,CHOOSE({1;2},$B$24:$Q$24,$B71:$Q71),2,0) -> 1154 | AO56: =HLOOKUP(AO$2,CHOOSE({1;2},$B$24:$Q$24,$B71:$Q71),2,0) ->  | AP56: =HLOOKUP(AP$2,CHOOSE({1;2},$B$24:$Q$24,$B71:$Q71),2,0) -> 913 | AQ56: =HLOOKUP(AQ$2,CHOOSE({1;2},$B$24:$Q$24,$B71:$Q71),2,0) -> 1168 | AR56: =HLOOKUP(AR$2,CHOOSE({1;2},$B$24:$Q$24,$B71:$Q71),2,0) -> 1046 | AS56: H23
A57: H09 | B57: 610 | C57: 202 | D57: 790 | E57: 600 | F57: 1527 | G57: 1169 | H57: 1831 | I57: 1127 | J57: 998 | K57: 1073 | L57: 900 | M57: 0 | N57: 543 | O57: 550 | P57: 500 | Q57: 973 | R57: 1546 | S57: 954 | T57: 2017-12-02 | AA57: =HLOOKUP(AA$2,CHOOSE({1;2},$B$24:$Q$24,$B72:$Q72),2,0) -> 900 | AB57: =HLOOKUP(AB$2,CHOOSE({1;2},$B$24:$Q$24,$B72:$Q72),2,0) ->  | AC57: =HLOOKUP(AC$2,CHOOSE({1;2},$B$24:$Q$24,$B72:$Q72),2,0) ->  | AD57: =HLOOKUP(AD$2,CHOOSE({1;2},$B$24:$Q$24,$B72:$Q72),2,0) -> 600 | AE57: =HLOOKUP(AE$2,CHOOSE({1;2},$B$24:$Q$24,$B72:$Q72),2,0) -> 550 | AF57: =HLOOKUP(AF$2,CHOOSE({1;2},$B$24:$Q$24,$B72:$Q72),2,0) -> 500 | AG57: =HLOOKUP(AG$2,CHOOSE({1;2},$B$24:$Q$24,$B72:$Q72),2,0) -> 1831 | AH57: =HLOOKUP(AH$2,CHOOSE({1;2},$B$24:$Q$24,$B72:$Q72),2,0) -> 998 | AI57: =HLOOKUP(AI$2,CHOOSE({1;2},$B$24:$Q$24,$B72:$Q72),2,0) -> 1437 | AJ57: =HLOOKUP(AJ$2,CHOOSE({1;2},$B$24:$Q$24,$B72:$Q72),2,0) -> 645 | AK57: =HLOOKUP(AK$2,CHOOSE({1;2},$B$24:$Q$24,$B72:$Q72),2,0) -> 202 | AL57: =HLOOKUP(AL$2,CHOOSE({1;2},$B$24:$Q$24,$B72:$Q72),2,0) -> 755 | AM57: =HLOOKUP(AM$2,CHOOSE({1;2},$B$24:$Q$24,$B72:$Q72),2,0) ->  | AN57: =HLOOKUP(AN$2,CHOOSE({1;2},$B$24:$Q$24,$B72:$Q72),2,0) -> 1140 | AO57: =HLOOKUP(AO$2,CHOOSE({1;2},$B$24:$Q$24,$B72:$Q72),2,0) ->  | AP57: =HLOOKUP(AP$2,CHOOSE({1;2},$B$24:$Q$24,$B72:$Q72),2,0) -> 1013 | AQ57: =HLOOKUP(AQ$2,CHOOSE({1;2},$B$24:$Q$24,$B72:$Q72),2,0) -> 1169 | AR57: =HLOOKUP(AR$2,CHOOSE({1;2},$B$24:$Q$24,$B72:$Q72),2,0) -> 1060 | AS57: H24
A58: H10 | B58: 610 | C58: 202 | D58: 790 | E58: 600 | F58: 1527 | G58: 1068 | H58: 1932 | I58: 1040 | J58: 998 | K58: 1160 | L58: 900 | M58: 0 | N58: 496 | O58: 550 | P58: 500 | Q58: 1073 | R58: 1546 | S58: 1054 | T58: 2017-12-02
A59: H11 | B59: 610 | C59: 202 | D59: 790 | E59: 600 | F59: 1527 | G59: 1068 | H59: 1932 | I59: 1041 | J59: 998 | K59: 1159 | L59: 900 | M59: 500 | N59: 547 | O59: 550 | P59: 500 | Q59: 1323 | R59: 1546 | S59: 1304 | T59: 2017-12-02
A60: H12 | B60: 610 | C60: 202 | D60: 790 | E60: 600 | F60: 1527 | G60: 1067 | H60: 1933 | I60: 1041 | J60: 998 | K60: 1159 | L60: 900 | M60: 500 | N60: 533 | O60: 550 | P60: 500 | Q60: 1323 | R60: 1546 | S60: 1304 | T60: 2017-12-02
A61: H13 | B61: 610 | C61: 202 | D61: 790 | E61: 600 | F61: 1527 | G61: 1067 | H61: 1933 | I61: 1040 | J61: 998 | K61: 1160 | L61: 900 | M61: 500 | N61: 611 | O61: 550 | P61: 500 | Q61: 1323 | R61: 1546 | S61: 1304 | T61: 2017-12-02
A62: H14 | B62: 610 | C62: 202 | D62: 790 | E62: 600 | F62: 1527 | G62: 1067 | H62: 1933 | I62: 1033 | J62: 998 | K62: 1167 | L62: 900 | M62: 500 | N62: 618 | O62: 550 | P62: 500 | Q62: 1323 | R62: 1546 | S62: 1304 | T62: 2017-12-02
A63: H15 | B63: 610 | C63: 202 | D63: 790 | E63: 600 | F63: 1527 | G63: 1069 | H63: 1931 | I63: 1021 | J63: 998 | K63: 1179 | L63: 900 | M63: 500 | N63: 602 | O63: 550 | P63: 500 | Q63: 1323 | R63: 1546 | S63: 1304 | T63: 2017-12-02
A64: H16 | B64: 610 | C64: 202 | D64: 790 | E64: 600 | F64: 1527 | G64: 1069 | H64: 1931 | I64: 1021 | J64: 998 | K64: 1179 | L64: 900 | M64: 500 | N64: 448 | O64: 550 | P64: 500 | Q64: 1173 | R64: 1546 | S64: 1154 | T64: 2017-12-02
A65: H17 | B65: 610 | C65: 202 | D65: 790 | E65: 600 | F65: 1527 | G65: 1067 | H65: 1933 | I65: 1023 | J65: 998 | K65: 1177 | L65: 900 | M65: 500 | N65: 210 | O65: 550 | P65: 500 | Q65: 1073 | R65: 1546 | S65: 1054 | T65: 2017-12-02
A66: H18 | B66: 610 | C66: 202 | D66: 790 | E66: 600 | F66: 1527 | G66: 1067 | H66: 1933 | I66: 1047 | J66: 998 | K66: 1153 | L66: 900 | M66: 500 | N66: 254 | O66: 550 | P66: 500 | Q66: 1223 | R66: 1546 | S66: 1204 | T66: 2017-12-02
A67: H19 | B67: 610 | C67: 202 | D67: 790 | E67: 600 | F67: 1527 | G67: 1067 | H67: 1933 | I67: 1043 | J67: 998 | K67: 1157 | L67: 900 | M67: 500 | N67: 284 | O67: 550 | P67: 500 | Q67: 1323 | R67: 1546 | S67: 1304 | T67: 2017-12-02
A68: H20 | B68: 610 | C68: 202 | D68: 790 | E68: 600 | F68: 1527 | G68: 1067 | H68: 1933 | I68: 1038 | J68: 998 | K68: 1162 | L68: 900 | M68: 500 | N68: 335 | O68: 550 | P68: 500 | Q68: 1173 | R68: 1546 | S68: 1154 | T68: 2017-12-02
A69: H21 | B69: 640 | C69: 202 | D69: 760 | E69: 600 | F69: 1447 | G69: 1167 | H69: 1833 | I69: 1146 | J69: 998 | K69: 1054 | L69: 900 | M69: 500 | N69: 567 | O69: 550 | P69: 500 | Q69: 1103 | R69: 1546 | S69: 1004 | T69: 2017-12-02
A70: H22 | B70: 640 | C70: 202 | D70: 760 | E70: 600 | F70: 1447 | G70: 1168 | H70: 1832 | I70: 1138 | J70: 998 | K70: 1062 | L70: 900 | M70: 500 | N70: 1326 | O70: 550 | P70: 500 | Q70: 1053 | R70: 1546 | S70: 954 | T70: 2017-12-02
A71: H23 | B71: 645 | C71: 202 | D71: 755 | E71: 600 | F71: 1437 | G71: 1168 | H71: 1832 | I71: 1154 | J71: 998 | K71: 1046 | L71: 900 | M71: 379 | N71: 1400 | O71: 550 | P71: 500 | Q71: 913 | R71: 1534 | S71: 816 | T71: 2017-12-02
A72: H24 | B72: 645 | C72: 202 | D72: 755 | E72: 600 | F72: 1437 | G72: 1169 | H72: 1831 | I72: 1140 | J72: 998 | K72: 1060 | L72: 900 | M72: 249 | N72: 1400 | O72: 550 | P72: 500 | Q72: 1013 | R72: 1534 | S72: 916 | T72: 2017-12-02
A73: H01 | B73: 700 | C73: 202 | D73: 700 | E73: 600 | F73: 1501 | G73: 1174 | H73: 1826 | I73: 1128 | J73: 998 | K73: 1072 | L73: 900 | M73: 500 | N73: 1400 | O73: 550 | P73: 500 | Q73: 949 | R73: 1511 | S73: 939 | T73: 2017-12-03 | U73: 3
A74: H02 | B74: 700 | C74: 202 | D74: 700 | E74: 600 | F74: 1501 | G74: 1174 | H74: 1826 | I74: 1126 | J74: 998 | K74: 1074 | L74: 900 | M74: 479 | N74: 1400 | O74: 550 | P74: 500 | Q74: 1049 | R74: 1511 | S74: 1039 | T74: 2017-12-03
A75: H03 | B75: 700 | C75: 202 | D75: 700 | E75: 600 | F75: 1501 | G75: 1174 | H75: 1826 | I75: 1125 | J75: 998 | K75: 1075 | L75: 900 | M75: 330 | N75: 1400 | O75: 550 | P75: 500 | Q75: 1199 | R75: 1511 | S75: 1189 | T75: 2017-12-03
A76: H04 | B76: 700 | C76: 202 | D76: 700 | E76: 600 | F76: 1501 | G76: 1174 | H76: 1826 | I76: 1124 | J76: 998 | K76: 1076 | L76: 900 | M76: 244 | N76: 1400 | O76: 550 | P76: 500 | Q76: 1199 | R76: 1511 | S76: 1189 | T76: 2017-12-03
A77: H05 | B77: 700 | C77: 202 | D77: 700 | E77: 600 | F77: 1501 | G77: 1175 | H77: 1825 | I77: 1123 | J77: 998 | K77: 1077 | L77: 900 | M77: 238 | N77: 1400 | O77: 550 | P77: 500 | Q77: 1149 | R77: 1511 | S77: 1139 | T77: 2017-12-03
A78: H06 | B78: 700 | C78: 202 | D78: 700 | E78: 600 | F78: 1501 | G78: 1171 | H78: 1829 | I78: 1124 | J78: 998 | K78: 1076 | L78: 900 | M78: 257 | N78: 1400 | O78: 550 | P78: 500 | Q78: 1099 | R78: 1511 | S78: 1089 | T78: 2017-12-03
A79: H07 | B79: 620 | C79: 202 | D79: 780 | E79: 600 | F79: 1591 | G79: 1171 | H79: 1829 | I79: 1126 | J79: 998 | K79: 1074 | L79: 900 | M79: 363 | N79: 524 | O79: 550 | P79: 500 | Q79: 1059 | R79: 1531 | S79: 1119 | T79: 2017-12-03
A80: H08 | B80: 615 | C80: 202 | D80: 785 | E80: 600 | F80: 1591 | G80: 1172 | H80: 1828 | I80: 1106 | J80: 998 | K80: 1094 | L80: 900 | M80: 475 | N80: 663 | O80: 550 | P80: 500 | Q80: 1209 | R80: 1534 | S80: 1266 | T80: 2017-12-03
A81: H09 | B81: 585 | C81: 202 | D81: 815 | E81: 600 | F81: 1617 | G81: 1072 | H81: 1928 | I81: 987 | J81: 998 | K81: 1213 | L81: 900 | M81: 500 | N81: 662 | O81: 550 | P81: 500 | Q81: 833 | R81: 1636 | S81: 814 | T81: 2017-12-03
A82: H10 | B82: 585 | C82: 202 | D82: 815 | E82: 600 | F82: 1617 | G82: 1072 | H82: 1928 | I82: 989 | J82: 998 | K82: 1211 | L82: 900 | M82: 500 | N82: 1400 | O82: 550 | P82: 500 | Q82: 833 | R82: 1636 | S82: 814 | T82: 2017-12-03
A83: H11 | B83: 385 | C83: 102 | D83: 615 | E83: 600 | F83: 1617 | G83: 1071 | H83: 1929 | I83: 996 | J83: 998 | K83: 1204 | L83: 900 | M83: 500 | N83: 1400 | O83: 550 | P83: 500 | Q83: 733 | R83: 1636 | S83: 714 | T83: 2017-12-03
A84: H12 | B84: 385 | C84: 102 | D84: 615 | E84: 600 | F84: 1617 | G84: 1070 | H84: 1930 | I84: 997 | J84: 998 | K84: 1203 | L84: 900 | M84: 500 | N84: 1400 | O84: 550 | P84: 500 | Q84: 783 | R84: 1636 | S84: 764 | T84: 2017-12-03
A85: H13 | B85: 385 | C85: 102 | D85: 615 | E85: 600 | F85: 1617 | G85: 1173 | H85: 1827 | I85: 1097 | J85: 998 | K85: 1103 | L85: 900 | M85: 500 | N85: 1400 | O85: 550 | P85: 500 | Q85: 833 | R85: 1636 | S85: 814 | T85: 2017-12-03
A86: H14 | B86: 385 | C86: 102 | D86: 615 | E86: 600 | F86: 1617 | G86: 1173 | H86: 1827 | I86: 1091 | J86: 998 | K86: 1109 | L86: 900 | M86: 500 | N86: 1400 | O86: 550 | P86: 500 | Q86: 833 | R86: 1636 | S86: 814 | T86: 2017-12-03
A87: H15 | B87: 385 | C87: 102 | D87: 615 | E87: 600 | F87: 1617 | G87: 1174 | H87: 1826 | I87: 1090 | J87: 998 | K87: 1110 | L87: 900 | M87: 500 | N87: 1400 | O87: 550 | P87: 500 | Q87: 783 | R87: 1636 | S87: 764 | T87: 2017-12-03
A88: H16 | B88: 385 | C88: 102 | D88: 615 | E88: 600 | F88: 1617 | G88: 1171 | H88: 1829 | I88: 1089 | J88: 998 | K88: 1111 | L88: 900 | M88: 500 | N88: 1400 | O88: 550 | P88: 500 | Q88: 733 | R88: 1636 | S88: 714 | T88: 2017-12-03
A89: H17 | B89: 385 | C89: 102 | D89: 615 | E89: 600 | F89: 1617 | G89: 1092 | H89: 1908 | I89: 988 | J89: 998 | K89: 1212 | L89: 900 | M89: 500 | N89: 1400 | O89: 550 | P89: 500 | Q89: 783 | R89: 1636 | S89: 764 | T89: 2017-12-03
A90: H18 | B90: 385 | C90: 102 | D90: 615 | E90: 600 | F90: 1617 | G90: 1092 | H90: 1908 | I90: 1009 | J90: 998 | K90: 1191 | L90: 900 | M90: 500 | N90: 1400 | O90: 550 | P90: 500 | Q90: 733 | R90: 1636 | S90: 714 | T90: 2017-12-03
A91: H19 | B91: 385 | C91: 102 | D91: 615 | E91: 600 | F91: 1617 | G91: 1192 | H91: 1808 | I91: 1114 | J91: 998 | K91: 1086 | L91: 900 | M91: 500 | N91: 1400 | O91: 550 | P91: 500 | Q91: 683 | R91: 1636 | S91: 664 | T91: 2017-12-03
A92: H20 | B92: 385 | C92: 102 | D92: 615 | E92: 600 | F92: 1617 | G92: 1167 | H92: 1833 | I92: 1117 | J92: 998 | K92: 1083 | L92: 900 | M92: 500 | N92: 1393 | O92: 550 | P92: 500 | Q92: 833 | R92: 1636 | S92: 814 | T92: 2017-12-03
A93: H21 | B93: 440 | C93: 102 | D93: 560 | E93: 600 | F93: 1521 | G93: 1067 | H93: 1933 | I93: 1047 | J93: 998 | K93: 1153 | L93: 900 | M93: 500 | N93: 1212 | O93: 550 | P93: 500 | Q93: 679 | R93: 1546 | S93: 654 | T93: 2017-12-03
A94: H22 | B94: 440 | C94: 102 | D94: 560 | E94: 600 | F94: 1521 | G94: 1170 | H94: 1830 | I94: 1140 | J94: 998 | K94: 1060 | L94: 900 | M94: 500 | N94: 1400 | O94: 550 | P94: 500 | Q94: 679 | R94: 1546 | S94: 654 | T94: 2017-12-03
A95: H23 | B95: 640 | C95: 202 | D95: 760 | E95: 600 | F95: 1521 | G95: 1171 | H95: 1829 | I95: 1147 | J95: 998 | K95: 1053 | L95: 900 | M95: 500 | N95: 1400 | O95: 550 | P95: 500 | Q95: 679 | R95: 1546 | S95: 654 | T95: 2017-12-03
A96: H24 | B96: 640 | C96: 202 | D96: 760 | E96: 600 | F96: 1521 | G96: 1172 | H96: 1828 | I96: 1139 | J96: 998 | K96: 1061 | L96: 900 | M96: 140 | N96: 1400 | O96: 550 | P96: 500 | Q96: 829 | R96: 1546 | S96: 804 | T96: 2017-12-03
A97: H01 | B97: 495 | C97: 174 | D97: 505 | E97: 600 | F97: 1277 | G97: 1175 | H97: 1825 | I97: 1168 | J97: 926 | K97: 1032 | L97: 900 | M97: 0 | N97: 1400 | O97: 550 | P97: 500 | Q97: 923 | R97: 1364 | S97: 836 | U97: 4
A98: H02 | B98: 495 | C98: 174 | D98: 505 | E98: 600 | F98: 1377 | G98: 1175 | H98: 1825 | I98: 1165 | J98: 926 | K98: 1035 | L98: 900 | M98: 0 | N98: 1400 | O98: 550 | P98: 500 | Q98: 773 | R98: 1464 | S98: 686
A99: H03 | B99: 445 | C99: 174 | D99: 555 | E99: 600 | F99: 1337 | G99: 1175 | H99: 1825 | I99: 1164 | J99: 926 | K99: 1036 | L99: 900 | M99: 0 | N99: 1400 | O99: 550 | P99: 500 | Q99: 913 | R99: 1434 | S99: 816
A100: H04 | B100: 445 | C100: 174 | D100: 555 | E100: 600 | F100: 1237 | G100: 1174 | H100: 1826 | I100: 1164 | J100: 926 | K100: 1036 | L100: 900 | M100: 0 | N100: 1400 | O100: 550 | P100: 500 | Q100: 763 | R100: 1334 | S100: 666
A101: H05 | B101: 445 | C101: 174 | D101: 555 | E101: 600 | F101: 1337 | G101: 1175 | H101: 1825 | I101: 1166 | J101: 926 | K101: 1034 | L101: 900 | M101: 0 | N101: 1400 | O101: 550 | P101: 500 | Q101: 763 | R101: 1434 | S101: 666
A102: H06 | B102: 440 | C102: 174 | D102: 560 | E102: 600 | F102: 1347 | G102: 1170 | H102: 1830 | I102: 1169 | J102: 926 | K102: 1031 | L102: 900 | M102: 0 | N102: 1400 | O102: 550 | P102: 500 | Q102: 603 | R102: 1446 | S102: 504
A103: H07 | B103: 410 | C103: 174 | D103: 590 | E103: 600 | F103: 1127 | G103: 1168 | H103: 1832 | I103: 1185 | J103: 926 | K103: 1015 | L103: 900 | M103: 156 | N103: 504 | O103: 550 | P103: 500 | Q103: 373 | R103: 1146 | S103: 354
A104: H08 | B104: 410 | C104: 174 | D104: 590 | E104: 600 | F104: 1127 | G104: 1168 | H104: 1832 | I104: 1215 | J104: 926 | K104: 985 | L104: 900 | M104: 500 | N104: 157 | O104: 550 | P104: 500 | Q104: 523 | R104: 1146 | S104: 504
A105: H09 | B105: 410 | C105: 174 | D105: 590 | E105: 600 | F105: 1142 | G105: 1068 | H105: 1932 | I105: 1090 | J105: 926 | K105: 1110 | L105: 900 | M105: 500 | N105: 0 | O105: 550 | P105: 500 | Q105: 658 | R105: 1146 | S105: 654
A106: H10 | B106: 410 | C106: 174 | D106: 590 | E106: 600 | F106: 1142 | G106: 1068 | H106: 1932 | I106: 1090 | J106: 926 | K106: 1110 | L106: 900 | M106: 500 | N106: 0 | O106: 550 | P106: 500 | Q106: 658 | R106: 1146 | S106: 654
A107: H11 | B107: 410 | C107: 174 | D107: 590 | E107: 600 | F107: 1142 | G107: 1068 | H107: 1932 | I107: 1090 | J107: 926 | K107: 1110 | L107: 900 | M107: 500 | N107: 0 | O107: 550 | P107: 500 | Q107: 558 | R107: 1146 | S107: 554
A108: H12 | B108: 410 | C108: 174 | D108: 590 | E108: 600 | F108: 1142 | G108: 1067 | H108: 1933 | I108: 1090 | J108: 926 | K108: 1110 | L108: 900 | M108: 500 | N108: 0 | O108: 550 | P108: 500 | Q108: 658 | R108: 1146 | S108: 654
A109: H13 | B109: 410 | C109: 174 | D109: 590 | E109: 600 | F109: 1142 | G109: 1067 | H109: 1933 | I109: 1090 | J109: 926 | K109: 1110 | L109: 900 | M109: 500 | N109: 0 | O109: 550 | P109: 500 | Q109: 808 | R109: 1146 | S109: 804
A110: H14 | B110: 410 | C110: 174 | D110: 590 | E110: 600 | F110: 1142 | G110: 1167 | H110: 1833 | I110: 1190 | J110: 926 | K110: 1010 | L110: 900 | M110: 500 | N110: 0 | O110: 550 | P110: 500 | Q110: 758 | R110: 1146 | S110: 754
A111: H15 | B111: 410 | C111: 174 | D111: 590 | E111: 600 | F111: 1192 | G111: 1067 | H111: 1933 | I111: 1083 | J111: 926 | K111: 1117 | L111: 900 | M111: 500 | N111: 0 | O111: 550 | P111: 500 | Q111: 658 | R111: 1196 | S111: 654
A112: H16 | B112: 410 | C112: 174 | D112: 590 | E112: 600 | F112: 1342 | G112: 1067 | H112: 1933 | I112: 1082 | J112: 926 | K112: 1118 | L112: 900 | M112: 500 | N112: 0 | O112: 550 | P112: 500 | Q112: 658 | R112: 1346 | S112: 654
A113: H17 | B113: 410 | C113: 174 | D113: 590 | E113: 600 | F113: 1492 | G113: 1092 | H113: 1908 | I113: 1081 | J113: 926 | K113: 1119 | L113: 900 | M113: 500 | N113: 0 | O113: 550 | P113: 500 | Q113: 658 | R113: 1496 | S113: 654
A114: H18 | B114: 410 | C114: 174 | D114: 590 | E114: 600 | F114: 1142 | G114: 1083 | H114: 1917 | I114: 1090 | J114: 926 | K114: 1110 | L114: 900 | M114: 500 | N114: 0 | O114: 550 | P114: 500 | Q114: 658 | R114: 1146 | S114: 654
A115: H19 | B115: 410 | C115: 174 | D115: 590 | E115: 600 | F115: 1192 | G115: 1081 | H115: 1919 | I115: 1090 | J115: 926 | K115: 1110 | L115: 900 | M115: 500 | N115: 0 | O115: 550 | P115: 500 | Q115: 658 | R115: 1196 | S115: 654
A116: H20 | B116: 410 | C116: 174 | D116: 590 | E116: 600 | F116: 1292 | G116: 1067 | H116: 1933 | I116: 1090 | J116: 926 | K116: 1110 | L116: 900 | M116: 500 | N116: 0 | O116: 550 | P116: 500 | Q116: 658 | R116: 1296 | S116: 654
A117: H21 | B117: 440 | C117: 174 | D117: 560 | E117: 600 | F117: 1147 | G117: 1167 | H117: 1833 | I117: 1200 | J117: 926 | K117: 1000 | L117: 900 | M117: 500 | N117: 0 | O117: 550 | P117: 500 | Q117: 903 | R117: 1246 | S117: 804
A118: H22 | B118: 540 | C118: 274 | D118: 660 | E118: 600 | F118: 1197 | G118: 1167 | H118: 1833 | I118: 1200 | J118: 926 | K118: 1000 | L118: 900 | M118: 500 | N118: 702 | O118: 550 | P118: 500 | Q118: 903 | R118: 1296 | S118: 804
A119: H23 | B119: 540 | C119: 274 | D119: 660 | E119: 600 | F119: 1047 | G119: 1170 | H119: 1830 | I119: 1209 | J119: 926 | K119: 991 | L119: 900 | M119: 500 | N119: 1400 | O119: 550 | P119: 500 | Q119: 953 | R119: 1146 | S119: 854
A120: H24 | B120: 590 | C120: 274 | D120: 610 | E120: 600 | F120: 1087 | G120: 1172 | H120: 1828 | I120: 1190 | J120: 926 | K120: 1010 | L120: 900 | M120: 500 | N120: 1400 | O120: 550 | P120: 500 | Q120: 963 | R120: 1176 | S120: 874
A121: H01 | B121: 575 | C121: 274 | D121: 625 | E121: 600 | F121: 1507 | G121: 1181 | H121: 1819 | I121: 1273 | J121: 926 | K121: 927 | L121: 900 | M121: 0 | N121: 1400 | O121: 550 | P121: 500 | Q121: 1193 | R121: 1509 | S121: 1191 | U121: 5
A122: H02 | B122: 575 | C122: 274 | D122: 625 | E122: 600 | F122: 1507 | G122: 1184 | H122: 1816 | I122: 1273 | J122: 926 | K122: 927 | L122: 900 | M122: 0 | N122: 1400 | O122: 550 | P122: 500 | Q122: 943 | R122: 1509 | S122: 941
A123: H03 | B123: 525 | C123: 274 | D123: 675 | E123: 600 | F123: 1517 | G123: 1186 | H123: 1814 | I123: 1273 | J123: 926 | K123: 927 | L123: 900 | M123: 0 | N123: 1400 | O123: 550 | P123: 500 | Q123: 983 | R123: 1529 | S123: 971
A124: H04 | B124: 525 | C124: 274 | D124: 675 | E124: 600 | F124: 1517 | G124: 1186 | H124: 1814 | I124: 1273 | J124: 926 | K124: 927 | L124: 900 | M124: 0 | N124: 1400 | O124: 550 | P124: 500 | Q124: 1083 | R124: 1529 | S124: 1071
A125: H05 | B125: 525 | C125: 274 | D125: 675 | E125: 600 | F125: 1517 | G125: 1187 | H125: 1813 | I125: 1273 | J125: 926 | K125: 927 | L125: 900 | M125: 0 | N125: 1400 | O125: 550 | P125: 500 | Q125: 1033 | R125: 1529 | S125: 1021
A126: H06 | B126: 520 | C126: 274 | D126: 680 | E126: 600 | F126: 1527 | G126: 1178 | H126: 1822 | I126: 1273 | J126: 926 | K126: 927 | L126: 900 | M126: 103 | N126: 1400 | O126: 550 | P126: 500 | Q126: 773 | R126: 1541 | S126: 759
A127: H07 | B127: 410 | C127: 174 | D127: 590 | E127: 600 | F127: 1527 | G127: 1168 | H127: 1832 | I127: 1189 | J127: 926 | K127: 1011 | L127: 900 | M127: 293 | N127: 548 | O127: 550 | P127: 500 | Q127: 973 | R127: 1546 | S127: 954
A128: H08 | B128: 410 | C128: 174 | D128: 590 | E128: 600 | F128: 1527 | G128: 1168 | H128: 1832 | I128: 1121 | J128: 926 | K128: 1079 | L128: 900 | M128: 500 | N128: 632 | O128: 550 | P128: 500 | Q128: 573 | R128: 1546 | S128: 554
A129: H09 | B129: 410 | C129: 174 | D129: 590 | E129: 600 | F129: 1392 | G129: 1068 | H129: 1932 | I129: 995 | J129: 926 | K129: 1205 | L129: 900 | M129: 500 | N129: 608 | O129: 550 | P129: 500 | Q129: 558 | R129: 1396 | S129: 554
A130: H10 | B130: 410 | C130: 174 | D130: 590 | E130: 600 | F130: 1542 | G130: 1068 | H130: 1932 | I130: 995 | J130: 926 | K130: 1205 | L130: 900 | M130: 500 | N130: 634 | O130: 550 | P130: 500 | Q130: 558 | R130: 1546 | S130: 554
A131: H11 | B131: 410 | C131: 174 | D131: 590 | E131: 600 | F131: 1542 | G131: 1068 | H131: 1932 | I131: 995 | J131: 926 | K131: 1205 | L131: 900 | M131: 500 | N131: 727 | O131: 550 | P131: 500 | Q131: 558 | R131: 1546 | S131: 554
A132: H12 | B132: 410 | C132: 174 | D132: 590 | E132: 600 | F132: 1242 | G132: 1067 | H132: 1933 | I132: 995 | J132: 926 | K132: 1205 | L132: 900 | M132: 500 | N132: 813 | O132: 550 | P132: 500 | Q132: 558 | R132: 1246 | S132: 554
A133: H13 | B133: 410 | C133: 174 | D133: 590 | E133: 600 | F133: 1192 | G133: 1067 | H133: 1933 | I133: 995 | J133: 926 | K133: 1205 | L133: 900 | M133: 500 | N133: 1092 | O133: 550 | P133: 500 | Q133: 558 | R133: 1196 | S133: 554
A134: H14 | B134: 410 | C134: 174 | D134: 590 | E134: 600 | F134: 1142 | G134: 1167 | H134: 1833 | I134: 1093 | J134: 926 | K134: 1107 | L134: 900 | M134: 500 | N134: 1198 | O134: 550 | P134: 500 | Q134: 558 | R134: 1146 | S134: 554
A135: H15 | B135: 410 | C135: 174 | D135: 590 | E135: 600 | F135: 1142 | G135: 1067 | H135: 1933 | I135: 988 | J135: 926 | K135: 1212 | L135: 900 | M135: 500 | N135: 1255 | O135: 550 | P135: 500 | Q135: 558 | R135: 1146 | S135: 554
A136: H16 | B136: 410 | C136: 174 | D136: 590 | E136: 600 | F136: 1142 | G136: 1067 | H136: 1933 | I136: 988 | J136: 926 | K136: 1212 | L136: 900 | M136: 500 | N136: 1313 | O136: 550 | P136: 500 | Q136: 558 | R136: 1146 | S136: 554
A137: H17 | B137: 410 | C137: 174 | D137: 590 | E137: 600 | F137: 1192 | G137: 1090 | H137: 1910 | I137: 985 | J137: 926 | K137: 1215 | L137: 900 | M137: 500 | N137: 1302 | O137: 550 | P137: 500 | Q137: 558 | R137: 1196 | S137: 554
A138: H18 | B138: 410 | C138: 174 | D138: 590 | E138: 600 | F138: 1392 | G138: 1081 | H138: 1919 | I138: 995 | J138: 926 | K138: 1205 | L138: 900 | M138: 500 | N138: 1400 | O138: 550 | P138: 500 | Q138: 558 | R138: 1396 | S138: 554
A139: H19 | B139: 410 | C139: 174 | D139: 590 | E139: 600 | F139: 1142 | G139: 1078 | H139: 1922 | I139: 995 | J139: 926 | K139: 1205 | L139: 900 | M139: 500 | N139: 1400 | O139: 550 | P139: 500 | Q139: 558 | R139: 1146 | S139: 554
A140: H20 | B140: 410 | C140: 174 | D140: 590 | E140: 600 | F140: 1142 | G140: 1067 | H140: 1933 | I140: 995 | J140: 926 | K140: 1205 | L140: 900 | M140: 447 | N140: 1367 | O140: 550 | P140: 500 | Q140: 558 | R140: 1146 | S140: 554
A141: H21 | B141: 460 | C141: 224 | D141: 640 | E141: 600 | F141: 1127 | G141: 1167 | H141: 1833 | I141: 1105 | J141: 926 | K141: 1095 | L141: 900 | M141: 269 | N141: 1400 | O141: 550 | P141: 500 | Q141: 823 | R141: 1146 | S141: 804
A142: H22 | B142: 470 | C142: 224 | D142: 630 | E142: 600 | F142: 1127 | G142: 1167 | H142: 1833 | I142: 1105 | J142: 926 | K142: 1095 | L142: 900 | M142: 24 | N142: 1400 | O142: 550 | P142: 500 | Q142: 773 | R142: 1141 | S142: 759
A143: H23 | B143: 470 | C143: 224 | D143: 630 | E143: 600 | F143: 1127 | G143: 1170 | H143: 1830 | I143: 1211 | J143: 926 | K143: 989 | L143: 900 | M143: 0 | N143: 1400 | O143: 550 | P143: 500 | Q143: 823 | R143: 1141 | S143: 809
A144: H24 | B144: 520 | C144: 224 | D144: 580 | E144: 600 | F144: 1117 | G144: 1175 | H144: 1825 | I144: 1195 | J144: 926 | K144: 1005 | L144: 900 | M144: 0 | N144: 1400 | O144: 550 | P144: 500 | Q144: 833 | R144: 1121 | S144: 829
A145: H01 | B145: 415 | C145: 52 | D145: 585 | E145: 600 | F145: 1187 | G145: 1093 | H145: 1907 | I145: 1207 | J145: 998 | K145: 993 | L145: 900 | M145: 0 | N145: 1400 | O145: 550 | P145: 500 | Q145: 813 | R145: 1286 | S145: 714 | U145: 6
A146: H02 | B146: 415 | C146: 52 | D146: 585 | E146: 600 | F146: 1337 | G146: 1093 | H146: 1907 | I146: 1204 | J146: 998 | K146: 996 | L146: 900 | M146: 0 | N146: 1400 | O146: 550 | P146: 500 | Q146: 663 | R146: 1436 | S146: 564
A147: H03 | B147: 415 | C147: 52 | D147: 585 | E147: 600 | F147: 1487 | G147: 1103 | H147: 1897 | I147: 1202 | J147: 998 | K147: 998 | L147: 900 | M147: 0 | N147: 1400 | O147: 550 | P147: 500 | Q147: 663 | R147: 1586 | S147: 564
A148: H04 | B148: 415 | C148: 52 | D148: 585 | E148: 600 | F148: 1537 | G148: 1103 | H148: 1897 | I148: 1202 | J148: 998 | K148: 998 | L148: 900 | M148: 0 | N148: 1400 | O148: 550 | P148: 500 | Q148: 663 | R148: 1636 | S148: 564
A149: H05 | B149: 415 | C149: 52 | D149: 585 | E149: 600 | F149: 1537 | G149: 1103 | H149: 1897 | I149: 1202 | J149: 998 | K149: 998 | L149: 900 | M149: 0 | N149: 1400 | O149: 550 | P149: 500 | Q149: 663 | R149: 1636 | S149: 564
A150: H06 | B150: 415 | C150: 52 | D150: 585 | E150: 600 | F150: 1537 | G150: 1103 | H150: 1897 | I150: 1210 | J150: 998 | K150: 990 | L150: 900 | M150: 0 | N150: 1400 | O150: 550 | P150: 500 | Q150: 663 | R150: 1636 | S150: 564
A151: H07 | B151: 295 | C151: 52 | D151: 705 | E151: 600 | F151: 1237 | G151: 1103 | H151: 1897 | I151: 1097 | J151: 998 | K151: 1103 | L151: 900 | M151: 125 | N151: 503 | O151: 550 | P151: 500 | Q151: 363 | R151: 1236 | S151: 364
A152: H08 | B152: 295 | C152: 52 | D152: 705 | E152: 600 | F152: 1537 | G152: 1103 | H152: 1897 | I152: 1097 | J152: 998 | K152: 1103 | L152: 900 | M152: 308 | N152: 504 | O152: 550 | P152: 500 | Q152: 463 | R152: 1536 | S152: 464
A153: H09 | B153: 295 | C153: 52 | D153: 705 | E153: 600 | F153: 1652 | G153: 1213 | H153: 1787 | I153: 1190 | J153: 998 | K153: 1010 | L153: 900 | M153: 500 | N153: 662 | O153: 550 | P153: 500 | Q153: 448 | R153: 1636 | S153: 464
A154: H10 | B154: 295 | C154: 52 | D154: 705 | E154: 600 | F154: 1652 | G154: 1203 | H154: 1797 | I154: 1190 | J154: 998 | K154: 1010 | L154: 900 | M154: 500 | N154: 1400 | O154: 550 | P154: 500 | Q154: 448 | R154: 1636 | S154: 464
A155: H11 | B155: 295 | C155: 52 | D155: 705 | E155: 600 | F155: 1652 | G155: 1203 | H155: 1797 | I155: 1190 | J155: 998 | K155: 1010 | L155: 900 | M155: 500 | N155: 1400 | O155: 550 | P155: 500 | Q155: 398 | R155: 1636 | S155: 414
A156: H12 | B156: 295 | C156: 52 | D156: 705 | E156: 600 | F156: 1652 | G156: 1203 | H156: 1797 | I156: 1190 | J156: 998 | K156: 1010 | L156: 900 | M156: 500 | N156: 1400 | O156: 550 | P156: 500 | Q156: 398 | R156: 1636 | S156: 414
A157: H13 | B157: 295 | C157: 52 | D157: 705 | E157: 600 | F157: 1652 | G157: 1203 | H157: 1797 | I157: 1190 | J157: 998 | K157: 1010 | L157: 900 | M157: 500 | N157: 1400 | O157: 550 | P157: 500 | Q157: 448 | R157: 1636 | S157: 464
A158: H14 | B158: 295 | C158: 52 | D158: 705 | E158: 600 | F158: 1652 | G158: 1203 | H158: 1797 | I158: 1190 | J158: 998 | K158: 1010 | L158: 900 | M158: 500 | N158: 1400 | O158: 550 | P158: 500 | Q158: 448 | R158: 1636 | S158: 464
A159: H15 | B159: 295 | C159: 52 | D159: 705 | E159: 600 | F159: 1652 | G159: 1213 | H159: 1787 | I159: 1190 | J159: 998 | K159: 1010 | L159: 900 | M159: 500 | N159: 1400 | O159: 550 | P159: 500 | Q159: 448 | R159: 1636 | S159: 464
A160: H16 | B160: 295 | C160: 52 | D160: 705 | E160: 600 | F160: 1652 | G160: 1213 | H160: 1787 | I160: 1190 | J160: 998 | K160: 1010 | L160: 900 | M160: 500 | N160: 1400 | O160: 550 | P160: 500 | Q160: 448 | R160: 1636 | S160: 464
A161: H17 | B161: 295 | C161: 52 | D161: 705 | E161: 600 | F161: 1652 | G161: 1213 | H161: 1787 | I161: 1179 | J161: 998 | K161: 1021 | L161: 900 | M161: 500 | N161: 1400 | O161: 550 | P161: 500 | Q161: 448 | R161: 1636 | S161: 464
A162: H18 | B162: 295 | C162: 52 | D162: 705 | E162: 600 | F162: 1652 | G162: 1213 | H162: 1787 | I162: 1190 | J162: 998 | K162: 1010 | L162: 900 | M162: 500 | N162: 1400 | O162: 550 | P162: 500 | Q162: 448 | R162: 1636 | S162: 464
A163: H19 | B163: 295 | C163: 52 | D163: 705 | E163: 600 | F163: 1652 | G163: 1213 | H163: 1787 | I163: 1190 | J163: 998 | K163: 1010 | L163: 900 | M163: 500 | N163: 1400 | O163: 550 | P163: 500 | Q163: 448 | R163: 1636 | S163: 464
A164: H20 | B164: 295 | C164: 52 | D164: 705 | E164: 600 | F164: 1652 | G164: 1203 | H164: 1797 | I164: 1190 | J164: 998 | K164: 1010 | L164: 900 | M164: 500 | N164: 1400 | O164: 550 | P164: 500 | Q164: 448 | R164: 1636 | S164: 464
A165: H21 | B165: 295 | C165: 52 | D165: 705 | E165: 600 | F165: 1637 | G165: 1088 | H165: 1912 | I165: 1090 | J165: 998 | K165: 1110 | L165: 900 | M165: 500 | N165: 1400 | O165: 550 | P165: 500 | Q165: 463 | R165: 1636 | S165: 464
A166: H22 | B166: 295 | C166: 52 | D166: 705 | E166: 600 | F166: 1637 | G166: 1088 | H166: 1912 | I166: 1090 | J166: 998 | K166: 1110 | L166: 900 | M166: 500 | N166: 1400 | O166: 550 | P166: 500 | Q166: 463 | R166: 1636 | S166: 464
A167: H23 | B167: 295 | C167: 52 | D167: 705 | E167: 600 | F167: 1637 | G167: 1078 | H167: 1922 | I167: 1117 | J167: 998 | K167: 1083 | L167: 900 | M167: 128 | N167: 1400 | O167: 550 | P167: 500 | Q167: 663 | R167: 1636 | S167: 664
A168: H24 | B168: 295 | C168: 52 | D168: 705 | E168: 600 | F168: 1637 | G168: 1078 | H168: 1922 | I168: 1102 | J168: 998 | K168: 1098 | L168: 900 | M168: 0 | N168: 1400 | O168: 550 | P168: 500 | Q168: 713 | R168: 1636 | S168: 714
A169: H01 | B169: 395 | C169: 124 | D169: 605 | E169: 600 | F169: 1617 | G169: 1223 | H169: 1777 | I169: 1306 | J169: 926 | K169: 894 | L169: 900 | M169: 0 | N169: 1400 | O169: 550 | P169: 500 | Q169: 1033 | R169: 1631 | S169: 1019 | U169: 7
A170: H02 | B170: 395 | C170: 124 | D170: 605 | E170: 600 | F170: 1617 | G170: 1223 | H170: 1777 | I170: 1303 | J170: 926 | K170: 897 | L170: 900 | M170: 0 | N170: 1400 | O170: 550 | P170: 500 | Q170: 933 | R170: 1631 | S170: 919
A171: H03 | B171: 395 | C171: 124 | D171: 605 | E171: 600 | F171: 1617 | G171: 1223 | H171: 1777 | I171: 1302 | J171: 926 | K171: 898 | L171: 900 | M171: 0 | N171: 1400 | O171: 550 | P171: 500 | Q171: 983 | R171: 1631 | S171: 969
A172: H04 | B172: 395 | C172: 124 | D172: 605 | E172: 600 | F172: 1617 | G172: 1223 | H172: 1777 | I172: 1302 | J172: 926 | K172: 898 | L172: 900 | M172: 0 | N172: 1400 | O172: 550 | P172: 500 | Q172: 883 | R172: 1631 | S172: 869
A173: H05 | B173: 395 | C173: 124 | D173: 605 | E173: 600 | F173: 1617 | G173: 1223 | H173: 1777 | I173: 1302 | J173: 926 | K173: 898 | L173: 900 | M173: 0 | N173: 1400 | O173: 550 | P173: 500 | Q173: 683 | R173: 1631 | S173: 669
A174: H06 | B174: 395 | C174: 124 | D174: 605 | E174: 600 | F174: 1617 | G174: 1223 | H174: 1777 | I174: 1308 | J174: 926 | K174: 892 | L174: 900 | M174: 0 | N174: 1400 | O174: 550 | P174: 500 | Q174: 483 | R174: 1631 | S174: 469
A175: H07 | B175: 385 | C175: 124 | D175: 615 | E175: 600 | F175: 1617 | G175: 1223 | H175: 1777 | I175: 1187 | J175: 926 | K175: 1013 | L175: 900 | M175: 214 | N175: 525 | O175: 550 | P175: 500 | Q175: 483 | R175: 1636 | S175: 464
A176: H08 | B176: 385 | C176: 124 | D176: 615 | E176: 600 | F176: 1617 | G176: 1223 | H176: 1777 | I176: 1207 | J176: 926 | K176: 993 | L176: 900 | M176: 500 | N176: 525 | O176: 550 | P176: 500 | Q176: 433 | R176: 1636 | S176: 414
A177: H09 | B177: 385 | C177: 124 | D177: 615 | E177: 600 | F177: 1632 | G177: 1223 | H177: 1777 | I177: 1190 | J177: 926 | K177: 1010 | L177: 900 | M177: 500 | N177: 572 | O177: 550 | P177: 500 | Q177: 468 | R177: 1636 | S177: 464
A178: H10 | B178: 385 | C178: 124 | D178: 615 | E178: 600 | F178: 1632 | G178: 1223 | H178: 1777 | I178: 1190 | J178: 926 | K178: 1010 | L178: 900 | M178: 500 | N178: 921 | O178: 550 | P178: 500 | Q178: 418 | R178: 1636 | S178: 414
A179: H11 | B179: 385 | C179: 124 | D179: 615 | E179: 600 | F179: 1632 | G179: 1223 | H179: 1777 | I179: 1190 | J179: 926 | K179: 1010 | L179: 900 | M179: 500 | N179: 920 | O179: 550 | P179: 500 | Q179: 368 | R179: 1636 | S179: 364
A180: H12 | B180: 385 | C180: 124 | D180: 615 | E180: 600 | F180: 1632 | G180: 1223 | H180: 1777 | I180: 1190 | J180: 926 | K180: 1010 | L180: 900 | M180: 500 | N180: 824 | O180: 550 | P180: 500 | Q180: 268 | R180: 1636 | S180: 264
A181: H13 | B181: 385 | C181: 124 | D181: 615 | E181: 600 | F181: 1632 | G181: 1223 | H181: 1777 | I181: 1188 | J181: 926 | K181: 1012 | L181: 900 | M181: 500 | N181: 837 | O181: 550 | P181: 500 | Q181: 268 | R181: 1636 | S181: 264
A182: H14 | B182: 385 | C182: 124 | D182: 615 | E182: 600 | F182: 1632 | G182: 1223 | H182: 1777 | I182: 1186 | J182: 926 | K182: 1014 | L182: 900 | M182: 500 | N182: 788 | O182: 550 | P182: 500 | Q182: 268 | R182: 1636 | S182: 264
A183: H15 | B183: 385 | C183: 124 | D183: 615 | E183: 600 | F183: 1632 | G183: 1223 | H183: 1777 | I183: 1177 | J183: 926 | K183: 1023 | L183: 900 | M183: 500 | N183: 839 | O183: 550 | P183: 500 | Q183: 268 | R183: 1636 | S183: 264
A184: H16 | B184: 385 | C184: 124 | D184: 615 | E184: 600 | F184: 1632 | G184: 1223 | H184: 1777 | I184: 1176 | J184: 926 | K184: 1024 | L184: 900 | M184: 500 | N184: 695 | O184: 550 | P184: 500 | Q184: 418 | R184: 1636 | S184: 414
A185: H17 | B185: 385 | C185: 124 | D185: 615 | E185: 600 | F185: 1632 | G185: 1223 | H185: 1777 | I185: 1182 | J185: 926 | K185: 1018 | L185: 900 | M185: 500 | N185: 687 | O185: 550 | P185: 500 | Q185: 418 | R185: 1636 | S185: 414
A186: H18 | B186: 385 | C186: 124 | D186: 615 | E186: 600 | F186: 1332 | G186: 1223 | H186: 1777 | I186: 1190 | J186: 926 | K186: 1010 | L186: 900 | M186: 500 | N186: 693 | O186: 550 | P186: 500 | Q186: 418 | R186: 1336 | S186: 414
A187: H19 | B187: 385 | C187: 124 | D187: 615 | E187: 600 | F187: 1332 | G187: 1223 | H187: 1777 | I187: 1190 | J187: 926 | K187: 1010 | L187: 900 | M187: 500 | N187: 956 | O187: 550 | P187: 500 | Q187: 418 | R187: 1336 | S187: 414
A188: H20 | B188: 385 | C188: 124 | D188: 615 | E188: 600 | F188: 1232 | G188: 1223 | H188: 1777 | I188: 1190 | J188: 926 | K188: 1010 | L188: 900 | M188: 500 | N188: 1140 | O188: 550 | P188: 500 | Q188: 418 | R188: 1236 | S188: 414
A189: H21 | B189: 385 | C189: 124 | D189: 615 | E189: 600 | F189: 1317 | G189: 1223 | H189: 1777 | I189: 1190 | J189: 926 | K189: 1010 | L189: 900 | M189: 500 | N189: 1400 | O189: 550 | P189: 500 | Q189: 283 | R189: 1336 | S189: 264
A190: H22 | B190: 385 | C190: 124 | D190: 615 | E190: 600 | F190: 1367 | G190: 1223 | H190: 1777 | I190: 1190 | J190: 926 | K190: 1010 | L190: 900 | M190: 473 | N190: 1400 | O190: 550 | P190: 500 | Q190: 383 | R190: 1386 | S190: 364
A191: H23 | B191: 385 | C191: 124 | D191: 615 | E191: 600 | F191: 1367 | G191: 1223 | H191: 1777 | I191: 1237 | J191: 926 | K191: 963 | L191: 900 | M191: 0 | N191: 1400 | O191: 550 | P191: 500 | Q191: 283 | R191: 1386 | S191: 264
A192: H24 | B192: 385 | C192: 124 | D192: 615 | E192: 600 | F192: 1467 | G192: 1223 | H192: 1777 | I192: 1235 | J192: 926 | K192: 965 | L192: 900 | M192: 0 | N192: 1400 | O192: 550 | P192: 500 | Q192: 283 | R192: 1486 | S192: 264
A193: H01 | B193: 295 | C193: 2 | D193: 655 | E193: 600 | F193: 1627 | G193: 1132 | H193: 1868 | I193: 1205 | J193: 998 | K193: 995 | L193: 900 | M193: 0 | N193: 1400 | O193: 550 | P193: 500 | Q193: 723 | R193: 1616 | S193: 734 | U193: 8
A194: H02 | B194: 295 | C194: 2 | D194: 655 | E194: 600 | F194: 1627 | G194: 1132 | H194: 1868 | I194: 1202 | J194: 998 | K194: 998 | L194: 900 | M194: 0 | N194: 1400 | O194: 550 | P194: 500 | Q194: 773 | R194: 1616 | S194: 784
A195: H03 | B195: 295 | C195: 2 | D195: 655 | E195: 600 | F195: 1627 | G195: 1132 | H195: 1868 | I195: 1201 | J195: 998 | K195: 999 | L195: 900 | M195: 0 | N195: 1400 | O195: 550 | P195: 500 | Q195: 873 | R195: 1616 | S195: 884
A196: H04 | B196: 295 | C196: 2 | D196: 655 | E196: 600 | F196: 1627 | G196: 1132 | H196: 1868 | I196: 1201 | J196: 998 | K196: 999 | L196: 900 | M196: 0 | N196: 1400 | O196: 550 | P196: 500 | Q196: 923 | R196: 1616 | S196: 934
A197: H05 | B197: 295 | C197: 2 | D197: 655 | E197: 600 | F197: 1627 | G197: 1132 | H197: 1868 | I197: 1201 | J197: 998 | K197: 999 | L197: 900 | M197: 0 | N197: 1400 | O197: 550 | P197: 500 | Q197: 973 | R197: 1616 | S197: 984
A198: H06 | B198: 245 | C198: 2 | D198: 705 | E198: 600 | F198: 1637 | G198: 1132 | H198: 1868 | I198: 1207 | J198: 998 | K198: 993 | L198: 900 | M198: 0 | N198: 1400 | O198: 550 | P198: 500 | Q198: 1013 | R198: 1636 | S198: 1014
A199: H07 | B199: 245 | C199: 2 | D199: 705 | E199: 600 | F199: 1637 | G199: 1133 | H199: 1867 | I199: 1200 | J199: 998 | K199: 1000 | L199: 900 | M199: 206 | N199: 572 | O199: 550 | P199: 500 | Q199: 913 | R199: 1636 | S199: 914
A200: H08 | B200: 245 | C200: 2 | D200: 705 | E200: 600 | F200: 1637 | G200: 1133 | H200: 1867 | I200: 1127 | J200: 998 | K200: 1073 | L200: 900 | M200: 500 | N200: 630 | O200: 550 | P200: 500 | Q200: 963 | R200: 1636 | S200: 964
... 568 more rows

Sheet měsíční aukce
A1: Year | B1: Month | C1: Day | D1: AuctionId | E1: Border | F1: Days | G1: TimeTable | H1: OfferedCapacity | I1: Resale | J1: ATC | K1: Total requested capacity | L1: Price | M1: Total allocated capacity | N1: Number of participants | O1: Awarded participants
A2: 2017 | B2: 12 | C2: 2017-12-01 | D2: CEEXD-M-BASE-------171201-01 | E2: AT-CZ | F2: 2017/12/01 - 2018/01/01 | G2: Every day 00:00-24:00 | H2: 150 | J2: 150 | K2: 1414 | L2: 2.06 | M2: 150 | N2: 22 | O2: 7 | P2: =E2 -> AT-CZ | Q2: =L2 -> 2.06 | R2: =E2 -> AT-CZ | S2: =M2 -> 150
A3: 2017 | B3: 12 | C3: 2017-12-01 | D3: CEEXD-M-BASE-------171201-01 | E3: CZ-AT | F3: 2017/12/01 - 2018/01/01 | G3: Every day 00:00-24:00 | H3: 150 | J3: 150 | K3: 1276 | L3: 0.18 | M3: 150 | N3: 17 | O3: 10 | P3: =E3 -> CZ-AT | Q3: =L3 -> 0.18 | R3: =E3 -> CZ-AT | S3: =M3 -> 150
A4: 2017 | B4: 12 | C4: 2017-12-01 | D4: CEEXD-M-BASE-------171201-01 | E4: CZ-PL | F4: 2017/12/01 - 2018/01/01 | G4: Every day 00:00-24:00 | H4: For Offered Capacity see respective constraints | I4: For Offered Capacity see respective constraints | J4: For Offered Capacity see respective constraints | M4: 0 | P4: CZ-PL | R4: CZ-PL | S4: 0
A5: 2017 | B5: 12 | C5: 2017-12-01 | D5: CEEXD-M-BASE-------171201-01 | E5: PL-CZ | F5: 2017/12/01 - 2018/01/01 | G5: Every day 00:00-24:00 | H5: For Offered Capacity see respective constraints | I5: For Offered Capacity see respective constraints | J5: For Offered Capacity see respective constraints | M5: 0 | P5: PL-CZ | R5: PL-CZ | S5: 0
A6: 2017 | B6: 12 | C6: 2017-12-01 | D6: CEEXD-M-BASE-------171201-01 | E6: PL-SK | F6: 2017/12/01 - 2018/01/01 | G6: Every day 00:00-24:00 | H6: For Offered Capacity see respective constraints | I6: For Offered Capacity see respective constraints | J6: For Offered Capacity see respective constraints | M6: 0 | P6: PL-SK | R6: PL-SK | S6: 0
A7: 2017 | B7: 12 | C7: 2017-12-01 | D7: CEEXD-M-BASE-------171201-01 | E7: SK-PL | F7: 2017/12/01 - 2018/01/01 | G7: Every day 00:00-24:00 | H7: For Offered Capacity see respective constraints | I7: For Offered Capacity see respective constraints | J7: For Offered Capacity see respective constraints | M7: 0 | P7: SK-PL | R7: SK-PL | S7: 0
A8: 2017 | B8: 12 | C8: 2017-12-01 | D8: CEEXD-M-BASE-------171201-01 | E8: DE(50Hz)-CZ | F8: 2017/12/01 - 2018/01/01 | G8: Every day 00:00-24:00 | H8: For Offered Capacity see respective constraints | I8: For Offered Capacity see respective constraints | J8: For Offered Capacity see respective constraints | K8: 972 | L8: 2.2 | M8: 102 | N8: 18 | O8: 7 | P8: DE(50Hz)-CZ | Q8: 2.2 | R8: DE(50Hz)-CZ | S8: 102
A9: 2017 | B9: 12 | C9: 2017-12-01 | D9: CEEXD-M-BASE-------171201-01 | E9: DE(TenneT)-CZ | F9: 2017/12/01 - 2018/01/01 | G9: Every day 00:00-24:00 | H9: 100 | J9: 100 | K9: 1072 | L9: 2.2 | M9: 98 | N9: 19 | O9: 6 | P9: DE(TenneT)-CZ | Q9: 2.2 | R9: DE(TenneT)-CZ | S9: 98
A10: 2017 | B10: 12 | C10: 2017-12-01 | D10: CEEXD-M-BASE-------171201-01 | E10: CZ-DE(50Hz) | F10: 2017/12/01 - 2018/01/01 | G10: Every day 00:00-24:00 | H10: For Offered Capacity see respective constraints | I10: For Offered Capacity see respective constraints | J10: For Offered Capacity see respective constraints | K10: 2630 | L10: 0.13 | M10: 400 | N10: 13 | O10: 9 | P10: CZ-DE(50Hz) | Q10: 0.13 | R10: CZ-DE(50Hz) | S10: 400
A11: 2017 | B11: 12 | C11: 2017-12-01 | D11: CEEXD-M-BASE-------171201-01 | E11: CZ-DE(TenneT) | F11: 2017/12/01 - 2018/01/01 | G11: Every day 00:00-24:00 | H11: 400 | J11: 400 | K11: 2655 | L11: 0.13 | M11: 400 | N11: 14 | O11: 8 | P11: CZ-DE(TenneT) | Q11: 0.13 | R11: CZ-DE(TenneT) | S11: 400
P12: 0 | Q12: 0 | R12: 0 | S12: 0
P13: 0 | Q13: 0 | R13: 0 | S13: 0
P14: 0 | Q14: 0 | R14: 0 | S14: 0
P15: 0 | Q15: 0 | R15: 0 | S15: 0
P16: 0 | Q16: 0 | R16: 0 | S16: 0
P17: 0 | Q17: 0 | R17: 0 | S17: 0
A22: PL-CZ | B22: PL-DE(50Hz) | C22: DE(50Hz)-PL | D22: CZ-PL | E22: PL-SK | F22: SK-PL | G22: HR-SI | H22: HU-AT | I22: CZ-DE(TenneT) | J22: AT-CZ | K22: AT-HU | L22: CZ-AT | M22: DE(50Hz)-CZ | N22: HR-HU | O22: CZ-DE(50Hz) | P22: DE(TenneT)-CZ | Q22: SI-HR | R22: HU-HR
A23: PSE>CEPS Monthly Auction Price | B23: PSE>50Hz Monthly Auction Price | C23: 50Hz>PSE Monthly Auction Price | D23: CEPS>PSE Monthly Auction Price | E23: PSE>SEPS Monthly Auction Price | F23: SEPS>PSE Monthly Auction Price | G23: HOPS>ELESE Monthly Auction Price | H23: MAVIR>APG Monthly Auction Price | I23: CEPS>EON Monthly Auction Price | J23: APG>CEPS Monthly Auction Price | K23: APG>MAVIR Monthly Auction Price | L23: CEPS>APG Monthly Auction Price | M23: 50Hz>CEPS Monthly Auction Price | N23: HOPS>MAVIR Monthly Auction Price | O23: CEPS-50Hz Monthly Auction Price | P23: EON>CEPS Monthly Auction Price | Q23: ELES>HOPS Monthly Auction Price | R23: MAVIR>HOPS Monthly Auction Price
A24: =IFERROR(VLOOKUP(A22,$P$2:$Q$17,2,0),"") ->  | B24: =IFERROR(VLOOKUP(B22,$P$2:$Q$17,2,0),"") ->  | C24: =IFERROR(VLOOKUP(C22,$P$2:$Q$17,2,0),"") ->  | I24: 0.13 | J24: 2.06 | L24: 0.18 | M24: 2.2 | O24: 0.13 | P24: 2.2
A25: PL-CZ | B25: PL-DE(50Hz) | C25: DE(50Hz)-PL | D25: CZ-PL | E25: PL-SK | F25: SK-PL | G25: HR-SI | H25: HU-AT | I25: CZ-DE(TenneT) | J25: AT-CZ | K25: AT-HU | L25: CZ-AT | M25: DE(50Hz)-CZ | N25: HR-HU | O25: CZ-DE(50Hz) | P25: DE(TenneT)-CZ | Q25: SI-HR | R25: HU-HR
A26: AC | B26: AC | C26: AC | D26: AC | E26: AC | F26: AC | G26: AC | H26: AC | I26: AC | J26: AC | K26: AC | L26: AC | M26: AC | N26: AC | O26: AC | P26: AC | Q26: AC | R26: AC
A27: =IFERROR(VLOOKUP(A22,$R$2:$S$17,2,0),0) -> 0 | B27: =IFERROR(VLOOKUP(B22,$R$2:$S$17,2,0),0) -> 0 | C27: 0 | D27: 0 | E27: 0 | F27: 0 | G27: 0 | H27: 0 | I27: 400 | J27: 150 | K27: 0 | L27: 150 | M27: 102 | N27: 0 | O27: 400 | P27: 98 | Q27: 0 | R27: 0

Sheet roční aukce
A1: Year | B1: Month | C1: Day | D1: AuctionId | E1: Border | F1: Days | G1: TimeTable | H1: OfferedCapacity | I1: Resale | J1: ATC | K1: Total requested capacity | L1: Price | M1: Total allocated capacity | N1: Number of participants | O1: Awarded participants
A2: 2017 | B2: 1 | C2: 2017-01-01 | D2: CEEXD-Y-BASE-------170101-01 | E2: HU-HR | F2: 2017/01/01 - 2018/01/01 | G2: Every day 00:00-24:00 | H2: 700 | J2: 700 | K2: 5412 | L2: 0.25 | M2: 698 | N2: 23 | O2: 7 | P2: =E2 -> HU-HR | Q2: =L2 -> 0.25 | R2: =E2 -> HU-HR | S2: =M2 -> 698
A3: 2017 | B3: 1 | C3: 2017-01-01 | D3: CEEXD-Y-BASE-------170101-01 | E3: AT-CZ | F3: 2017/01/01 - 2018/01/01 | G3: Every day 00:00-24:00 | H3: 300 | J3: 300 | K3: 3442 | L3: 0.66 | M3: 300 | N3: 28 | O3: 10 | P3: =E3 -> AT-CZ | Q3: =L3 -> 0.66 | R3: =E3 -> AT-CZ | S3: =M3 -> 300
A4: 2017 | B4: 1 | C4: 2017-01-01 | D4: CEEXD-Y-BASE-------170101-01 | E4: HR-HU | F4: 2017/01/01 - 2018/01/01 | G4: Every day 00:00-24:00 | H4: 600 | J4: 600 | K4: 4732 | L4: 0.13 | M4: 599 | N4: 22 | O4: 11 | P4: HR-HU | Q4: 0.13 | R4: HR-HU | S4: 599
A5: 2017 | B5: 1 | C5: 2017-01-01 | D5: CEEXD-Y-BASE-------170101-01 | E5: CZ-AT | F5: 2017/01/01 - 2018/01/01 | G5: Every day 00:00-24:00 | H5: 300 | J5: 300 | K5: 3851 | L5: 0.24 | M5: 298 | N5: 29 | O5: 13 | P5: CZ-AT | Q5: 0.24 | R5: CZ-AT | S5: 298
A6: 2017 | B6: 1 | C6: 2017-01-01 | D6: CEEXD-Y-BASE-------170101-01 | E6: SI-HR | F6: 2017/01/01 - 2018/01/01 | G6: Every day 00:00-24:00 | H6: 800 | J6: 800 | K6: 5819 | L6: 0.21 | M6: 799 | N6: 22 | O6: 7 | P6: SI-HR | Q6: 0.21 | R6: SI-HR | S6: 799
A7: 2017 | B7: 1 | C7: 2017-01-01 | D7: CEEXD-Y-BASE-------170101-01 | E7: CZ-PL | F7: 2017/01/01 - 2018/01/01 | G7: Every day 00:00-24:00 | H7: For Offered Capacity see respective constraints | I7: For Offered Capacity see respective constraints | J7: For Offered Capacity see respective constraints | M7: 0 | P7: CZ-PL | R7: CZ-PL | S7: 0
A8: 2017 | B8: 1 | C8: 2017-01-01 | D8: CEEXD-Y-BASE-------170101-01 | E8: HU-AT | F8: 2017/01/01 - 2018/01/01 | G8: Every day 00:00-24:00 | H8: 300 | J8: 300 | K8: 3346 | L8: 0.12 | M8: 300 | N8: 27 | O8: 10 | P8: HU-AT | Q8: 0.12 | R8: HU-AT | S8: 300
A9: 2017 | B9: 1 | C9: 2017-01-01 | D9: CEEXD-Y-BASE-------170101-01 | E9: PL-CZ | F9: 2017/01/01 - 2018/01/01 | G9: Every day 00:00-24:00 | H9: For Offered Capacity see respective constraints | I9: For Offered Capacity see respective constraints | J9: For Offered Capacity see respective constraints | M9: 0 | P9: PL-CZ | R9: PL-CZ | S9: 0
A10: 2017 | B10: 1 | C10: 2017-01-01 | D10: CEEXD-Y-BASE-------170101-01 | E10: PL-SK | F10: 2017/01/01 - 2018/01/01 | G10: Every day 00:00-24:00 | H10: For Offered Capacity see respective constraints | I10: For Offered Capacity see respective constraints | J10: For Offered Capacity see respective constraints | M10: 0 | P10: PL-SK | R10: PL-SK | S10: 0
A11: 2017 | B11: 1 | C11: 2017-01-01 | D11: CEEXD-Y-BASE-------170101-01 | E11: SK-PL | F11: 2017/01/01 - 2018/01/01 | G11: Every day 00:00-24:00 | H11: For Offered Capacity see respective constraints | I11: For Offered Capacity see respective constraints | J11: For Offered Capacity see respective constraints | M11: 0 | P11: SK-PL | R11: SK-PL | S11: 0
A12: 2017 | B12: 1 | C12: 2017-01-01 | D12: CEEXD-Y-BASE-------170101-01 | E12: AT-HU | F12: 2017/01/01 - 2018/01/01 | G12: Every day 00:00-24:00 | H12: 300 | J12: 300 | K12: 2584 | L12: 6.78 | M12: 300 | N12: 31 | O12: 8 | P12: AT-HU | Q12: 6.78 | R12: AT-HU | S12: 300
A13: 2017 | B13: 1 | C13: 2017-01-01 | D13: CEEXD-Y-BASE-------170101-01 | E13: DE(50Hz)-CZ | F13: 2017/01/01 - 2018/01/01 | G13: Every day 00:00-24:00 | H13: For Offered Capacity see respective constraints | I13: For Offered Capacity see respective constraints | J13: For Offered Capacity see respective constraints | K13: 1016 | L13: 22.19 | M13: 54 | N13: 21 | O13: 9 | P13: DE(50Hz)-CZ | Q13: 22.19 | R13: DE(50Hz)-CZ | S13: 54
A14: 2017 | B14: 1 | C14: 2017-01-01 | D14: CEEXD-Y-BASE-------170101-01 | E14: DE(TenneT)-CZ | F14: 2017/01/01 - 2018/01/01 | G14: Every day 00:00-24:00 | H14: 100 | J14: 100 | K14: 1535 | L14: 22.19 | M14: 146 | N14: 28 | O14: 7 | P14: DE(TenneT)-CZ | Q14: 22.19 | R14: DE(TenneT)-CZ | S14: 146
A15: 2017 | B15: 1 | C15: 2017-01-01 | D15: CEEXD-Y-BASE-------170101-01 | E15: CZ-DE(50Hz) | F15: 2017/01/01 - 2018/01/01 | G15: Every day 00:00-24:00 | H15: For Offered Capacity see respective constraints | I15: For Offered Capacity see respective constraints | J15: For Offered Capacity see respective constraints | K15: 4097 | L15: 0.21 | M15: 416 | N15: 22 | O15: 9 | P15: CZ-DE(50Hz) | Q15: 0.21 | R15: CZ-DE(50Hz) | S15: 416
A16: 2017 | B16: 1 | C16: 2017-01-01 | D16: CEEXD-Y-BASE-------170101-01 | E16: HR-SI | F16: 2017/01/01 - 2018/01/01 | G16: Every day 00:00-24:00 | H16: 800 | J16: 800 | K16: 5748 | L16: 0.06 | M16: 800 | N16: 23 | O16: 15 | P16: HR-SI | Q16: 0.06 | R16: HR-SI | S16: 800
A17: 2017 | B17: 1 | C17: 2017-01-01 | D17: CEEXD-Y-BASE-------170101-01 | E17: CZ-DE(TenneT) | F17: 2017/01/01 - 2018/01/01 | G17: Every day 00:00-24:00 | H17: 500 | J17: 500 | K17: 4787 | L17: 0.21 | M17: 584 | N17: 24 | O17: 13 | P17: CZ-DE(TenneT) | Q17: 0.21 | R17: CZ-DE(TenneT) | S17: 584
A22: PL-CZ | B22: PL-DE(50Hz) | C22: DE(50Hz)-PL | D22: CZ-PL | E22: PL-SK | F22: SK-PL | G22: HR-SI | H22: HU-AT | I22: CZ-DE(TenneT) | J22: AT-CZ | K22: AT-HU | L22: CZ-AT | M22: DE(50Hz)-CZ | N22: HR-HU | O22: CZ-DE(50Hz) | P22: DE(TenneT)-CZ | Q22: SI-HR | R22: HU-HR
A23: PSE>CEPS Yearly Auction Price | B23: PSE>50Hz Yearly Auction Price | C23: 50Hz>PSE Yearly Auction Price | D23: CEPS>PSE Yearly Auction Price | E23: PSE>SEPS Yearly Auction Price | F23: SEPS>PSE Yearly Auction Price | G23: HOPS>ELESE Daily Auction Price | H23: MAVIR>APG Yearly Auction Price | I23: CEPS>EON Yearly Auction Price | J23: APG>CEPS Yearly Auction Price | K23: APG>MAVIR Yearly Auction Price | L23: CEPS>APG Yearly Auction Price | M23: 50Hz>CEPS Yearly Auction Price | N23: HOPS>MAVIR Yearly Auction Price | O23: CEPS-50Hz Yearly Auction Price | P23: EON>CEPS Yearly Auction Price | Q23: ELES>HOPS Yearly Auction Price | R23: MAVIR>HOPS Yearly Auction Price
A24: =IFERROR(VLOOKUP(A22,$P$2:$Q$17,2,0),"") ->  | B24: =IFERROR(VLOOKUP(B22,$P$2:$Q$17,2,0),"") ->  | G24: 0.06 | H24: 0.12 | I24: 0.21 | J24: 0.66 | K24: 6.78 | L24: 0.24 | M24: 22.19 | N24: 0.13 | O24: 0.21 | P24: 22.19 | Q24: 0.21 | R24: 0.25
A28: PL-CZ | B28: PL-DE(50Hz) | C28: DE(50Hz)-PL | D28: CZ-PL | E28: PL-SK | F28: SK-PL | G28: HR-SI | H28: HU-AT | I28: CZ-DE(TenneT) | J28: AT-CZ | K28: AT-HU | L28: CZ-AT | M28: DE(50Hz)-CZ | N28: HR-HU | O28: CZ-DE(50Hz) | P28: DE(TenneT)-CZ | Q28: SI-HR | R28: HU-HR
A29: AC | B29: AC | C29: AC | D29: AC | E29: AC | F29: AC | G29: AC | H29: AC | I29: AC | J29: AC | K29: AC | L29: AC | M29: AC | N29: AC | O29: AC | P29: AC | Q29: AC | R29: AC
A30: =IFERROR(VLOOKUP(A22,$R$2:$S$17,2,0),0) -> 0 | B30: =IFERROR(VLOOKUP(B22,$R$2:$S$17,2,0),0) -> 0 | C30: 0 | D30: 0 | E30: 0 | F30: 0 | G30: 800 | H30: 300 | I30: 584 | J30: 300 | K30: 300 | L30: 298 | M30: 54 | N30: 599 | O30: 416 | P30: 146 | Q30: 799 | R30: 698

Sheet denní aukce
A1: Year | B1: Month | C1: Day | D1: AuctionId | E1: Border | F1: Days | G1: TimeTable | H1: OfferedCapacity | I1: Resale | J1: ATC | K1: Total requested capacity | L1: Price | M1: Total allocated capacity | N1: Number of participants | O1: Awarded participants
A2: 2017 | B2: 12 | C2: 2017-12-01 | D2: CEEXD-D-DAILYPRODU-171201-01 | E2: AT-CZ | F2: 2017/12/01 - 2017/12/02 | G2: 00:00-01:00 | H2: 615 | J2: 615 | K2: 2409 | L2: 0.08 | M2: 615 | N2: 13 | O2: 7
A3: 2017 | B3: 12 | C3: 2017-12-01 | D3: CEEXD-D-DAILYPRODU-171201-01 | E3: CZ-AT | F3: 2017/12/01 - 2017/12/02 | G3: 00:00-01:00 | H3: 785 | J3: 785 | K3: 3247 | L3: 0.32 | M3: 785 | N3: 14 | O3: 13
A4: 2017 | B4: 12 | C4: 2017-12-01 | D4: CEEXD-D-DAILYPRODU-171201-01 | E4: CZ-DE(TenneT) | F4: 2017/12/01 - 2017/12/02 | G4: 00:00-01:00 | H4: 1329 | J4: 1329 | K4: 5092 | L4: 0.95 | M4: 1329 | N4: 15 | O4: 6
A5: 2017 | B5: 12 | C5: 2017-12-01 | D5: CEEXD-D-DAILYPRODU-171201-01 | E5: CZ-PL | F5: 2017/12/01 - 2017/12/02 | G5: 00:00-01:00 | H5: For Offered Capacity see respective constraints | I5: For Offered Capacity see respective constraints | J5: For Offered Capacity see respective constraints | K5: 75 | L5: 0 | M5: 75 | N5: 5 | O5: 2
A6: 2017 | B6: 12 | C6: 2017-12-01 | D6: CEEXD-D-DAILYPRODU-171201-01 | E6: DE(TenneT)-CZ | F6: 2017/12/01 - 2017/12/02 | G6: 00:00-01:00 | H6: 1321 | J6: 1321 | K6: 3856 | L6: 0.01 | M6: 1321 | N6: 16 | O6: 12
A7: 2017 | B7: 12 | C7: 2017-12-01 | D7: CEEXD-D-DAILYPRODU-171201-01 | E7: PL-CZ | F7: 2017/12/01 - 2017/12/02 | G7: 00:00-01:00 | H7: For Offered Capacity see respective constraints | I7: For Offered Capacity see respective constraints | J7: For Offered Capacity see respective constraints | K7: 1498 | L7: 0.99 | M7: 558 | N7: 11 | O7: 8
A8: 2017 | B8: 12 | C8: 2017-12-01 | D8: CEEXD-D-DAILYPRODU-171201-01 | E8: PL-SK | F8: 2017/12/01 - 2017/12/02 | G8: 00:00-01:00 | H8: For Offered Capacity see respective constraints | I8: For Offered Capacity see respective constraints | J8: For Offered Capacity see respective constraints | K8: 395 | L8: 0.99 | M8: 365 | N8: 8 | O8: 6
A9: 2017 | B9: 12 | C9: 2017-12-01 | D9: CEEXD-D-DAILYPRODU-171201-01 | E9: SK-PL | F9: 2017/12/01 - 2017/12/02 | G9: 00:00-01:00 | H9: For Offered Capacity see respective constraints | I9: For Offered Capacity see respective constraints | J9: For Offered Capacity see respective constraints | K9: 25 | L9: 0 | M9: 25 | N9: 3 | O9: 1
A10: 2017 | B10: 12 | C10: 2017-12-01 | D10: CEEXD-D-DAILYPRODU-171201-01 | E10: PL-DE(50Hz) | F10: 2017/12/01 - 2017/12/02 | G10: 00:00-01:00 | H10: For Offered Capacity see respective constraints | I10: For Offered Capacity see respective constraints | J10: For Offered Capacity see respective constraints | K10: 1897 | L10: 1.5 | M10: 877 | N10: 10 | O10: 7
A11: 2017 | B11: 12 | C11: 2017-12-01 | D11: CEEXD-D-DAILYPRODU-171201-01 | E11: DE(50Hz)-PL | F11: 2017/12/01 - 2017/12/02 | G11: 00:00-01:00 | H11: For Offered Capacity see respective constraints | I11: For Offered Capacity see respective constraints | J11: For Offered Capacity see respective constraints | K11: 293 | L11: 0.02 | M11: 20 | N11: 6 | O11: 1
A12: 2017 | B12: 12 | C12: 2017-12-01 | D12: CEEXD-D-DAILYPRODU-171201-01 | E12: DE(50Hz)-CZ | F12: 2017/12/01 - 2017/12/02 | G12: 00:00-01:00 | H12: For Offered Capacity see respective constraints | I12: For Offered Capacity see respective constraints | J12: For Offered Capacity see respective constraints | K12: 3461 | L12: 0.02 | M12: 1096 | N12: 13 | O12: 10
A13: 2017 | B13: 12 | C13: 2017-12-01 | D13: CEEXD-D-DAILYPRODU-171201-01 | E13: CZ-DE(50Hz) | F13: 2017/12/01 - 2017/12/02 | G13: 00:00-01:00 | H13: For Offered Capacity see respective constraints | I13: For Offered Capacity see respective constraints | J13: For Offered Capacity see respective constraints | K13: 4507 | L13: 0.51 | M13: 657 | N13: 12 | O13: 6
A14: 2017 | B14: 12 | C14: 2017-12-01 | D14: CEEXD-D-DAILYPRODU-171201-01 | E14: CZ-DE(50Hz) | F14: 2017/12/01 - 2017/12/02 | G14: 01:00-02:00 | H14: For Offered Capacity see respective constraints | I14: For Offered Capacity see respective constraints | J14: For Offered Capacity see respective constraints | K14: 4507 | L14: 0.51 | M14: 657 | N14: 12 | O14: 6
A15: 2017 | B15: 12 | C15: 2017-12-01 | D15: CEEXD-D-DAILYPRODU-171201-01 | E15: DE(50Hz)-CZ | F15: 2017/12/01 - 2017/12/02 | G15: 01:00-02:00 | H15: For Offered Capacity see respective constraints | I15: For Offered Capacity see respective constraints | J15: For Offered Capacity see respective constraints | K15: 3361 | L15: 0.02 | M15: 1065 | N15: 13 | O15: 10
A16: 2017 | B16: 12 | C16: 2017-12-01 | D16: CEEXD-D-DAILYPRODU-171201-01 | E16: DE(50Hz)-PL | F16: 2017/12/01 - 2017/12/02 | G16: 01:00-02:00 | H16: For Offered Capacity see respective constraints | I16: For Offered Capacity see respective constraints | J16: For Offered Capacity see respective constraints | K16: 0 | L16: 0.02 | M16: 0 | N16: 6
A17: 2017 | B17: 12 | C17: 2017-12-01 | D17: CEEXD-D-DAILYPRODU-171201-01 | E17: PL-DE(50Hz) | F17: 2017/12/01 - 2017/12/02 | G17: 01:00-02:00 | H17: For Offered Capacity see respective constraints | I17: For Offered Capacity see respective constraints | J17: For Offered Capacity see respective constraints | K17: 1897 | L17: 1.7 | M17: 877 | N17: 10 | O17: 7
A18: 2017 | B18: 12 | C18: 2017-12-01 | D18: CEEXD-D-DAILYPRODU-171201-01 | E18: SK-PL | F18: 2017/12/01 - 2017/12/02 | G18: 01:00-02:00 | H18: For Offered Capacity see respective constraints | I18: For Offered Capacity see respective constraints | J18: For Offered Capacity see respective constraints | K18: 0 | L18: 0 | M18: 0 | N18: 3
A19: 2017 | B19: 12 | C19: 2017-12-01 | D19: CEEXD-D-DAILYPRODU-171201-01 | E19: PL-SK | F19: 2017/12/01 - 2017/12/02 | G19: 01:00-02:00 | H19: For Offered Capacity see respective constraints | I19: For Offered Capacity see respective constraints | J19: For Offered Capacity see respective constraints | K19: 395 | L19: 1.19 | M19: 365 | N19: 8 | O19: 6
A20: 2017 | B20: 12 | C20: 2017-12-01 | D20: CEEXD-D-DAILYPRODU-171201-01 | E20: PL-CZ | F20: 2017/12/01 - 2017/12/02 | G20: 01:00-02:00 | H20: For Offered Capacity see respective constraints | I20: For Offered Capacity see respective constraints | J20: For Offered Capacity see respective constraints | K20: 1498 | L20: 1.19 | M20: 558 | N20: 11 | O20: 8
A21: 2017 | B21: 12 | C21: 2017-12-01 | D21: CEEXD-D-DAILYPRODU-171201-01 | E21: DE(TenneT)-CZ | F21: 2017/12/01 - 2017/12/02 | G21: 01:00-02:00 | H21: 1271 | J21: 1271 | K21: 3756 | L21: 0.01 | M21: 1271 | N21: 16 | O21: 12
A22: 2017 | B22: 12 | C22: 2017-12-01 | D22: CEEXD-D-DAILYPRODU-171201-01 | E22: CZ-PL | F22: 2017/12/01 - 2017/12/02 | G22: 01:00-02:00 | H22: For Offered Capacity see respective constraints | I22: For Offered Capacity see respective constraints | J22: For Offered Capacity see respective constraints | K22: 0 | L22: 0 | M22: 0 | N22: 5
A23: 2017 | B23: 12 | C23: 2017-12-01 | D23: CEEXD-D-DAILYPRODU-171201-01 | E23: CZ-DE(TenneT) | F23: 2017/12/01 - 2017/12/02 | G23: 01:00-02:00 | H23: 1329 | J23: 1329 | K23: 5092 | L23: 0.95 | M23: 1329 | N23: 15 | O23: 7
A24: 2017 | B24: 12 | C24: 2017-12-01 | D24: CEEXD-D-DAILYPRODU-171201-01 | E24: CZ-AT | F24: 2017/12/01 - 2017/12/02 | G24: 01:00-02:00 | H24: 785 | J24: 785 | K24: 3247 | L24: 0.35 | M24: 785 | N24: 14 | O24: 13
A25: 2017 | B25: 12 | C25: 2017-12-01 | D25: CEEXD-D-DAILYPRODU-171201-01 | E25: AT-CZ | F25: 2017/12/01 - 2017/12/02 | G25: 01:00-02:00 | H25: 615 | J25: 615 | K25: 2409 | L25: 0.08 | M25: 615 | N25: 13 | O25: 7
A26: 2017 | B26: 12 | C26: 2017-12-01 | D26: CEEXD-D-DAILYPRODU-171201-01 | E26: AT-CZ | F26: 2017/12/01 - 2017/12/02 | G26: 02:00-03:00 | H26: 615 | J26: 615 | K26: 2409 | L26: 0.08 | M26: 615 | N26: 13 | O26: 7
A27: 2017 | B27: 12 | C27: 2017-12-01 | D27: CEEXD-D-DAILYPRODU-171201-01 | E27: CZ-AT | F27: 2017/12/01 - 2017/12/02 | G27: 02:00-03:00 | H27: 785 | J27: 785 | K27: 3247 | L27: 0.35 | M27: 785 | N27: 14 | O27: 13
A28: 2017 | B28: 12 | C28: 2017-12-01 | D28: CEEXD-D-DAILYPRODU-171201-01 | E28: CZ-DE(TenneT) | F28: 2017/12/01 - 2017/12/02 | G28: 02:00-03:00 | H28: 1329 | J28: 1329 | K28: 5092 | L28: 0.95 | M28: 1329 | N28: 15 | O28: 7
A29: 2017 | B29: 12 | C29: 2017-12-01 | D29: CEEXD-D-DAILYPRODU-171201-01 | E29: CZ-PL | F29: 2017/12/01 - 2017/12/02 | G29: 02:00-03:00 | H29: For Offered Capacity see respective constraints | I29: For Offered Capacity see respective constraints | J29: For Offered Capacity see respective constraints | K29: 0 | L29: 0 | M29: 0 | N29: 5
A30: 2017 | B30: 12 | C30: 2017-12-01 | D30: CEEXD-D-DAILYPRODU-171201-01 | E30: DE(TenneT)-CZ | F30: 2017/12/01 - 2017/12/02 | G30: 02:00-03:00 | H30: 1221 | J30: 1221 | K30: 3656 | L30: 0.01 | M30: 1221 | N30: 16 | O30: 12
A31: 2017 | B31: 12 | C31: 2017-12-01 | D31: CEEXD-D-DAILYPRODU-171201-01 | E31: PL-CZ | F31: 2017/12/01 - 2017/12/02 | G31: 02:00-03:00 | H31: For Offered Capacity see respective constraints | I31: For Offered Capacity see respective constraints | J31: For Offered Capacity see respective constraints | K31: 1498 | L31: 0.98 | M31: 578 | N31: 11 | O31: 8
A32: 2017 | B32: 12 | C32: 2017-12-01 | D32: CEEXD-D-DAILYPRODU-171201-01 | E32: PL-SK | F32: 2017/12/01 - 2017/12/02 | G32: 02:00-03:00 | H32: For Offered Capacity see respective constraints | I32: For Offered Capacity see respective constraints | J32: For Offered Capacity see respective constraints | K32: 395 | L32: 0.98 | M32: 345 | N32: 8 | O32: 6
A33: 2017 | B33: 12 | C33: 2017-12-01 | D33: CEEXD-D-DAILYPRODU-171201-01 | E33: SK-PL | F33: 2017/12/01 - 2017/12/02 | G33: 02:00-03:00 | H33: For Offered Capacity see respective constraints | I33: For Offered Capacity see respective constraints | J33: For Offered Capacity see respective constraints | K33: 0 | L33: 0 | M33: 0 | N33: 3
A34: 2017 | B34: 12 | C34: 2017-12-01 | D34: CEEXD-D-DAILYPRODU-171201-01 | E34: PL-DE(50Hz) | F34: 2017/12/01 - 2017/12/02 | G34: 02:00-03:00 | H34: For Offered Capacity see respective constraints | I34: For Offered Capacity see respective constraints | J34: For Offered Capacity see respective constraints | K34: 1897 | L34: 1.49 | M34: 877 | N34: 10 | O34: 7
A35: 2017 | B35: 12 | C35: 2017-12-01 | D35: CEEXD-D-DAILYPRODU-171201-01 | E35: DE(50Hz)-PL | F35: 2017/12/01 - 2017/12/02 | G35: 02:00-03:00 | H35: For Offered Capacity see respective constraints | I35: For Offered Capacity see respective constraints | J35: For Offered Capacity see respective constraints | K35: 0 | L35: 0.02 | M35: 0 | N35: 6
A36: 2017 | B36: 12 | C36: 2017-12-01 | D36: CEEXD-D-DAILYPRODU-171201-01 | E36: DE(50Hz)-CZ | F36: 2017/12/01 - 2017/12/02 | G36: 02:00-03:00 | H36: For Offered Capacity see respective constraints | I36: For Offered Capacity see respective constraints | J36: For Offered Capacity see respective constraints | K36: 3261 | L36: 0.02 | M36: 1015 | N36: 13 | O36: 10
A37: 2017 | B37: 12 | C37: 2017-12-01 | D37: CEEXD-D-DAILYPRODU-171201-01 | E37: CZ-DE(50Hz) | F37: 2017/12/01 - 2017/12/02 | G37: 02:00-03:00 | H37: For Offered Capacity see respective constraints | I37: For Offered Capacity see respective constraints | J37: For Offered Capacity see respective constraints | K37: 4507 | L37: 0.51 | M37: 657 | N37: 12 | O37: 6
A38: 2017 | B38: 12 | C38: 2017-12-01 | D38: CEEXD-D-DAILYPRODU-171201-01 | E38: CZ-DE(50Hz) | F38: 2017/12/01 - 2017/12/02 | G38: 03:00-04:00 | H38: For Offered Capacity see respective constraints | I38: For Offered Capacity see respective constraints | J38: For Offered Capacity see respective constraints | K38: 4535 | L38: 0.51 | M38: 651 | N38: 12 | O38: 7
A39: 2017 | B39: 12 | C39: 2017-12-01 | D39: CEEXD-D-DAILYPRODU-171201-01 | E39: DE(50Hz)-CZ | F39: 2017/12/01 - 2017/12/02 | G39: 03:00-04:00 | H39: For Offered Capacity see respective constraints | I39: For Offered Capacity see respective constraints | J39: For Offered Capacity see respective constraints | K39: 3261 | L39: 0.02 | M39: 1015 | N39: 13 | O39: 10
A40: 2017 | B40: 12 | C40: 2017-12-01 | D40: CEEXD-D-DAILYPRODU-171201-01 | E40: DE(50Hz)-PL | F40: 2017/12/01 - 2017/12/02 | G40: 03:00-04:00 | H40: For Offered Capacity see respective constraints | I40: For Offered Capacity see respective constraints | J40: For Offered Capacity see respective constraints | K40: 0 | L40: 0.02 | M40: 0 | N40: 6
A41: 2017 | B41: 12 | C41: 2017-12-01 | D41: CEEXD-D-DAILYPRODU-171201-01 | E41: PL-DE(50Hz) | F41: 2017/12/01 - 2017/12/02 | G41: 03:00-04:00 | H41: For Offered Capacity see respective constraints | I41: For Offered Capacity see respective constraints | J41: For Offered Capacity see respective constraints | K41: 1897 | L41: 1.47 | M41: 882 | N41: 10 | O41: 7
A42: 2017 | B42: 12 | C42: 2017-12-01 | D42: CEEXD-D-DAILYPRODU-171201-01 | E42: SK-PL | F42: 2017/12/01 - 2017/12/02 | G42: 03:00-04:00 | H42: For Offered Capacity see respective constraints | I42: For Offered Capacity see respective constraints | J42: For Offered Capacity see respective constraints | K42: 0 | L42: 0 | M42: 0 | N42: 3
A43: 2017 | B43: 12 | C43: 2017-12-01 | D43: CEEXD-D-DAILYPRODU-171201-01 | E43: PL-SK | F43: 2017/12/01 - 2017/12/02 | G43: 03:00-04:00 | H43: For Offered Capacity see respective constraints | I43: For Offered Capacity see respective constraints | J43: For Offered Capacity see respective constraints | K43: 395 | L43: 0.96 | M43: 345 | N43: 8 | O43: 6
A44: 2017 | B44: 12 | C44: 2017-12-01 | D44: CEEXD-D-DAILYPRODU-171201-01 | E44: PL-CZ | F44: 2017/12/01 - 2017/12/02 | G44: 03:00-04:00 | H44: For Offered Capacity see respective constraints | I44: For Offered Capacity see respective constraints | J44: For Offered Capacity see respective constraints | K44: 1498 | L44: 0.96 | M44: 573 | N44: 11 | O44: 9
A45: 2017 | B45: 12 | C45: 2017-12-01 | D45: CEEXD-D-DAILYPRODU-171201-01 | E45: DE(TenneT)-CZ | F45: 2017/12/01 - 2017/12/02 | G45: 03:00-04:00 | H45: 1221 | J45: 1221 | K45: 3656 | L45: 0.01 | M45: 1221 | N45: 16 | O45: 12
A46: 2017 | B46: 12 | C46: 2017-12-01 | D46: CEEXD-D-DAILYPRODU-171201-01 | E46: CZ-PL | F46: 2017/12/01 - 2017/12/02 | G46: 03:00-04:00 | H46: For Offered Capacity see respective constraints | I46: For Offered Capacity see respective constraints | J46: For Offered Capacity see respective constraints | K46: 0 | L46: 0 | M46: 0 | N46: 5
A47: 2017 | B47: 12 | C47: 2017-12-01 | D47: CEEXD-D-DAILYPRODU-171201-01 | E47: CZ-DE(TenneT) | F47: 2017/12/01 - 2017/12/02 | G47: 03:00-04:00 | H47: 1329 | J47: 1329 | K47: 5092 | L47: 0.95 | M47: 1329 | N47: 15 | O47: 7
A48: 2017 | B48: 12 | C48: 2017-12-01 | D48: CEEXD-D-DAILYPRODU-171201-01 | E48: CZ-AT | F48: 2017/12/01 - 2017/12/02 | G48: 03:00-04:00 | H48: 785 | J48: 785 | K48: 3247 | L48: 0.35 | M48: 785 | N48: 14 | O48: 13
A49: 2017 | B49: 12 | C49: 2017-12-01 | D49: CEEXD-D-DAILYPRODU-171201-01 | E49: AT-CZ | F49: 2017/12/01 - 2017/12/02 | G49: 03:00-04:00 | H49: 615 | J49: 615 | K49: 2409 | L49: 0.08 | M49: 615 | N49: 13 | O49: 7
A50: 2017 | B50: 12 | C50: 2017-12-01 | D50: CEEXD-D-DAILYPRODU-171201-01 | E50: AT-CZ | F50: 2017/12/01 - 2017/12/02 | G50: 04:00-05:00 | H50: 615 | J50: 615 | K50: 2409 | L50: 0.08 | M50: 615 | N50: 13 | O50: 7
A51: 2017 | B51: 12 | C51: 2017-12-01 | D51: CEEXD-D-DAILYPRODU-171201-01 | E51: CZ-AT | F51: 2017/12/01 - 2017/12/02 | G51: 04:00-05:00 | H51: 785 | J51: 785 | K51: 3247 | L51: 0.35 | M51: 785 | N51: 14 | O51: 13
A52: 2017 | B52: 12 | C52: 2017-12-01 | D52: CEEXD-D-DAILYPRODU-171201-01 | E52: CZ-DE(TenneT) | F52: 2017/12/01 - 2017/12/02 | G52: 04:00-05:00 | H52: 1329 | J52: 1329 | K52: 5092 | L52: 0.95 | M52: 1329 | N52: 15 | O52: 7
A53: 2017 | B53: 12 | C53: 2017-12-01 | D53: CEEXD-D-DAILYPRODU-171201-01 | E53: CZ-PL | F53: 2017/12/01 - 2017/12/02 | G53: 04:00-05:00 | H53: For Offered Capacity see respective constraints | I53: For Offered Capacity see respective constraints | J53: For Offered Capacity see respective constraints | K53: 0 | L53: 0 | M53: 0 | N53: 5
A54: 2017 | B54: 12 | C54: 2017-12-01 | D54: CEEXD-D-DAILYPRODU-171201-01 | E54: DE(TenneT)-CZ | F54: 2017/12/01 - 2017/12/02 | G54: 04:00-05:00 | H54: 1221 | J54: 1221 | K54: 3656 | L54: 0.01 | M54: 1221 | N54: 16 | O54: 12
A55: 2017 | B55: 12 | C55: 2017-12-01 | D55: CEEXD-D-DAILYPRODU-171201-01 | E55: PL-CZ | F55: 2017/12/01 - 2017/12/02 | G55: 04:00-05:00 | H55: For Offered Capacity see respective constraints | I55: For Offered Capacity see respective constraints | J55: For Offered Capacity see respective constraints | K55: 1498 | L55: 1.08 | M55: 568 | N55: 11 | O55: 8
A56: 2017 | B56: 12 | C56: 2017-12-01 | D56: CEEXD-D-DAILYPRODU-171201-01 | E56: PL-SK | F56: 2017/12/01 - 2017/12/02 | G56: 04:00-05:00 | H56: For Offered Capacity see respective constraints | I56: For Offered Capacity see respective constraints | J56: For Offered Capacity see respective constraints | K56: 395 | L56: 1.08 | M56: 365 | N56: 8 | O56: 6
A57: 2017 | B57: 12 | C57: 2017-12-01 | D57: CEEXD-D-DAILYPRODU-171201-01 | E57: SK-PL | F57: 2017/12/01 - 2017/12/02 | G57: 04:00-05:00 | H57: For Offered Capacity see respective constraints | I57: For Offered Capacity see respective constraints | J57: For Offered Capacity see respective constraints | K57: 0 | L57: 0 | M57: 0 | N57: 3
A58: 2017 | B58: 12 | C58: 2017-12-01 | D58: CEEXD-D-DAILYPRODU-171201-01 | E58: PL-DE(50Hz) | F58: 2017/12/01 - 2017/12/02 | G58: 04:00-05:00 | H58: For Offered Capacity see respective constraints | I58: For Offered Capacity see respective constraints | J58: For Offered Capacity see respective constraints | K58: 1897 | L58: 1.59 | M58: 867 | N58: 10 | O58: 7
A59: 2017 | B59: 12 | C59: 2017-12-01 | D59: CEEXD-D-DAILYPRODU-171201-01 | E59: DE(50Hz)-PL | F59: 2017/12/01 - 2017/12/02 | G59: 04:00-05:00 | H59: For Offered Capacity see respective constraints | I59: For Offered Capacity see respective constraints | J59: For Offered Capacity see respective constraints | K59: 0 | L59: 0.02 | M59: 0 | N59: 6
A60: 2017 | B60: 12 | C60: 2017-12-01 | D60: CEEXD-D-DAILYPRODU-171201-01 | E60: DE(50Hz)-CZ | F60: 2017/12/01 - 2017/12/02 | G60: 04:00-05:00 | H60: For Offered Capacity see respective constraints | I60: For Offered Capacity see respective constraints | J60: For Offered Capacity see respective constraints | K60: 3261 | L60: 0.02 | M60: 1015 | N60: 13 | O60: 10
A61: 2017 | B61: 12 | C61: 2017-12-01 | D61: CEEXD-D-DAILYPRODU-171201-01 | E61: CZ-DE(50Hz) | F61: 2017/12/01 - 2017/12/02 | G61: 04:00-05:00 | H61: For Offered Capacity see respective constraints | I61: For Offered Capacity see respective constraints | J61: For Offered Capacity see respective constraints | K61: 4535 | L61: 0.51 | M61: 667 | N61: 12 | O61: 7
A62: 2017 | B62: 12 | C62: 2017-12-01 | D62: CEEXD-D-DAILYPRODU-171201-01 | E62: CZ-DE(50Hz) | F62: 2017/12/01 - 2017/12/02 | G62: 05:00-06:00 | H62: For Offered Capacity see respective constraints | I62: For Offered Capacity see respective constraints | J62: For Offered Capacity see respective constraints | K62: 4507 | L62: 0.51 | M62: 672 | N62: 12 | O62: 6
A63: 2017 | B63: 12 | C63: 2017-12-01 | D63: CEEXD-D-DAILYPRODU-171201-01 | E63: DE(50Hz)-CZ | F63: 2017/12/01 - 2017/12/02 | G63: 05:00-06:00 | H63: For Offered Capacity see respective constraints | I63: For Offered Capacity see respective constraints | J63: For Offered Capacity see respective constraints | K63: 3161 | L63: 0.02 | M63: 965 | N63: 13 | O63: 10
A64: 2017 | B64: 12 | C64: 2017-12-01 | D64: CEEXD-D-DAILYPRODU-171201-01 | E64: DE(50Hz)-PL | F64: 2017/12/01 - 2017/12/02 | G64: 05:00-06:00 | H64: For Offered Capacity see respective constraints | I64: For Offered Capacity see respective constraints | J64: For Offered Capacity see respective constraints | K64: 0 | L64: 0.02 | M64: 0 | N64: 6
A65: 2017 | B65: 12 | C65: 2017-12-01 | D65: CEEXD-D-DAILYPRODU-171201-01 | E65: PL-DE(50Hz) | F65: 2017/12/01 - 2017/12/02 | G65: 05:00-06:00 | H65: For Offered Capacity see respective constraints | I65: For Offered Capacity see respective constraints | J65: For Offered Capacity see respective constraints | K65: 1897 | L65: 2.74 | M65: 862 | N65: 10 | O65: 7
A66: 2017 | B66: 12 | C66: 2017-12-01 | D66: CEEXD-D-DAILYPRODU-171201-01 | E66: SK-PL | F66: 2017/12/01 - 2017/12/02 | G66: 05:00-06:00 | H66: For Offered Capacity see respective constraints | I66: For Offered Capacity see respective constraints | J66: For Offered Capacity see respective constraints | K66: 0 | L66: 0 | M66: 0 | N66: 3
A67: 2017 | B67: 12 | C67: 2017-12-01 | D67: CEEXD-D-DAILYPRODU-171201-01 | E67: PL-SK | F67: 2017/12/01 - 2017/12/02 | G67: 05:00-06:00 | H67: For Offered Capacity see respective constraints | I67: For Offered Capacity see respective constraints | J67: For Offered Capacity see respective constraints | K67: 395 | L67: 2.23 | M67: 345 | N67: 8 | O67: 6
A68: 2017 | B68: 12 | C68: 2017-12-01 | D68: CEEXD-D-DAILYPRODU-171201-01 | E68: PL-CZ | F68: 2017/12/01 - 2017/12/02 | G68: 05:00-06:00 | H68: For Offered Capacity see respective constraints | I68: For Offered Capacity see respective constraints | J68: For Offered Capacity see respective constraints | K68: 1498 | L68: 2.23 | M68: 593 | N68: 11 | O68: 9
A69: 2017 | B69: 12 | C69: 2017-12-01 | D69: CEEXD-D-DAILYPRODU-171201-01 | E69: DE(TenneT)-CZ | F69: 2017/12/01 - 2017/12/02 | G69: 05:00-06:00 | H69: 1171 | J69: 1171 | K69: 3556 | L69: 0.01 | M69: 1169 | N69: 16 | O69: 12
A70: 2017 | B70: 12 | C70: 2017-12-01 | D70: CEEXD-D-DAILYPRODU-171201-01 | E70: CZ-PL | F70: 2017/12/01 - 2017/12/02 | G70: 05:00-06:00 | H70: For Offered Capacity see respective constraints | I70: For Offered Capacity see respective constraints | J70: For Offered Capacity see respective constraints | K70: 0 | L70: 0 | M70: 0 | N70: 5
A71: 2017 | B71: 12 | C71: 2017-12-01 | D71: CEEXD-D-DAILYPRODU-171201-01 | E71: CZ-DE(TenneT) | F71: 2017/12/01 - 2017/12/02 | G71: 05:00-06:00 | H71: 1329 | J71: 1329 | K71: 5092 | L71: 0.95 | M71: 1329 | N71: 15 | O71: 6
A72: 2017 | B72: 12 | C72: 2017-12-01 | D72: CEEXD-D-DAILYPRODU-171201-01 | E72: CZ-AT | F72: 2017/12/01 - 2017/12/02 | G72: 05:00-06:00 | H72: 785 | J72: 785 | K72: 3247 | L72: 0.32 | M72: 785 | N72: 14 | O72: 13
A73: 2017 | B73: 12 | C73: 2017-12-01 | D73: CEEXD-D-DAILYPRODU-171201-01 | E73: AT-CZ | F73: 2017/12/01 - 2017/12/02 | G73: 05:00-06:00 | H73: 615 | J73: 615 | K73: 2409 | L73: 0.08 | M73: 615 | N73: 13 | O73: 7
A74: 2017 | B74: 12 | C74: 2017-12-01 | D74: CEEXD-D-DAILYPRODU-171201-01 | E74: AT-CZ | F74: 2017/12/01 - 2017/12/02 | G74: 06:00-07:00 | H74: 610 | J74: 610 | K74: 2414 | L74: 0.1 | M74: 610 | N74: 13 | O74: 8
A75: 2017 | B75: 12 | C75: 2017-12-01 | D75: CEEXD-D-DAILYPRODU-171201-01 | E75: CZ-AT | F75: 2017/12/01 - 2017/12/02 | G75: 06:00-07:00 | H75: 790 | J75: 790 | K75: 3098 | L75: 0.23 | M75: 790 | N75: 14 | O75: 12
A76: 2017 | B76: 12 | C76: 2017-12-01 | D76: CEEXD-D-DAILYPRODU-171201-01 | E76: CZ-DE(TenneT) | F76: 2017/12/01 - 2017/12/02 | G76: 06:00-07:00 | H76: 1339 | J76: 1339 | K76: 4451 | L76: 0.31 | M76: 1339 | N76: 15 | O76: 9
A77: 2017 | B77: 12 | C77: 2017-12-01 | D77: CEEXD-D-DAILYPRODU-171201-01 | E77: CZ-PL | F77: 2017/12/01 - 2017/12/02 | G77: 06:00-07:00 | H77: For Offered Capacity see respective constraints | I77: For Offered Capacity see respective constraints | J77: For Offered Capacity see respective constraints | K77: 175 | L77: 0 | M77: 175 | N77: 5 | O77: 2
A78: 2017 | B78: 12 | C78: 2017-12-01 | D78: CEEXD-D-DAILYPRODU-171201-01 | E78: DE(TenneT)-CZ | F78: 2017/12/01 - 2017/12/02 | G78: 06:00-07:00 | H78: 1011 | J78: 1011 | K78: 3251 | L78: 0.02 | M78: 1011 | N78: 16 | O78: 13
A79: 2017 | B79: 12 | C79: 2017-12-01 | D79: CEEXD-D-DAILYPRODU-171201-01 | E79: PL-CZ | F79: 2017/12/01 - 2017/12/02 | G79: 06:00-07:00 | H79: For Offered Capacity see respective constraints | I79: For Offered Capacity see respective constraints | J79: For Offered Capacity see respective constraints | K79: 643 | L79: 15.48 | M79: 154 | N79: 11 | O79: 4
A80: 2017 | B80: 12 | C80: 2017-12-01 | D80: CEEXD-D-DAILYPRODU-171201-01 | E80: PL-SK | F80: 2017/12/01 - 2017/12/02 | G80: 06:00-07:00 | H80: For Offered Capacity see respective constraints | I80: For Offered Capacity see respective constraints | J80: For Offered Capacity see respective constraints | K80: 370 | L80: 15.48 | M80: 150 | N80: 8 | O80: 2
A81: 2017 | B81: 12 | C81: 2017-12-01 | D81: CEEXD-D-DAILYPRODU-171201-01 | E81: SK-PL | F81: 2017/12/01 - 2017/12/02 | G81: 06:00-07:00 | H81: For Offered Capacity see respective constraints | I81: For Offered Capacity see respective constraints | J81: For Offered Capacity see respective constraints | K81: 25 | L81: 0 | M81: 25 | N81: 3 | O81: 1
A82: 2017 | B82: 12 | C82: 2017-12-01 | D82: CEEXD-D-DAILYPRODU-171201-01 | E82: PL-DE(50Hz) | F82: 2017/12/01 - 2017/12/02 | G82: 06:00-07:00 | H82: For Offered Capacity see respective constraints | I82: For Offered Capacity see respective constraints | J82: For Offered Capacity see respective constraints | K82: 1329 | L82: 15.63 | M82: 319 | N82: 10 | O82: 3
A83: 2017 | B83: 12 | C83: 2017-12-01 | D83: CEEXD-D-DAILYPRODU-171201-01 | E83: DE(50Hz)-PL | F83: 2017/12/01 - 2017/12/02 | G83: 06:00-07:00 | H83: For Offered Capacity see respective constraints | I83: For Offered Capacity see respective constraints | J83: For Offered Capacity see respective constraints | K83: 391 | L83: 0.03 | M83: 0 | N83: 6
A84: 2017 | B84: 12 | C84: 2017-12-01 | D84: CEEXD-D-DAILYPRODU-171201-01 | E84: DE(50Hz)-CZ | F84: 2017/12/01 - 2017/12/02 | G84: 06:00-07:00 | H84: For Offered Capacity see respective constraints | I84: For Offered Capacity see respective constraints | J84: For Offered Capacity see respective constraints | K84: 2852 | L84: 0.03 | M84: 803 | N84: 13 | O84: 10
A85: 2017 | B85: 12 | C85: 2017-12-01 | D85: CEEXD-D-DAILYPRODU-171201-01 | E85: CZ-DE(50Hz) | F85: 2017/12/01 - 2017/12/02 | G85: 06:00-07:00 | H85: For Offered Capacity see respective constraints | I85: For Offered Capacity see respective constraints | J85: For Offered Capacity see respective constraints | K85: 4531 | L85: 0.15 | M85: 1226 | N85: 12 | O85: 9
A86: 2017 | B86: 12 | C86: 2017-12-01 | D86: CEEXD-D-DAILYPRODU-171201-01 | E86: CZ-DE(50Hz) | F86: 2017/12/01 - 2017/12/02 | G86: 07:00-08:00 | H86: For Offered Capacity see respective constraints | I86: For Offered Capacity see respective constraints | J86: For Offered Capacity see respective constraints | K86: 4581 | L86: 0.13 | M86: 1546 | N86: 12 | O86: 10
A87: 2017 | B87: 12 | C87: 2017-12-01 | D87: CEEXD-D-DAILYPRODU-171201-01 | E87: DE(50Hz)-CZ | F87: 2017/12/01 - 2017/12/02 | G87: 07:00-08:00 | H87: For Offered Capacity see respective constraints | I87: For Offered Capacity see respective constraints | J87: For Offered Capacity see respective constraints | K87: 2952 | L87: 0.03 | M87: 800 | N87: 13 | O87: 11
A88: 2017 | B88: 12 | C88: 2017-12-01 | D88: CEEXD-D-DAILYPRODU-171201-01 | E88: DE(50Hz)-PL | F88: 2017/12/01 - 2017/12/02 | G88: 07:00-08:00 | H88: For Offered Capacity see respective constraints | I88: For Offered Capacity see respective constraints | J88: For Offered Capacity see respective constraints | K88: 542 | L88: 0.03 | M88: 0 | N88: 6
A89: 2017 | B89: 12 | C89: 2017-12-01 | D89: CEEXD-D-DAILYPRODU-171201-01 | E89: PL-DE(50Hz) | F89: 2017/12/01 - 2017/12/02 | G89: 07:00-08:00 | H89: For Offered Capacity see respective constraints | I89: For Offered Capacity see respective constraints | J89: For Offered Capacity see respective constraints | K89: 0 | L89: 0.13 | M89: 0 | N89: 10
A90: 2017 | B90: 12 | C90: 2017-12-01 | D90: CEEXD-D-DAILYPRODU-171201-01 | E90: SK-PL | F90: 2017/12/01 - 2017/12/02 | G90: 07:00-08:00 | H90: For Offered Capacity see respective constraints | I90: For Offered Capacity see respective constraints | J90: For Offered Capacity see respective constraints | K90: 25 | L90: 0 | M90: 25 | N90: 3 | O90: 1
A91: 2017 | B91: 12 | C91: 2017-12-01 | D91: CEEXD-D-DAILYPRODU-171201-01 | E91: PL-SK | F91: 2017/12/01 - 2017/12/02 | G91: 07:00-08:00 | H91: For Offered Capacity see respective constraints | I91: For Offered Capacity see respective constraints | J91: For Offered Capacity see respective constraints | K91: 0 | L91: 0 | M91: 0 | N91: 8
A92: 2017 | B92: 12 | C92: 2017-12-01 | D92: CEEXD-D-DAILYPRODU-171201-01 | E92: PL-CZ | F92: 2017/12/01 - 2017/12/02 | G92: 07:00-08:00 | H92: For Offered Capacity see respective constraints | I92: For Offered Capacity see respective constraints | J92: For Offered Capacity see respective constraints | K92: 0 | L92: 0 | M92: 0 | N92: 11
A93: 2017 | B93: 12 | C93: 2017-12-01 | D93: CEEXD-D-DAILYPRODU-171201-01 | E93: DE(TenneT)-CZ | F93: 2017/12/01 - 2017/12/02 | G93: 07:00-08:00 | H93: 1011 | J93: 1011 | K93: 3301 | L93: 0.02 | M93: 1009 | N93: 16 | O93: 13
A94: 2017 | B94: 12 | C94: 2017-12-01 | D94: CEEXD-D-DAILYPRODU-171201-01 | E94: CZ-PL | F94: 2017/12/01 - 2017/12/02 | G94: 07:00-08:00 | H94: For Offered Capacity see respective constraints | I94: For Offered Capacity see respective constraints | J94: For Offered Capacity see respective constraints | K94: 175 | L94: 0 | M94: 175 | N94: 5 | O94: 2
A95: 2017 | B95: 12 | C95: 2017-12-01 | D95: CEEXD-D-DAILYPRODU-171201-01 | E95: CZ-DE(TenneT) | F95: 2017/12/01 - 2017/12/02 | G95: 07:00-08:00 | H95: 1339 | J95: 1339 | K95: 4092 | L95: 0.21 | M95: 1339 | N95: 15 | O95: 10
A96: 2017 | B96: 12 | C96: 2017-12-01 | D96: CEEXD-D-DAILYPRODU-171201-01 | E96: CZ-AT | F96: 2017/12/01 - 2017/12/02 | G96: 07:00-08:00 | H96: 790 | J96: 790 | K96: 3039 | L96: 0.2 | M96: 790 | N96: 14 | O96: 10
A97: 2017 | B97: 12 | C97: 2017-12-01 | D97: CEEXD-D-DAILYPRODU-171201-01 | E97: AT-CZ | F97: 2017/12/01 - 2017/12/02 | G97: 07:00-08:00 | H97: 610 | J97: 610 | K97: 2464 | L97: 0.11 | M97: 610 | N97: 13 | O97: 8
A98: 2017 | B98: 12 | C98: 2017-12-01 | D98: CEEXD-D-DAILYPRODU-171201-01 | E98: AT-CZ | F98: 2017/12/01 - 2017/12/02 | G98: 08:00-09:00 | H98: 610 | J98: 610 | K98: 2464 | L98: 0.11 | M98: 610 | N98: 13 | O98: 8
A99: 2017 | B99: 12 | C99: 2017-12-01 | D99: CEEXD-D-DAILYPRODU-171201-01 | E99: CZ-AT | F99: 2017/12/01 - 2017/12/02 | G99: 08:00-09:00 | H99: 790 | J99: 790 | K99: 3039 | L99: 0.2 | M99: 790 | N99: 14 | O99: 10
A100: 2017 | B100: 12 | C100: 2017-12-01 | D100: CEEXD-D-DAILYPRODU-171201-01 | E100: CZ-DE(TenneT) | F100: 2017/12/01 - 2017/12/02 | G100: 08:00-09:00 | H100: 1354 | J100: 1354 | K100: 4122 | L100: 0.21 | M100: 1354 | N100: 15 | O100: 10
A101: 2017 | B101: 12 | C101: 2017-12-01 | D101: CEEXD-D-DAILYPRODU-171201-01 | E101: CZ-PL | F101: 2017/12/01 - 2017/12/02 | G101: 08:00-09:00 | H101: For Offered Capacity see respective constraints | I101: For Offered Capacity see respective constraints | J101: For Offered Capacity see respective constraints | K101: 175 | L101: 0 | M101: 175 | N101: 5 | O101: 2
A102: 2017 | B102: 12 | C102: 2017-12-01 | D102: CEEXD-D-DAILYPRODU-171201-01 | E102: DE(TenneT)-CZ | F102: 2017/12/01 - 2017/12/02 | G102: 08:00-09:00 | H102: 896 | J102: 896 | K102: 3071 | L102: 0.03 | M102: 893 | N102: 16 | O102: 11
A103: 2017 | B103: 12 | C103: 2017-12-01 | D103: CEEXD-D-DAILYPRODU-171201-01 | E103: PL-CZ | F103: 2017/12/01 - 2017/12/02 | G103: 08:00-09:00 | H103: For Offered Capacity see respective constraints | I103: For Offered Capacity see respective constraints | J103: For Offered Capacity see respective constraints | K103: 0 | L103: 0 | M103: 0 | N103: 11
A104: 2017 | B104: 12 | C104: 2017-12-01 | D104: CEEXD-D-DAILYPRODU-171201-01 | E104: PL-SK | F104: 2017/12/01 - 2017/12/02 | G104: 08:00-09:00 | H104: For Offered Capacity see respective constraints | I104: For Offered Capacity see respective constraints | J104: For Offered Capacity see respective constraints | K104: 0 | L104: 0 | M104: 0 | N104: 8
A105: 2017 | B105: 12 | C105: 2017-12-01 | D105: CEEXD-D-DAILYPRODU-171201-01 | E105: SK-PL | F105: 2017/12/01 - 2017/12/02 | G105: 08:00-09:00 | H105: For Offered Capacity see respective constraints | I105: For Offered Capacity see respective constraints | J105: For Offered Capacity see respective constraints | K105: 25 | L105: 0 | M105: 25 | N105: 3 | O105: 1
A106: 2017 | B106: 12 | C106: 2017-12-01 | D106: CEEXD-D-DAILYPRODU-171201-01 | E106: PL-DE(50Hz) | F106: 2017/12/01 - 2017/12/02 | G106: 08:00-09:00 | H106: For Offered Capacity see respective constraints | I106: For Offered Capacity see respective constraints | J106: For Offered Capacity see respective constraints | K106: 0 | L106: 0.13 | M106: 0 | N106: 10
A107: 2017 | B107: 12 | C107: 2017-12-01 | D107: CEEXD-D-DAILYPRODU-171201-01 | E107: DE(50Hz)-PL | F107: 2017/12/01 - 2017/12/02 | G107: 08:00-09:00 | H107: For Offered Capacity see respective constraints | I107: For Offered Capacity see respective constraints | J107: For Offered Capacity see respective constraints | K107: 675 | L107: 0.04 | M107: 0 | N107: 6
A108: 2017 | B108: 12 | C108: 2017-12-01 | D108: CEEXD-D-DAILYPRODU-171201-01 | E108: DE(50Hz)-CZ | F108: 2017/12/01 - 2017/12/02 | G108: 08:00-09:00 | H108: For Offered Capacity see respective constraints | I108: For Offered Capacity see respective constraints | J108: For Offered Capacity see respective constraints | K108: 2752 | L108: 0.04 | M108: 703 | N108: 13 | O108: 10
A109: 2017 | B109: 12 | C109: 2017-12-01 | D109: CEEXD-D-DAILYPRODU-171201-01 | E109: CZ-DE(50Hz) | F109: 2017/12/01 - 2017/12/02 | G109: 08:00-09:00 | H109: For Offered Capacity see respective constraints | I109: For Offered Capacity see respective constraints | J109: For Offered Capacity see respective constraints | K109: 4581 | L109: 0.13 | M109: 1546 | N109: 12 | O109: 10
A110: 2017 | B110: 12 | C110: 2017-12-01 | D110: CEEXD-D-DAILYPRODU-171201-01 | E110: CZ-DE(50Hz) | F110: 2017/12/01 - 2017/12/02 | G110: 09:00-10:00 | H110: For Offered Capacity see respective constraints | I110: For Offered Capacity see respective constraints | J110: For Offered Capacity see respective constraints | K110: 4581 | L110: 0.13 | M110: 1546 | N110: 12 | O110: 10
A111: 2017 | B111: 12 | C111: 2017-12-01 | D111: CEEXD-D-DAILYPRODU-171201-01 | E111: DE(50Hz)-CZ | F111: 2017/12/01 - 2017/12/02 | G111: 09:00-10:00 | H111: For Offered Capacity see respective constraints | I111: For Offered Capacity see respective constraints | J111: For Offered Capacity see respective constraints | K111: 2702 | L111: 0.03 | M111: 700 | N111: 13 | O111: 10
A112: 2017 | B112: 12 | C112: 2017-12-01 | D112: CEEXD-D-DAILYPRODU-171201-01 | E112: DE(50Hz)-PL | F112: 2017/12/01 - 2017/12/02 | G112: 09:00-10:00 | H112: For Offered Capacity see respective constraints | I112: For Offered Capacity see respective constraints | J112: For Offered Capacity see respective constraints | K112: 675 | L112: 0.03 | M112: 0 | N112: 6
A113: 2017 | B113: 12 | C113: 2017-12-01 | D113: CEEXD-D-DAILYPRODU-171201-01 | E113: PL-DE(50Hz) | F113: 2017/12/01 - 2017/12/02 | G113: 09:00-10:00 | H113: For Offered Capacity see respective constraints | I113: For Offered Capacity see respective constraints | J113: For Offered Capacity see respective constraints | K113: 0 | L113: 0.13 | M113: 0 | N113: 10
A114: 2017 | B114: 12 | C114: 2017-12-01 | D114: CEEXD-D-DAILYPRODU-171201-01 | E114: SK-PL | F114: 2017/12/01 - 2017/12/02 | G114: 09:00-10:00 | H114: For Offered Capacity see respective constraints | I114: For Offered Capacity see respective constraints | J114: For Offered Capacity see respective constraints | K114: 25 | L114: 0 | M114: 25 | N114: 3 | O114: 1
A115: 2017 | B115: 12 | C115: 2017-12-01 | D115: CEEXD-D-DAILYPRODU-171201-01 | E115: PL-SK | F115: 2017/12/01 - 2017/12/02 | G115: 09:00-10:00 | H115: For Offered Capacity see respective constraints | I115: For Offered Capacity see respective constraints | J115: For Offered Capacity see respective constraints | K115: 0 | L115: 0 | M115: 0 | N115: 8
A116: 2017 | B116: 12 | C116: 2017-12-01 | D116: CEEXD-D-DAILYPRODU-171201-01 | E116: PL-CZ | F116: 2017/12/01 - 2017/12/02 | G116: 09:00-10:00 | H116: For Offered Capacity see respective constraints | I116: For Offered Capacity see respective constraints | J116: For Offered Capacity see respective constraints | K116: 0 | L116: 0 | M116: 0 | N116: 11
A117: 2017 | B117: 12 | C117: 2017-12-01 | D117: CEEXD-D-DAILYPRODU-171201-01 | E117: DE(TenneT)-CZ | F117: 2017/12/01 - 2017/12/02 | G117: 09:00-10:00 | H117: 896 | J117: 896 | K117: 3249 | L117: 0.04 | M117: 896 | N117: 16 | O117: 12
A118: 2017 | B118: 12 | C118: 2017-12-01 | D118: CEEXD-D-DAILYPRODU-171201-01 | E118: CZ-PL | F118: 2017/12/01 - 2017/12/02 | G118: 09:00-10:00 | H118: For Offered Capacity see respective constraints | I118: For Offered Capacity see respective constraints | J118: For Offered Capacity see respective constraints | K118: 175 | L118: 0 | M118: 175 | N118: 5 | O118: 2
A119: 2017 | B119: 12 | C119: 2017-12-01 | D119: CEEXD-D-DAILYPRODU-171201-01 | E119: CZ-DE(TenneT) | F119: 2017/12/01 - 2017/12/02 | G119: 09:00-10:00 | H119: 1354 | J119: 1354 | K119: 4122 | L119: 0.21 | M119: 1354 | N119: 15 | O119: 10
A120: 2017 | B120: 12 | C120: 2017-12-01 | D120: CEEXD-D-DAILYPRODU-171201-01 | E120: CZ-AT | F120: 2017/12/01 - 2017/12/02 | G120: 09:00-10:00 | H120: 790 | J120: 790 | K120: 3039 | L120: 0.2 | M120: 790 | N120: 14 | O120: 10
A121: 2017 | B121: 12 | C121: 2017-12-01 | D121: CEEXD-D-DAILYPRODU-171201-01 | E121: AT-CZ | F121: 2017/12/01 - 2017/12/02 | G121: 09:00-10:00 | H121: 610 | J121: 610 | K121: 2585 | L121: 0.12 | M121: 610 | N121: 13 | O121: 9
A122: 2017 | B122: 12 | C122: 2017-12-01 | D122: CEEXD-D-DAILYPRODU-171201-01 | E122: AT-CZ | F122: 2017/12/01 - 2017/12/02 | G122: 10:00-11:00 | H122: 610 | J122: 610 | K122: 2464 | L122: 0.11 | M122: 610 | N122: 13 | O122: 8
A123: 2017 | B123: 12 | C123: 2017-12-01 | D123: CEEXD-D-DAILYPRODU-171201-01 | E123: CZ-AT | F123: 2017/12/01 - 2017/12/02 | G123: 10:00-11:00 | H123: 790 | J123: 790 | K123: 3039 | L123: 0.22 | M123: 790 | N123: 14 | O123: 10
A124: 2017 | B124: 12 | C124: 2017-12-01 | D124: CEEXD-D-DAILYPRODU-171201-01 | E124: CZ-DE(TenneT) | F124: 2017/12/01 - 2017/12/02 | G124: 10:00-11:00 | H124: 1354 | J124: 1354 | K124: 4122 | L124: 0.21 | M124: 1354 | N124: 15 | O124: 10
A125: 2017 | B125: 12 | C125: 2017-12-01 | D125: CEEXD-D-DAILYPRODU-171201-01 | E125: CZ-PL | F125: 2017/12/01 - 2017/12/02 | G125: 10:00-11:00 | H125: For Offered Capacity see respective constraints | I125: For Offered Capacity see respective constraints | J125: For Offered Capacity see respective constraints | K125: 0 | L125: 0 | M125: 0 | N125: 5
A126: 2017 | B126: 12 | C126: 2017-12-01 | D126: CEEXD-D-DAILYPRODU-171201-01 | E126: DE(TenneT)-CZ | F126: 2017/12/01 - 2017/12/02 | G126: 10:00-11:00 | H126: 996 | J126: 996 | K126: 3271 | L126: 0.02 | M126: 993 | N126: 16 | O126: 13
A127: 2017 | B127: 12 | C127: 2017-12-01 | D127: CEEXD-D-DAILYPRODU-171201-01 | E127: PL-CZ | F127: 2017/12/01 - 2017/12/02 | G127: 10:00-11:00 | H127: For Offered Capacity see respective constraints | I127: For Offered Capacity see respective constraints | J127: For Offered Capacity see respective constraints | K127: 0 | L127: 0 | M127: 0 | N127: 11
A128: 2017 | B128: 12 | C128: 2017-12-01 | D128: CEEXD-D-DAILYPRODU-171201-01 | E128: PL-SK | F128: 2017/12/01 - 2017/12/02 | G128: 10:00-11:00 | H128: For Offered Capacity see respective constraints | I128: For Offered Capacity see respective constraints | J128: For Offered Capacity see respective constraints | K128: 0 | L128: 0 | M128: 0 | N128: 8
A129: 2017 | B129: 12 | C129: 2017-12-01 | D129: CEEXD-D-DAILYPRODU-171201-01 | E129: SK-PL | F129: 2017/12/01 - 2017/12/02 | G129: 10:00-11:00 | H129: For Offered Capacity see respective constraints | I129: For Offered Capacity see respective constraints | J129: For Offered Capacity see respective constraints | K129: 0 | L129: 0 | M129: 0 | N129: 3
A130: 2017 | B130: 12 | C130: 2017-12-01 | D130: CEEXD-D-DAILYPRODU-171201-01 | E130: PL-DE(50Hz) | F130: 2017/12/01 - 2017/12/02 | G130: 10:00-11:00 | H130: For Offered Capacity see respective constraints | I130: For Offered Capacity see respective constraints | J130: For Offered Capacity see respective constraints | K130: 0 | L130: 0.13 | M130: 0 | N130: 10
A131: 2017 | B131: 12 | C131: 2017-12-01 | D131: CEEXD-D-DAILYPRODU-171201-01 | E131: DE(50Hz)-PL | F131: 2017/12/01 - 2017/12/02 | G131: 10:00-11:00 | H131: For Offered Capacity see respective constraints | I131: For Offered Capacity see respective constraints | J131: For Offered Capacity see respective constraints | K131: 0 | L131: 0.03 | M131: 0 | N131: 6
A132: 2017 | B132: 12 | C132: 2017-12-01 | D132: CEEXD-D-DAILYPRODU-171201-01 | E132: DE(50Hz)-CZ | F132: 2017/12/01 - 2017/12/02 | G132: 10:00-11:00 | H132: For Offered Capacity see respective constraints | I132: For Offered Capacity see respective constraints | J132: For Offered Capacity see respective constraints | K132: 2902 | L132: 0.03 | M132: 800 | N132: 13 | O132: 10
A133: 2017 | B133: 12 | C133: 2017-12-01 | D133: CEEXD-D-DAILYPRODU-171201-01 | E133: CZ-DE(50Hz) | F133: 2017/12/01 - 2017/12/02 | G133: 10:00-11:00 | H133: For Offered Capacity see respective constraints | I133: For Offered Capacity see respective constraints | J133: For Offered Capacity see respective constraints | K133: 4581 | L133: 0.13 | M133: 1546 | N133: 12 | O133: 10
A134: 2017 | B134: 12 | C134: 2017-12-01 | D134: CEEXD-D-DAILYPRODU-171201-01 | E134: CZ-DE(50Hz) | F134: 2017/12/01 - 2017/12/02 | G134: 11:00-12:00 | H134: For Offered Capacity see respective constraints | I134: For Offered Capacity see respective constraints | J134: For Offered Capacity see respective constraints | K134: 4581 | L134: 0.13 | M134: 1546 | N134: 12 | O134: 10
A135: 2017 | B135: 12 | C135: 2017-12-01 | D135: CEEXD-D-DAILYPRODU-171201-01 | E135: DE(50Hz)-CZ | F135: 2017/12/01 - 2017/12/02 | G135: 11:00-12:00 | H135: For Offered Capacity see respective constraints | I135: For Offered Capacity see respective constraints | J135: For Offered Capacity see respective constraints | K135: 2902 | L135: 0.03 | M135: 800 | N135: 13 | O135: 10
A136: 2017 | B136: 12 | C136: 2017-12-01 | D136: CEEXD-D-DAILYPRODU-171201-01 | E136: DE(50Hz)-PL | F136: 2017/12/01 - 2017/12/02 | G136: 11:00-12:00 | H136: For Offered Capacity see respective constraints | I136: For Offered Capacity see respective constraints | J136: For Offered Capacity see respective constraints | K136: 0 | L136: 0.03 | M136: 0 | N136: 6
A137: 2017 | B137: 12 | C137: 2017-12-01 | D137: CEEXD-D-DAILYPRODU-171201-01 | E137: PL-DE(50Hz) | F137: 2017/12/01 - 2017/12/02 | G137: 11:00-12:00 | H137: For Offered Capacity see respective constraints | I137: For Offered Capacity see respective constraints | J137: For Offered Capacity see respective constraints | K137: 0 | L137: 0.13 | M137: 0 | N137: 10
A138: 2017 | B138: 12 | C138: 2017-12-01 | D138: CEEXD-D-DAILYPRODU-171201-01 | E138: SK-PL | F138: 2017/12/01 - 2017/12/02 | G138: 11:00-12:00 | H138: For Offered Capacity see respective constraints | I138: For Offered Capacity see respective constraints | J138: For Offered Capacity see respective constraints | K138: 0 | L138: 0 | M138: 0 | N138: 3
A139: 2017 | B139: 12 | C139: 2017-12-01 | D139: CEEXD-D-DAILYPRODU-171201-01 | E139: PL-SK | F139: 2017/12/01 - 2017/12/02 | G139: 11:00-12:00 | H139: For Offered Capacity see respective constraints | I139: For Offered Capacity see respective constraints | J139: For Offered Capacity see respective constraints | K139: 0 | L139: 0 | M139: 0 | N139: 8
A140: 2017 | B140: 12 | C140: 2017-12-01 | D140: CEEXD-D-DAILYPRODU-171201-01 | E140: PL-CZ | F140: 2017/12/01 - 2017/12/02 | G140: 11:00-12:00 | H140: For Offered Capacity see respective constraints | I140: For Offered Capacity see respective constraints | J140: For Offered Capacity see respective constraints | K140: 0 | L140: 0 | M140: 0 | N140: 11
A141: 2017 | B141: 12 | C141: 2017-12-01 | D141: CEEXD-D-DAILYPRODU-171201-01 | E141: DE(TenneT)-CZ | F141: 2017/12/01 - 2017/12/02 | G141: 11:00-12:00 | H141: 996 | J141: 996 | K141: 3271 | L141: 0.02 | M141: 993 | N141: 16 | O141: 13
A142: 2017 | B142: 12 | C142: 2017-12-01 | D142: CEEXD-D-DAILYPRODU-171201-01 | E142: CZ-PL | F142: 2017/12/01 - 2017/12/02 | G142: 11:00-12:00 | H142: For Offered Capacity see respective constraints | I142: For Offered Capacity see respective constraints | J142: For Offered Capacity see respective constraints | K142: 0 | L142: 0 | M142: 0 | N142: 5
A143: 2017 | B143: 12 | C143: 2017-12-01 | D143: CEEXD-D-DAILYPRODU-171201-01 | E143: CZ-DE(TenneT) | F143: 2017/12/01 - 2017/12/02 | G143: 11:00-12:00 | H143: 1354 | J143: 1354 | K143: 4122 | L143: 0.21 | M143: 1354 | N143: 15 | O143: 10
A144: 2017 | B144: 12 | C144: 2017-12-01 | D144: CEEXD-D-DAILYPRODU-171201-01 | E144: CZ-AT | F144: 2017/12/01 - 2017/12/02 | G144: 11:00-12:00 | H144: 790 | J144: 790 | K144: 3039 | L144: 0.22 | M144: 790 | N144: 14 | O144: 10
A145: 2017 | B145: 12 | C145: 2017-12-01 | D145: CEEXD-D-DAILYPRODU-171201-01 | E145: AT-CZ | F145: 2017/12/01 - 2017/12/02 | G145: 11:00-12:00 | H145: 610 | J145: 610 | K145: 2464 | L145: 0.11 | M145: 610 | N145: 13 | O145: 8
A146: 2017 | B146: 12 | C146: 2017-12-01 | D146: CEEXD-D-DAILYPRODU-171201-01 | E146: AT-CZ | F146: 2017/12/01 - 2017/12/02 | G146: 12:00-13:00 | H146: 610 | J146: 610 | K146: 2616 | L146: 0.14 | M146: 610 | N146: 13 | O146: 9
A147: 2017 | B147: 12 | C147: 2017-12-01 | D147: CEEXD-D-DAILYPRODU-171201-01 | E147: CZ-AT | F147: 2017/12/01 - 2017/12/02 | G147: 12:00-13:00 | H147: 790 | J147: 790 | K147: 3039 | L147: 0.22 | M147: 790 | N147: 14 | O147: 10
A148: 2017 | B148: 12 | C148: 2017-12-01 | D148: CEEXD-D-DAILYPRODU-171201-01 | E148: CZ-DE(TenneT) | F148: 2017/12/01 - 2017/12/02 | G148: 12:00-13:00 | H148: 1354 | J148: 1354 | K148: 4122 | L148: 0.21 | M148: 1354 | N148: 15 | O148: 10
A149: 2017 | B149: 12 | C149: 2017-12-01 | D149: CEEXD-D-DAILYPRODU-171201-01 | E149: CZ-PL | F149: 2017/12/01 - 2017/12/02 | G149: 12:00-13:00 | H149: For Offered Capacity see respective constraints | I149: For Offered Capacity see respective constraints | J149: For Offered Capacity see respective constraints | K149: 0 | L149: 0 | M149: 0 | N149: 5
A150: 2017 | B150: 12 | C150: 2017-12-01 | D150: CEEXD-D-DAILYPRODU-171201-01 | E150: DE(TenneT)-CZ | F150: 2017/12/01 - 2017/12/02 | G150: 12:00-13:00 | H150: 996 | J150: 996 | K150: 3519 | L150: 0.03 | M150: 993 | N150: 16 | O150: 12
A151: 2017 | B151: 12 | C151: 2017-12-01 | D151: CEEXD-D-DAILYPRODU-171201-01 | E151: PL-CZ | F151: 2017/12/01 - 2017/12/02 | G151: 12:00-13:00 | H151: For Offered Capacity see respective constraints | I151: For Offered Capacity see respective constraints | J151: For Offered Capacity see respective constraints | K151: 0 | L151: 0 | M151: 0 | N151: 11
A152: 2017 | B152: 12 | C152: 2017-12-01 | D152: CEEXD-D-DAILYPRODU-171201-01 | E152: PL-SK | F152: 2017/12/01 - 2017/12/02 | G152: 12:00-13:00 | H152: For Offered Capacity see respective constraints | I152: For Offered Capacity see respective constraints | J152: For Offered Capacity see respective constraints | K152: 0 | L152: 0 | M152: 0 | N152: 8
A153: 2017 | B153: 12 | C153: 2017-12-01 | D153: CEEXD-D-DAILYPRODU-171201-01 | E153: SK-PL | F153: 2017/12/01 - 2017/12/02 | G153: 12:00-13:00 | H153: For Offered Capacity see respective constraints | I153: For Offered Capacity see respective constraints | J153: For Offered Capacity see respective constraints | K153: 0 | L153: 0 | M153: 0 | N153: 3
A154: 2017 | B154: 12 | C154: 2017-12-01 | D154: CEEXD-D-DAILYPRODU-171201-01 | E154: PL-DE(50Hz) | F154: 2017/12/01 - 2017/12/02 | G154: 12:00-13:00 | H154: For Offered Capacity see respective constraints | I154: For Offered Capacity see respective constraints | J154: For Offered Capacity see respective constraints | K154: 0 | L154: 0.13 | M154: 0 | N154: 10
A155: 2017 | B155: 12 | C155: 2017-12-01 | D155: CEEXD-D-DAILYPRODU-171201-01 | E155: DE(50Hz)-PL | F155: 2017/12/01 - 2017/12/02 | G155: 12:00-13:00 | H155: For Offered Capacity see respective constraints | I155: For Offered Capacity see respective constraints | J155: For Offered Capacity see respective constraints | K155: 0 | L155: 0.03 | M155: 0 | N155: 6
A156: 2017 | B156: 12 | C156: 2017-12-01 | D156: CEEXD-D-DAILYPRODU-171201-01 | E156: DE(50Hz)-CZ | F156: 2017/12/01 - 2017/12/02 | G156: 12:00-13:00 | H156: For Offered Capacity see respective constraints | I156: For Offered Capacity see respective constraints | J156: For Offered Capacity see respective constraints | K156: 2902 | L156: 0.03 | M156: 800 | N156: 13 | O156: 10
A157: 2017 | B157: 12 | C157: 2017-12-01 | D157: CEEXD-D-DAILYPRODU-171201-01 | E157: CZ-DE(50Hz) | F157: 2017/12/01 - 2017/12/02 | G157: 12:00-13:00 | H157: For Offered Capacity see respective constraints | I157: For Offered Capacity see respective constraints | J157: For Offered Capacity see respective constraints | K157: 4581 | L157: 0.13 | M157: 1546 | N157: 12 | O157: 10
A158: 2017 | B158: 12 | C158: 2017-12-01 | D158: CEEXD-D-DAILYPRODU-171201-01 | E158: CZ-DE(50Hz) | F158: 2017/12/01 - 2017/12/02 | G158: 13:00-14:00 | H158: For Offered Capacity see respective constraints | I158: For Offered Capacity see respective constraints | J158: For Offered Capacity see respective constraints | K158: 4581 | L158: 0.13 | M158: 1546 | N158: 12 | O158: 10
A159: 2017 | B159: 12 | C159: 2017-12-01 | D159: CEEXD-D-DAILYPRODU-171201-01 | E159: DE(50Hz)-CZ | F159: 2017/12/01 - 2017/12/02 | G159: 13:00-14:00 | H159: For Offered Capacity see respective constraints | I159: For Offered Capacity see respective constraints | J159: For Offered Capacity see respective constraints | K159: 2902 | L159: 0.03 | M159: 800 | N159: 13 | O159: 10
A160: 2017 | B160: 12 | C160: 2017-12-01 | D160: CEEXD-D-DAILYPRODU-171201-01 | E160: DE(50Hz)-PL | F160: 2017/12/01 - 2017/12/02 | G160: 13:00-14:00 | H160: For Offered Capacity see respective constraints | I160: For Offered Capacity see respective constraints | J160: For Offered Capacity see respective constraints | K160: 0 | L160: 0.03 | M160: 0 | N160: 6
A161: 2017 | B161: 12 | C161: 2017-12-01 | D161: CEEXD-D-DAILYPRODU-171201-01 | E161: PL-DE(50Hz) | F161: 2017/12/01 - 2017/12/02 | G161: 13:00-14:00 | H161: For Offered Capacity see respective constraints | I161: For Offered Capacity see respective constraints | J161: For Offered Capacity see respective constraints | K161: 0 | L161: 0.13 | M161: 0 | N161: 10
A162: 2017 | B162: 12 | C162: 2017-12-01 | D162: CEEXD-D-DAILYPRODU-171201-01 | E162: SK-PL | F162: 2017/12/01 - 2017/12/02 | G162: 13:00-14:00 | H162: For Offered Capacity see respective constraints | I162: For Offered Capacity see respective constraints | J162: For Offered Capacity see respective constraints | K162: 0 | L162: 0 | M162: 0 | N162: 3
A163: 2017 | B163: 12 | C163: 2017-12-01 | D163: CEEXD-D-DAILYPRODU-171201-01 | E163: PL-SK | F163: 2017/12/01 - 2017/12/02 | G163: 13:00-14:00 | H163: For Offered Capacity see respective constraints | I163: For Offered Capacity see respective constraints | J163: For Offered Capacity see respective constraints | K163: 0 | L163: 0 | M163: 0 | N163: 8
A164: 2017 | B164: 12 | C164: 2017-12-01 | D164: CEEXD-D-DAILYPRODU-171201-01 | E164: PL-CZ | F164: 2017/12/01 - 2017/12/02 | G164: 13:00-14:00 | H164: For Offered Capacity see respective constraints | I164: For Offered Capacity see respective constraints | J164: For Offered Capacity see respective constraints | K164: 0 | L164: 0 | M164: 0 | N164: 11
A165: 2017 | B165: 12 | C165: 2017-12-01 | D165: CEEXD-D-DAILYPRODU-171201-01 | E165: DE(TenneT)-CZ | F165: 2017/12/01 - 2017/12/02 | G165: 13:00-14:00 | H165: 996 | J165: 996 | K165: 3457 | L165: 0.03 | M165: 995 | N165: 16 | O165: 12
A166: 2017 | B166: 12 | C166: 2017-12-01 | D166: CEEXD-D-DAILYPRODU-171201-01 | E166: CZ-PL | F166: 2017/12/01 - 2017/12/02 | G166: 13:00-14:00 | H166: For Offered Capacity see respective constraints | I166: For Offered Capacity see respective constraints | J166: For Offered Capacity see respective constraints | K166: 0 | L166: 0 | M166: 0 | N166: 5
A167: 2017 | B167: 12 | C167: 2017-12-01 | D167: CEEXD-D-DAILYPRODU-171201-01 | E167: CZ-DE(TenneT) | F167: 2017/12/01 - 2017/12/02 | G167: 13:00-14:00 | H167: 1354 | J167: 1354 | K167: 4122 | L167: 0.21 | M167: 1354 | N167: 15 | O167: 10
A168: 2017 | B168: 12 | C168: 2017-12-01 | D168: CEEXD-D-DAILYPRODU-171201-01 | E168: CZ-AT | F168: 2017/12/01 - 2017/12/02 | G168: 13:00-14:00 | H168: 790 | J168: 790 | K168: 3039 | L168: 0.22 | M168: 790 | N168: 14 | O168: 10
A169: 2017 | B169: 12 | C169: 2017-12-01 | D169: CEEXD-D-DAILYPRODU-171201-01 | E169: AT-CZ | F169: 2017/12/01 - 2017/12/02 | G169: 13:00-14:00 | H169: 610 | J169: 610 | K169: 2578 | L169: 0.12 | M169: 610 | N169: 13 | O169: 9
A170: 2017 | B170: 12 | C170: 2017-12-01 | D170: CEEXD-D-DAILYPRODU-171201-01 | E170: AT-CZ | F170: 2017/12/01 - 2017/12/02 | G170: 14:00-15:00 | H170: 610 | J170: 610 | K170: 2521 | L170: 0.11 | M170: 610 | N170: 13 | O170: 9
A171: 2017 | B171: 12 | C171: 2017-12-01 | D171: CEEXD-D-DAILYPRODU-171201-01 | E171: CZ-AT | F171: 2017/12/01 - 2017/12/02 | G171: 14:00-15:00 | H171: 790 | J171: 790 | K171: 3039 | L171: 0.22 | M171: 790 | N171: 14 | O171: 10
A172: 2017 | B172: 12 | C172: 2017-12-01 | D172: CEEXD-D-DAILYPRODU-171201-01 | E172: CZ-DE(TenneT) | F172: 2017/12/01 - 2017/12/02 | G172: 14:00-15:00 | H172: 1354 | J172: 1354 | K172: 4122 | L172: 0.21 | M172: 1354 | N172: 15 | O172: 10
A173: 2017 | B173: 12 | C173: 2017-12-01 | D173: CEEXD-D-DAILYPRODU-171201-01 | E173: CZ-PL | F173: 2017/12/01 - 2017/12/02 | G173: 14:00-15:00 | H173: For Offered Capacity see respective constraints | I173: For Offered Capacity see respective constraints | J173: For Offered Capacity see respective constraints | K173: 275 | L173: 0 | M173: 275 | N173: 5 | O173: 3
A174: 2017 | B174: 12 | C174: 2017-12-01 | D174: CEEXD-D-DAILYPRODU-171201-01 | E174: DE(TenneT)-CZ | F174: 2017/12/01 - 2017/12/02 | G174: 14:00-15:00 | H174: 996 | J174: 996 | K174: 3364 | L174: 0.03 | M174: 994 | N174: 16 | O174: 12
A175: 2017 | B175: 12 | C175: 2017-12-01 | D175: CEEXD-D-DAILYPRODU-171201-01 | E175: PL-CZ | F175: 2017/12/01 - 2017/12/02 | G175: 14:00-15:00 | H175: For Offered Capacity see respective constraints | I175: For Offered Capacity see respective constraints | J175: For Offered Capacity see respective constraints | K175: 0 | L175: 0 | M175: 0 | N175: 11
A176: 2017 | B176: 12 | C176: 2017-12-01 | D176: CEEXD-D-DAILYPRODU-171201-01 | E176: PL-SK | F176: 2017/12/01 - 2017/12/02 | G176: 14:00-15:00 | H176: For Offered Capacity see respective constraints | I176: For Offered Capacity see respective constraints | J176: For Offered Capacity see respective constraints | K176: 0 | L176: 0 | M176: 0 | N176: 8
A177: 2017 | B177: 12 | C177: 2017-12-01 | D177: CEEXD-D-DAILYPRODU-171201-01 | E177: SK-PL | F177: 2017/12/01 - 2017/12/02 | G177: 14:00-15:00 | H177: For Offered Capacity see respective constraints | I177: For Offered Capacity see respective constraints | J177: For Offered Capacity see respective constraints | K177: 25 | L177: 0 | M177: 25 | N177: 3 | O177: 1
A178: 2017 | B178: 12 | C178: 2017-12-01 | D178: CEEXD-D-DAILYPRODU-171201-01 | E178: PL-DE(50Hz) | F178: 2017/12/01 - 2017/12/02 | G178: 14:00-15:00 | H178: For Offered Capacity see respective constraints | I178: For Offered Capacity see respective constraints | J178: For Offered Capacity see respective constraints | K178: 0 | L178: 0.13 | M178: 0 | N178: 10
A179: 2017 | B179: 12 | C179: 2017-12-01 | D179: CEEXD-D-DAILYPRODU-171201-01 | E179: DE(50Hz)-PL | F179: 2017/12/01 - 2017/12/02 | G179: 14:00-15:00 | H179: For Offered Capacity see respective constraints | I179: For Offered Capacity see respective constraints | J179: For Offered Capacity see respective constraints | K179: 745 | L179: 0.03 | M179: 70 | N179: 6 | O179: 1
A180: 2017 | B180: 12 | C180: 2017-12-01 | D180: CEEXD-D-DAILYPRODU-171201-01 | E180: DE(50Hz)-CZ | F180: 2017/12/01 - 2017/12/02 | G180: 14:00-15:00 | H180: For Offered Capacity see respective constraints | I180: For Offered Capacity see respective constraints | J180: For Offered Capacity see respective constraints | K180: 2902 | L180: 0.03 | M180: 730 | N180: 13 | O180: 10
A181: 2017 | B181: 12 | C181: 2017-12-01 | D181: CEEXD-D-DAILYPRODU-171201-01 | E181: CZ-DE(50Hz) | F181: 2017/12/01 - 2017/12/02 | G181: 14:00-15:00 | H181: For Offered Capacity see respective constraints | I181: For Offered Capacity see respective constraints | J181: For Offered Capacity see respective constraints | K181: 4581 | L181: 0.13 | M181: 1546 | N181: 12 | O181: 10
A182: 2017 | B182: 12 | C182: 2017-12-01 | D182: CEEXD-D-DAILYPRODU-171201-01 | E182: CZ-DE(50Hz) | F182: 2017/12/01 - 2017/12/02 | G182: 15:00-16:00 | H182: For Offered Capacity see respective constraints | I182: For Offered Capacity see respective constraints | J182: For Offered Capacity see respective constraints | K182: 4581 | L182: 0.13 | M182: 1546 | N182: 12 | O182: 10
A183: 2017 | B183: 12 | C183: 2017-12-01 | D183: CEEXD-D-DAILYPRODU-171201-01 | E183: DE(50Hz)-CZ | F183: 2017/12/01 - 2017/12/02 | G183: 15:00-16:00 | H183: For Offered Capacity see respective constraints | I183: For Offered Capacity see respective constraints | J183: For Offered Capacity see respective constraints | K183: 2902 | L183: 0.03 | M183: 730 | N183: 13 | O183: 10
A184: 2017 | B184: 12 | C184: 2017-12-01 | D184: CEEXD-D-DAILYPRODU-171201-01 | E184: DE(50Hz)-PL | F184: 2017/12/01 - 2017/12/02 | G184: 15:00-16:00 | H184: For Offered Capacity see respective constraints | I184: For Offered Capacity see respective constraints | J184: For Offered Capacity see respective constraints | K184: 745 | L184: 0.03 | M184: 70 | N184: 6 | O184: 1
A185: 2017 | B185: 12 | C185: 2017-12-01 | D185: CEEXD-D-DAILYPRODU-171201-01 | E185: PL-DE(50Hz) | F185: 2017/12/01 - 2017/12/02 | G185: 15:00-16:00 | H185: For Offered Capacity see respective constraints | I185: For Offered Capacity see respective constraints | J185: For Offered Capacity see respective constraints | K185: 0 | L185: 0.13 | M185: 0 | N185: 10
A186: 2017 | B186: 12 | C186: 2017-12-01 | D186: CEEXD-D-DAILYPRODU-171201-01 | E186: SK-PL | F186: 2017/12/01 - 2017/12/02 | G186: 15:00-16:00 | H186: For Offered Capacity see respective constraints | I186: For Offered Capacity see respective constraints | J186: For Offered Capacity see respective constraints | K186: 25 | L186: 0 | M186: 25 | N186: 3 | O186: 1
A187: 2017 | B187: 12 | C187: 2017-12-01 | D187: CEEXD-D-DAILYPRODU-171201-01 | E187: PL-SK | F187: 2017/12/01 - 2017/12/02 | G187: 15:00-16:00 | H187: For Offered Capacity see respective constraints | I187: For Offered Capacity see respective constraints | J187: For Offered Capacity see respective constraints | K187: 0 | L187: 0 | M187: 0 | N187: 8
A188: 2017 | B188: 12 | C188: 2017-12-01 | D188: CEEXD-D-DAILYPRODU-171201-01 | E188: PL-CZ | F188: 2017/12/01 - 2017/12/02 | G188: 15:00-16:00 | H188: For Offered Capacity see respective constraints | I188: For Offered Capacity see respective constraints | J188: For Offered Capacity see respective constraints | K188: 0 | L188: 0 | M188: 0 | N188: 11
A189: 2017 | B189: 12 | C189: 2017-12-01 | D189: CEEXD-D-DAILYPRODU-171201-01 | E189: DE(TenneT)-CZ | F189: 2017/12/01 - 2017/12/02 | G189: 15:00-16:00 | H189: 996 | J189: 996 | K189: 3364 | L189: 0.03 | M189: 994 | N189: 16 | O189: 12
A190: 2017 | B190: 12 | C190: 2017-12-01 | D190: CEEXD-D-DAILYPRODU-171201-01 | E190: CZ-PL | F190: 2017/12/01 - 2017/12/02 | G190: 15:00-16:00 | H190: For Offered Capacity see respective constraints | I190: For Offered Capacity see respective constraints | J190: For Offered Capacity see respective constraints | K190: 275 | L190: 0 | M190: 275 | N190: 5 | O190: 3
A191: 2017 | B191: 12 | C191: 2017-12-01 | D191: CEEXD-D-DAILYPRODU-171201-01 | E191: CZ-DE(TenneT) | F191: 2017/12/01 - 2017/12/02 | G191: 15:00-16:00 | H191: 1354 | J191: 1354 | K191: 4122 | L191: 0.21 | M191: 1354 | N191: 15 | O191: 10
A192: 2017 | B192: 12 | C192: 2017-12-01 | D192: CEEXD-D-DAILYPRODU-171201-01 | E192: CZ-AT | F192: 2017/12/01 - 2017/12/02 | G192: 15:00-16:00 | H192: 790 | J192: 790 | K192: 3039 | L192: 0.22 | M192: 790 | N192: 14 | O192: 10
A193: 2017 | B193: 12 | C193: 2017-12-01 | D193: CEEXD-D-DAILYPRODU-171201-01 | E193: AT-CZ | F193: 2017/12/01 - 2017/12/02 | G193: 15:00-16:00 | H193: 610 | J193: 610 | K193: 2521 | L193: 0.11 | M193: 610 | N193: 13 | O193: 9
A194: 2017 | B194: 12 | C194: 2017-12-01 | D194: CEEXD-D-DAILYPRODU-171201-01 | E194: AT-CZ | F194: 2017/12/01 - 2017/12/02 | G194: 16:00-17:00 | H194: 610 | J194: 610 | K194: 2616 | L194: 0.14 | M194: 610 | N194: 13 | O194: 9
A195: 2017 | B195: 12 | C195: 2017-12-01 | D195: CEEXD-D-DAILYPRODU-171201-01 | E195: CZ-AT | F195: 2017/12/01 - 2017/12/02 | G195: 16:00-17:00 | H195: 790 | J195: 790 | K195: 3089 | L195: 0.23 | M195: 790 | N195: 14 | O195: 11
A196: 2017 | B196: 12 | C196: 2017-12-01 | D196: CEEXD-D-DAILYPRODU-171201-01 | E196: CZ-DE(TenneT) | F196: 2017/12/01 - 2017/12/02 | G196: 16:00-17:00 | H196: 1354 | J196: 1354 | K196: 4122 | L196: 0.21 | M196: 1354 | N196: 15 | O196: 10
A197: 2017 | B197: 12 | C197: 2017-12-01 | D197: CEEXD-D-DAILYPRODU-171201-01 | E197: CZ-PL | F197: 2017/12/01 - 2017/12/02 | G197: 16:00-17:00 | H197: For Offered Capacity see respective constraints | I197: For Offered Capacity see respective constraints | J197: For Offered Capacity see respective constraints | K197: 275 | L197: 0.16 | M197: 90 | N197: 5 | O197: 1
A198: 2017 | B198: 12 | C198: 2017-12-01 | D198: CEEXD-D-DAILYPRODU-171201-01 | E198: DE(TenneT)-CZ | F198: 2017/12/01 - 2017/12/02 | G198: 16:00-17:00 | H198: 996 | J198: 996 | K198: 3519 | L198: 0.03 | M198: 993 | N198: 16 | O198: 12
A199: 2017 | B199: 12 | C199: 2017-12-01 | D199: CEEXD-D-DAILYPRODU-171201-01 | E199: PL-CZ | F199: 2017/12/01 - 2017/12/02 | G199: 16:00-17:00 | H199: For Offered Capacity see respective constraints | I199: For Offered Capacity see respective constraints | J199: For Offered Capacity see respective constraints | K199: 0 | L199: 0 | M199: 0 | N199: 11
A200: 2017 | B200: 12 | C200: 2017-12-01 | D200: CEEXD-D-DAILYPRODU-171201-01 | E200: PL-SK | F200: 2017/12/01 - 2017/12/02 | G200: 16:00-17:00 | H200: For Offered Capacity see respective constraints | I200: For Offered Capacity see respective constraints | J200: For Offered Capacity see respective constraints | K200: 0 | L200: 0 | M200: 0 | N200: 8
... 4300 more rows

Sheet ATC like
A1: PSE>CEPS Daily ATC-like | B1: PSE>50Hz Daily ATC-like | C1: 50Hz>PSE Daily ATC-like | D1: CEPS>PSE Daily ATC-like | E1: PSE>SEPS Daily ATC-like | F1: SEPS>PSE Daily ATC-like | G1: HOPS>ELES Daily ATC-like | H1: MAVIR>APG Daily ATC-like | I1: CEPS>EON Daily ATC-like | J1: APG>CEPS Daily ATC-like | K1: APG>MAVIR Daily ATC-like | L1: CEPS>APG Daily ATC-like | M1: 50Hz>CEPS Daily ATC-like | N1: HOPS>MAVIR Daily ATC-like | O1: CEPS>50Hz Daily ATC-like | P1: EON>CEPS Daily ATC-like | Q1: ELES>HOPS Daily ATC-like | R1: MAVIR>HOPS Daily ATC-like | T1: DE+CZ+SK-PL | U1: PL-DE+CZ+SK | V1: CZ-DE | W1: DE-CZ | X1: PL-DE | Y1: DE-PL
A2: =MIN(U2,Off.Cap.!L25) -> 900 | B2: =MIN(X2,U2) -> 767 | C2: =MIN(T2,Y2) -> 218 | D2: =MIN(T2,Off.Cap.!E25) -> 218 | E2: =MIN(U2,Off.Cap.!O25) -> 550 | F2: =MIN(T2,Off.Cap.!P25) -> 218 | G2: =Algoritmus!AP3 -> 0 | H2: =Algoritmus!AQ3 -> 0 | J2: =Off.Cap.!B25 -> 615 | K2: =Algoritmus!AS3 -> 0 | L2: =Off.Cap.!D25 -> 785 | N2: =Algoritmus!AV3 -> 0 | Q2: =Algoritmus!AX3 -> 0 | R2: =Algoritmus!AY3 -> 0 | T2: =Off.Cap.!M25 -> 218 | U2: =Off.Cap.!N25 -> 1800 | V2: =Off.Cap.!F25+0.5*Off.Cap.!R25 -> 2096 | W2: =Off.Cap.!Q25+0.5*Off.Cap.!S25 -> 1879 | X2: =0.5*Off.Cap.!R25 -> 767 | Y2: =0.5*Off.Cap.!S25 -> 558
A3: =MIN(U3,Off.Cap.!L26) -> 900 | B3: =MIN(X3,U3) -> 767 | C3: =MIN(T3,Y3) -> 0 | D3: =MIN(T3,Off.Cap.!E26) -> 0 | E3: =MIN(U3,Off.Cap.!O26) -> 550 | F3: =MIN(T3,Off.Cap.!P26) -> 0 | G3: =Algoritmus!AP4 -> 0 | H3: =Algoritmus!AQ4 -> 0 | J3: =Off.Cap.!B26 -> 615 | K3: =Algoritmus!AS4 -> 0 | L3: =Off.Cap.!D26 -> 785 | N3: =Algoritmus!AV4 -> 0 | Q3: =Algoritmus!AX4 -> 0 | R3: =Algoritmus!AY4 -> 0 | T3: =Off.Cap.!M26 -> 0 | U3: =Off.Cap.!N26 -> 1800 | V3: =Off.Cap.!F26+0.5*Off.Cap.!R26 -> 2096 | W3: =Off.Cap.!Q26+0.5*Off.Cap.!S26 -> 1804 | X3: =0.5*Off.Cap.!R26 -> 767 | Y3: =0.5*Off.Cap.!S26 -> 533
A4: =MIN(U4,Off.Cap.!L27) -> 900 | B4: 767 | C4: 0 | D4: =MIN(T4,Off.Cap.!E27) -> 0 | E4: =MIN(U4,Off.Cap.!O27) -> 550 | F4: =MIN(T4,Off.Cap.!P27) -> 0 | G4: =Algoritmus!AP5 -> 0 | H4: =Algoritmus!AQ5 -> 0 | J4: =Off.Cap.!B27 -> 615 | K4: =Algoritmus!AS5 -> 0 | L4: =Off.Cap.!D27 -> 785 | N4: =Algoritmus!AV5 -> 0 | Q4: =Algoritmus!AX5 -> 0 | R4: =Algoritmus!AY5 -> 0 | T4: =Off.Cap.!M27 -> 0 | U4: =Off.Cap.!N27 -> 1800 | V4: =Off.Cap.!F27+0.5*Off.Cap.!R27 -> 2096 | W4: =Off.Cap.!Q27+0.5*Off.Cap.!S27 -> 1729 | X4: =0.5*Off.Cap.!R27 -> 767 | Y4: =0.5*Off.Cap.!S27 -> 508
A5: =MIN(U5,Off.Cap.!L28) -> 900 | B5: 767 | C5: 0 | D5: =MIN(T5,Off.Cap.!E28) -> 0 | E5: =MIN(U5,Off.Cap.!O28) -> 550 | F5: =MIN(T5,Off.Cap.!P28) -> 0 | G5: =Algoritmus!AP6 -> 0 | H5: =Algoritmus!AQ6 -> 0 | J5: =Off.Cap.!B28 -> 615 | K5: =Algoritmus!AS6 -> 0 | L5: =Off.Cap.!D28 -> 785 | N5: =Algoritmus!AV6 -> 0 | Q5: =Algoritmus!AX6 -> 0 | R5: =Algoritmus!AY6 -> 0 | T5: =Off.Cap.!M28 -> 0 | U5: =Off.Cap.!N28 -> 1800 | V5: =Off.Cap.!F28+0.5*Off.Cap.!R28 -> 2096 | W5: =Off.Cap.!Q28+0.5*Off.Cap.!S28 -> 1729 | X5: =0.5*Off.Cap.!R28 -> 767 | Y5: =0.5*Off.Cap.!S28 -> 508
A6: =MIN(U6,Off.Cap.!L29) -> 900 | B6: 767 | C6: 0 | D6: =MIN(T6,Off.Cap.!E29) -> 0 | E6: =MIN(U6,Off.Cap.!O29) -> 550 | F6: =MIN(T6,Off.Cap.!P29) -> 0 | G6: =Algoritmus!AP7 -> 0 | H6: =Algoritmus!AQ7 -> 0 | J6: =Off.Cap.!B29 -> 615 | K6: =Algoritmus!AS7 -> 0 | L6: =Off.Cap.!D29 -> 785 | N6: =Algoritmus!AV7 -> 0 | Q6: =Algoritmus!AX7 -> 0 | R6: =Algoritmus!AY7 -> 0 | T6: =Off.Cap.!M29 -> 0 | U6: =Off.Cap.!N29 -> 1800 | V6: =Off.Cap.!F29+0.5*Off.Cap.!R29 -> 2096 | W6: =Off.Cap.!Q29+0.5*Off.Cap.!S29 -> 1729 | X6: =0.5*Off.Cap.!R29 -> 767 | Y6: =0.5*Off.Cap.!S29 -> 508
A7: =MIN(U7,Off.Cap.!L30) -> 900 | B7: 767 | C7: 0 | D7: =MIN(T7,Off.Cap.!E30) -> 0 | E7: =MIN(U7,Off.Cap.!O30) -> 550 | F7: =MIN(T7,Off.Cap.!P30) -> 0 | G7: =Algoritmus!#REF! ->  | H7: =Algoritmus!#REF! ->  | J7: =Off.Cap.!B30 -> 615 | K7: =Algoritmus!#REF! ->  | L7: =Off.Cap.!D30 -> 785 | N7: =Algoritmus!#REF! ->  | Q7: =Algoritmus!#REF! ->  | R7: =Algoritmus!#REF! ->  | T7: =Off.Cap.!M30 -> 0 | U7: =Off.Cap.!N30 -> 1800 | V7: =Off.Cap.!F30+0.5*Off.Cap.!R30 -> 2096 | W7: =Off.Cap.!Q30+0.5*Off.Cap.!S30 -> 1654 | X7: =0.5*Off.Cap.!R30 -> 767 | Y7: =0.5*Off.Cap.!S30 -> 483
A8: =MIN(U8,Off.Cap.!L31) -> 623 | B8: 623 | C8: 216 | D8: =MIN(T8,Off.Cap.!E31) -> 216 | E8: =MIN(U8,Off.Cap.!O31) -> 550 | F8: =MIN(T8,Off.Cap.!P31) -> 216 | G8: =Algoritmus!#REF! ->  | H8: =Algoritmus!#REF! ->  | J8: =Off.Cap.!B31 -> 610 | K8: =Algoritmus!#REF! ->  | L8: =Off.Cap.!D31 -> 790 | N8: =Algoritmus!#REF! ->  | Q8: =Algoritmus!#REF! ->  | R8: =Algoritmus!#REF! ->  | T8: =Off.Cap.!M31 -> 216 | U8: =Off.Cap.!N31 -> 623 | V8: =Off.Cap.!F31+0.5*Off.Cap.!R31 -> 2112 | W8: =Off.Cap.!Q31+0.5*Off.Cap.!S31 -> 1413 | X8: =0.5*Off.Cap.!R31 -> 773 | Y8: =0.5*Off.Cap.!S31 -> 402
A9: =MIN(U9,Off.Cap.!L32) -> 0 | B9: 0 | C9: 367 | D9: =MIN(T9,Off.Cap.!E32) -> 367 | E9: =MIN(U9,Off.Cap.!O32) -> 0 | F9: =MIN(T9,Off.Cap.!P32) -> 367 | G9: =Algoritmus!#REF! ->  | H9: =Algoritmus!#REF! ->  | J9: =Off.Cap.!B32 -> 610 | K9: =Algoritmus!#REF! ->  | L9: =Off.Cap.!D32 -> 790 | N9: =Algoritmus!#REF! ->  | Q9: =Algoritmus!#REF! ->  | R9: =Algoritmus!#REF! ->  | T9: =Off.Cap.!M32 -> 367 | U9: =Off.Cap.!N32 -> 0 | V9: =Off.Cap.!F32+0.5*Off.Cap.!R32 -> 2112 | W9: =Off.Cap.!Q32+0.5*Off.Cap.!S32 -> 1413 | X9: =0.5*Off.Cap.!R32 -> 773 | Y9: =0.5*Off.Cap.!S32 -> 402
A10: =MIN(U10,Off.Cap.!L33) -> 0 | B10: 0 | C10: 352 | D10: =MIN(T10,Off.Cap.!E33) -> 500 | E10: =MIN(U10,Off.Cap.!O33) -> 0 | F10: =MIN(T10,Off.Cap.!P33) -> 500 | G10: =Algoritmus!#REF! ->  | H10: =Algoritmus!#REF! ->  | J10: =Off.Cap.!B33 -> 610 | K10: =Algoritmus!#REF! ->  | L10: =Off.Cap.!D33 -> 790 | N10: =Algoritmus!#REF! ->  | Q10: =Algoritmus!#REF! ->  | R10: =Algoritmus!#REF! ->  | T10: =Off.Cap.!M33 -> 500 | U10: =Off.Cap.!N33 -> 0 | V10: =Off.Cap.!F33+0.5*Off.Cap.!R33 -> 2127 | W10: =Off.Cap.!Q33+0.5*Off.Cap.!S33 -> 1248 | X10: =0.5*Off.Cap.!R33 -> 773 | Y10: =0.5*Off.Cap.!S33 -> 352
A11: =MIN(U11,Off.Cap.!L34) -> 0 | B11: 0 | C11: 352 | D11: =MIN(T11,Off.Cap.!E34) -> 500 | E11: =MIN(U11,Off.Cap.!O34) -> 0 | F11: =MIN(T11,Off.Cap.!P34) -> 500 | G11: =Algoritmus!#REF! ->  | H11: =Algoritmus!#REF! ->  | J11: =Off.Cap.!B34 -> 610 | K11: =Algoritmus!#REF! ->  | L11: =Off.Cap.!D34 -> 790 | N11: =Algoritmus!#REF! ->  | Q11: =Algoritmus!#REF! ->  | R11: =Algoritmus!#REF! ->  | T11: =Off.Cap.!M34 -> 500 | U11: =Off.Cap.!N34 -> 0 | V11: =Off.Cap.!F34+0.5*Off.Cap.!R34 -> 2127 | W11: =Off.Cap.!Q34+0.5*Off.Cap.!S34 -> 1248 | X11: =0.5*Off.Cap.!R34 -> 773 | Y11: =0.5*Off.Cap.!S34 -> 352
A12: =MIN(U12,Off.Cap.!L35) -> 0 | B12: 0 | C12: 0 | D12: =MIN(T12,Off.Cap.!E35) -> 0 | E12: =MIN(U12,Off.Cap.!O35) -> 0 | F12: =MIN(T12,Off.Cap.!P35) -> 0 | G12: =Algoritmus!#REF! ->  | H12: =Algoritmus!#REF! ->  | J12: =Off.Cap.!B35 -> 610 | K12: =Algoritmus!#REF! ->  | L12: =Off.Cap.!D35 -> 790 | N12: =Algoritmus!#REF! ->  | Q12: =Algoritmus!#REF! ->  | R12: =Algoritmus!#REF! ->  | T12: =Off.Cap.!M35 -> 0 | U12: =Off.Cap.!N35 -> 0 | V12: =Off.Cap.!F35+0.5*Off.Cap.!R35 -> 2127 | W12: =Off.Cap.!Q35+0.5*Off.Cap.!S35 -> 1398 | X12: =0.5*Off.Cap.!R35 -> 773 | Y12: =0.5*Off.Cap.!S35 -> 402
A13: =MIN(U13,Off.Cap.!L36) -> 0 | B13: 0 | C13: 0 | D13: =MIN(T13,Off.Cap.!E36) -> 0 | E13: =MIN(U13,Off.Cap.!O36) -> 0 | F13: =MIN(T13,Off.Cap.!P36) -> 0 | G13: =Algoritmus!#REF! ->  | H13: =Algoritmus!#REF! ->  | J13: =Off.Cap.!B36 -> 610 | K13: =Algoritmus!#REF! ->  | L13: =Off.Cap.!D36 -> 790 | N13: =Algoritmus!#REF! ->  | Q13: =Algoritmus!#REF! ->  | R13: =Algoritmus!#REF! ->  | T13: =Off.Cap.!M36 -> 0 | U13: =Off.Cap.!N36 -> 0 | V13: =Off.Cap.!F36+0.5*Off.Cap.!R36 -> 2127 | W13: =Off.Cap.!Q36+0.5*Off.Cap.!S36 -> 1398 | X13: =0.5*Off.Cap.!R36 -> 773 | Y13: =0.5*Off.Cap.!S36 -> 402
A14: =MIN(U14,Off.Cap.!L37) -> 0 | B14: 0 | C14: 0 | D14: =MIN(T14,Off.Cap.!E37) -> 0 | E14: =MIN(U14,Off.Cap.!O37) -> 0 | F14: =MIN(T14,Off.Cap.!P37) -> 0 | G14: =Algoritmus!#REF! ->  | H14: =Algoritmus!#REF! ->  | J14: =Off.Cap.!B37 -> 610 | K14: =Algoritmus!#REF! ->  | L14: =Off.Cap.!D37 -> 790 | N14: =Algoritmus!#REF! ->  | Q14: =Algoritmus!#REF! ->  | R14: =Algoritmus!#REF! ->  | T14: =Off.Cap.!M37 -> 0 | U14: =Off.Cap.!N37 -> 0 | V14: =Off.Cap.!F37+0.5*Off.Cap.!R37 -> 2127 | W14: =Off.Cap.!Q37+0.5*Off.Cap.!S37 -> 1398 | X14: =0.5*Off.Cap.!R37 -> 773 | Y14: =0.5*Off.Cap.!S37 -> 402
A15: =MIN(U15,Off.Cap.!L38) -> 0 | B15: 0 | C15: 0 | D15: =MIN(T15,Off.Cap.!E38) -> 0 | E15: =MIN(U15,Off.Cap.!O38) -> 0 | F15: =MIN(T15,Off.Cap.!P38) -> 0 | G15: =Algoritmus!AP8 -> 0 | H15: =Algoritmus!AQ8 -> 0 | J15: =Off.Cap.!B38 -> 610 | K15: =Algoritmus!AS8 -> 0 | L15: =Off.Cap.!D38 -> 790 | N15: =Algoritmus!AV8 -> 0 | Q15: =Algoritmus!AX8 -> 0 | R15: =Algoritmus!AY8 -> 0 | T15: =Off.Cap.!M38 -> 0 | U15: =Off.Cap.!N38 -> 0 | V15: =Off.Cap.!F38+0.5*Off.Cap.!R38 -> 2127 | W15: =Off.Cap.!Q38+0.5*Off.Cap.!S38 -> 1398 | X15: =0.5*Off.Cap.!R38 -> 773 | Y15: =0.5*Off.Cap.!S38 -> 402
A16: =MIN(U16,Off.Cap.!L39) -> 0 | B16: 0 | C16: 402 | D16: =MIN(T16,Off.Cap.!E39) -> 500 | E16: =MIN(U16,Off.Cap.!O39) -> 0 | F16: =MIN(T16,Off.Cap.!P39) -> 500 | G16: =Algoritmus!AP9 -> 0 | H16: =Algoritmus!AQ9 -> 0 | J16: =Off.Cap.!B39 -> 610 | K16: =Algoritmus!AS9 -> 0 | L16: =Off.Cap.!D39 -> 790 | N16: =Algoritmus!AV9 -> 0 | Q16: =Algoritmus!AX9 -> 0 | R16: =Algoritmus!AY9 -> 0 | T16: =Off.Cap.!M39 -> 500 | U16: =Off.Cap.!N39 -> 0 | V16: =Off.Cap.!F39+0.5*Off.Cap.!R39 -> 2127 | W16: =Off.Cap.!Q39+0.5*Off.Cap.!S39 -> 1398 | X16: =0.5*Off.Cap.!R39 -> 773 | Y16: =0.5*Off.Cap.!S39 -> 402
A17: =MIN(U17,Off.Cap.!L40) -> 0 | B17: 0 | C17: 402 | D17: =MIN(T17,Off.Cap.!E40) -> 500 | E17: =MIN(U17,Off.Cap.!O40) -> 0 | F17: =MIN(T17,Off.Cap.!P40) -> 500 | G17: =Algoritmus!AP10 -> 0 | H17: =Algoritmus!AQ10 -> 0 | J17: =Off.Cap.!B40 -> 610 | K17: =Algoritmus!AS10 -> 0 | L17: =Off.Cap.!D40 -> 790 | N17: =Algoritmus!AV10 -> 0 | Q17: =Algoritmus!AX10 -> 0 | R17: =Algoritmus!AY10 -> 0 | T17: =Off.Cap.!M40 -> 500 | U17: =Off.Cap.!N40 -> 0 | V17: =Off.Cap.!F40+0.5*Off.Cap.!R40 -> 2127 | W17: =Off.Cap.!Q40+0.5*Off.Cap.!S40 -> 1398 | X17: =0.5*Off.Cap.!R40 -> 773 | Y17: =0.5*Off.Cap.!S40 -> 402
A18: =MIN(U18,Off.Cap.!L41) -> 0 | B18: 0 | C18: 402 | D18: =MIN(T18,Off.Cap.!E41) -> 500 | E18: =MIN(U18,Off.Cap.!O41) -> 0 | F18: =MIN(T18,Off.Cap.!P41) -> 500 | G18: =Algoritmus!AP11 -> 0 | H18: =Algoritmus!AQ11 -> 0 | J18: =Off.Cap.!B41 -> 610 | K18: =Algoritmus!AS11 -> 0 | L18: =Off.Cap.!D41 -> 790 | N18: =Algoritmus!AV11 -> 0 | Q18: =Algoritmus!AX11 -> 0 | R18: =Algoritmus!AY11 -> 0 | T18: =Off.Cap.!M41 -> 500 | U18: =Off.Cap.!N41 -> 0 | V18: =Off.Cap.!F41+0.5*Off.Cap.!R41 -> 2127 | W18: =Off.Cap.!Q41+0.5*Off.Cap.!S41 -> 1398 | X18: =0.5*Off.Cap.!R41 -> 773 | Y18: =0.5*Off.Cap.!S41 -> 402
A19: =MIN(U19,Off.Cap.!L42) -> 0 | B19: 0 | C19: 477 | D19: =MIN(T19,Off.Cap.!E42) -> 500 | E19: =MIN(U19,Off.Cap.!O42) -> 0 | F19: =MIN(T19,Off.Cap.!P42) -> 500 | G19: =Algoritmus!AP12 -> 0 | H19: =Algoritmus!AQ12 -> 0 | J19: =Off.Cap.!B42 -> 610 | K19: =Algoritmus!AS12 -> 0 | L19: =Off.Cap.!D42 -> 790 | N19: =Algoritmus!AV12 -> 0 | Q19: =Algoritmus!AX12 -> 0 | R19: =Algoritmus!AY12 -> 0 | T19: =Off.Cap.!M42 -> 500 | U19: =Off.Cap.!N42 -> 0 | V19: =Off.Cap.!F42+0.5*Off.Cap.!R42 -> 2127 | W19: =Off.Cap.!Q42+0.5*Off.Cap.!S42 -> 1623 | X19: =0.5*Off.Cap.!R42 -> 773 | Y19: =0.5*Off.Cap.!S42 -> 477
A20: =MIN(U20,Off.Cap.!L43) -> 0 | B20: 0 | C20: 402 | D20: =MIN(T20,Off.Cap.!E43) -> 500 | E20: =MIN(U20,Off.Cap.!O43) -> 0 | F20: =MIN(T20,Off.Cap.!P43) -> 500 | G20: =Algoritmus!AP13 -> 0 | H20: =Algoritmus!AQ13 -> 0 | J20: =Off.Cap.!B43 -> 610 | K20: =Algoritmus!AS13 -> 0 | L20: =Off.Cap.!D43 -> 790 | N20: =Algoritmus!AV13 -> 0 | Q20: =Algoritmus!AX13 -> 0 | R20: =Algoritmus!AY13 -> 0 | T20: =Off.Cap.!M43 -> 500 | U20: =Off.Cap.!N43 -> 0 | V20: =Off.Cap.!F43+0.5*Off.Cap.!R43 -> 2127 | W20: =Off.Cap.!Q43+0.5*Off.Cap.!S43 -> 1398 | X20: =0.5*Off.Cap.!R43 -> 773 | Y20: =0.5*Off.Cap.!S43 -> 402
A21: =MIN(U21,Off.Cap.!L44) -> 0 | B21: 0 | C21: 427 | D21: =MIN(T21,Off.Cap.!E44) -> 500 | E21: =MIN(U21,Off.Cap.!O44) -> 0 | F21: =MIN(T21,Off.Cap.!P44) -> 500 | G21: =Algoritmus!AP14 -> 0 | H21: =Algoritmus!AQ14 -> 0 | J21: =Off.Cap.!B44 -> 610 | K21: =Algoritmus!AS14 -> 0 | L21: =Off.Cap.!D44 -> 790 | N21: =Algoritmus!AV14 -> 0 | Q21: =Algoritmus!AX14 -> 0 | R21: =Algoritmus!AY14 -> 0 | T21: =Off.Cap.!M44 -> 500 | U21: =Off.Cap.!N44 -> 0 | V21: =Off.Cap.!F44+0.5*Off.Cap.!R44 -> 2127 | W21: =Off.Cap.!Q44+0.5*Off.Cap.!S44 -> 1473 | X21: =0.5*Off.Cap.!R44 -> 773 | Y21: =0.5*Off.Cap.!S44 -> 427
A22: =MIN(U22,Off.Cap.!L45) -> 0 | B22: 0 | C22: 477 | D22: =MIN(T22,Off.Cap.!E45) -> 500 | E22: =MIN(U22,Off.Cap.!O45) -> 0 | F22: =MIN(T22,Off.Cap.!P45) -> 500 | G22: =Algoritmus!AP15 -> 0 | H22: =Algoritmus!AQ15 -> 0 | J22: =Off.Cap.!B45 -> 610 | K22: =Algoritmus!AS15 -> 0 | L22: =Off.Cap.!D45 -> 790 | N22: =Algoritmus!AV15 -> 0 | Q22: =Algoritmus!AX15 -> 0 | R22: =Algoritmus!AY15 -> 0 | T22: =Off.Cap.!M45 -> 500 | U22: =Off.Cap.!N45 -> 0 | V22: =Off.Cap.!F45+0.5*Off.Cap.!R45 -> 2112 | W22: =Off.Cap.!Q45+0.5*Off.Cap.!S45 -> 1638 | X22: =0.5*Off.Cap.!R45 -> 773 | Y22: =0.5*Off.Cap.!S45 -> 477
A23: =MIN(U23,Off.Cap.!L46) -> 0 | B23: 0 | C23: 500 | D23: =MIN(T23,Off.Cap.!E46) -> 500 | E23: =MIN(U23,Off.Cap.!O46) -> 0 | F23: =MIN(T23,Off.Cap.!P46) -> 500 | G23: =Algoritmus!AP16 -> 0 | H23: =Algoritmus!AQ16 -> 0 | J23: =Off.Cap.!B46 -> 610 | K23: =Algoritmus!AS16 -> 0 | L23: =Off.Cap.!D46 -> 790 | N23: =Algoritmus!AV16 -> 0 | Q23: =Algoritmus!AX16 -> 0 | R23: =Algoritmus!AY16 -> 0 | T23: =Off.Cap.!M46 -> 500 | U23: =Off.Cap.!N46 -> 0 | V23: =Off.Cap.!F46+0.5*Off.Cap.!R46 -> 2112 | W23: =Off.Cap.!Q46+0.5*Off.Cap.!S46 -> 1788 | X23: =0.5*Off.Cap.!R46 -> 773 | Y23: =0.5*Off.Cap.!S46 -> 527
A24: =MIN(U24,Off.Cap.!L47) -> 900 | B24: 767 | C24: 428 | D24: =MIN(T24,Off.Cap.!E47) -> 428 | E24: =MIN(U24,Off.Cap.!O47) -> 550 | F24: =MIN(T24,Off.Cap.!P47) -> 428 | G24: =Algoritmus!AP17 -> 0 | H24: =Algoritmus!AQ17 -> 0 | J24: =Off.Cap.!B47 -> 615 | K24: =Algoritmus!AS17 -> 0 | L24: =Off.Cap.!D47 -> 785 | N24: =Algoritmus!AV17 -> 0 | Q24: =Algoritmus!AX17 -> 0 | R24: =Algoritmus!AY17 -> 0 | T24: =Off.Cap.!M47 -> 428 | U24: =Off.Cap.!N47 -> 1007 | V24: =Off.Cap.!F47+0.5*Off.Cap.!R47 -> 2096 | W24: =Off.Cap.!Q47+0.5*Off.Cap.!S47 -> 2104 | X24: =0.5*Off.Cap.!R47 -> 767 | Y24: =0.5*Off.Cap.!S47 -> 633
A25: =MIN(U25,Off.Cap.!L48) -> 900 | B25: 767 | C25: 227 | D25: =MIN(T25,Off.Cap.!E48) -> 227 | E25: =MIN(U25,Off.Cap.!O48) -> 550 | F25: =MIN(T25,Off.Cap.!P48) -> 227 | G25: =Algoritmus!AP18 -> 0 | H25: =Algoritmus!AQ18 -> 0 | J25: =Off.Cap.!B48 -> 615 | K25: =Algoritmus!AS18 -> 0 | L25: =Off.Cap.!D48 -> 785 | N25: =Algoritmus!AV18 -> 0 | Q25: =Algoritmus!AX18 -> 0 | R25: =Algoritmus!AY18 -> 0 | T25: =Off.Cap.!M48 -> 227 | U25: =Off.Cap.!N48 -> 1400 | V25: =Off.Cap.!F48+0.5*Off.Cap.!R48 -> 2096 | W25: =Off.Cap.!Q48+0.5*Off.Cap.!S48 -> 2104 | X25: =0.5*Off.Cap.!R48 -> 767 | Y25: =0.5*Off.Cap.!S48 -> 633
A26: =MIN(U26,Off.Cap.!L49) -> 900 | B26: 764.5 | C26: 460.5 | D26: =MIN(T26,Off.Cap.!E49) -> 500 | E26: =MIN(U26,Off.Cap.!O49) -> 550 | F26: =MIN(T26,Off.Cap.!P49) -> 500 | G26: =Algoritmus!AP19 -> 0 | H26: =Algoritmus!AQ19 -> 0 | J26: =Off.Cap.!B49 -> 655 | K26: =Algoritmus!AS19 -> 0 | L26: =Off.Cap.!D49 -> 745 | N26: =Algoritmus!AV19 -> 0 | Q26: =Algoritmus!AX19 -> 0 | R26: =Algoritmus!AY19 -> 0 | T26: =Off.Cap.!M49 -> 500 | U26: =Off.Cap.!N49 -> 1800 | V26: =Off.Cap.!F49+0.5*Off.Cap.!R49 -> 2201.5 | W26: =Off.Cap.!Q49+0.5*Off.Cap.!S49 -> 1473.5 | X26: =0.5*Off.Cap.!R49 -> 764.5 | Y26: =0.5*Off.Cap.!S49 -> 460.5
A27: =MIN(U27,Off.Cap.!L50) -> 900 | B27: 764.5 | C27: 378 | D27: =MIN(T27,Off.Cap.!E50) -> 378 | E27: =MIN(U27,Off.Cap.!O50) -> 550 | F27: =MIN(T27,Off.Cap.!P50) -> 378 | G27: =Algoritmus!AP20 -> 0 | H27: =Algoritmus!AQ20 -> 0 | J27: =Off.Cap.!B50 -> 655 | K27: =Algoritmus!AS20 -> 0 | L27: =Off.Cap.!D50 -> 745 | N27: =Algoritmus!AV20 -> 0 | Q27: =Algoritmus!AX20 -> 0 | R27: =Algoritmus!AY20 -> 0 | T27: =Off.Cap.!M50 -> 378 | U27: =Off.Cap.!N50 -> 1800 | V27: =Off.Cap.!F50+0.5*Off.Cap.!R50 -> 2201.5 | W27: =Off.Cap.!Q50+0.5*Off.Cap.!S50 -> 1473.5 | X27: =0.5*Off.Cap.!R50 -> 764.5 | Y27: =0.5*Off.Cap.!S50 -> 460.5
A28: =MIN(U28,Off.Cap.!L51) -> 900 | B28: 764.5 | C28: 255 | D28: =MIN(T28,Off.Cap.!E51) -> 255 | E28: =MIN(U28,Off.Cap.!O51) -> 550 | F28: =MIN(T28,Off.Cap.!P51) -> 255 | G28: =Algoritmus!AP21 -> 0 | H28: =Algoritmus!AQ21 -> 0 | J28: =Off.Cap.!B51 -> 655 | K28: =Algoritmus!AS21 -> 0 | L28: =Off.Cap.!D51 -> 745 | N28: =Algoritmus!AV21 -> 0 | Q28: =Algoritmus!AX21 -> 0 | R28: =Algoritmus!AY21 -> 0 | T28: =Off.Cap.!M51 -> 255 | U28: =Off.Cap.!N51 -> 1800 | V28: =Off.Cap.!F51+0.5*Off.Cap.!R51 -> 2201.5 | W28: =Off.Cap.!Q51+0.5*Off.Cap.!S51 -> 1398.5 | X28: =0.5*Off.Cap.!R51 -> 764.5 | Y28: =0.5*Off.Cap.!S51 -> 435.5
A29: =MIN(U29,Off.Cap.!L52) -> 900 | B29: 764.5 | C29: 241 | D29: =MIN(T29,Off.Cap.!E52) -> 241 | E29: =MIN(U29,Off.Cap.!O52) -> 550 | F29: =MIN(T29,Off.Cap.!P52) -> 241 | G29: =Algoritmus!AP22 -> 0 | H29: =Algoritmus!AQ22 -> 0 | J29: =Off.Cap.!B52 -> 655 | K29: =Algoritmus!AS22 -> 0 | L29: =Off.Cap.!D52 -> 745 | N29: =Algoritmus!AV22 -> 0 | Q29: =Algoritmus!AX22 -> 0 | R29: =Algoritmus!AY22 -> 0 | T29: =Off.Cap.!M52 -> 241 | U29: =Off.Cap.!N52 -> 1800 | V29: =Off.Cap.!F52+0.5*Off.Cap.!R52 -> 2201.5 | W29: =Off.Cap.!Q52+0.5*Off.Cap.!S52 -> 1623.5 | X29: =0.5*Off.Cap.!R52 -> 764.5 | Y29: =0.5*Off.Cap.!S52 -> 510.5
A30: =MIN(U30,Off.Cap.!L53) -> 900 | B30: 764.5 | C30: 275 | D30: =MIN(T30,Off.Cap.!E53) -> 275 | E30: =MIN(U30,Off.Cap.!O53) -> 550 | F30: =MIN(T30,Off.Cap.!P53) -> 275 | G30: =Algoritmus!AP23 -> 0 | H30: =Algoritmus!AQ23 -> 0 | J30: =Off.Cap.!B53 -> 655 | K30: =Algoritmus!AS23 -> 0 | L30: =Off.Cap.!D53 -> 745 | N30: =Algoritmus!AV23 -> 0 | Q30: =Algoritmus!AX23 -> 0 | R30: =Algoritmus!AY23 -> 0 | T30: =Off.Cap.!M53 -> 275 | U30: =Off.Cap.!N53 -> 1800 | V30: =Off.Cap.!F53+0.5*Off.Cap.!R53 -> 2201.5 | W30: =Off.Cap.!Q53+0.5*Off.Cap.!S53 -> 1698.5 | X30: =0.5*Off.Cap.!R53 -> 764.5 | Y30: =0.5*Off.Cap.!S53 -> 535.5
A31: =MIN(U31,Off.Cap.!L54) -> 900 | B31: 764.5 | C31: 389 | D31: =MIN(T31,Off.Cap.!E54) -> 389 | E31: =MIN(U31,Off.Cap.!O54) -> 550 | F31: =MIN(T31,Off.Cap.!P54) -> 389 | G31: =Algoritmus!AP24 -> 0 | H31: =Algoritmus!AQ24 -> 0 | J31: =Off.Cap.!B54 -> 655 | K31: =Algoritmus!AS24 -> 0 | L31: =Off.Cap.!D54 -> 745 | N31: =Algoritmus!AV24 -> 0 | Q31: =Algoritmus!AX24 -> 0 | R31: =Algoritmus!AY24 -> 0 | T31: =Off.Cap.!M54 -> 389 | U31: =Off.Cap.!N54 -> 1800 | V31: =Off.Cap.!F54+0.5*Off.Cap.!R54 -> 2201.5 | W31: =Off.Cap.!Q54+0.5*Off.Cap.!S54 -> 1548.5 | X31: =0.5*Off.Cap.!R54 -> 764.5 | Y31: =0.5*Off.Cap.!S54 -> 485.5
A32: =MIN(U32,Off.Cap.!L55) -> 678 | B32: 678 | C32: 452 | D32: =MIN(T32,Off.Cap.!E55) -> 500 | E32: =MIN(U32,Off.Cap.!O55) -> 550 | F32: =MIN(T32,Off.Cap.!P55) -> 500 | G32: =Algoritmus!AP25 -> 0 | H32: =Algoritmus!AQ25 -> 0 | J32: =Off.Cap.!B55 -> 640 | K32: =Algoritmus!AS25 -> 0 | L32: =Off.Cap.!D55 -> 760 | N32: =Algoritmus!AV25 -> 0 | Q32: =Algoritmus!AX25 -> 0 | R32: =Algoritmus!AY25 -> 0 | T32: =Off.Cap.!M55 -> 500 | U32: =Off.Cap.!N55 -> 678 | V32: =Off.Cap.!F55+0.5*Off.Cap.!R55 -> 2220 | W32: =Off.Cap.!Q55+0.5*Off.Cap.!S55 -> 1455 | X32: =0.5*Off.Cap.!R55 -> 773 | Y32: =0.5*Off.Cap.!S55 -> 452
A33: =MIN(U33,Off.Cap.!L56) -> 744 | B33: 744 | C33: 0 | D33: =MIN(T33,Off.Cap.!E56) -> 0 | E33: =MIN(U33,Off.Cap.!O56) -> 550 | F33: =MIN(T33,Off.Cap.!P56) -> 0 | G33: =Algoritmus!AP26 -> 0 | H33: =Algoritmus!AQ26 -> 0 | J33: =Off.Cap.!B56 -> 640 | K33: =Algoritmus!AS26 -> 0 | L33: =Off.Cap.!D56 -> 760 | N33: =Algoritmus!AV26 -> 0 | Q33: =Algoritmus!AX26 -> 0 | R33: =Algoritmus!AY26 -> 0 | T33: =Off.Cap.!M56 -> 0 | U33: =Off.Cap.!N56 -> 744 | V33: =Off.Cap.!F56+0.5*Off.Cap.!R56 -> 2220 | W33: =Off.Cap.!Q56+0.5*Off.Cap.!S56 -> 1380 | X33: =0.5*Off.Cap.!R56 -> 773 | Y33: =0.5*Off.Cap.!S56 -> 427
A34: =MIN(U34,Off.Cap.!L57) -> 543 | B34: 543 | C34: 0 | D34: =MIN(T34,Off.Cap.!E57) -> 0 | E34: =MIN(U34,Off.Cap.!O57) -> 543 | F34: =MIN(T34,Off.Cap.!P57) -> 0 | G34: =Algoritmus!AP27 -> 0 | H34: =Algoritmus!AQ27 -> 0 | J34: =Off.Cap.!B57 -> 610 | K34: =Algoritmus!AS27 -> 0 | L34: =Off.Cap.!D57 -> 790 | N34: =Algoritmus!AV27 -> 0 | Q34: =Algoritmus!AX27 -> 0 | R34: =Algoritmus!AY27 -> 0 | T34: =Off.Cap.!M57 -> 0 | U34: =Off.Cap.!N57 -> 543 | V34: =Off.Cap.!F57+0.5*Off.Cap.!R57 -> 2300 | W34: =Off.Cap.!Q57+0.5*Off.Cap.!S57 -> 1450 | X34: =0.5*Off.Cap.!R57 -> 773 | Y34: =0.5*Off.Cap.!S57 -> 477
A35: =MIN(U35,Off.Cap.!L58) -> 496 | B35: 496 | C35: 0 | D35: =MIN(T35,Off.Cap.!E58) -> 0 | E35: =MIN(U35,Off.Cap.!O58) -> 496 | F35: =MIN(T35,Off.Cap.!P58) -> 0 | G35: =Algoritmus!AP28 -> 0 | H35: =Algoritmus!AQ28 -> 0 | J35: =Off.Cap.!B58 -> 610 | K35: =Algoritmus!AS28 -> 0 | L35: =Off.Cap.!D58 -> 790 | N35: =Algoritmus!AV28 -> 0 | Q35: =Algoritmus!AX28 -> 0 | R35: =Algoritmus!AY28 -> 0 | T35: =Off.Cap.!M58 -> 0 | U35: =Off.Cap.!N58 -> 496 | V35: =Off.Cap.!F58+0.5*Off.Cap.!R58 -> 2300 | W35: =Off.Cap.!Q58+0.5*Off.Cap.!S58 -> 1600 | X35: =0.5*Off.Cap.!R58 -> 773 | Y35: =0.5*Off.Cap.!S58 -> 527
A36: =MIN(U36,Off.Cap.!L59) -> 547 | B36: 547 | C36: 500 | D36: =MIN(T36,Off.Cap.!E59) -> 500 | E36: =MIN(U36,Off.Cap.!O59) -> 547 | F36: =MIN(T36,Off.Cap.!P59) -> 500 | G36: =Algoritmus!AP29 -> 0 | H36: =Algoritmus!AQ29 -> 0 | J36: =Off.Cap.!B59 -> 610 | K36: =Algoritmus!AS29 -> 0 | L36: =Off.Cap.!D59 -> 790 | N36: =Algoritmus!AV29 -> 0 | Q36: =Algoritmus!AX29 -> 0 | R36: =Algoritmus!AY29 -> 0 | T36: =Off.Cap.!M59 -> 500 | U36: =Off.Cap.!N59 -> 547 | V36: =Off.Cap.!F59+0.5*Off.Cap.!R59 -> 2300 | W36: =Off.Cap.!Q59+0.5*Off.Cap.!S59 -> 1975 | X36: =0.5*Off.Cap.!R59 -> 773 | Y36: =0.5*Off.Cap.!S59 -> 652
A37: =MIN(U37,Off.Cap.!L60) -> 533 | B37: 533 | C37: 500 | D37: =MIN(T37,Off.Cap.!E60) -> 500 | E37: =MIN(U37,Off.Cap.!O60) -> 533 | F37: =MIN(T37,Off.Cap.!P60) -> 500 | G37: =Algoritmus!AP30 -> 0 | H37: =Algoritmus!AQ30 -> 0 | J37: =Off.Cap.!B60 -> 610 | K37: =Algoritmus!AS30 -> 0 | L37: =Off.Cap.!D60 -> 790 | N37: =Algoritmus!AV30 -> 0 | Q37: =Algoritmus!AX30 -> 0 | R37: =Algoritmus!AY30 -> 0 | T37: =Off.Cap.!M60 -> 500 | U37: =Off.Cap.!N60 -> 533 | V37: =Off.Cap.!F60+0.5*Off.Cap.!R60 -> 2300 | W37: =Off.Cap.!Q60+0.5*Off.Cap.!S60 -> 1975 | X37: =0.5*Off.Cap.!R60 -> 773 | Y37: =0.5*Off.Cap.!S60 -> 652
A38: =MIN(U38,Off.Cap.!L61) -> 611 | B38: 611 | C38: 500 | D38: =MIN(T38,Off.Cap.!E61) -> 500 | E38: =MIN(U38,Off.Cap.!O61) -> 550 | F38: =MIN(T38,Off.Cap.!P61) -> 500 | G38: =Algoritmus!AP31 -> 0 | H38: =Algoritmus!AQ31 -> 0 | J38: =Off.Cap.!B61 -> 610 | K38: =Algoritmus!AS31 -> 0 | L38: =Off.Cap.!D61 -> 790 | N38: =Algoritmus!AV31 -> 0 | Q38: =Algoritmus!AX31 -> 0 | R38: =Algoritmus!AY31 -> 0 | T38: =Off.Cap.!M61 -> 500 | U38: =Off.Cap.!N61 -> 611 | V38: =Off.Cap.!F61+0.5*Off.Cap.!R61 -> 2300 | W38: =Off.Cap.!Q61+0.5*Off.Cap.!S61 -> 1975 | X38: =0.5*Off.Cap.!R61 -> 773 | Y38: =0.5*Off.Cap.!S61 -> 652
A39: =MIN(U39,Off.Cap.!L62) -> 618 | B39: 618 | C39: 500 | D39: =MIN(T39,Off.Cap.!E62) -> 500 | E39: =MIN(U39,Off.Cap.!O62) -> 550 | F39: =MIN(T39,Off.Cap.!P62) -> 500 | G39: =Algoritmus!AP32 -> 0 | H39: =Algoritmus!AQ32 -> 0 | J39: =Off.Cap.!B62 -> 610 | K39: =Algoritmus!AS32 -> 0 | L39: =Off.Cap.!D62 -> 790 | N39: =Algoritmus!AV32 -> 0 | Q39: =Algoritmus!AX32 -> 0 | R39: =Algoritmus!AY32 -> 0 | T39: =Off.Cap.!M62 -> 500 | U39: =Off.Cap.!N62 -> 618 | V39: =Off.Cap.!F62+0.5*Off.Cap.!R62 -> 2300 | W39: =Off.Cap.!Q62+0.5*Off.Cap.!S62 -> 1975 | X39: =0.5*Off.Cap.!R62 -> 773 | Y39: =0.5*Off.Cap.!S62 -> 652
A40: =MIN(U40,Off.Cap.!L63) -> 602 | B40: 602 | C40: 500 | D40: =MIN(T40,Off.Cap.!E63) -> 500 | E40: =MIN(U40,Off.Cap.!O63) -> 550 | F40: =MIN(T40,Off.Cap.!P63) -> 500 | G40: =Algoritmus!AP33 -> 0 | H40: =Algoritmus!AQ33 -> 0 | J40: =Off.Cap.!B63 -> 610 | K40: =Algoritmus!AS33 -> 0 | L40: =Off.Cap.!D63 -> 790 | N40: =Algoritmus!AV33 -> 0 | Q40: =Algoritmus!AX33 -> 0 | R40: =Algoritmus!AY33 -> 0 | T40: =Off.Cap.!M63 -> 500 | U40: =Off.Cap.!N63 -> 602 | V40: =Off.Cap.!F63+0.5*Off.Cap.!R63 -> 2300 | W40: =Off.Cap.!Q63+0.5*Off.Cap.!S63 -> 1975 | X40: =0.5*Off.Cap.!R63 -> 773 | Y40: =0.5*Off.Cap.!S63 -> 652
A41: =MIN(U41,Off.Cap.!L64) -> 448 | B41: 448 | C41: 500 | D41: =MIN(T41,Off.Cap.!E64) -> 500 | E41: =MIN(U41,Off.Cap.!O64) -> 448 | F41: =MIN(T41,Off.Cap.!P64) -> 500 | G41: =Algoritmus!AP34 -> 0 | H41: =Algoritmus!AQ34 -> 0 | J41: =Off.Cap.!B64 -> 610 | K41: =Algoritmus!AS34 -> 0 | L41: =Off.Cap.!D64 -> 790 | N41: =Algoritmus!AV34 -> 0 | Q41: =Algoritmus!AX34 -> 0 | R41: =Algoritmus!AY34 -> 0 | T41: =Off.Cap.!M64 -> 500 | U41: =Off.Cap.!N64 -> 448 | V41: =Off.Cap.!F64+0.5*Off.Cap.!R64 -> 2300 | W41: =Off.Cap.!Q64+0.5*Off.Cap.!S64 -> 1750 | X41: =0.5*Off.Cap.!R64 -> 773 | Y41: =0.5*Off.Cap.!S64 -> 577
A42: =MIN(U42,Off.Cap.!L65) -> 210 | B42: 210 | C42: 500 | D42: =MIN(T42,Off.Cap.!E65) -> 500 | E42: =MIN(U42,Off.Cap.!O65) -> 210 | F42: =MIN(T42,Off.Cap.!P65) -> 500 | G42: =Algoritmus!AP35 -> 0 | H42: =Algoritmus!AQ35 -> 0 | J42: =Off.Cap.!B65 -> 610 | K42: =Algoritmus!AS35 -> 0 | L42: =Off.Cap.!D65 -> 790 | N42: =Algoritmus!AV35 -> 0 | Q42: =Algoritmus!AX35 -> 0 | R42: =Algoritmus!AY35 -> 0 | T42: =Off.Cap.!M65 -> 500 | U42: =Off.Cap.!N65 -> 210 | V42: =Off.Cap.!F65+0.5*Off.Cap.!R65 -> 2300 | W42: =Off.Cap.!Q65+0.5*Off.Cap.!S65 -> 1600 | X42: =0.5*Off.Cap.!R65 -> 773 | Y42: =0.5*Off.Cap.!S65 -> 527
A43: =MIN(U43,Off.Cap.!L66) -> 254 | B43: 254 | C43: 500 | D43: =MIN(T43,Off.Cap.!E66) -> 500 | E43: =MIN(U43,Off.Cap.!O66) -> 254 | F43: =MIN(T43,Off.Cap.!P66) -> 500 | G43: =Algoritmus!AP36 -> 0 | H43: =Algoritmus!AQ36 -> 0 | J43: =Off.Cap.!B66 -> 610 | K43: =Algoritmus!AS36 -> 0 | L43: =Off.Cap.!D66 -> 790 | N43: =Algoritmus!AV36 -> 0 | Q43: =Algoritmus!AX36 -> 0 | R43: =Algoritmus!AY36 -> 0 | T43: =Off.Cap.!M66 -> 500 | U43: =Off.Cap.!N66 -> 254 | V43: =Off.Cap.!F66+0.5*Off.Cap.!R66 -> 2300 | W43: =Off.Cap.!Q66+0.5*Off.Cap.!S66 -> 1825 | X43: =0.5*Off.Cap.!R66 -> 773 | Y43: =0.5*Off.Cap.!S66 -> 602
A44: =MIN(U44,Off.Cap.!L67) -> 284 | B44: 284 | C44: 500 | D44: =MIN(T44,Off.Cap.!E67) -> 500 | E44: =MIN(U44,Off.Cap.!O67) -> 284 | F44: =MIN(T44,Off.Cap.!P67) -> 500 | G44: =Algoritmus!AP37 -> 0 | H44: =Algoritmus!AQ37 -> 0 | J44: =Off.Cap.!B67 -> 610 | K44: =Algoritmus!AS37 -> 0 | L44: =Off.Cap.!D67 -> 790 | N44: =Algoritmus!AV37 -> 0 | Q44: =Algoritmus!AX37 -> 0 | R44: =Algoritmus!AY37 -> 0 | T44: =Off.Cap.!M67 -> 500 | U44: =Off.Cap.!N67 -> 284 | V44: =Off.Cap.!F67+0.5*Off.Cap.!R67 -> 2300 | W44: =Off.Cap.!Q67+0.5*Off.Cap.!S67 -> 1975 | X44: =0.5*Off.Cap.!R67 -> 773 | Y44: =0.5*Off.Cap.!S67 -> 652
A45: =MIN(U45,Off.Cap.!L68) -> 335 | B45: 335 | C45: 500 | D45: =MIN(T45,Off.Cap.!E68) -> 500 | E45: =MIN(U45,Off.Cap.!O68) -> 335 | F45: =MIN(T45,Off.Cap.!P68) -> 500 | G45: =Algoritmus!AP38 -> 0 | H45: =Algoritmus!AQ38 -> 0 | J45: =Off.Cap.!B68 -> 610 | K45: =Algoritmus!AS38 -> 0 | L45: =Off.Cap.!D68 -> 790 | N45: =Algoritmus!AV38 -> 0 | Q45: =Algoritmus!AX38 -> 0 | R45: =Algoritmus!AY38 -> 0 | T45: =Off.Cap.!M68 -> 500 | U45: =Off.Cap.!N68 -> 335 | V45: =Off.Cap.!F68+0.5*Off.Cap.!R68 -> 2300 | W45: =Off.Cap.!Q68+0.5*Off.Cap.!S68 -> 1750 | X45: =0.5*Off.Cap.!R68 -> 773 | Y45: =0.5*Off.Cap.!S68 -> 577
A46: =MIN(U46,Off.Cap.!L69) -> 567 | B46: 567 | C46: 500 | D46: =MIN(T46,Off.Cap.!E69) -> 500 | E46: =MIN(U46,Off.Cap.!O69) -> 550 | F46: =MIN(T46,Off.Cap.!P69) -> 500 | G46: =Algoritmus!AP39 -> 0 | H46: =Algoritmus!AQ39 -> 0 | J46: =Off.Cap.!B69 -> 640 | K46: =Algoritmus!AS39 -> 0 | L46: =Off.Cap.!D69 -> 760 | N46: =Algoritmus!AV39 -> 0 | Q46: =Algoritmus!AX39 -> 0 | R46: =Algoritmus!AY39 -> 0 | T46: =Off.Cap.!M69 -> 500 | U46: =Off.Cap.!N69 -> 567 | V46: =Off.Cap.!F69+0.5*Off.Cap.!R69 -> 2220 | W46: =Off.Cap.!Q69+0.5*Off.Cap.!S69 -> 1605 | X46: =0.5*Off.Cap.!R69 -> 773 | Y46: =0.5*Off.Cap.!S69 -> 502
A47: =MIN(U47,Off.Cap.!L70) -> 900 | B47: 773 | C47: 477 | D47: =MIN(T47,Off.Cap.!E70) -> 500 | E47: =MIN(U47,Off.Cap.!O70) -> 550 | F47: =MIN(T47,Off.Cap.!P70) -> 500 | G47: =Algoritmus!AP40 -> 0 | H47: =Algoritmus!AQ40 -> 0 | J47: =Off.Cap.!B70 -> 640 | K47: =Algoritmus!AS40 -> 0 | L47: =Off.Cap.!D70 -> 760 | N47: =Algoritmus!AV40 -> 0 | Q47: =Algoritmus!AX40 -> 0 | R47: =Algoritmus!AY40 -> 0 | T47: =Off.Cap.!M70 -> 500 | U47: =Off.Cap.!N70 -> 1326 | V47: =Off.Cap.!F70+0.5*Off.Cap.!R70 -> 2220 | W47: =Off.Cap.!Q70+0.5*Off.Cap.!S70 -> 1530 | X47: =0.5*Off.Cap.!R70 -> 773 | Y47: =0.5*Off.Cap.!S70 -> 477
A48: =MIN(U48,Off.Cap.!L71) -> 900 | B48: 767 | C48: 379 | D48: =MIN(T48,Off.Cap.!E71) -> 379 | E48: =MIN(U48,Off.Cap.!O71) -> 550 | F48: =MIN(T48,Off.Cap.!P71) -> 379 | G48: =Algoritmus!AP41 -> 0 | H48: =Algoritmus!AQ41 -> 0 | J48: =Off.Cap.!B71 -> 645 | K48: =Algoritmus!AS41 -> 0 | L48: =Off.Cap.!D71 -> 755 | N48: =Algoritmus!AV41 -> 0 | Q48: =Algoritmus!AX41 -> 0 | R48: =Algoritmus!AY41 -> 0 | T48: =Off.Cap.!M71 -> 379 | U48: =Off.Cap.!N71 -> 1400 | V48: =Off.Cap.!F71+0.5*Off.Cap.!R71 -> 2204 | W48: =Off.Cap.!Q71+0.5*Off.Cap.!S71 -> 1321 | X48: =0.5*Off.Cap.!R71 -> 767 | Y48: =0.5*Off.Cap.!S71 -> 408
A49: =MIN(U49,Off.Cap.!L72) -> 900 | B49: 767 | C49: 249 | D49: =MIN(T49,Off.Cap.!E72) -> 249 | E49: =MIN(U49,Off.Cap.!O72) -> 550 | F49: =MIN(T49,Off.Cap.!P72) -> 249 | G49: =Algoritmus!AP42 -> 0 | H49: =Algoritmus!AQ42 -> 0 | J49: =Off.Cap.!B72 -> 645 | K49: =Algoritmus!AS42 -> 0 | L49: =Off.Cap.!D72 -> 755 | N49: =Algoritmus!AV42 -> 0 | Q49: =Algoritmus!AX42 -> 0 | R49: =Algoritmus!AY42 -> 0 | T49: =Off.Cap.!M72 -> 249 | U49: =Off.Cap.!N72 -> 1400 | V49: =Off.Cap.!F72+0.5*Off.Cap.!R72 -> 2204 | W49: =Off.Cap.!Q72+0.5*Off.Cap.!S72 -> 1471 | X49: =0.5*Off.Cap.!R72 -> 767 | Y49: =0.5*Off.Cap.!S72 -> 458
A50: =MIN(U50,Off.Cap.!L73) -> 900 | B50: 755.5 | C50: 469.5 | D50: =MIN(T50,Off.Cap.!E73) -> 500 | E50: =MIN(U50,Off.Cap.!O73) -> 550 | F50: =MIN(T50,Off.Cap.!P73) -> 500 | G50: =Algoritmus!AP43 -> 0 | H50: =Algoritmus!AQ43 -> 0 | J50: =Off.Cap.!B73 -> 700 | K50: =Algoritmus!AS43 -> 0 | L50: =Off.Cap.!D73 -> 700 | N50: =Algoritmus!AV43 -> 0 | Q50: =Algoritmus!AX43 -> 0 | R50: =Algoritmus!AY43 -> 0 | T50: =Off.Cap.!M73 -> 500 | U50: =Off.Cap.!N73 -> 1400 | V50: =Off.Cap.!F73+0.5*Off.Cap.!R73 -> 2256.5 | W50: =Off.Cap.!Q73+0.5*Off.Cap.!S73 -> 1418.5 | X50: =0.5*Off.Cap.!R73 -> 755.5 | Y50: =0.5*Off.Cap.!S73 -> 469.5
A51: =MIN(U51,Off.Cap.!L74) -> 900 | B51: 755.5 | C51: 479 | D51: =MIN(T51,Off.Cap.!E74) -> 479 | E51: =MIN(U51,Off.Cap.!O74) -> 550 | F51: =MIN(T51,Off.Cap.!P74) -> 479 | G51: =Algoritmus!AP44 -> 0 | H51: =Algoritmus!AQ44 -> 0 | J51: =Off.Cap.!B74 -> 700 | K51: =Algoritmus!AS44 -> 0 | L51: =Off.Cap.!D74 -> 700 | N51: =Algoritmus!AV44 -> 0 | Q51: =Algoritmus!AX44 -> 0 | R51: =Algoritmus!AY44 -> 0 | T51: =Off.Cap.!M74 -> 479 | U51: =Off.Cap.!N74 -> 1400 | V51: =Off.Cap.!F74+0.5*Off.Cap.!R74 -> 2256.5 | W51: =Off.Cap.!Q74+0.5*Off.Cap.!S74 -> 1568.5 | X51: =0.5*Off.Cap.!R74 -> 755.5 | Y51: =0.5*Off.Cap.!S74 -> 519.5
A52: =MIN(U52,Off.Cap.!L75) -> 900 | B52: 755.5 | C52: 330 | D52: =MIN(T52,Off.Cap.!E75) -> 330 | E52: =MIN(U52,Off.Cap.!O75) -> 550 | F52: =MIN(T52,Off.Cap.!P75) -> 330 | G52: =Algoritmus!AP45 -> 0 | H52: =Algoritmus!AQ45 -> 0 | J52: =Off.Cap.!B75 -> 700 | K52: =Algoritmus!AS45 -> 0 | L52: =Off.Cap.!D75 -> 700 | N52: =Algoritmus!AV45 -> 0 | Q52: =Algoritmus!AX45 -> 0 | R52: =Algoritmus!AY45 -> 0 | T52: =Off.Cap.!M75 -> 330 | U52: =Off.Cap.!N75 -> 1400 | V52: =Off.Cap.!F75+0.5*Off.Cap.!R75 -> 2256.5 | W52: =Off.Cap.!Q75+0.5*Off.Cap.!S75 -> 1793.5 | X52: =0.5*Off.Cap.!R75 -> 755.5 | Y52: =0.5*Off.Cap.!S75 -> 594.5
A53: =MIN(U53,Off.Cap.!L76) -> 900 | B53: 755.5 | C53: 244 | D53: =MIN(T53,Off.Cap.!E76) -> 244 | E53: =MIN(U53,Off.Cap.!O76) -> 550 | F53: =MIN(T53,Off.Cap.!P76) -> 244 | G53: =Algoritmus!AP46 -> 0 | H53: =Algoritmus!AQ46 -> 0 | J53: =Off.Cap.!B76 -> 700 | K53: =Algoritmus!AS46 -> 0 | L53: =Off.Cap.!D76 -> 700 | N53: =Algoritmus!AV46 -> 0 | Q53: =Algoritmus!AX46 -> 0 | R53: =Algoritmus!AY46 -> 0 | T53: =Off.Cap.!M76 -> 244 | U53: =Off.Cap.!N76 -> 1400 | V53: =Off.Cap.!F76+0.5*Off.Cap.!R76 -> 2256.5 | W53: =Off.Cap.!Q76+0.5*Off.Cap.!S76 -> 1793.5 | X53: =0.5*Off.Cap.!R76 -> 755.5 | Y53: =0.5*Off.Cap.!S76 -> 594.5
A54: =MIN(U54,Off.Cap.!L77) -> 900 | B54: 755.5 | C54: 238 | D54: =MIN(T54,Off.Cap.!E77) -> 238 | E54: =MIN(U54,Off.Cap.!O77) -> 550 | F54: =MIN(T54,Off.Cap.!P77) -> 238 | G54: =Algoritmus!AP47 -> 0 | H54: =Algoritmus!AQ47 -> 0 | J54: =Off.Cap.!B77 -> 700 | K54: =Algoritmus!AS47 -> 0 | L54: =Off.Cap.!D77 -> 700 | N54: =Algoritmus!AV47 -> 0 | Q54: =Algoritmus!AX47 -> 0 | R54: =Algoritmus!AY47 -> 0 | T54: =Off.Cap.!M77 -> 238 | U54: =Off.Cap.!N77 -> 1400 | V54: =Off.Cap.!F77+0.5*Off.Cap.!R77 -> 2256.5 | W54: =Off.Cap.!Q77+0.5*Off.Cap.!S77 -> 1718.5 | X54: =0.5*Off.Cap.!R77 -> 755.5 | Y54: =0.5*Off.Cap.!S77 -> 569.5
A55: =MIN(U55,Off.Cap.!L78) -> 900 | B55: 755.5 | C55: 257 | D55: =MIN(T55,Off.Cap.!E78) -> 257 | E55: =MIN(U55,Off.Cap.!O78) -> 550 | F55: =MIN(T55,Off.Cap.!P78) -> 257 | G55: =Algoritmus!AP48 -> 0 | H55: =Algoritmus!AQ48 -> 0 | J55: =Off.Cap.!B78 -> 700 | K55: =Algoritmus!AS48 -> 0 | L55: =Off.Cap.!D78 -> 700 | N55: =Algoritmus!AV48 -> 0 | Q55: =Algoritmus!AX48 -> 0 | R55: =Algoritmus!AY48 -> 0 | T55: =Off.Cap.!M78 -> 257 | U55: =Off.Cap.!N78 -> 1400 | V55: =Off.Cap.!F78+0.5*Off.Cap.!R78 -> 2256.5 | W55: =Off.Cap.!Q78+0.5*Off.Cap.!S78 -> 1643.5 | X55: =0.5*Off.Cap.!R78 -> 755.5 | Y55: =0.5*Off.Cap.!S78 -> 544.5
A56: =MIN(U56,Off.Cap.!L79) -> 524 | B56: 524 | C56: 363 | D56: =MIN(T56,Off.Cap.!E79) -> 363 | E56: =MIN(U56,Off.Cap.!O79) -> 524 | F56: =MIN(T56,Off.Cap.!P79) -> 363 | G56: =Algoritmus!AP49 -> 0 | H56: =Algoritmus!AQ49 -> 0 | J56: =Off.Cap.!B79 -> 620 | K56: =Algoritmus!AS49 -> 0 | L56: =Off.Cap.!D79 -> 780 | N56: =Algoritmus!AV49 -> 0 | Q56: =Algoritmus!AX49 -> 0 | R56: =Algoritmus!AY49 -> 0 | T56: =Off.Cap.!M79 -> 363 | U56: =Off.Cap.!N79 -> 524 | V56: =Off.Cap.!F79+0.5*Off.Cap.!R79 -> 2356.5 | W56: =Off.Cap.!Q79+0.5*Off.Cap.!S79 -> 1618.5 | X56: =0.5*Off.Cap.!R79 -> 765.5 | Y56: =0.5*Off.Cap.!S79 -> 559.5
A57: =MIN(U57,Off.Cap.!L80) -> 663 | B57: 663 | C57: 475 | D57: =MIN(T57,Off.Cap.!E80) -> 475 | E57: =MIN(U57,Off.Cap.!O80) -> 550 | F57: =MIN(T57,Off.Cap.!P80) -> 475 | G57: =Algoritmus!AP50 -> 0 | H57: =Algoritmus!AQ50 -> 0 | J57: =Off.Cap.!B80 -> 615 | K57: =Algoritmus!AS50 -> 0 | L57: =Off.Cap.!D80 -> 785 | N57: =Algoritmus!AV50 -> 0 | Q57: =Algoritmus!AX50 -> 0 | R57: =Algoritmus!AY50 -> 0 | T57: =Off.Cap.!M80 -> 475 | U57: =Off.Cap.!N80 -> 663 | V57: =Off.Cap.!F80+0.5*Off.Cap.!R80 -> 2358 | W57: =Off.Cap.!Q80+0.5*Off.Cap.!S80 -> 1842 | X57: =0.5*Off.Cap.!R80 -> 767 | Y57: =0.5*Off.Cap.!S80 -> 633
A58: =MIN(U58,Off.Cap.!L81) -> 662 | B58: 662 | C58: 407 | D58: =MIN(T58,Off.Cap.!E81) -> 500 | E58: =MIN(U58,Off.Cap.!O81) -> 550 | F58: =MIN(T58,Off.Cap.!P81) -> 500 | G58: =Algoritmus!AP51 -> 0 | H58: =Algoritmus!AQ51 -> 0 | J58: =Off.Cap.!B81 -> 585 | K58: =Algoritmus!AS51 -> 0 | L58: =Off.Cap.!D81 -> 815 | N58: =Algoritmus!AV51 -> 0 | Q58: =Algoritmus!AX51 -> 0 | R58: =Algoritmus!AY51 -> 0 | T58: =Off.Cap.!M81 -> 500 | U58: =Off.Cap.!N81 -> 662 | V58: =Off.Cap.!F81+0.5*Off.Cap.!R81 -> 2435 | W58: =Off.Cap.!Q81+0.5*Off.Cap.!S81 -> 1240 | X58: =0.5*Off.Cap.!R81 -> 818 | Y58: =0.5*Off.Cap.!S81 -> 407
A59: =MIN(U59,Off.Cap.!L82) -> 900 | B59: 818 | C59: 407 | D59: =MIN(T59,Off.Cap.!E82) -> 500 | E59: =MIN(U59,Off.Cap.!O82) -> 550 | F59: =MIN(T59,Off.Cap.!P82) -> 500 | G59: =Algoritmus!AP52 -> 0 | H59: =Algoritmus!AQ52 -> 0 | J59: =Off.Cap.!B82 -> 585 | K59: =Algoritmus!AS52 -> 0 | L59: =Off.Cap.!D82 -> 815 | N59: =Algoritmus!AV52 -> 0 | Q59: =Algoritmus!AX52 -> 0 | R59: =Algoritmus!AY52 -> 0 | T59: =Off.Cap.!M82 -> 500 | U59: =Off.Cap.!N82 -> 1400 | V59: =Off.Cap.!F82+0.5*Off.Cap.!R82 -> 2435 | W59: =Off.Cap.!Q82+0.5*Off.Cap.!S82 -> 1240 | X59: =0.5*Off.Cap.!R82 -> 818 | Y59: =0.5*Off.Cap.!S82 -> 407
A60: =MIN(U60,Off.Cap.!L83) -> 900 | B60: 818 | C60: 357 | D60: =MIN(T60,Off.Cap.!E83) -> 500 | E60: =MIN(U60,Off.Cap.!O83) -> 550 | F60: =MIN(T60,Off.Cap.!P83) -> 500 | G60: =Algoritmus!AP53 -> 0 | H60: =Algoritmus!AQ53 -> 0 | J60: =Off.Cap.!B83 -> 385 | K60: =Algoritmus!AS53 -> 0 | L60: =Off.Cap.!D83 -> 615 | N60: =Algoritmus!AV53 -> 0 | Q60: =Algoritmus!AX53 -> 0 | R60: =Algoritmus!AY53 -> 0 | T60: =Off.Cap.!M83 -> 500 | U60: =Off.Cap.!N83 -> 1400 | V60: =Off.Cap.!F83+0.5*Off.Cap.!R83 -> 2435 | W60: =Off.Cap.!Q83+0.5*Off.Cap.!S83 -> 1090 | X60: =0.5*Off.Cap.!R83 -> 818 | Y60: =0.5*Off.Cap.!S83 -> 357
A61: =MIN(U61,Off.Cap.!L84) -> 900 | B61: 818 | C61: 382 | D61: =MIN(T61,Off.Cap.!E84) -> 500 | E61: =MIN(U61,Off.Cap.!O84) -> 550 | F61: =MIN(T61,Off.Cap.!P84) -> 500 | G61: =Algoritmus!AP54 -> 0 | H61: =Algoritmus!AQ54 -> 0 | J61: =Off.Cap.!B84 -> 385 | K61: =Algoritmus!AS54 -> 0 | L61: =Off.Cap.!D84 -> 615 | N61: =Algoritmus!AV54 -> 0 | Q61: =Algoritmus!AX54 -> 0 | R61: =Algoritmus!AY54 -> 0 | T61: =Off.Cap.!M84 -> 500 | U61: =Off.Cap.!N84 -> 1400 | V61: =Off.Cap.!F84+0.5*Off.Cap.!R84 -> 2435 | W61: =Off.Cap.!Q84+0.5*Off.Cap.!S84 -> 1165 | X61: =0.5*Off.Cap.!R84 -> 818 | Y61: =0.5*Off.Cap.!S84 -> 382
A62: =MIN(U62,Off.Cap.!L85) -> 900 | B62: 818 | C62: 407 | D62: =MIN(T62,Off.Cap.!E85) -> 500 | E62: =MIN(U62,Off.Cap.!O85) -> 550 | F62: =MIN(T62,Off.Cap.!P85) -> 500 | G62: =Algoritmus!AP55 -> 0 | H62: =Algoritmus!AQ55 -> 0 | J62: =Off.Cap.!B85 -> 385 | K62: =Algoritmus!AS55 -> 0 | L62: =Off.Cap.!D85 -> 615 | N62: =Algoritmus!AV55 -> 0 | Q62: =Algoritmus!AX55 -> 0 | R62: =Algoritmus!AY55 -> 0 | T62: =Off.Cap.!M85 -> 500 | U62: =Off.Cap.!N85 -> 1400 | V62: =Off.Cap.!F85+0.5*Off.Cap.!R85 -> 2435 | W62: =Off.Cap.!Q85+0.5*Off.Cap.!S85 -> 1240 | X62: =0.5*Off.Cap.!R85 -> 818 | Y62: =0.5*Off.Cap.!S85 -> 407
A63: =MIN(U63,Off.Cap.!L86) -> 900 | B63: 818 | C63: 407 | D63: =MIN(T63,Off.Cap.!E86) -> 500 | E63: =MIN(U63,Off.Cap.!O86) -> 550 | F63: =MIN(T63,Off.Cap.!P86) -> 500 | G63: =Algoritmus!AP56 -> 0 | H63: =Algoritmus!AQ56 -> 0 | J63: =Off.Cap.!B86 -> 385 | K63: =Algoritmus!AS56 -> 0 | L63: =Off.Cap.!D86 -> 615 | N63: =Algoritmus!AV56 -> 0 | Q63: =Algoritmus!AX56 -> 0 | R63: =Algoritmus!AY56 -> 0 | T63: =Off.Cap.!M86 -> 500 | U63: =Off.Cap.!N86 -> 1400 | V63: =Off.Cap.!F86+0.5*Off.Cap.!R86 -> 2435 | W63: =Off.Cap.!Q86+0.5*Off.Cap.!S86 -> 1240 | X63: =0.5*Off.Cap.!R86 -> 818 | Y63: =0.5*Off.Cap.!S86 -> 407
A64: =MIN(U64,Off.Cap.!L87) -> 900 | B64: 818 | C64: 382 | D64: =MIN(T64,Off.Cap.!E87) -> 500 | E64: =MIN(U64,Off.Cap.!O87) -> 550 | F64: =MIN(T64,Off.Cap.!P87) -> 500 | G64: =Algoritmus!AP57 -> 0 | H64: =Algoritmus!AQ57 -> 0 | J64: =Off.Cap.!B87 -> 385 | K64: =Algoritmus!AS57 -> 0 | L64: =Off.Cap.!D87 -> 615 | N64: =Algoritmus!AV57 -> 0 | Q64: =Algoritmus!AX57 -> 0 | R64: =Algoritmus!AY57 -> 0 | T64: =Off.Cap.!M87 -> 500 | U64: =Off.Cap.!N87 -> 1400 | V64: =Off.Cap.!F87+0.5*Off.Cap.!R87 -> 2435 | W64: =Off.Cap.!Q87+0.5*Off.Cap.!S87 -> 1165 | X64: =0.5*Off.Cap.!R87 -> 818 | Y64: =0.5*Off.Cap.!S87 -> 382
A65: =MIN(U65,Off.Cap.!L88) -> 900 | B65: 818 | C65: 357 | D65: =MIN(T65,Off.Cap.!E88) -> 500 | E65: =MIN(U65,Off.Cap.!O88) -> 550 | F65: =MIN(T65,Off.Cap.!P88) -> 500 | G65: =Algoritmus!AP58 -> 0 | H65: =Algoritmus!AQ58 -> 0 | J65: =Off.Cap.!B88 -> 385 | K65: =Algoritmus!AS58 -> 0 | L65: =Off.Cap.!D88 -> 615 | N65: =Algoritmus!AV58 -> 0 | Q65: =Algoritmus!AX58 -> 0 | R65: =Algoritmus!AY58 -> 0 | T65: =Off.Cap.!M88 -> 500 | U65: =Off.Cap.!N88 -> 1400 | V65: =Off.Cap.!F88+0.5*Off.Cap.!R88 -> 2435 | W65: =Off.Cap.!Q88+0.5*Off.Cap.!S88 -> 1090 | X65: =0.5*Off.Cap.!R88 -> 818 | Y65: =0.5*Off.Cap.!S88 -> 357
A66: =MIN(U66,Off.Cap.!L89) -> 900 | B66: 818 | C66: 382 | D66: =MIN(T66,Off.Cap.!E89) -> 500 | E66: =MIN(U66,Off.Cap.!O89) -> 550 | F66: =MIN(T66,Off.Cap.!P89) -> 500 | G66: =Algoritmus!AP59 -> 0 | H66: =Algoritmus!AQ59 -> 0 | J66: =Off.Cap.!B89 -> 385 | K66: =Algoritmus!AS59 -> 0 | L66: =Off.Cap.!D89 -> 615 | N66: =Algoritmus!AV59 -> 0 | Q66: =Algoritmus!AX59 -> 0 | R66: =Algoritmus!AY59 -> 0 | T66: =Off.Cap.!M89 -> 500 | U66: =Off.Cap.!N89 -> 1400 | V66: =Off.Cap.!F89+0.5*Off.Cap.!R89 -> 2435 | W66: =Off.Cap.!Q89+0.5*Off.Cap.!S89 -> 1165 | X66: =0.5*Off.Cap.!R89 -> 818 | Y66: =0.5*Off.Cap.!S89 -> 382
A67: =MIN(U67,Off.Cap.!L90) -> 900 | B67: =MIN(X67,U67) -> 818 | C67: =MIN(T67,Y67) -> 357 | D67: =MIN(T67,Off.Cap.!E90) -> 500 | E67: =MIN(U67,Off.Cap.!O90) -> 550 | F67: =MIN(T67,Off.Cap.!P90) -> 500 | G67: =Algoritmus!AP60 -> 0 | H67: =Algoritmus!AQ60 -> 0 | J67: =Off.Cap.!B90 -> 385 | K67: =Algoritmus!AS60 -> 0 | L67: =Off.Cap.!D90 -> 615 | N67: =Algoritmus!AV60 -> 0 | Q67: =Algoritmus!AX60 -> 0 | R67: =Algoritmus!AY60 -> 0 | T67: =Off.Cap.!M90 -> 500 | U67: =Off.Cap.!N90 -> 1400 | V67: =Off.Cap.!F90+0.5*Off.Cap.!R90 -> 2435 | W67: =Off.Cap.!Q90+0.5*Off.Cap.!S90 -> 1090 | X67: =0.5*Off.Cap.!R90 -> 818 | Y67: =0.5*Off.Cap.!S90 -> 357
A68: =MIN(U68,Off.Cap.!L91) -> 900 | B68: 818 | C68: 332 | D68: =MIN(T68,Off.Cap.!E91) -> 500 | E68: =MIN(U68,Off.Cap.!O91) -> 550 | F68: =MIN(T68,Off.Cap.!P91) -> 500 | G68: =Algoritmus!AP61 -> 0 | H68: =Algoritmus!AQ61 -> 0 | J68: =Off.Cap.!B91 -> 385 | K68: =Algoritmus!AS61 -> 0 | L68: =Off.Cap.!D91 -> 615 | N68: =Algoritmus!AV61 -> 0 | Q68: =Algoritmus!AX61 -> 0 | R68: =Algoritmus!AY61 -> 0 | T68: =Off.Cap.!M91 -> 500 | U68: =Off.Cap.!N91 -> 1400 | V68: =Off.Cap.!F91+0.5*Off.Cap.!R91 -> 2435 | W68: =Off.Cap.!Q91+0.5*Off.Cap.!S91 -> 1015 | X68: =0.5*Off.Cap.!R91 -> 818 | Y68: =0.5*Off.Cap.!S91 -> 332
A69: =MIN(U69,Off.Cap.!L92) -> 900 | B69: 818 | C69: 407 | D69: =MIN(T69,Off.Cap.!E92) -> 500 | E69: =MIN(U69,Off.Cap.!O92) -> 550 | F69: =MIN(T69,Off.Cap.!P92) -> 500 | G69: =Algoritmus!AP62 -> 0 | H69: =Algoritmus!AQ62 -> 0 | J69: =Off.Cap.!B92 -> 385 | K69: =Algoritmus!AS62 -> 0 | L69: =Off.Cap.!D92 -> 615 | N69: =Algoritmus!AV62 -> 0 | Q69: =Algoritmus!AX62 -> 0 | R69: =Algoritmus!AY62 -> 0 | T69: =Off.Cap.!M92 -> 500 | U69: =Off.Cap.!N92 -> 1393 | V69: =Off.Cap.!F92+0.5*Off.Cap.!R92 -> 2435 | W69: =Off.Cap.!Q92+0.5*Off.Cap.!S92 -> 1240 | X69: =0.5*Off.Cap.!R92 -> 818 | Y69: =0.5*Off.Cap.!S92 -> 407
A70: =MIN(U70,Off.Cap.!L93) -> 900 | B70: 773 | C70: 327 | D70: =MIN(T70,Off.Cap.!E93) -> 500 | E70: =MIN(U70,Off.Cap.!O93) -> 550 | F70: =MIN(T70,Off.Cap.!P93) -> 500 | G70: =Algoritmus!AP63 -> 0 | H70: =Algoritmus!AQ63 -> 0 | J70: =Off.Cap.!B93 -> 440 | K70: =Algoritmus!AS63 -> 0 | L70: =Off.Cap.!D93 -> 560 | N70: =Algoritmus!AV63 -> 0 | Q70: =Algoritmus!AX63 -> 0 | R70: =Algoritmus!AY63 -> 0 | T70: =Off.Cap.!M93 -> 500 | U70: =Off.Cap.!N93 -> 1212 | V70: =Off.Cap.!F93+0.5*Off.Cap.!R93 -> 2294 | W70: =Off.Cap.!Q93+0.5*Off.Cap.!S93 -> 1006 | X70: =0.5*Off.Cap.!R93 -> 773 | Y70: =0.5*Off.Cap.!S93 -> 327
A71: =MIN(U71,Off.Cap.!L94) -> 900 | B71: 773 | C71: 327 | D71: =MIN(T71,Off.Cap.!E94) -> 500 | E71: =MIN(U71,Off.Cap.!O94) -> 550 | F71: =MIN(T71,Off.Cap.!P94) -> 500 | G71: =Algoritmus!AP64 -> 0 | H71: =Algoritmus!AQ64 -> 0 | J71: =Off.Cap.!B94 -> 440 | K71: =Algoritmus!AS64 -> 0 | L71: =Off.Cap.!D94 -> 560 | N71: =Algoritmus!AV64 -> 0 | Q71: =Algoritmus!AX64 -> 0 | R71: =Algoritmus!AY64 -> 0 | T71: =Off.Cap.!M94 -> 500 | U71: =Off.Cap.!N94 -> 1400 | V71: =Off.Cap.!F94+0.5*Off.Cap.!R94 -> 2294 | W71: =Off.Cap.!Q94+0.5*Off.Cap.!S94 -> 1006 | X71: =0.5*Off.Cap.!R94 -> 773 | Y71: =0.5*Off.Cap.!S94 -> 327
A72: =MIN(U72,Off.Cap.!L95) -> 900 | B72: 773 | C72: 327 | D72: =MIN(T72,Off.Cap.!E95) -> 500 | E72: =MIN(U72,Off.Cap.!O95) -> 550 | F72: =MIN(T72,Off.Cap.!P95) -> 500 | G72: =Algoritmus!AP65 -> 0 | H72: =Algoritmus!AQ65 -> 0 | J72: =Off.Cap.!B95 -> 640 | K72: =Algoritmus!AS65 -> 0 | L72: =Off.Cap.!D95 -> 760 | N72: =Algoritmus!AV65 -> 0 | Q72: =Algoritmus!AX65 -> 0 | R72: =Algoritmus!AY65 -> 0 | T72: =Off.Cap.!M95 -> 500 | U72: =Off.Cap.!N95 -> 1400 | V72: =Off.Cap.!F95+0.5*Off.Cap.!R95 -> 2294 | W72: =Off.Cap.!Q95+0.5*Off.Cap.!S95 -> 1006 | X72: =0.5*Off.Cap.!R95 -> 773 | Y72: =0.5*Off.Cap.!S95 -> 327
A73: =MIN(U73,Off.Cap.!L96) -> 900 | B73: 773 | C73: 140 | D73: =MIN(T73,Off.Cap.!E96) -> 140 | E73: =MIN(U73,Off.Cap.!O96) -> 550 | F73: =MIN(T73,Off.Cap.!P96) -> 140 | G73: =Algoritmus!AP66 -> 0 | H73: =Algoritmus!AQ66 -> 0 | J73: =Off.Cap.!B96 -> 640 | K73: =Algoritmus!AS66 -> 0 | L73: =Off.Cap.!D96 -> 760 | N73: =Algoritmus!AV66 -> 0 | Q73: =Algoritmus!AX66 -> 0 | R73: =Algoritmus!AY66 -> 0 | T73: =Off.Cap.!M96 -> 140 | U73: =Off.Cap.!N96 -> 1400 | V73: =Off.Cap.!F96+0.5*Off.Cap.!R96 -> 2294 | W73: =Off.Cap.!Q96+0.5*Off.Cap.!S96 -> 1231 | X73: =0.5*Off.Cap.!R96 -> 773 | Y73: =0.5*Off.Cap.!S96 -> 402
A74: =MIN(U74,Off.Cap.!L97) -> 900 | B74: 682 | C74: 0 | D74: =MIN(T74,Off.Cap.!E97) -> 0 | E74: =MIN(U74,Off.Cap.!O97) -> 550 | F74: =MIN(T74,Off.Cap.!P97) -> 0 | G74: =Algoritmus!AP67 -> 0 | H74: =Algoritmus!AQ67 -> 0 | J74: =Off.Cap.!B97 -> 495 | K74: =Algoritmus!AS67 -> 0 | L74: =Off.Cap.!D97 -> 505 | N74: =Algoritmus!AV67 -> 0 | Q74: =Algoritmus!AX67 -> 0 | R74: =Algoritmus!AY67 -> 0 | T74: =Off.Cap.!M97 -> 0 | U74: =Off.Cap.!N97 -> 1400 | V74: =Off.Cap.!F97+0.5*Off.Cap.!R97 -> 1959 | W74: =Off.Cap.!Q97+0.5*Off.Cap.!S97 -> 1341 | X74: =0.5*Off.Cap.!R97 -> 682 | Y74: =0.5*Off.Cap.!S97 -> 418
A75: =MIN(U75,Off.Cap.!L98) -> 900 | B75: 732 | C75: 0 | D75: =MIN(T75,Off.Cap.!E98) -> 0 | E75: =MIN(U75,Off.Cap.!O98) -> 550 | F75: =MIN(T75,Off.Cap.!P98) -> 0 | G75: =Algoritmus!AP68 -> 0 | H75: =Algoritmus!AQ68 -> 0 | J75: =Off.Cap.!B98 -> 495 | K75: =Algoritmus!AS68 -> 0 | L75: =Off.Cap.!D98 -> 505 | N75: =Algoritmus!AV68 -> 0 | Q75: =Algoritmus!AX68 -> 0 | R75: =Algoritmus!AY68 -> 0 | T75: =Off.Cap.!M98 -> 0 | U75: =Off.Cap.!N98 -> 1400 | V75: =Off.Cap.!F98+0.5*Off.Cap.!R98 -> 2109 | W75: =Off.Cap.!Q98+0.5*Off.Cap.!S98 -> 1116 | X75: =0.5*Off.Cap.!R98 -> 732 | Y75: =0.5*Off.Cap.!S98 -> 343
A76: =MIN(U76,Off.Cap.!L99) -> 900 | B76: 717 | C76: 0 | D76: =MIN(T76,Off.Cap.!E99) -> 0 | E76: =MIN(U76,Off.Cap.!O99) -> 550 | F76: =MIN(T76,Off.Cap.!P99) -> 0 | G76: =Algoritmus!AP69 -> 0 | H76: =Algoritmus!AQ69 -> 0 | J76: =Off.Cap.!B99 -> 445 | K76: =Algoritmus!AS69 -> 0 | L76: =Off.Cap.!D99 -> 555 | N76: =Algoritmus!AV69 -> 0 | Q76: =Algoritmus!AX69 -> 0 | R76: =Algoritmus!AY69 -> 0 | T76: =Off.Cap.!M99 -> 0 | U76: =Off.Cap.!N99 -> 1400 | V76: =Off.Cap.!F99+0.5*Off.Cap.!R99 -> 2054 | W76: =Off.Cap.!Q99+0.5*Off.Cap.!S99 -> 1321 | X76: =0.5*Off.Cap.!R99 -> 717 | Y76: =0.5*Off.Cap.!S99 -> 408
A77: =MIN(U77,Off.Cap.!L100) -> 900 | B77: 667 | C77: 0 | D77: =MIN(T77,Off.Cap.!E100) -> 0 | E77: =MIN(U77,Off.Cap.!O100) -> 550 | F77: =MIN(T77,Off.Cap.!P100) -> 0 | G77: =Algoritmus!AP70 -> 0 | H77: =Algoritmus!AQ70 -> 0 | J77: =Off.Cap.!B100 -> 445 | K77: =Algoritmus!AS70 -> 0 | L77: =Off.Cap.!D100 -> 555 | N77: =Algoritmus!AV70 -> 0 | Q77: =Algoritmus!AX70 -> 0 | R77: =Algoritmus!AY70 -> 0 | T77: =Off.Cap.!M100 -> 0 | U77: =Off.Cap.!N100 -> 1400 | V77: =Off.Cap.!F100+0.5*Off.Cap.!R100 -> 1904 | W77: =Off.Cap.!Q100+0.5*Off.Cap.!S100 -> 1096 | X77: =0.5*Off.Cap.!R100 -> 667 | Y77: =0.5*Off.Cap.!S100 -> 333
A78: =MIN(U78,Off.Cap.!L101) -> 900 | B78: 717 | C78: 0 | D78: =MIN(T78,Off.Cap.!E101) -> 0 | E78: =MIN(U78,Off.Cap.!O101) -> 550 | F78: =MIN(T78,Off.Cap.!P101) -> 0 | G78: =Algoritmus!AP71 -> 0 | H78: =Algoritmus!AQ71 -> 0 | J78: =Off.Cap.!B101 -> 445 | K78: =Algoritmus!AS71 -> 0 | L78: =Off.Cap.!D101 -> 555 | N78: =Algoritmus!AV71 -> 0 | Q78: =Algoritmus!AX71 -> 0 | R78: =Algoritmus!AY71 -> 0 | T78: =Off.Cap.!M101 -> 0 | U78: =Off.Cap.!N101 -> 1400 | V78: =Off.Cap.!F101+0.5*Off.Cap.!R101 -> 2054 | W78: =Off.Cap.!Q101+0.5*Off.Cap.!S101 -> 1096 | X78: =0.5*Off.Cap.!R101 -> 717 | Y78: =0.5*Off.Cap.!S101 -> 333
A79: =MIN(U79,Off.Cap.!L102) -> 900 | B79: 723 | C79: 0 | D79: =MIN(T79,Off.Cap.!E102) -> 0 | E79: =MIN(U79,Off.Cap.!O102) -> 550 | F79: =MIN(T79,Off.Cap.!P102) -> 0 | G79: =Algoritmus!AP72 -> 0 | H79: =Algoritmus!AQ72 -> 0 | J79: =Off.Cap.!B102 -> 440 | K79: =Algoritmus!AS72 -> 0 | L79: =Off.Cap.!D102 -> 560 | N79: =Algoritmus!AV72 -> 0 | Q79: =Algoritmus!AX72 -> 0 | R79: =Algoritmus!AY72 -> 0 | T79: =Off.Cap.!M102 -> 0 | U79: =Off.Cap.!N102 -> 1400 | V79: =Off.Cap.!F102+0.5*Off.Cap.!R102 -> 2070 | W79: =Off.Cap.!Q102+0.5*Off.Cap.!S102 -> 855 | X79: =0.5*Off.Cap.!R102 -> 723 | Y79: =0.5*Off.Cap.!S102 -> 252
A80: =MIN(U80,Off.Cap.!L103) -> 504 | B80: 504 | C80: 156 | D80: =MIN(T80,Off.Cap.!E103) -> 156 | E80: =MIN(U80,Off.Cap.!O103) -> 504 | F80: =MIN(T80,Off.Cap.!P103) -> 156 | G80: =Algoritmus!AP73 -> 0 | H80: =Algoritmus!AQ73 -> 0 | J80: =Off.Cap.!B103 -> 410 | K80: =Algoritmus!AS73 -> 0 | L80: =Off.Cap.!D103 -> 590 | N80: =Algoritmus!AV73 -> 0 | Q80: =Algoritmus!AX73 -> 0 | R80: =Algoritmus!AY73 -> 0 | T80: =Off.Cap.!M103 -> 156 | U80: =Off.Cap.!N103 -> 504 | V80: =Off.Cap.!F103+0.5*Off.Cap.!R103 -> 1700 | W80: =Off.Cap.!Q103+0.5*Off.Cap.!S103 -> 550 | X80: =0.5*Off.Cap.!R103 -> 573 | Y80: =0.5*Off.Cap.!S103 -> 177
A81: =MIN(U81,Off.Cap.!L104) -> 157 | B81: 157 | C81: 252 | D81: =MIN(T81,Off.Cap.!E104) -> 500 | E81: =MIN(U81,Off.Cap.!O104) -> 157 | F81: =MIN(T81,Off.Cap.!P104) -> 500 | G81: =Algoritmus!AP74 -> 0 | H81: =Algoritmus!AQ74 -> 0 | J81: =Off.Cap.!B104 -> 410 | K81: =Algoritmus!AS74 -> 0 | L81: =Off.Cap.!D104 -> 590 | N81: =Algoritmus!AV74 -> 0 | Q81: =Algoritmus!AX74 -> 0 | R81: =Algoritmus!AY74 -> 0 | T81: =Off.Cap.!M104 -> 500 | U81: =Off.Cap.!N104 -> 157 | V81: =Off.Cap.!F104+0.5*Off.Cap.!R104 -> 1700 | W81: =Off.Cap.!Q104+0.5*Off.Cap.!S104 -> 775 | X81: =0.5*Off.Cap.!R104 -> 573 | Y81: =0.5*Off.Cap.!S104 -> 252
A82: =MIN(U82,Off.Cap.!L105) -> 0 | B82: 0 | C82: 327 | D82: =MIN(T82,Off.Cap.!E105) -> 500 | E82: =MIN(U82,Off.Cap.!O105) -> 0 | F82: =MIN(T82,Off.Cap.!P105) -> 500 | G82: =Algoritmus!AP75 -> 0 | H82: =Algoritmus!AQ75 -> 0 | J82: =Off.Cap.!B105 -> 410 | K82: =Algoritmus!AS75 -> 0 | L82: =Off.Cap.!D105 -> 590 | N82: =Algoritmus!AV75 -> 0 | Q82: =Algoritmus!AX75 -> 0 | R82: =Algoritmus!AY75 -> 0 | T82: =Off.Cap.!M105 -> 500 | U82: =Off.Cap.!N105 -> 0 | V82: =Off.Cap.!F105+0.5*Off.Cap.!R105 -> 1715 | W82: =Off.Cap.!Q105+0.5*Off.Cap.!S105 -> 985 | X82: =0.5*Off.Cap.!R105 -> 573 | Y82: =0.5*Off.Cap.!S105 -> 327
A83: =MIN(U83,Off.Cap.!L106) -> 0 | B83: 0 | C83: 327 | D83: =MIN(T83,Off.Cap.!E106) -> 500 | E83: =MIN(U83,Off.Cap.!O106) -> 0 | F83: =MIN(T83,Off.Cap.!P106) -> 500 | G83: =Algoritmus!AP76 -> 0 | H83: =Algoritmus!AQ76 -> 0 | J83: =Off.Cap.!B106 -> 410 | K83: =Algoritmus!AS76 -> 0 | L83: =Off.Cap.!D106 -> 590 | N83: =Algoritmus!AV76 -> 0 | Q83: =Algoritmus!AX76 -> 0 | R83: =Algoritmus!AY76 -> 0 | T83: =Off.Cap.!M106 -> 500 | U83: =Off.Cap.!N106 -> 0 | V83: =Off.Cap.!F106+0.5*Off.Cap.!R106 -> 1715 | W83: =Off.Cap.!Q106+0.5*Off.Cap.!S106 -> 985 | X83: =0.5*Off.Cap.!R106 -> 573 | Y83: =0.5*Off.Cap.!S106 -> 327
A84: =MIN(U84,Off.Cap.!L107) -> 0 | B84: 0 | C84: 277 | D84: =MIN(T84,Off.Cap.!E107) -> 500 | E84: =MIN(U84,Off.Cap.!O107) -> 0 | F84: =MIN(T84,Off.Cap.!P107) -> 500 | G84: =Algoritmus!AP77 -> 0 | H84: =Algoritmus!AQ77 -> 0 | J84: =Off.Cap.!B107 -> 410 | K84: =Algoritmus!AS77 -> 0 | L84: =Off.Cap.!D107 -> 590 | N84: =Algoritmus!AV77 -> 0 | Q84: =Algoritmus!AX77 -> 0 | R84: =Algoritmus!AY77 -> 0 | T84: =Off.Cap.!M107 -> 500 | U84: =Off.Cap.!N107 -> 0 | V84: =Off.Cap.!F107+0.5*Off.Cap.!R107 -> 1715 | W84: =Off.Cap.!Q107+0.5*Off.Cap.!S107 -> 835 | X84: =0.5*Off.Cap.!R107 -> 573 | Y84: =0.5*Off.Cap.!S107 -> 277
A85: =MIN(U85,Off.Cap.!L108) -> 0 | B85: 0 | C85: 327 | D85: =MIN(T85,Off.Cap.!E108) -> 500 | E85: =MIN(U85,Off.Cap.!O108) -> 0 | F85: =MIN(T85,Off.Cap.!P108) -> 500 | G85: =Algoritmus!AP78 -> 0 | H85: =Algoritmus!AQ78 -> 0 | J85: =Off.Cap.!B108 -> 410 | K85: =Algoritmus!AS78 -> 0 | L85: =Off.Cap.!D108 -> 590 | N85: =Algoritmus!AV78 -> 0 | Q85: =Algoritmus!AX78 -> 0 | R85: =Algoritmus!AY78 -> 0 | T85: =Off.Cap.!M108 -> 500 | U85: =Off.Cap.!N108 -> 0 | V85: =Off.Cap.!F108+0.5*Off.Cap.!R108 -> 1715 | W85: =Off.Cap.!Q108+0.5*Off.Cap.!S108 -> 985 | X85: =0.5*Off.Cap.!R108 -> 573 | Y85: =0.5*Off.Cap.!S108 -> 327
A86: =MIN(U86,Off.Cap.!L109) -> 0 | B86: 0 | C86: 402 | D86: =MIN(T86,Off.Cap.!E109) -> 500 | E86: =MIN(U86,Off.Cap.!O109) -> 0 | F86: =MIN(T86,Off.Cap.!P109) -> 500 | G86: =Algoritmus!AP79 -> 0 | H86: =Algoritmus!AQ79 -> 0 | J86: =Off.Cap.!B109 -> 410 | K86: =Algoritmus!AS79 -> 0 | L86: =Off.Cap.!D109 -> 590 | N86: =Algoritmus!AV79 -> 0 | Q86: =Algoritmus!AX79 -> 0 | R86: =Algoritmus!AY79 -> 0 | T86: =Off.Cap.!M109 -> 500 | U86: =Off.Cap.!N109 -> 0 | V86: =Off.Cap.!F109+0.5*Off.Cap.!R109 -> 1715 | W86: =Off.Cap.!Q109+0.5*Off.Cap.!S109 -> 1210 | X86: =0.5*Off.Cap.!R109 -> 573 | Y86: =0.5*Off.Cap.!S109 -> 402
A87: =MIN(U87,Off.Cap.!L110) -> 0 | B87: 0 | C87: 377 | D87: =MIN(T87,Off.Cap.!E110) -> 500 | E87: =MIN(U87,Off.Cap.!O110) -> 0 | F87: =MIN(T87,Off.Cap.!P110) -> 500 | G87: =Algoritmus!AP80 -> 0 | H87: =Algoritmus!AQ80 -> 0 | J87: =Off.Cap.!B110 -> 410 | K87: =Algoritmus!AS80 -> 0 | L87: =Off.Cap.!D110 -> 590 | N87: =Algoritmus!AV80 -> 0 | Q87: =Algoritmus!AX80 -> 0 | R87: =Algoritmus!AY80 -> 0 | T87: =Off.Cap.!M110 -> 500 | U87: =Off.Cap.!N110 -> 0 | V87: =Off.Cap.!F110+0.5*Off.Cap.!R110 -> 1715 | W87: =Off.Cap.!Q110+0.5*Off.Cap.!S110 -> 1135 | X87: =0.5*Off.Cap.!R110 -> 573 | Y87: =0.5*Off.Cap.!S110 -> 377
A88: =MIN(U88,Off.Cap.!L111) -> 0 | B88: 0 | C88: 327 | D88: =MIN(T88,Off.Cap.!E111) -> 500 | E88: =MIN(U88,Off.Cap.!O111) -> 0 | F88: =MIN(T88,Off.Cap.!P111) -> 500 | G88: =Algoritmus!AP81 -> 0 | H88: =Algoritmus!AQ81 -> 0 | J88: =Off.Cap.!B111 -> 410 | K88: =Algoritmus!AS81 -> 0 | L88: =Off.Cap.!D111 -> 590 | N88: =Algoritmus!AV81 -> 0 | Q88: =Algoritmus!AX81 -> 0 | R88: =Algoritmus!AY81 -> 0 | T88: =Off.Cap.!M111 -> 500 | U88: =Off.Cap.!N111 -> 0 | V88: =Off.Cap.!F111+0.5*Off.Cap.!R111 -> 1790 | W88: =Off.Cap.!Q111+0.5*Off.Cap.!S111 -> 985 | X88: =0.5*Off.Cap.!R111 -> 598 | Y88: =0.5*Off.Cap.!S111 -> 327
A89: =MIN(U89,Off.Cap.!L112) -> 0 | B89: 0 | C89: 327 | D89: =MIN(T89,Off.Cap.!E112) -> 500 | E89: =MIN(U89,Off.Cap.!O112) -> 0 | F89: =MIN(T89,Off.Cap.!P112) -> 500 | G89: =Algoritmus!AP82 -> 0 | H89: =Algoritmus!AQ82 -> 0 | J89: =Off.Cap.!B112 -> 410 | K89: =Algoritmus!AS82 -> 0 | L89: =Off.Cap.!D112 -> 590 | N89: =Algoritmus!AV82 -> 0 | Q89: =Algoritmus!AX82 -> 0 | R89: =Algoritmus!AY82 -> 0 | T89: =Off.Cap.!M112 -> 500 | U89: =Off.Cap.!N112 -> 0 | V89: =Off.Cap.!F112+0.5*Off.Cap.!R112 -> 2015 | W89: =Off.Cap.!Q112+0.5*Off.Cap.!S112 -> 985 | X89: =0.5*Off.Cap.!R112 -> 673 | Y89: =0.5*Off.Cap.!S112 -> 327
A90: =MIN(U90,Off.Cap.!L113) -> 0 | B90: 0 | C90: 327 | D90: =MIN(T90,Off.Cap.!E113) -> 500 | E90: =MIN(U90,Off.Cap.!O113) -> 0 | F90: =MIN(T90,Off.Cap.!P113) -> 500 | G90: =Algoritmus!AP83 -> 0 | H90: =Algoritmus!AQ83 -> 0 | J90: =Off.Cap.!B113 -> 410 | K90: =Algoritmus!AS83 -> 0 | L90: =Off.Cap.!D113 -> 590 | N90: =Algoritmus!AV83 -> 0 | Q90: =Algoritmus!AX83 -> 0 | R90: =Algoritmus!AY83 -> 0 | T90: =Off.Cap.!M113 -> 500 | U90: =Off.Cap.!N113 -> 0 | V90: =Off.Cap.!F113+0.5*Off.Cap.!R113 -> 2240 | W90: =Off.Cap.!Q113+0.5*Off.Cap.!S113 -> 985 | X90: =0.5*Off.Cap.!R113 -> 748 | Y90: =0.5*Off.Cap.!S113 -> 327
A91: =MIN(U91,Off.Cap.!L114) -> 0 | B91: 0 | C91: 327 | D91: =MIN(T91,Off.Cap.!E114) -> 500 | E91: =MIN(U91,Off.Cap.!O114) -> 0 | F91: =MIN(T91,Off.Cap.!P114) -> 500 | G91: =Algoritmus!AP84 -> 0 | H91: =Algoritmus!AQ84 -> 0 | J91: =Off.Cap.!B114 -> 410 | K91: =Algoritmus!AS84 -> 0 | L91: =Off.Cap.!D114 -> 590 | N91: =Algoritmus!AV84 -> 0 | Q91: =Algoritmus!AX84 -> 0 | R91: =Algoritmus!AY84 -> 0 | T91: =Off.Cap.!M114 -> 500 | U91: =Off.Cap.!N114 -> 0 | V91: =Off.Cap.!F114+0.5*Off.Cap.!R114 -> 1715 | W91: =Off.Cap.!Q114+0.5*Off.Cap.!S114 -> 985 | X91: =0.5*Off.Cap.!R114 -> 573 | Y91: =0.5*Off.Cap.!S114 -> 327
A92: =MIN(U92,Off.Cap.!L115) -> 0 | B92: 0 | C92: 327 | D92: =MIN(T92,Off.Cap.!E115) -> 500 | E92: =MIN(U92,Off.Cap.!O115) -> 0 | F92: =MIN(T92,Off.Cap.!P115) -> 500 | G92: =Algoritmus!AP85 -> 0 | H92: =Algoritmus!AQ85 -> 0 | J92: =Off.Cap.!B115 -> 410 | K92: =Algoritmus!AS85 -> 0 | L92: =Off.Cap.!D115 -> 590 | N92: =Algoritmus!AV85 -> 0 | Q92: =Algoritmus!AX85 -> 0 | R92: =Algoritmus!AY85 -> 0 | T92: =Off.Cap.!M115 -> 500 | U92: =Off.Cap.!N115 -> 0 | V92: =Off.Cap.!F115+0.5*Off.Cap.!R115 -> 1790 | W92: =Off.Cap.!Q115+0.5*Off.Cap.!S115 -> 985 | X92: =0.5*Off.Cap.!R115 -> 598 | Y92: =0.5*Off.Cap.!S115 -> 327
A93: =MIN(U93,Off.Cap.!L116) -> 0 | B93: 0 | C93: 327 | D93: =MIN(T93,Off.Cap.!E116) -> 500 | E93: =MIN(U93,Off.Cap.!O116) -> 0 | F93: =MIN(T93,Off.Cap.!P116) -> 500 | G93: =Algoritmus!AP86 -> 0 | H93: =Algoritmus!AQ86 -> 0 | J93: =Off.Cap.!B116 -> 410 | K93: =Algoritmus!AS86 -> 0 | L93: =Off.Cap.!D116 -> 590 | N93: =Algoritmus!AV86 -> 0 | Q93: =Algoritmus!AX86 -> 0 | R93: =Algoritmus!AY86 -> 0 | T93: =Off.Cap.!M116 -> 500 | U93: =Off.Cap.!N116 -> 0 | V93: =Off.Cap.!F116+0.5*Off.Cap.!R116 -> 1940 | W93: =Off.Cap.!Q116+0.5*Off.Cap.!S116 -> 985 | X93: =0.5*Off.Cap.!R116 -> 648 | Y93: =0.5*Off.Cap.!S116 -> 327
A94: =MIN(U94,Off.Cap.!L117) -> 0 | B94: 0 | C94: 402 | D94: =MIN(T94,Off.Cap.!E117) -> 500 | E94: =MIN(U94,Off.Cap.!O117) -> 0 | F94: =MIN(T94,Off.Cap.!P117) -> 500 | G94: =Algoritmus!AP87 -> 0 | H94: =Algoritmus!AQ87 -> 0 | J94: =Off.Cap.!B117 -> 440 | K94: =Algoritmus!AS87 -> 0 | L94: =Off.Cap.!D117 -> 560 | N94: =Algoritmus!AV87 -> 0 | Q94: =Algoritmus!AX87 -> 0 | R94: =Algoritmus!AY87 -> 0 | T94: =Off.Cap.!M117 -> 500 | U94: =Off.Cap.!N117 -> 0 | V94: =Off.Cap.!F117+0.5*Off.Cap.!R117 -> 1770 | W94: =Off.Cap.!Q117+0.5*Off.Cap.!S117 -> 1305 | X94: =0.5*Off.Cap.!R117 -> 623 | Y94: =0.5*Off.Cap.!S117 -> 402
A95: =MIN(U95,Off.Cap.!L118) -> 702 | B95: 648 | C95: 402 | D95: =MIN(T95,Off.Cap.!E118) -> 500 | E95: =MIN(U95,Off.Cap.!O118) -> 550 | F95: =MIN(T95,Off.Cap.!P118) -> 500 | G95: =Algoritmus!AP88 -> 0 | H95: =Algoritmus!AQ88 -> 0 | J95: =Off.Cap.!B118 -> 540 | K95: =Algoritmus!AS88 -> 0 | L95: =Off.Cap.!D118 -> 660 | N95: =Algoritmus!AV88 -> 0 | Q95: =Algoritmus!AX88 -> 0 | R95: =Algoritmus!AY88 -> 0 | T95: =Off.Cap.!M118 -> 500 | U95: =Off.Cap.!N118 -> 702 | V95: =Off.Cap.!F118+0.5*Off.Cap.!R118 -> 1845 | W95: =Off.Cap.!Q118+0.5*Off.Cap.!S118 -> 1305 | X95: =0.5*Off.Cap.!R118 -> 648 | Y95: =0.5*Off.Cap.!S118 -> 402
A96: =MIN(U96,Off.Cap.!L119) -> 900 | B96: 573 | C96: 427 | D96: =MIN(T96,Off.Cap.!E119) -> 500 | E96: =MIN(U96,Off.Cap.!O119) -> 550 | F96: =MIN(T96,Off.Cap.!P119) -> 500 | G96: =Algoritmus!AP89 -> 0 | H96: =Algoritmus!AQ89 -> 0 | J96: =Off.Cap.!B119 -> 540 | K96: =Algoritmus!AS89 -> 0 | L96: =Off.Cap.!D119 -> 660 | N96: =Algoritmus!AV89 -> 0 | Q96: =Algoritmus!AX89 -> 0 | R96: =Algoritmus!AY89 -> 0 | T96: =Off.Cap.!M119 -> 500 | U96: =Off.Cap.!N119 -> 1400 | V96: =Off.Cap.!F119+0.5*Off.Cap.!R119 -> 1620 | W96: =Off.Cap.!Q119+0.5*Off.Cap.!S119 -> 1380 | X96: =0.5*Off.Cap.!R119 -> 573 | Y96: =0.5*Off.Cap.!S119 -> 427
A97: =MIN(U97,Off.Cap.!L120) -> 900 | B97: 588 | C97: 437 | D97: =MIN(T97,Off.Cap.!E120) -> 500 | E97: =MIN(U97,Off.Cap.!O120) -> 550 | F97: =MIN(T97,Off.Cap.!P120) -> 500 | G97: =Algoritmus!AP90 -> 0 | H97: =Algoritmus!AQ90 -> 0 | J97: =Off.Cap.!B120 -> 590 | K97: =Algoritmus!AS90 -> 0 | L97: =Off.Cap.!D120 -> 610 | N97: =Algoritmus!AV90 -> 0 | Q97: =Algoritmus!AX90 -> 0 | R97: =Algoritmus!AY90 -> 0 | T97: =Off.Cap.!M120 -> 500 | U97: =Off.Cap.!N120 -> 1400 | V97: =Off.Cap.!F120+0.5*Off.Cap.!R120 -> 1675 | W97: =Off.Cap.!Q120+0.5*Off.Cap.!S120 -> 1400 | X97: =0.5*Off.Cap.!R120 -> 588 | Y97: =0.5*Off.Cap.!S120 -> 437
A98: =MIN(U98,Off.Cap.!L121) -> 900 | B98: 754.5 | C98: 0 | D98: =MIN(T98,Off.Cap.!E121) -> 0 | E98: =MIN(U98,Off.Cap.!O121) -> 550 | F98: =MIN(T98,Off.Cap.!P121) -> 0 | G98: =Algoritmus!AP91 -> 0 | H98: =Algoritmus!AQ91 -> 0 | J98: =Off.Cap.!B121 -> 575 | K98: =Algoritmus!AS91 -> 0 | L98: =Off.Cap.!D121 -> 625 | N98: =Algoritmus!AV91 -> 0 | Q98: =Algoritmus!AX91 -> 0 | R98: =Algoritmus!AY91 -> 0 | T98: =Off.Cap.!M121 -> 0 | U98: =Off.Cap.!N121 -> 1400 | V98: =Off.Cap.!F121+0.5*Off.Cap.!R121 -> 2261.5 | W98: =Off.Cap.!Q121+0.5*Off.Cap.!S121 -> 1788.5 | X98: =0.5*Off.Cap.!R121 -> 754.5 | Y98: =0.5*Off.Cap.!S121 -> 595.5
A99: =MIN(U99,Off.Cap.!L122) -> 900 | B99: 754.5 | C99: 0 | D99: =MIN(T99,Off.Cap.!E122) -> 0 | E99: =MIN(U99,Off.Cap.!O122) -> 550 | F99: =MIN(T99,Off.Cap.!P122) -> 0 | G99: =Algoritmus!AP92 -> 0 | H99: =Algoritmus!AQ92 -> 0 | J99: =Off.Cap.!B122 -> 575 | K99: =Algoritmus!AS92 -> 0 | L99: =Off.Cap.!D122 -> 625 | N99: =Algoritmus!AV92 -> 0 | Q99: =Algoritmus!AX92 -> 0 | R99: =Algoritmus!AY92 -> 0 | T99: =Off.Cap.!M122 -> 0 | U99: =Off.Cap.!N122 -> 1400 | V99: =Off.Cap.!F122+0.5*Off.Cap.!R122 -> 2261.5 | W99: =Off.Cap.!Q122+0.5*Off.Cap.!S122 -> 1413.5 | X99: =0.5*Off.Cap.!R122 -> 754.5 | Y99: =0.5*Off.Cap.!S122 -> 470.5
A100: =MIN(U100,Off.Cap.!L123) -> 900 | B100: 764.5 | C100: 0 | D100: =MIN(T100,Off.Cap.!E123) -> 0 | E100: =MIN(U100,Off.Cap.!O123) -> 550 | F100: =MIN(T100,Off.Cap.!P123) -> 0 | G100: =Algoritmus!AP93 -> 0 | H100: =Algoritmus!AQ93 -> 0 | J100: =Off.Cap.!B123 -> 525 | K100: =Algoritmus!AS93 -> 0 | L100: =Off.Cap.!D123 -> 675 | N100: =Algoritmus!AV93 -> 0 | Q100: =Algoritmus!AX93 -> 0 | R100: =Algoritmus!AY93 -> 0 | T100: =Off.Cap.!M123 -> 0 | U100: =Off.Cap.!N123 -> 1400 | V100: =Off.Cap.!F123+0.5*Off.Cap.!R123 -> 2281.5 | W100: =Off.Cap.!Q123+0.5*Off.Cap.!S123 -> 1468.5 | X100: =0.5*Off.Cap.!R123 -> 764.5 | Y100: =0.5*Off.Cap.!S123 -> 485.5
A101: =MIN(U101,Off.Cap.!L124) -> 900 | B101: 764.5 | C101: 0 | D101: =MIN(T101,Off.Cap.!E124) -> 0 | E101: =MIN(U101,Off.Cap.!O124) -> 550 | F101: =MIN(T101,Off.Cap.!P124) -> 0 | G101: =Algoritmus!AP94 -> 0 | H101: =Algoritmus!AQ94 -> 0 | J101: =Off.Cap.!B124 -> 525 | K101: =Algoritmus!AS94 -> 0 | L101: =Off.Cap.!D124 -> 675 | N101: =Algoritmus!AV94 -> 0 | Q101: =Algoritmus!AX94 -> 0 | R101: =Algoritmus!AY94 -> 0 | T101: =Off.Cap.!M124 -> 0 | U101: =Off.Cap.!N124 -> 1400 | V101: =Off.Cap.!F124+0.5*Off.Cap.!R124 -> 2281.5 | W101: =Off.Cap.!Q124+0.5*Off.Cap.!S124 -> 1618.5 | X101: =0.5*Off.Cap.!R124 -> 764.5 | Y101: =0.5*Off.Cap.!S124 -> 535.5
A102: =MIN(U102,Off.Cap.!L125) -> 900 | B102: 764.5 | C102: 0 | D102: =MIN(T102,Off.Cap.!E125) -> 0 | E102: =MIN(U102,Off.Cap.!O125) -> 550 | F102: =MIN(T102,Off.Cap.!P125) -> 0 | G102: =Algoritmus!AP95 -> 0 | H102: =Algoritmus!AQ95 -> 0 | J102: =Off.Cap.!B125 -> 525 | K102: =Algoritmus!AS95 -> 0 | L102: =Off.Cap.!D125 -> 675 | N102: =Algoritmus!AV95 -> 0 | Q102: =Algoritmus!AX95 -> 0 | R102: =Algoritmus!AY95 -> 0 | T102: =Off.Cap.!M125 -> 0 | U102: =Off.Cap.!N125 -> 1400 | V102: =Off.Cap.!F125+0.5*Off.Cap.!R125 -> 2281.5 | W102: =Off.Cap.!Q125+0.5*Off.Cap.!S125 -> 1543.5 | X102: =0.5*Off.Cap.!R125 -> 764.5 | Y102: =0.5*Off.Cap.!S125 -> 510.5
A103: =MIN(U103,Off.Cap.!L126) -> 900 | B103: 770.5 | C103: 103 | D103: =MIN(T103,Off.Cap.!E126) -> 103 | E103: =MIN(U103,Off.Cap.!O126) -> 550 | F103: =MIN(T103,Off.Cap.!P126) -> 103 | G103: =Algoritmus!AP96 -> 0 | H103: =Algoritmus!AQ96 -> 0 | J103: =Off.Cap.!B126 -> 520 | K103: =Algoritmus!AS96 -> 0 | L103: =Off.Cap.!D126 -> 680 | N103: =Algoritmus!AV96 -> 0 | Q103: =Algoritmus!AX96 -> 0 | R103: =Algoritmus!AY96 -> 0 | T103: =Off.Cap.!M126 -> 103 | U103: =Off.Cap.!N126 -> 1400 | V103: =Off.Cap.!F126+0.5*Off.Cap.!R126 -> 2297.5 | W103: =Off.Cap.!Q126+0.5*Off.Cap.!S126 -> 1152.5 | X103: =0.5*Off.Cap.!R126 -> 770.5 | Y103: =0.5*Off.Cap.!S126 -> 379.5
A104: =MIN(U104,Off.Cap.!L127) -> 548 | B104: 548 | C104: 293 | D104: =MIN(T104,Off.Cap.!E127) -> 293 | E104: =MIN(U104,Off.Cap.!O127) -> 548 | F104: =MIN(T104,Off.Cap.!P127) -> 293 | G104: =Algoritmus!AP97 -> 0 | H104: =Algoritmus!AQ97 -> 0 | J104: =Off.Cap.!B127 -> 410 | K104: =Algoritmus!AS97 -> 0 | L104: =Off.Cap.!D127 -> 590 | N104: =Algoritmus!AV97 -> 0 | Q104: =Algoritmus!AX97 -> 0 | R104: =Algoritmus!AY97 -> 0 | T104: =Off.Cap.!M127 -> 293 | U104: =Off.Cap.!N127 -> 548 | V104: =Off.Cap.!F127+0.5*Off.Cap.!R127 -> 2300 | W104: =Off.Cap.!Q127+0.5*Off.Cap.!S127 -> 1450 | X104: =0.5*Off.Cap.!R127 -> 773 | Y104: =0.5*Off.Cap.!S127 -> 477
A105: =MIN(U105,Off.Cap.!L128) -> 632 | B105: 632 | C105: 277 | D105: =MIN(T105,Off.Cap.!E128) -> 500 | E105: =MIN(U105,Off.Cap.!O128) -> 550 | F105: =MIN(T105,Off.Cap.!P128) -> 500 | G105: =Algoritmus!AP98 -> 0 | H105: =Algoritmus!AQ98 -> 0 | J105: =Off.Cap.!B128 -> 410 | K105: =Algoritmus!AS98 -> 0 | L105: =Off.Cap.!D128 -> 590 | N105: =Algoritmus!AV98 -> 0 | Q105: =Algoritmus!AX98 -> 0 | R105: =Algoritmus!AY98 -> 0 | T105: =Off.Cap.!M128 -> 500 | U105: =Off.Cap.!N128 -> 632 | V105: =Off.Cap.!F128+0.5*Off.Cap.!R128 -> 2300 | W105: =Off.Cap.!Q128+0.5*Off.Cap.!S128 -> 850 | X105: =0.5*Off.Cap.!R128 -> 773 | Y105: =0.5*Off.Cap.!S128 -> 277
A106: =MIN(U106,Off.Cap.!L129) -> 608 | B106: 608 | C106: 277 | D106: =MIN(T106,Off.Cap.!E129) -> 500 | E106: =MIN(U106,Off.Cap.!O129) -> 550 | F106: =MIN(T106,Off.Cap.!P129) -> 500 | G106: =Algoritmus!AP99 -> 0 | H106: =Algoritmus!AQ99 -> 0 | J106: =Off.Cap.!B129 -> 410 | K106: =Algoritmus!AS99 -> 0 | L106: =Off.Cap.!D129 -> 590 | N106: =Algoritmus!AV99 -> 0 | Q106: =Algoritmus!AX99 -> 0 | R106: =Algoritmus!AY99 -> 0 | T106: =Off.Cap.!M129 -> 500 | U106: =Off.Cap.!N129 -> 608 | V106: =Off.Cap.!F129+0.5*Off.Cap.!R129 -> 2090 | W106: =Off.Cap.!Q129+0.5*Off.Cap.!S129 -> 835 | X106: =0.5*Off.Cap.!R129 -> 698 | Y106: =0.5*Off.Cap.!S129 -> 277
A107: =MIN(U107,Off.Cap.!L130) -> 634 | B107: 634 | C107: 277 | D107: =MIN(T107,Off.Cap.!E130) -> 500 | E107: =MIN(U107,Off.Cap.!O130) -> 550 | F107: =MIN(T107,Off.Cap.!P130) -> 500 | G107: =Algoritmus!AP100 -> 0 | H107: =Algoritmus!AQ100 -> 0 | J107: =Off.Cap.!B130 -> 410 | K107: =Algoritmus!AS100 -> 0 | L107: =Off.Cap.!D130 -> 590 | N107: =Algoritmus!AV100 -> 0 | Q107: =Algoritmus!AX100 -> 0 | R107: =Algoritmus!AY100 -> 0 | T107: =Off.Cap.!M130 -> 500 | U107: =Off.Cap.!N130 -> 634 | V107: =Off.Cap.!F130+0.5*Off.Cap.!R130 -> 2315 | W107: =Off.Cap.!Q130+0.5*Off.Cap.!S130 -> 835 | X107: =0.5*Off.Cap.!R130 -> 773 | Y107: =0.5*Off.Cap.!S130 -> 277
A108: =MIN(U108,Off.Cap.!L131) -> 727 | B108: 727 | C108: 277 | D108: =MIN(T108,Off.Cap.!E131) -> 500 | E108: =MIN(U108,Off.Cap.!O131) -> 550 | F108: =MIN(T108,Off.Cap.!P131) -> 500 | G108: =Algoritmus!AP101 -> 0 | H108: =Algoritmus!AQ101 -> 0 | J108: =Off.Cap.!B131 -> 410 | K108: =Algoritmus!AS101 -> 0 | L108: =Off.Cap.!D131 -> 590 | N108: =Algoritmus!AV101 -> 0 | Q108: =Algoritmus!AX101 -> 0 | R108: =Algoritmus!AY101 -> 0 | T108: =Off.Cap.!M131 -> 500 | U108: =Off.Cap.!N131 -> 727 | V108: =Off.Cap.!F131+0.5*Off.Cap.!R131 -> 2315 | W108: =Off.Cap.!Q131+0.5*Off.Cap.!S131 -> 835 | X108: =0.5*Off.Cap.!R131 -> 773 | Y108: =0.5*Off.Cap.!S131 -> 277
A109: =MIN(U109,Off.Cap.!L132) -> 813 | B109: 623 | C109: 277 | D109: =MIN(T109,Off.Cap.!E132) -> 500 | E109: =MIN(U109,Off.Cap.!O132) -> 550 | F109: =MIN(T109,Off.Cap.!P132) -> 500 | G109: =Algoritmus!AP102 -> 0 | H109: =Algoritmus!AQ102 -> 0 | J109: =Off.Cap.!B132 -> 410 | K109: =Algoritmus!AS102 -> 0 | L109: =Off.Cap.!D132 -> 590 | N109: =Algoritmus!AV102 -> 0 | Q109: =Algoritmus!AX102 -> 0 | R109: =Algoritmus!AY102 -> 0 | T109: =Off.Cap.!M132 -> 500 | U109: =Off.Cap.!N132 -> 813 | V109: =Off.Cap.!F132+0.5*Off.Cap.!R132 -> 1865 | W109: =Off.Cap.!Q132+0.5*Off.Cap.!S132 -> 835 | X109: =0.5*Off.Cap.!R132 -> 623 | Y109: =0.5*Off.Cap.!S132 -> 277
A110: =MIN(U110,Off.Cap.!L133) -> 900 | B110: 598 | C110: 277 | D110: =MIN(T110,Off.Cap.!E133) -> 500 | E110: =MIN(U110,Off.Cap.!O133) -> 550 | F110: =MIN(T110,Off.Cap.!P133) -> 500 | G110: =Algoritmus!AP103 -> 0 | H110: =Algoritmus!AQ103 -> 0 | J110: =Off.Cap.!B133 -> 410 | K110: =Algoritmus!AS103 -> 0 | L110: =Off.Cap.!D133 -> 590 | N110: =Algoritmus!AV103 -> 0 | Q110: =Algoritmus!AX103 -> 0 | R110: =Algoritmus!AY103 -> 0 | T110: =Off.Cap.!M133 -> 500 | U110: =Off.Cap.!N133 -> 1092 | V110: =Off.Cap.!F133+0.5*Off.Cap.!R133 -> 1790 | W110: =Off.Cap.!Q133+0.5*Off.Cap.!S133 -> 835 | X110: =0.5*Off.Cap.!R133 -> 598 | Y110: =0.5*Off.Cap.!S133 -> 277
A111: =MIN(U111,Off.Cap.!L134) -> 900 | B111: 573 | C111: 277 | D111: =MIN(T111,Off.Cap.!E134) -> 500 | E111: =MIN(U111,Off.Cap.!O134) -> 550 | F111: =MIN(T111,Off.Cap.!P134) -> 500 | G111: =Algoritmus!AP104 -> 0 | H111: =Algoritmus!AQ104 -> 0 | J111: =Off.Cap.!B134 -> 410 | K111: =Algoritmus!AS104 -> 0 | L111: =Off.Cap.!D134 -> 590 | N111: =Algoritmus!AV104 -> 0 | Q111: =Algoritmus!AX104 -> 0 | R111: =Algoritmus!AY104 -> 0 | T111: =Off.Cap.!M134 -> 500 | U111: =Off.Cap.!N134 -> 1198 | V111: =Off.Cap.!F134+0.5*Off.Cap.!R134 -> 1715 | W111: =Off.Cap.!Q134+0.5*Off.Cap.!S134 -> 835 | X111: =0.5*Off.Cap.!R134 -> 573 | Y111: =0.5*Off.Cap.!S134 -> 277
A112: =MIN(U112,Off.Cap.!L135) -> 900 | B112: 573 | C112: 277 | D112: =MIN(T112,Off.Cap.!E135) -> 500 | E112: =MIN(U112,Off.Cap.!O135) -> 550 | F112: =MIN(T112,Off.Cap.!P135) -> 500 | G112: =Algoritmus!AP105 -> 0 | H112: =Algoritmus!AQ105 -> 0 | J112: =Off.Cap.!B135 -> 410 | K112: =Algoritmus!AS105 -> 0 | L112: =Off.Cap.!D135 -> 590 | N112: =Algoritmus!AV105 -> 0 | Q112: =Algoritmus!AX105 -> 0 | R112: =Algoritmus!AY105 -> 0 | T112: =Off.Cap.!M135 -> 500 | U112: =Off.Cap.!N135 -> 1255 | V112: =Off.Cap.!F135+0.5*Off.Cap.!R135 -> 1715 | W112: =Off.Cap.!Q135+0.5*Off.Cap.!S135 -> 835 | X112: =0.5*Off.Cap.!R135 -> 573 | Y112: =0.5*Off.Cap.!S135 -> 277
A113: =MIN(U113,Off.Cap.!L136) -> 900 | B113: 573 | C113: 277 | D113: =MIN(T113,Off.Cap.!E136) -> 500 | E113: =MIN(U113,Off.Cap.!O136) -> 550 | F113: =MIN(T113,Off.Cap.!P136) -> 500 | G113: =Algoritmus!AP106 -> 0 | H113: =Algoritmus!AQ106 -> 0 | J113: =Off.Cap.!B136 -> 410 | K113: =Algoritmus!AS106 -> 0 | L113: =Off.Cap.!D136 -> 590 | N113: =Algoritmus!AV106 -> 0 | Q113: =Algoritmus!AX106 -> 0 | R113: =Algoritmus!AY106 -> 0 | T113: =Off.Cap.!M136 -> 500 | U113: =Off.Cap.!N136 -> 1313 | V113: =Off.Cap.!F136+0.5*Off.Cap.!R136 -> 1715 | W113: =Off.Cap.!Q136+0.5*Off.Cap.!S136 -> 835 | X113: =0.5*Off.Cap.!R136 -> 573 | Y113: =0.5*Off.Cap.!S136 -> 277
A114: =MIN(U114,Off.Cap.!L137) -> 900 | B114: 598 | C114: 277 | D114: =MIN(T114,Off.Cap.!E137) -> 500 | E114: =MIN(U114,Off.Cap.!O137) -> 550 | F114: =MIN(T114,Off.Cap.!P137) -> 500 | G114: =Algoritmus!AP107 -> 0 | H114: =Algoritmus!AQ107 -> 0 | J114: =Off.Cap.!B137 -> 410 | K114: =Algoritmus!AS107 -> 0 | L114: =Off.Cap.!D137 -> 590 | N114: =Algoritmus!AV107 -> 0 | Q114: =Algoritmus!AX107 -> 0 | R114: =Algoritmus!AY107 -> 0 | T114: =Off.Cap.!M137 -> 500 | U114: =Off.Cap.!N137 -> 1302 | V114: =Off.Cap.!F137+0.5*Off.Cap.!R137 -> 1790 | W114: =Off.Cap.!Q137+0.5*Off.Cap.!S137 -> 835 | X114: =0.5*Off.Cap.!R137 -> 598 | Y114: =0.5*Off.Cap.!S137 -> 277
A115: =MIN(U115,Off.Cap.!L138) -> 900 | B115: 698 | C115: 277 | D115: =MIN(T115,Off.Cap.!E138) -> 500 | E115: =MIN(U115,Off.Cap.!O138) -> 550 | F115: =MIN(T115,Off.Cap.!P138) -> 500 | G115: =Algoritmus!AP108 -> 0 | H115: =Algoritmus!AQ108 -> 0 | J115: =Off.Cap.!B138 -> 410 | K115: =Algoritmus!AS108 -> 0 | L115: =Off.Cap.!D138 -> 590 | N115: =Algoritmus!AV108 -> 0 | Q115: =Algoritmus!AX108 -> 0 | R115: =Algoritmus!AY108 -> 0 | T115: =Off.Cap.!M138 -> 500 | U115: =Off.Cap.!N138 -> 1400 | V115: =Off.Cap.!F138+0.5*Off.Cap.!R138 -> 2090 | W115: =Off.Cap.!Q138+0.5*Off.Cap.!S138 -> 835 | X115: =0.5*Off.Cap.!R138 -> 698 | Y115: =0.5*Off.Cap.!S138 -> 277
A116: =MIN(U116,Off.Cap.!L139) -> 900 | B116: 573 | C116: 277 | D116: =MIN(T116,Off.Cap.!E139) -> 500 | E116: =MIN(U116,Off.Cap.!O139) -> 550 | F116: =MIN(T116,Off.Cap.!P139) -> 500 | G116: =Algoritmus!AP109 -> 0 | H116: =Algoritmus!AQ109 -> 0 | J116: =Off.Cap.!B139 -> 410 | K116: =Algoritmus!AS109 -> 0 | L116: =Off.Cap.!D139 -> 590 | N116: =Algoritmus!AV109 -> 0 | Q116: =Algoritmus!AX109 -> 0 | R116: =Algoritmus!AY109 -> 0 | T116: =Off.Cap.!M139 -> 500 | U116: =Off.Cap.!N139 -> 1400 | V116: =Off.Cap.!F139+0.5*Off.Cap.!R139 -> 1715 | W116: =Off.Cap.!Q139+0.5*Off.Cap.!S139 -> 835 | X116: =0.5*Off.Cap.!R139 -> 573 | Y116: =0.5*Off.Cap.!S139 -> 277
A117: =MIN(U117,Off.Cap.!L140) -> 900 | B117: 573 | C117: 277 | D117: =MIN(T117,Off.Cap.!E140) -> 447 | E117: =MIN(U117,Off.Cap.!O140) -> 550 | F117: =MIN(T117,Off.Cap.!P140) -> 447 | G117: =Algoritmus!AP110 -> 0 | H117: =Algoritmus!AQ110 -> 0 | J117: =Off.Cap.!B140 -> 410 | K117: =Algoritmus!AS110 -> 0 | L117: =Off.Cap.!D140 -> 590 | N117: =Algoritmus!AV110 -> 0 | Q117: =Algoritmus!AX110 -> 0 | R117: =Algoritmus!AY110 -> 0 | T117: =Off.Cap.!M140 -> 447 | U117: =Off.Cap.!N140 -> 1367 | V117: =Off.Cap.!F140+0.5*Off.Cap.!R140 -> 1715 | W117: =Off.Cap.!Q140+0.5*Off.Cap.!S140 -> 835 | X117: =0.5*Off.Cap.!R140 -> 573 | Y117: =0.5*Off.Cap.!S140 -> 277
A118: =MIN(U118,Off.Cap.!L141) -> 900 | B118: 573 | C118: 269 | D118: =MIN(T118,Off.Cap.!E141) -> 269 | E118: =MIN(U118,Off.Cap.!O141) -> 550 | F118: =MIN(T118,Off.Cap.!P141) -> 269 | G118: =Algoritmus!AP111 -> 0 | H118: =Algoritmus!AQ111 -> 0 | J118: =Off.Cap.!B141 -> 460 | K118: =Algoritmus!AS111 -> 0 | L118: =Off.Cap.!D141 -> 640 | N118: =Algoritmus!AV111 -> 0 | Q118: =Algoritmus!AX111 -> 0 | R118: =Algoritmus!AY111 -> 0 | T118: =Off.Cap.!M141 -> 269 | U118: =Off.Cap.!N141 -> 1400 | V118: =Off.Cap.!F141+0.5*Off.Cap.!R141 -> 1700 | W118: =Off.Cap.!Q141+0.5*Off.Cap.!S141 -> 1225 | X118: =0.5*Off.Cap.!R141 -> 573 | Y118: =0.5*Off.Cap.!S141 -> 402
A119: =MIN(U119,Off.Cap.!L142) -> 900 | B119: 570.5 | C119: 24 | D119: =MIN(T119,Off.Cap.!E142) -> 24 | E119: =MIN(U119,Off.Cap.!O142) -> 550 | F119: =MIN(T119,Off.Cap.!P142) -> 24 | G119: =Algoritmus!AP112 -> 0 | H119: =Algoritmus!AQ112 -> 0 | J119: =Off.Cap.!B142 -> 470 | K119: =Algoritmus!AS112 -> 0 | L119: =Off.Cap.!D142 -> 630 | N119: =Algoritmus!AV112 -> 0 | Q119: =Algoritmus!AX112 -> 0 | R119: =Algoritmus!AY112 -> 0 | T119: =Off.Cap.!M142 -> 24 | U119: =Off.Cap.!N142 -> 1400 | V119: =Off.Cap.!F142+0.5*Off.Cap.!R142 -> 1697.5 | W119: =Off.Cap.!Q142+0.5*Off.Cap.!S142 -> 1152.5 | X119: =0.5*Off.Cap.!R142 -> 570.5 | Y119: =0.5*Off.Cap.!S142 -> 379.5
A120: =MIN(U120,Off.Cap.!L143) -> 900 | B120: 570.5 | C120: 0 | D120: =MIN(T120,Off.Cap.!E143) -> 0 | E120: =MIN(U120,Off.Cap.!O143) -> 550 | F120: =MIN(T120,Off.Cap.!P143) -> 0 | G120: =Algoritmus!AP113 -> 0 | H120: =Algoritmus!AQ113 -> 0 | J120: =Off.Cap.!B143 -> 470 | K120: =Algoritmus!AS113 -> 0 | L120: =Off.Cap.!D143 -> 630 | N120: =Algoritmus!AV113 -> 0 | Q120: =Algoritmus!AX113 -> 0 | R120: =Algoritmus!AY113 -> 0 | T120: =Off.Cap.!M143 -> 0 | U120: =Off.Cap.!N143 -> 1400 | V120: =Off.Cap.!F143+0.5*Off.Cap.!R143 -> 1697.5 | W120: =Off.Cap.!Q143+0.5*Off.Cap.!S143 -> 1227.5 | X120: =0.5*Off.Cap.!R143 -> 570.5 | Y120: =0.5*Off.Cap.!S143 -> 404.5
A121: =MIN(U121,Off.Cap.!L144) -> 900 | B121: 560.5 | C121: 0 | D121: =MIN(T121,Off.Cap.!E144) -> 0 | E121: =MIN(U121,Off.Cap.!O144) -> 550 | F121: =MIN(T121,Off.Cap.!P144) -> 0 | G121: =Algoritmus!AP114 -> 0 | H121: =Algoritmus!AQ114 -> 0 | J121: =Off.Cap.!B144 -> 520 | K121: =Algoritmus!AS114 -> 0 | L121: =Off.Cap.!D144 -> 580 | N121: =Algoritmus!AV114 -> 0 | Q121: =Algoritmus!AX114 -> 0 | R121: =Algoritmus!AY114 -> 0 | T121: =Off.Cap.!M144 -> 0 | U121: =Off.Cap.!N144 -> 1400 | V121: =Off.Cap.!F144+0.5*Off.Cap.!R144 -> 1677.5 | W121: =Off.Cap.!Q144+0.5*Off.Cap.!S144 -> 1247.5 | X121: =0.5*Off.Cap.!R144 -> 560.5 | Y121: =0.5*Off.Cap.!S144 -> 414.5
A122: =MIN(U122,Off.Cap.!L145) -> 900 | B122: 643 | C122: 0 | D122: =MIN(T122,Off.Cap.!E145) -> 0 | E122: =MIN(U122,Off.Cap.!O145) -> 550 | F122: =MIN(T122,Off.Cap.!P145) -> 0 | G122: =Algoritmus!AP115 -> 0 | H122: =Algoritmus!AQ115 -> 0 | J122: =Off.Cap.!B145 -> 415 | K122: =Algoritmus!AS115 -> 0 | L122: =Off.Cap.!D145 -> 585 | N122: =Algoritmus!AV115 -> 0 | Q122: =Algoritmus!AX115 -> 0 | R122: =Algoritmus!AY115 -> 0 | T122: =Off.Cap.!M145 -> 0 | U122: =Off.Cap.!N145 -> 1400 | V122: =Off.Cap.!F145+0.5*Off.Cap.!R145 -> 1830 | W122: =Off.Cap.!Q145+0.5*Off.Cap.!S145 -> 1170 | X122: =0.5*Off.Cap.!R145 -> 643 | Y122: =0.5*Off.Cap.!S145 -> 357
A123: =MIN(U123,Off.Cap.!L146) -> 900 | B123: 718 | C123: 0 | D123: =MIN(T123,Off.Cap.!E146) -> 0 | E123: =MIN(U123,Off.Cap.!O146) -> 550 | F123: =MIN(T123,Off.Cap.!P146) -> 0 | G123: =Algoritmus!AP116 -> 0 | H123: =Algoritmus!AQ116 -> 0 | J123: =Off.Cap.!B146 -> 415 | K123: =Algoritmus!AS116 -> 0 | L123: =Off.Cap.!D146 -> 585 | N123: =Algoritmus!AV116 -> 0 | Q123: =Algoritmus!AX116 -> 0 | R123: =Algoritmus!AY116 -> 0 | T123: =Off.Cap.!M146 -> 0 | U123: =Off.Cap.!N146 -> 1400 | V123: =Off.Cap.!F146+0.5*Off.Cap.!R146 -> 2055 | W123: =Off.Cap.!Q146+0.5*Off.Cap.!S146 -> 945 | X123: =0.5*Off.Cap.!R146 -> 718 | Y123: =0.5*Off.Cap.!S146 -> 282
A124: =MIN(U124,Off.Cap.!L147) -> 900 | B124: 793 | C124: 0 | D124: =MIN(T124,Off.Cap.!E147) -> 0 | E124: =MIN(U124,Off.Cap.!O147) -> 550 | F124: =MIN(T124,Off.Cap.!P147) -> 0 | G124: =Algoritmus!AP117 -> 0 | H124: =Algoritmus!AQ117 -> 0 | J124: =Off.Cap.!B147 -> 415 | K124: =Algoritmus!AS117 -> 0 | L124: =Off.Cap.!D147 -> 585 | N124: =Algoritmus!AV117 -> 0 | Q124: =Algoritmus!AX117 -> 0 | R124: =Algoritmus!AY117 -> 0 | T124: =Off.Cap.!M147 -> 0 | U124: =Off.Cap.!N147 -> 1400 | V124: =Off.Cap.!F147+0.5*Off.Cap.!R147 -> 2280 | W124: =Off.Cap.!Q147+0.5*Off.Cap.!S147 -> 945 | X124: =0.5*Off.Cap.!R147 -> 793 | Y124: =0.5*Off.Cap.!S147 -> 282
A125: =MIN(U125,Off.Cap.!L148) -> 900 | B125: 818 | C125: 0 | D125: =MIN(T125,Off.Cap.!E148) -> 0 | E125: =MIN(U125,Off.Cap.!O148) -> 550 | F125: =MIN(T125,Off.Cap.!P148) -> 0 | G125: =Algoritmus!AP118 -> 0 | H125: =Algoritmus!AQ118 -> 0 | J125: =Off.Cap.!B148 -> 415 | K125: =Algoritmus!AS118 -> 0 | L125: =Off.Cap.!D148 -> 585 | N125: =Algoritmus!AV118 -> 0 | Q125: =Algoritmus!AX118 -> 0 | R125: =Algoritmus!AY118 -> 0 | T125: =Off.Cap.!M148 -> 0 | U125: =Off.Cap.!N148 -> 1400 | V125: =Off.Cap.!F148+0.5*Off.Cap.!R148 -> 2355 | W125: =Off.Cap.!Q148+0.5*Off.Cap.!S148 -> 945 | X125: =0.5*Off.Cap.!R148 -> 818 | Y125: =0.5*Off.Cap.!S148 -> 282
A126: =MIN(U126,Off.Cap.!L149) -> 900 | B126: 818 | C126: 0 | D126: =MIN(T126,Off.Cap.!E149) -> 0 | E126: =MIN(U126,Off.Cap.!O149) -> 550 | F126: =MIN(T126,Off.Cap.!P149) -> 0 | G126: =Algoritmus!AP119 -> 0 | H126: =Algoritmus!AQ119 -> 0 | J126: =Off.Cap.!B149 -> 415 | K126: =Algoritmus!AS119 -> 0 | L126: =Off.Cap.!D149 -> 585 | N126: =Algoritmus!AV119 -> 0 | Q126: =Algoritmus!AX119 -> 0 | R126: =Algoritmus!AY119 -> 0 | T126: =Off.Cap.!M149 -> 0 | U126: =Off.Cap.!N149 -> 1400 | V126: =Off.Cap.!F149+0.5*Off.Cap.!R149 -> 2355 | W126: =Off.Cap.!Q149+0.5*Off.Cap.!S149 -> 945 | X126: =0.5*Off.Cap.!R149 -> 818 | Y126: =0.5*Off.Cap.!S149 -> 282
A127: =MIN(U127,Off.Cap.!L150) -> 900 | B127: 818 | C127: 0 | D127: =MIN(T127,Off.Cap.!E150) -> 0 | E127: =MIN(U127,Off.Cap.!O150) -> 550 | F127: =MIN(T127,Off.Cap.!P150) -> 0 | G127: =Algoritmus!AP120 -> 0 | H127: =Algoritmus!AQ120 -> 0 | J127: =Off.Cap.!B150 -> 415 | K127: =Algoritmus!AS120 -> 0 | L127: =Off.Cap.!D150 -> 585 | N127: =Algoritmus!AV120 -> 0 | Q127: =Algoritmus!AX120 -> 0 | R127: =Algoritmus!AY120 -> 0 | T127: =Off.Cap.!M150 -> 0 | U127: =Off.Cap.!N150 -> 1400 | V127: =Off.Cap.!F150+0.5*Off.Cap.!R150 -> 2355 | W127: =Off.Cap.!Q150+0.5*Off.Cap.!S150 -> 945 | X127: =0.5*Off.Cap.!R150 -> 818 | Y127: =0.5*Off.Cap.!S150 -> 282
A128: =MIN(U128,Off.Cap.!L151) -> 503 | B128: 503 | C128: 125 | D128: =MIN(T128,Off.Cap.!E151) -> 125 | E128: =MIN(U128,Off.Cap.!O151) -> 503 | F128: =MIN(T128,Off.Cap.!P151) -> 125 | G128: =Algoritmus!AP121 -> 0 | H128: =Algoritmus!AQ121 -> 0 | J128: =Off.Cap.!B151 -> 295 | K128: =Algoritmus!AS121 -> 0 | L128: =Off.Cap.!D151 -> 705 | N128: =Algoritmus!AV121 -> 0 | Q128: =Algoritmus!AX121 -> 0 | R128: =Algoritmus!AY121 -> 0 | T128: =Off.Cap.!M151 -> 125 | U128: =Off.Cap.!N151 -> 503 | V128: =Off.Cap.!F151+0.5*Off.Cap.!R151 -> 1855 | W128: =Off.Cap.!Q151+0.5*Off.Cap.!S151 -> 545 | X128: =0.5*Off.Cap.!R151 -> 618 | Y128: =0.5*Off.Cap.!S151 -> 182
A129: =MIN(U129,Off.Cap.!L152) -> 504 | B129: 504 | C129: 232 | D129: =MIN(T129,Off.Cap.!E152) -> 308 | E129: =MIN(U129,Off.Cap.!O152) -> 504 | F129: =MIN(T129,Off.Cap.!P152) -> 308 | G129: =Algoritmus!AP122 -> 0 | H129: =Algoritmus!AQ122 -> 0 | J129: =Off.Cap.!B152 -> 295 | K129: =Algoritmus!AS122 -> 0 | L129: =Off.Cap.!D152 -> 705 | N129: =Algoritmus!AV122 -> 0 | Q129: =Algoritmus!AX122 -> 0 | R129: =Algoritmus!AY122 -> 0 | T129: =Off.Cap.!M152 -> 308 | U129: =Off.Cap.!N152 -> 504 | V129: =Off.Cap.!F152+0.5*Off.Cap.!R152 -> 2305 | W129: =Off.Cap.!Q152+0.5*Off.Cap.!S152 -> 695 | X129: =0.5*Off.Cap.!R152 -> 768 | Y129: =0.5*Off.Cap.!S152 -> 232
A130: =MIN(U130,Off.Cap.!L153) -> 662 | B130: 662 | C130: 232 | D130: =MIN(T130,Off.Cap.!E153) -> 500 | E130: =MIN(U130,Off.Cap.!O153) -> 550 | F130: =MIN(T130,Off.Cap.!P153) -> 500 | G130: =Algoritmus!AP123 -> 0 | H130: =Algoritmus!AQ123 -> 0 | J130: =Off.Cap.!B153 -> 295 | K130: =Algoritmus!AS123 -> 0 | L130: =Off.Cap.!D153 -> 705 | N130: =Algoritmus!AV123 -> 0 | Q130: =Algoritmus!AX123 -> 0 | R130: =Algoritmus!AY123 -> 0 | T130: =Off.Cap.!M153 -> 500 | U130: =Off.Cap.!N153 -> 662 | V130: =Off.Cap.!F153+0.5*Off.Cap.!R153 -> 2470 | W130: =Off.Cap.!Q153+0.5*Off.Cap.!S153 -> 680 | X130: =0.5*Off.Cap.!R153 -> 818 | Y130: =0.5*Off.Cap.!S153 -> 232
A131: =MIN(U131,Off.Cap.!L154) -> 900 | B131: =MIN(X131,U131) -> 818 | C131: =MIN(T131,Y131) -> 232 | D131: =MIN(T131,Off.Cap.!E154) -> 500 | E131: =MIN(U131,Off.Cap.!O154) -> 550 | F131: =MIN(T131,Off.Cap.!P154) -> 500 | G131: =Algoritmus!AP124 -> 0 | H131: =Algoritmus!AQ124 -> 0 | J131: =Off.Cap.!B154 -> 295 | K131: =Algoritmus!AS124 -> 0 | L131: =Off.Cap.!D154 -> 705 | N131: =Algoritmus!AV124 -> 0 | Q131: =Algoritmus!AX124 -> 0 | R131: =Algoritmus!AY124 -> 0 | T131: =Off.Cap.!M154 -> 500 | U131: =Off.Cap.!N154 -> 1400 | V131: =Off.Cap.!F154+0.5*Off.Cap.!R154 -> 2470 | W131: =Off.Cap.!Q154+0.5*Off.Cap.!S154 -> 680 | X131: =0.5*Off.Cap.!R154 -> 818 | Y131: =0.5*Off.Cap.!S154 -> 232
A132: =MIN(U132,Off.Cap.!L155) -> 900 | B132: 818 | C132: 207 | D132: =MIN(T132,Off.Cap.!E155) -> 500 | E132: =MIN(U132,Off.Cap.!O155) -> 550 | F132: =MIN(T132,Off.Cap.!P155) -> 500 | G132: =Algoritmus!AP125 -> 0 | H132: =Algoritmus!AQ125 -> 0 | J132: =Off.Cap.!B155 -> 295 | K132: =Algoritmus!AS125 -> 0 | L132: =Off.Cap.!D155 -> 705 | N132: =Algoritmus!AV125 -> 0 | Q132: =Algoritmus!AX125 -> 0 | R132: =Algoritmus!AY125 -> 0 | T132: =Off.Cap.!M155 -> 500 | U132: =Off.Cap.!N155 -> 1400 | V132: =Off.Cap.!F155+0.5*Off.Cap.!R155 -> 2470 | W132: =Off.Cap.!Q155+0.5*Off.Cap.!S155 -> 605 | X132: =0.5*Off.Cap.!R155 -> 818 | Y132: =0.5*Off.Cap.!S155 -> 207
A133: =MIN(U133,Off.Cap.!L156) -> 900 | B133: 818 | C133: 207 | D133: =MIN(T133,Off.Cap.!E156) -> 500 | E133: =MIN(U133,Off.Cap.!O156) -> 550 | F133: =MIN(T133,Off.Cap.!P156) -> 500 | G133: =Algoritmus!AP126 -> 0 | H133: =Algoritmus!AQ126 -> 0 | J133: =Off.Cap.!B156 -> 295 | K133: =Algoritmus!AS126 -> 0 | L133: =Off.Cap.!D156 -> 705 | N133: =Algoritmus!AV126 -> 0 | Q133: =Algoritmus!AX126 -> 0 | R133: =Algoritmus!AY126 -> 0 | T133: =Off.Cap.!M156 -> 500 | U133: =Off.Cap.!N156 -> 1400 | V133: =Off.Cap.!F156+0.5*Off.Cap.!R156 -> 2470 | W133: =Off.Cap.!Q156+0.5*Off.Cap.!S156 -> 605 | X133: =0.5*Off.Cap.!R156 -> 818 | Y133: =0.5*Off.Cap.!S156 -> 207
A134: =MIN(U134,Off.Cap.!L157) -> 900 | B134: 818 | C134: 232 | D134: =MIN(T134,Off.Cap.!E157) -> 500 | E134: =MIN(U134,Off.Cap.!O157) -> 550 | F134: =MIN(T134,Off.Cap.!P157) -> 500 | G134: =Algoritmus!AP127 -> 0 | H134: =Algoritmus!AQ127 -> 0 | J134: =Off.Cap.!B157 -> 295 | K134: =Algoritmus!AS127 -> 0 | L134: =Off.Cap.!D157 -> 705 | N134: =Algoritmus!AV127 -> 0 | Q134: =Algoritmus!AX127 -> 0 | R134: =Algoritmus!AY127 -> 0 | T134: =Off.Cap.!M157 -> 500 | U134: =Off.Cap.!N157 -> 1400 | V134: =Off.Cap.!F157+0.5*Off.Cap.!R157 -> 2470 | W134: =Off.Cap.!Q157+0.5*Off.Cap.!S157 -> 680 | X134: =0.5*Off.Cap.!R157 -> 818 | Y134: =0.5*Off.Cap.!S157 -> 232
A135: =MIN(U135,Off.Cap.!L158) -> 900 | B135: 818 | C135: 232 | D135: =MIN(T135,Off.Cap.!E158) -> 500 | E135: =MIN(U135,Off.Cap.!O158) -> 550 | F135: =MIN(T135,Off.Cap.!P158) -> 500 | G135: =Algoritmus!AP128 -> 0 | H135: =Algoritmus!AQ128 -> 0 | J135: =Off.Cap.!B158 -> 295 | K135: =Algoritmus!AS128 -> 0 | L135: =Off.Cap.!D158 -> 705 | N135: =Algoritmus!AV128 -> 0 | Q135: =Algoritmus!AX128 -> 0 | R135: =Algoritmus!AY128 -> 0 | T135: =Off.Cap.!M158 -> 500 | U135: =Off.Cap.!N158 -> 1400 | V135: =Off.Cap.!F158+0.5*Off.Cap.!R158 -> 2470 | W135: =Off.Cap.!Q158+0.5*Off.Cap.!S158 -> 680 | X135: =0.5*Off.Cap.!R158 -> 818 | Y135: =0.5*Off.Cap.!S158 -> 232
A136: =MIN(U136,Off.Cap.!L159) -> 900 | B136: 818 | C136: 232 | D136: =MIN(T136,Off.Cap.!E159) -> 500 | E136: =MIN(U136,Off.Cap.!O159) -> 550 | F136: =MIN(T136,Off.Cap.!P159) -> 500 | G136: =Algoritmus!AP129 -> 0 | H136: =Algoritmus!AQ129 -> 0 | J136: =Off.Cap.!B159 -> 295 | K136: =Algoritmus!AS129 -> 0 | L136: =Off.Cap.!D159 -> 705 | N136: =Algoritmus!AV129 -> 0 | Q136: =Algoritmus!AX129 -> 0 | R136: =Algoritmus!AY129 -> 0 | T136: =Off.Cap.!M159 -> 500 | U136: =Off.Cap.!N159 -> 1400 | V136: =Off.Cap.!F159+0.5*Off.Cap.!R159 -> 2470 | W136: =Off.Cap.!Q159+0.5*Off.Cap.!S159 -> 680 | X136: =0.5*Off.Cap.!R159 -> 818 | Y136: =0.5*Off.Cap.!S159 -> 232
A137: =MIN(U137,Off.Cap.!L160) -> 900 | B137: 818 | C137: 232 | D137: =MIN(T137,Off.Cap.!E160) -> 500 | E137: =MIN(U137,Off.Cap.!O160) -> 550 | F137: =MIN(T137,Off.Cap.!P160) -> 500 | G137: =Algoritmus!AP130 -> 0 | H137: =Algoritmus!AQ130 -> 0 | J137: =Off.Cap.!B160 -> 295 | K137: =Algoritmus!AS130 -> 0 | L137: =Off.Cap.!D160 -> 705 | N137: =Algoritmus!AV130 -> 0 | Q137: =Algoritmus!AX130 -> 0 | R137: =Algoritmus!AY130 -> 0 | T137: =Off.Cap.!M160 -> 500 | U137: =Off.Cap.!N160 -> 1400 | V137: =Off.Cap.!F160+0.5*Off.Cap.!R160 -> 2470 | W137: =Off.Cap.!Q160+0.5*Off.Cap.!S160 -> 680 | X137: =0.5*Off.Cap.!R160 -> 818 | Y137: =0.5*Off.Cap.!S160 -> 232
A138: =MIN(U138,Off.Cap.!L161) -> 900 | B138: 818 | C138: 232 | D138: =MIN(T138,Off.Cap.!E161) -> 500 | E138: =MIN(U138,Off.Cap.!O161) -> 550 | F138: =MIN(T138,Off.Cap.!P161) -> 500 | G138: =Algoritmus!AP131 -> 0 | H138: =Algoritmus!AQ131 -> 0 | J138: =Off.Cap.!B161 -> 295 | K138: =Algoritmus!AS131 -> 0 | L138: =Off.Cap.!D161 -> 705 | N138: =Algoritmus!AV131 -> 0 | Q138: =Algoritmus!AX131 -> 0 | R138: =Algoritmus!AY131 -> 0 | T138: =Off.Cap.!M161 -> 500 | U138: =Off.Cap.!N161 -> 1400 | V138: =Off.Cap.!F161+0.5*Off.Cap.!R161 -> 2470 | W138: =Off.Cap.!Q161+0.5*Off.Cap.!S161 -> 680 | X138: =0.5*Off.Cap.!R161 -> 818 | Y138: =0.5*Off.Cap.!S161 -> 232
A139: =MIN(U139,Off.Cap.!L162) -> 900 | B139: 818 | C139: 232 | D139: =MIN(T139,Off.Cap.!E162) -> 500 | E139: =MIN(U139,Off.Cap.!O162) -> 550 | F139: =MIN(T139,Off.Cap.!P162) -> 500 | G139: =Algoritmus!AP132 -> 0 | H139: =Algoritmus!AQ132 -> 0 | J139: =Off.Cap.!B162 -> 295 | K139: =Algoritmus!AS132 -> 0 | L139: =Off.Cap.!D162 -> 705 | N139: =Algoritmus!AV132 -> 0 | Q139: =Algoritmus!AX132 -> 0 | R139: =Algoritmus!AY132 -> 0 | T139: =Off.Cap.!M162 -> 500 | U139: =Off.Cap.!N162 -> 1400 | V139: =Off.Cap.!F162+0.5*Off.Cap.!R162 -> 2470 | W139: =Off.Cap.!Q162+0.5*Off.Cap.!S162 -> 680 | X139: =0.5*Off.Cap.!R162 -> 818 | Y139: =0.5*Off.Cap.!S162 -> 232
A140: =MIN(U140,Off.Cap.!L163) -> 900 | B140: 818 | C140: 232 | D140: =MIN(T140,Off.Cap.!E163) -> 500 | E140: =MIN(U140,Off.Cap.!O163) -> 550 | F140: =MIN(T140,Off.Cap.!P163) -> 500 | G140: =Algoritmus!AP133 -> 0 | H140: =Algoritmus!AQ133 -> 0 | J140: =Off.Cap.!B163 -> 295 | K140: =Algoritmus!AS133 -> 0 | L140: =Off.Cap.!D163 -> 705 | N140: =Algoritmus!AV133 -> 0 | Q140: =Algoritmus!AX133 -> 0 | R140: =Algoritmus!AY133 -> 0 | T140: =Off.Cap.!M163 -> 500 | U140: =Off.Cap.!N163 -> 1400 | V140: =Off.Cap.!F163+0.5*Off.Cap.!R163 -> 2470 | W140: =Off.Cap.!Q163+0.5*Off.Cap.!S163 -> 680 | X140: =0.5*Off.Cap.!R163 -> 818 | Y140: =0.5*Off.Cap.!S163 -> 232
A141: =MIN(U141,Off.Cap.!L164) -> 900 | B141: 818 | C141: 232 | D141: =MIN(T141,Off.Cap.!E164) -> 500 | E141: =MIN(U141,Off.Cap.!O164) -> 550 | F141: =MIN(T141,Off.Cap.!P164) -> 500 | G141: =Algoritmus!AP134 -> 0 | H141: =Algoritmus!AQ134 -> 0 | J141: =Off.Cap.!B164 -> 295 | K141: =Algoritmus!AS134 -> 0 | L141: =Off.Cap.!D164 -> 705 | N141: =Algoritmus!AV134 -> 0 | Q141: =Algoritmus!AX134 -> 0 | R141: =Algoritmus!AY134 -> 0 | T141: =Off.Cap.!M164 -> 500 | U141: =Off.Cap.!N164 -> 1400 | V141: =Off.Cap.!F164+0.5*Off.Cap.!R164 -> 2470 | W141: =Off.Cap.!Q164+0.5*Off.Cap.!S164 -> 680 | X141: =0.5*Off.Cap.!R164 -> 818 | Y141: =0.5*Off.Cap.!S164 -> 232
A142: =MIN(U142,Off.Cap.!L165) -> 900 | B142: 818 | C142: 232 | D142: =MIN(T142,Off.Cap.!E165) -> 500 | E142: =MIN(U142,Off.Cap.!O165) -> 550 | F142: =MIN(T142,Off.Cap.!P165) -> 500 | G142: =Algoritmus!AP135 -> 0 | H142: =Algoritmus!AQ135 -> 0 | J142: =Off.Cap.!B165 -> 295 | K142: =Algoritmus!AS135 -> 0 | L142: =Off.Cap.!D165 -> 705 | N142: =Algoritmus!AV135 -> 0 | Q142: =Algoritmus!AX135 -> 0 | R142: =Algoritmus!AY135 -> 0 | T142: =Off.Cap.!M165 -> 500 | U142: =Off.Cap.!N165 -> 1400 | V142: =Off.Cap.!F165+0.5*Off.Cap.!R165 -> 2455 | W142: =Off.Cap.!Q165+0.5*Off.Cap.!S165 -> 695 | X142: =0.5*Off.Cap.!R165 -> 818 | Y142: =0.5*Off.Cap.!S165 -> 232
A143: =MIN(U143,Off.Cap.!L166) -> 900 | B143: 818 | C143: 232 | D143: =MIN(T143,Off.Cap.!E166) -> 500 | E143: =MIN(U143,Off.Cap.!O166) -> 550 | F143: =MIN(T143,Off.Cap.!P166) -> 500 | G143: =Algoritmus!AP136 -> 0 | H143: =Algoritmus!AQ136 -> 0 | J143: =Off.Cap.!B166 -> 295 | K143: =Algoritmus!AS136 -> 0 | L143: =Off.Cap.!D166 -> 705 | N143: =Algoritmus!AV136 -> 0 | Q143: =Algoritmus!AX136 -> 0 | R143: =Algoritmus!AY136 -> 0 | T143: =Off.Cap.!M166 -> 500 | U143: =Off.Cap.!N166 -> 1400 | V143: =Off.Cap.!F166+0.5*Off.Cap.!R166 -> 2455 | W143: =Off.Cap.!Q166+0.5*Off.Cap.!S166 -> 695 | X143: =0.5*Off.Cap.!R166 -> 818 | Y143: =0.5*Off.Cap.!S166 -> 232
A144: =MIN(U144,Off.Cap.!L167) -> 900 | B144: 818 | C144: 128 | D144: =MIN(T144,Off.Cap.!E167) -> 128 | E144: =MIN(U144,Off.Cap.!O167) -> 550 | F144: =MIN(T144,Off.Cap.!P167) -> 128 | G144: =Algoritmus!AP137 -> 0 | H144: =Algoritmus!AQ137 -> 0 | J144: =Off.Cap.!B167 -> 295 | K144: =Algoritmus!AS137 -> 0 | L144: =Off.Cap.!D167 -> 705 | N144: =Algoritmus!AV137 -> 0 | Q144: =Algoritmus!AX137 -> 0 | R144: =Algoritmus!AY137 -> 0 | T144: =Off.Cap.!M167 -> 128 | U144: =Off.Cap.!N167 -> 1400 | V144: =Off.Cap.!F167+0.5*Off.Cap.!R167 -> 2455 | W144: =Off.Cap.!Q167+0.5*Off.Cap.!S167 -> 995 | X144: =0.5*Off.Cap.!R167 -> 818 | Y144: =0.5*Off.Cap.!S167 -> 332
A145: =MIN(U145,Off.Cap.!L168) -> 900 | B145: 818 | C145: 0 | D145: =MIN(T145,Off.Cap.!E168) -> 0 | E145: =MIN(U145,Off.Cap.!O168) -> 550 | F145: =MIN(T145,Off.Cap.!P168) -> 0 | G145: =Algoritmus!AP138 -> 0 | H145: =Algoritmus!AQ138 -> 0 | J145: =Off.Cap.!B168 -> 295 | K145: =Algoritmus!AS138 -> 0 | L145: =Off.Cap.!D168 -> 705 | N145: =Algoritmus!AV138 -> 0 | Q145: =Algoritmus!AX138 -> 0 | R145: =Algoritmus!AY138 -> 0 | T145: =Off.Cap.!M168 -> 0 | U145: =Off.Cap.!N168 -> 1400 | V145: =Off.Cap.!F168+0.5*Off.Cap.!R168 -> 2455 | W145: =Off.Cap.!Q168+0.5*Off.Cap.!S168 -> 1070 | X145: =0.5*Off.Cap.!R168 -> 818 | Y145: =0.5*Off.Cap.!S168 -> 357
A146: =MIN(U146,Off.Cap.!L169) -> 900 | B146: 815.5 | C146: 0 | D146: =MIN(T146,Off.Cap.!E169) -> 0 | E146: =MIN(U146,Off.Cap.!O169) -> 550 | F146: =MIN(T146,Off.Cap.!P169) -> 0 | G146: =Algoritmus!AP139 -> 0 | H146: =Algoritmus!AQ139 -> 0 | J146: =Off.Cap.!B169 -> 395 | K146: =Algoritmus!AS139 -> 0 | L146: =Off.Cap.!D169 -> 605 | N146: =Algoritmus!AV139 -> 0 | Q146: =Algoritmus!AX139 -> 0 | R146: =Algoritmus!AY139 -> 0 | T146: =Off.Cap.!M169 -> 0 | U146: =Off.Cap.!N169 -> 1400 | V146: =Off.Cap.!F169+0.5*Off.Cap.!R169 -> 2432.5 | W146: =Off.Cap.!Q169+0.5*Off.Cap.!S169 -> 1542.5 | X146: =0.5*Off.Cap.!R169 -> 815.5 | Y146: =0.5*Off.Cap.!S169 -> 509.5
A147: =MIN(U147,Off.Cap.!L170) -> 900 | B147: 815.5 | C147: 0 | D147: =MIN(T147,Off.Cap.!E170) -> 0 | E147: =MIN(U147,Off.Cap.!O170) -> 550 | F147: =MIN(T147,Off.Cap.!P170) -> 0 | G147: =Algoritmus!AP140 -> 0 | H147: =Algoritmus!AQ140 -> 0 | J147: =Off.Cap.!B170 -> 395 | K147: =Algoritmus!AS140 -> 0 | L147: =Off.Cap.!D170 -> 605 | N147: =Algoritmus!AV140 -> 0 | Q147: =Algoritmus!AX140 -> 0 | R147: =Algoritmus!AY140 -> 0 | T147: =Off.Cap.!M170 -> 0 | U147: =Off.Cap.!N170 -> 1400 | V147: =Off.Cap.!F170+0.5*Off.Cap.!R170 -> 2432.5 | W147: =Off.Cap.!Q170+0.5*Off.Cap.!S170 -> 1392.5 | X147: =0.5*Off.Cap.!R170 -> 815.5 | Y147: =0.5*Off.Cap.!S170 -> 459.5
A148: =MIN(U148,Off.Cap.!L171) -> 900 | B148: 815.5 | C148: 0 | D148: =MIN(T148,Off.Cap.!E171) -> 0 | E148: =MIN(U148,Off.Cap.!O171) -> 550 | F148: =MIN(T148,Off.Cap.!P171) -> 0 | G148: =Algoritmus!AP141 -> 0 | H148: =Algoritmus!AQ141 -> 0 | J148: =Off.Cap.!B171 -> 395 | K148: =Algoritmus!AS141 -> 0 | L148: =Off.Cap.!D171 -> 605 | N148: =Algoritmus!AV141 -> 0 | Q148: =Algoritmus!AX141 -> 0 | R148: =Algoritmus!AY141 -> 0 | T148: =Off.Cap.!M171 -> 0 | U148: =Off.Cap.!N171 -> 1400 | V148: =Off.Cap.!F171+0.5*Off.Cap.!R171 -> 2432.5 | W148: =Off.Cap.!Q171+0.5*Off.Cap.!S171 -> 1467.5 | X148: =0.5*Off.Cap.!R171 -> 815.5 | Y148: =0.5*Off.Cap.!S171 -> 484.5
A149: =MIN(U149,Off.Cap.!L172) -> 900 | B149: 815.5 | C149: 0 | D149: =MIN(T149,Off.Cap.!E172) -> 0 | E149: =MIN(U149,Off.Cap.!O172) -> 550 | F149: =MIN(T149,Off.Cap.!P172) -> 0 | G149: =Algoritmus!AP142 -> 0 | H149: =Algoritmus!AQ142 -> 0 | J149: =Off.Cap.!B172 -> 395 | K149: =Algoritmus!AS142 -> 0 | L149: =Off.Cap.!D172 -> 605 | N149: =Algoritmus!AV142 -> 0 | Q149: =Algoritmus!AX142 -> 0 | R149: =Algoritmus!AY142 -> 0 | T149: =Off.Cap.!M172 -> 0 | U149: =Off.Cap.!N172 -> 1400 | V149: =Off.Cap.!F172+0.5*Off.Cap.!R172 -> 2432.5 | W149: =Off.Cap.!Q172+0.5*Off.Cap.!S172 -> 1317.5 | X149: =0.5*Off.Cap.!R172 -> 815.5 | Y149: =0.5*Off.Cap.!S172 -> 434.5
A150: =MIN(U150,Off.Cap.!L173) -> 900 | B150: 815.5 | C150: 0 | D150: =MIN(T150,Off.Cap.!E173) -> 0 | E150: =MIN(U150,Off.Cap.!O173) -> 550 | F150: =MIN(T150,Off.Cap.!P173) -> 0 | G150: =Algoritmus!AP143 -> 0 | H150: =Algoritmus!AQ143 -> 0 | J150: =Off.Cap.!B173 -> 395 | K150: =Algoritmus!AS143 -> 0 | L150: =Off.Cap.!D173 -> 605 | N150: =Algoritmus!AV143 -> 0 | Q150: =Algoritmus!AX143 -> 0 | R150: =Algoritmus!AY143 -> 0 | T150: =Off.Cap.!M173 -> 0 | U150: =Off.Cap.!N173 -> 1400 | V150: =Off.Cap.!F173+0.5*Off.Cap.!R173 -> 2432.5 | W150: =Off.Cap.!Q173+0.5*Off.Cap.!S173 -> 1017.5 | X150: =0.5*Off.Cap.!R173 -> 815.5 | Y150: =0.5*Off.Cap.!S173 -> 334.5
A151: =MIN(U151,Off.Cap.!L174) -> 900 | B151: 815.5 | C151: 0 | D151: =MIN(T151,Off.Cap.!E174) -> 0 | E151: =MIN(U151,Off.Cap.!O174) -> 550 | F151: =MIN(T151,Off.Cap.!P174) -> 0 | G151: =Algoritmus!AP144 -> 0 | H151: =Algoritmus!AQ144 -> 0 | J151: =Off.Cap.!B174 -> 395 | K151: =Algoritmus!AS144 -> 0 | L151: =Off.Cap.!D174 -> 605 | N151: =Algoritmus!AV144 -> 0 | Q151: =Algoritmus!AX144 -> 0 | R151: =Algoritmus!AY144 -> 0 | T151: =Off.Cap.!M174 -> 0 | U151: =Off.Cap.!N174 -> 1400 | V151: =Off.Cap.!F174+0.5*Off.Cap.!R174 -> 2432.5 | W151: =Off.Cap.!Q174+0.5*Off.Cap.!S174 -> 717.5 | X151: =0.5*Off.Cap.!R174 -> 815.5 | Y151: =0.5*Off.Cap.!S174 -> 234.5
A152: =MIN(U152,Off.Cap.!L175) -> 525 | B152: 525 | C152: 214 | D152: =MIN(T152,Off.Cap.!E175) -> 214 | E152: =MIN(U152,Off.Cap.!O175) -> 525 | F152: =MIN(T152,Off.Cap.!P175) -> 214 | G152: =Algoritmus!AP145 -> 0 | H152: =Algoritmus!AQ145 -> 0 | J152: =Off.Cap.!B175 -> 385 | K152: =Algoritmus!AS145 -> 0 | L152: =Off.Cap.!D175 -> 615 | N152: =Algoritmus!AV145 -> 0 | Q152: =Algoritmus!AX145 -> 0 | R152: =Algoritmus!AY145 -> 0 | T152: =Off.Cap.!M175 -> 214 | U152: =Off.Cap.!N175 -> 525 | V152: =Off.Cap.!F175+0.5*Off.Cap.!R175 -> 2435 | W152: =Off.Cap.!Q175+0.5*Off.Cap.!S175 -> 715 | X152: =0.5*Off.Cap.!R175 -> 818 | Y152: =0.5*Off.Cap.!S175 -> 232
A153: =MIN(U153,Off.Cap.!L176) -> 525 | B153: 525 | C153: 207 | D153: =MIN(T153,Off.Cap.!E176) -> 500 | E153: =MIN(U153,Off.Cap.!O176) -> 525 | F153: =MIN(T153,Off.Cap.!P176) -> 500 | G153: =Algoritmus!AP146 -> 0 | H153: =Algoritmus!AQ146 -> 0 | J153: =Off.Cap.!B176 -> 385 | K153: =Algoritmus!AS146 -> 0 | L153: =Off.Cap.!D176 -> 615 | N153: =Algoritmus!AV146 -> 0 | Q153: =Algoritmus!AX146 -> 0 | R153: =Algoritmus!AY146 -> 0 | T153: =Off.Cap.!M176 -> 500 | U153: =Off.Cap.!N176 -> 525 | V153: =Off.Cap.!F176+0.5*Off.Cap.!R176 -> 2435 | W153: =Off.Cap.!Q176+0.5*Off.Cap.!S176 -> 640 | X153: =0.5*Off.Cap.!R176 -> 818 | Y153: =0.5*Off.Cap.!S176 -> 207
A154: =MIN(U154,Off.Cap.!L177) -> 572 | B154: 572 | C154: 232 | D154: =MIN(T154,Off.Cap.!E177) -> 500 | E154: =MIN(U154,Off.Cap.!O177) -> 550 | F154: =MIN(T154,Off.Cap.!P177) -> 500 | G154: =Algoritmus!AP147 -> 0 | H154: =Algoritmus!AQ147 -> 0 | J154: =Off.Cap.!B177 -> 385 | K154: =Algoritmus!AS147 -> 0 | L154: =Off.Cap.!D177 -> 615 | N154: =Algoritmus!AV147 -> 0 | Q154: =Algoritmus!AX147 -> 0 | R154: =Algoritmus!AY147 -> 0 | T154: =Off.Cap.!M177 -> 500 | U154: =Off.Cap.!N177 -> 572 | V154: =Off.Cap.!F177+0.5*Off.Cap.!R177 -> 2450 | W154: =Off.Cap.!Q177+0.5*Off.Cap.!S177 -> 700 | X154: =0.5*Off.Cap.!R177 -> 818 | Y154: =0.5*Off.Cap.!S177 -> 232
A155: =MIN(U155,Off.Cap.!L178) -> 900 | B155: 818 | C155: 207 | D155: =MIN(T155,Off.Cap.!E178) -> 500 | E155: =MIN(U155,Off.Cap.!O178) -> 550 | F155: =MIN(T155,Off.Cap.!P178) -> 500 | G155: =Algoritmus!AP148 -> 0 | H155: =Algoritmus!AQ148 -> 0 | J155: =Off.Cap.!B178 -> 385 | K155: =Algoritmus!AS148 -> 0 | L155: =Off.Cap.!D178 -> 615 | N155: =Algoritmus!AV148 -> 0 | Q155: =Algoritmus!AX148 -> 0 | R155: =Algoritmus!AY148 -> 0 | T155: =Off.Cap.!M178 -> 500 | U155: =Off.Cap.!N178 -> 921 | V155: =Off.Cap.!F178+0.5*Off.Cap.!R178 -> 2450 | W155: =Off.Cap.!Q178+0.5*Off.Cap.!S178 -> 625 | X155: =0.5*Off.Cap.!R178 -> 818 | Y155: =0.5*Off.Cap.!S178 -> 207
A156: =MIN(U156,Off.Cap.!L179) -> 900 | B156: 818 | C156: 182 | D156: =MIN(T156,Off.Cap.!E179) -> 500 | E156: =MIN(U156,Off.Cap.!O179) -> 550 | F156: =MIN(T156,Off.Cap.!P179) -> 500 | G156: =Algoritmus!AP149 -> 0 | H156: =Algoritmus!AQ149 -> 0 | J156: =Off.Cap.!B179 -> 385 | K156: =Algoritmus!AS149 -> 0 | L156: =Off.Cap.!D179 -> 615 | N156: =Algoritmus!AV149 -> 0 | Q156: =Algoritmus!AX149 -> 0 | R156: =Algoritmus!AY149 -> 0 | T156: =Off.Cap.!M179 -> 500 | U156: =Off.Cap.!N179 -> 920 | V156: =Off.Cap.!F179+0.5*Off.Cap.!R179 -> 2450 | W156: =Off.Cap.!Q179+0.5*Off.Cap.!S179 -> 550 | X156: =0.5*Off.Cap.!R179 -> 818 | Y156: =0.5*Off.Cap.!S179 -> 182
A157: =MIN(U157,Off.Cap.!L180) -> 824 | B157: 818 | C157: 132 | D157: =MIN(T157,Off.Cap.!E180) -> 500 | E157: =MIN(U157,Off.Cap.!O180) -> 550 | F157: =MIN(T157,Off.Cap.!P180) -> 500 | G157: =Algoritmus!AP150 -> 0 | H157: =Algoritmus!AQ150 -> 0 | J157: =Off.Cap.!B180 -> 385 | K157: =Algoritmus!AS150 -> 0 | L157: =Off.Cap.!D180 -> 615 | N157: =Algoritmus!AV150 -> 0 | Q157: =Algoritmus!AX150 -> 0 | R157: =Algoritmus!AY150 -> 0 | T157: =Off.Cap.!M180 -> 500 | U157: =Off.Cap.!N180 -> 824 | V157: =Off.Cap.!F180+0.5*Off.Cap.!R180 -> 2450 | W157: =Off.Cap.!Q180+0.5*Off.Cap.!S180 -> 400 | X157: =0.5*Off.Cap.!R180 -> 818 | Y157: =0.5*Off.Cap.!S180 -> 132
A158: =MIN(U158,Off.Cap.!L181) -> 837 | B158: 818 | C158: 132 | D158: =MIN(T158,Off.Cap.!E181) -> 500 | E158: =MIN(U158,Off.Cap.!O181) -> 550 | F158: =MIN(T158,Off.Cap.!P181) -> 500 | G158: =Algoritmus!AP151 -> 0 | H158: =Algoritmus!AQ151 -> 0 | J158: =Off.Cap.!B181 -> 385 | K158: =Algoritmus!AS151 -> 0 | L158: =Off.Cap.!D181 -> 615 | N158: =Algoritmus!AV151 -> 0 | Q158: =Algoritmus!AX151 -> 0 | R158: =Algoritmus!AY151 -> 0 | T158: =Off.Cap.!M181 -> 500 | U158: =Off.Cap.!N181 -> 837 | V158: =Off.Cap.!F181+0.5*Off.Cap.!R181 -> 2450 | W158: =Off.Cap.!Q181+0.5*Off.Cap.!S181 -> 400 | X158: =0.5*Off.Cap.!R181 -> 818 | Y158: =0.5*Off.Cap.!S181 -> 132
A159: =MIN(U159,Off.Cap.!L182) -> 788 | B159: 788 | C159: 132 | D159: =MIN(T159,Off.Cap.!E182) -> 500 | E159: =MIN(U159,Off.Cap.!O182) -> 550 | F159: =MIN(T159,Off.Cap.!P182) -> 500 | G159: =Algoritmus!AP152 -> 0 | H159: =Algoritmus!AQ152 -> 0 | J159: =Off.Cap.!B182 -> 385 | K159: =Algoritmus!AS152 -> 0 | L159: =Off.Cap.!D182 -> 615 | N159: =Algoritmus!AV152 -> 0 | Q159: =Algoritmus!AX152 -> 0 | R159: =Algoritmus!AY152 -> 0 | T159: =Off.Cap.!M182 -> 500 | U159: =Off.Cap.!N182 -> 788 | V159: =Off.Cap.!F182+0.5*Off.Cap.!R182 -> 2450 | W159: =Off.Cap.!Q182+0.5*Off.Cap.!S182 -> 400 | X159: =0.5*Off.Cap.!R182 -> 818 | Y159: =0.5*Off.Cap.!S182 -> 132
A160: =MIN(U160,Off.Cap.!L183) -> 839 | B160: 818 | C160: 132 | D160: =MIN(T160,Off.Cap.!E183) -> 500 | E160: =MIN(U160,Off.Cap.!O183) -> 550 | F160: =MIN(T160,Off.Cap.!P183) -> 500 | G160: =Algoritmus!AP153 -> 0 | H160: =Algoritmus!AQ153 -> 0 | J160: =Off.Cap.!B183 -> 385 | K160: =Algoritmus!AS153 -> 0 | L160: =Off.Cap.!D183 -> 615 | N160: =Algoritmus!AV153 -> 0 | Q160: =Algoritmus!AX153 -> 0 | R160: =Algoritmus!AY153 -> 0 | T160: =Off.Cap.!M183 -> 500 | U160: =Off.Cap.!N183 -> 839 | V160: =Off.Cap.!F183+0.5*Off.Cap.!R183 -> 2450 | W160: =Off.Cap.!Q183+0.5*Off.Cap.!S183 -> 400 | X160: =0.5*Off.Cap.!R183 -> 818 | Y160: =0.5*Off.Cap.!S183 -> 132
A161: =MIN(U161,Off.Cap.!L184) -> 695 | B161: 695 | C161: 207 | D161: =MIN(T161,Off.Cap.!E184) -> 500 | E161: =MIN(U161,Off.Cap.!O184) -> 550 | F161: =MIN(T161,Off.Cap.!P184) -> 500 | G161: =Algoritmus!AP154 -> 0 | H161: =Algoritmus!AQ154 -> 0 | J161: =Off.Cap.!B184 -> 385 | K161: =Algoritmus!AS154 -> 0 | L161: =Off.Cap.!D184 -> 615 | N161: =Algoritmus!AV154 -> 0 | Q161: =Algoritmus!AX154 -> 0 | R161: =Algoritmus!AY154 -> 0 | T161: =Off.Cap.!M184 -> 500 | U161: =Off.Cap.!N184 -> 695 | V161: =Off.Cap.!F184+0.5*Off.Cap.!R184 -> 2450 | W161: =Off.Cap.!Q184+0.5*Off.Cap.!S184 -> 625 | X161: =0.5*Off.Cap.!R184 -> 818 | Y161: =0.5*Off.Cap.!S184 -> 207
A162: =MIN(U162,Off.Cap.!L185) -> 687 | B162: 687 | C162: 207 | D162: =MIN(T162,Off.Cap.!E185) -> 500 | E162: =MIN(U162,Off.Cap.!O185) -> 550 | F162: =MIN(T162,Off.Cap.!P185) -> 500 | G162: =Algoritmus!AP155 -> 0 | H162: =Algoritmus!AQ155 -> 0 | J162: =Off.Cap.!B185 -> 385 | K162: =Algoritmus!AS155 -> 0 | L162: =Off.Cap.!D185 -> 615 | N162: =Algoritmus!AV155 -> 0 | Q162: =Algoritmus!AX155 -> 0 | R162: =Algoritmus!AY155 -> 0 | T162: =Off.Cap.!M185 -> 500 | U162: =Off.Cap.!N185 -> 687 | V162: =Off.Cap.!F185+0.5*Off.Cap.!R185 -> 2450 | W162: =Off.Cap.!Q185+0.5*Off.Cap.!S185 -> 625 | X162: =0.5*Off.Cap.!R185 -> 818 | Y162: =0.5*Off.Cap.!S185 -> 207
A163: =MIN(U163,Off.Cap.!L186) -> 693 | B163: 668 | C163: 207 | D163: =MIN(T163,Off.Cap.!E186) -> 500 | E163: =MIN(U163,Off.Cap.!O186) -> 550 | F163: =MIN(T163,Off.Cap.!P186) -> 500 | G163: =Algoritmus!AP156 -> 0 | H163: =Algoritmus!AQ156 -> 0 | J163: =Off.Cap.!B186 -> 385 | K163: =Algoritmus!AS156 -> 0 | L163: =Off.Cap.!D186 -> 615 | N163: =Algoritmus!AV156 -> 0 | Q163: =Algoritmus!AX156 -> 0 | R163: =Algoritmus!AY156 -> 0 | T163: =Off.Cap.!M186 -> 500 | U163: =Off.Cap.!N186 -> 693 | V163: =Off.Cap.!F186+0.5*Off.Cap.!R186 -> 2000 | W163: =Off.Cap.!Q186+0.5*Off.Cap.!S186 -> 625 | X163: =0.5*Off.Cap.!R186 -> 668 | Y163: =0.5*Off.Cap.!S186 -> 207
A164: =MIN(U164,Off.Cap.!L187) -> 900 | B164: 668 | C164: 207 | D164: =MIN(T164,Off.Cap.!E187) -> 500 | E164: =MIN(U164,Off.Cap.!O187) -> 550 | F164: =MIN(T164,Off.Cap.!P187) -> 500 | G164: =Algoritmus!AP157 -> 0 | H164: =Algoritmus!AQ157 -> 0 | J164: =Off.Cap.!B187 -> 385 | K164: =Algoritmus!AS157 -> 0 | L164: =Off.Cap.!D187 -> 615 | N164: =Algoritmus!AV157 -> 0 | Q164: =Algoritmus!AX157 -> 0 | R164: =Algoritmus!AY157 -> 0 | T164: =Off.Cap.!M187 -> 500 | U164: =Off.Cap.!N187 -> 956 | V164: =Off.Cap.!F187+0.5*Off.Cap.!R187 -> 2000 | W164: =Off.Cap.!Q187+0.5*Off.Cap.!S187 -> 625 | X164: =0.5*Off.Cap.!R187 -> 668 | Y164: =0.5*Off.Cap.!S187 -> 207
A165: =MIN(U165,Off.Cap.!L188) -> 900 | B165: 618 | C165: 207 | D165: =MIN(T165,Off.Cap.!E188) -> 500 | E165: =MIN(U165,Off.Cap.!O188) -> 550 | F165: =MIN(T165,Off.Cap.!P188) -> 500 | G165: =Algoritmus!AP158 -> 0 | H165: =Algoritmus!AQ158 -> 0 | J165: =Off.Cap.!B188 -> 385 | K165: =Algoritmus!AS158 -> 0 | L165: =Off.Cap.!D188 -> 615 | N165: =Algoritmus!AV158 -> 0 | Q165: =Algoritmus!AX158 -> 0 | R165: =Algoritmus!AY158 -> 0 | T165: =Off.Cap.!M188 -> 500 | U165: =Off.Cap.!N188 -> 1140 | V165: =Off.Cap.!F188+0.5*Off.Cap.!R188 -> 1850 | W165: =Off.Cap.!Q188+0.5*Off.Cap.!S188 -> 625 | X165: =0.5*Off.Cap.!R188 -> 618 | Y165: =0.5*Off.Cap.!S188 -> 207
A166: =MIN(U166,Off.Cap.!L189) -> 900 | B166: 668 | C166: 132 | D166: =MIN(T166,Off.Cap.!E189) -> 500 | E166: =MIN(U166,Off.Cap.!O189) -> 550 | F166: =MIN(T166,Off.Cap.!P189) -> 500 | G166: =Algoritmus!AP159 -> 0 | H166: =Algoritmus!AQ159 -> 0 | J166: =Off.Cap.!B189 -> 385 | K166: =Algoritmus!AS159 -> 0 | L166: =Off.Cap.!D189 -> 615 | N166: =Algoritmus!AV159 -> 0 | Q166: =Algoritmus!AX159 -> 0 | R166: =Algoritmus!AY159 -> 0 | T166: =Off.Cap.!M189 -> 500 | U166: =Off.Cap.!N189 -> 1400 | V166: =Off.Cap.!F189+0.5*Off.Cap.!R189 -> 1985 | W166: =Off.Cap.!Q189+0.5*Off.Cap.!S189 -> 415 | X166: =0.5*Off.Cap.!R189 -> 668 | Y166: =0.5*Off.Cap.!S189 -> 132
A167: =MIN(U167,Off.Cap.!L190) -> 900 | B167: 693 | C167: 182 | D167: =MIN(T167,Off.Cap.!E190) -> 473 | E167: =MIN(U167,Off.Cap.!O190) -> 550 | F167: =MIN(T167,Off.Cap.!P190) -> 473 | G167: =Algoritmus!AP160 -> 0 | H167: =Algoritmus!AQ160 -> 0 | J167: =Off.Cap.!B190 -> 385 | K167: =Algoritmus!AS160 -> 0 | L167: =Off.Cap.!D190 -> 615 | N167: =Algoritmus!AV160 -> 0 | Q167: =Algoritmus!AX160 -> 0 | R167: =Algoritmus!AY160 -> 0 | T167: =Off.Cap.!M190 -> 473 | U167: =Off.Cap.!N190 -> 1400 | V167: =Off.Cap.!F190+0.5*Off.Cap.!R190 -> 2060 | W167: =Off.Cap.!Q190+0.5*Off.Cap.!S190 -> 565 | X167: =0.5*Off.Cap.!R190 -> 693 | Y167: =0.5*Off.Cap.!S190 -> 182
A168: =MIN(U168,Off.Cap.!L191) -> 900 | B168: 693 | C168: 0 | D168: =MIN(T168,Off.Cap.!E191) -> 0 | E168: =MIN(U168,Off.Cap.!O191) -> 550 | F168: =MIN(T168,Off.Cap.!P191) -> 0 | G168: =Algoritmus!AP161 -> 0 | H168: =Algoritmus!AQ161 -> 0 | J168: =Off.Cap.!B191 -> 385 | K168: =Algoritmus!AS161 -> 0 | L168: =Off.Cap.!D191 -> 615 | N168: =Algoritmus!AV161 -> 0 | Q168: =Algoritmus!AX161 -> 0 | R168: =Algoritmus!AY161 -> 0 | T168: =Off.Cap.!M191 -> 0 | U168: =Off.Cap.!N191 -> 1400 | V168: =Off.Cap.!F191+0.5*Off.Cap.!R191 -> 2060 | W168: =Off.Cap.!Q191+0.5*Off.Cap.!S191 -> 415 | X168: =0.5*Off.Cap.!R191 -> 693 | Y168: =0.5*Off.Cap.!S191 -> 132
A169: =MIN(U169,Off.Cap.!L192) -> 900 | B169: 743 | C169: 0 | D169: =MIN(T169,Off.Cap.!E192) -> 0 | E169: =MIN(U169,Off.Cap.!O192) -> 550 | F169: =MIN(T169,Off.Cap.!P192) -> 0 | G169: =Algoritmus!AP162 -> 0 | H169: =Algoritmus!AQ162 -> 0 | J169: =Off.Cap.!B192 -> 385 | K169: =Algoritmus!AS162 -> 0 | L169: =Off.Cap.!D192 -> 615 | N169: =Algoritmus!AV162 -> 0 | Q169: =Algoritmus!AX162 -> 0 | R169: =Algoritmus!AY162 -> 0 | T169: =Off.Cap.!M192 -> 0 | U169: =Off.Cap.!N192 -> 1400 | V169: =Off.Cap.!F192+0.5*Off.Cap.!R192 -> 2210 | W169: =Off.Cap.!Q192+0.5*Off.Cap.!S192 -> 415 | X169: =0.5*Off.Cap.!R192 -> 743 | Y169: =0.5*Off.Cap.!S192 -> 132
A170: =MIN(U170,Off.Cap.!L193) -> 900 | B170: 808 | C170: 0 | D170: =MIN(T170,Off.Cap.!E193) -> 0 | E170: =MIN(U170,Off.Cap.!O193) -> 550 | F170: =MIN(T170,Off.Cap.!P193) -> 0 | G170: =Algoritmus!AP163 -> 0 | H170: =Algoritmus!AQ163 -> 0 | J170: =Off.Cap.!B193 -> 295 | K170: =Algoritmus!AS163 -> 0 | L170: =Off.Cap.!D193 -> 655 | N170: =Algoritmus!AV163 -> 0 | Q170: =Algoritmus!AX163 -> 0 | R170: =Algoritmus!AY163 -> 0 | T170: =Off.Cap.!M193 -> 0 | U170: =Off.Cap.!N193 -> 1400 | V170: =Off.Cap.!F193+0.5*Off.Cap.!R193 -> 2435 | W170: =Off.Cap.!Q193+0.5*Off.Cap.!S193 -> 1090 | X170: =0.5*Off.Cap.!R193 -> 808 | Y170: =0.5*Off.Cap.!S193 -> 367
A171: =MIN(U171,Off.Cap.!L194) -> 900 | B171: 808 | C171: 0 | D171: =MIN(T171,Off.Cap.!E194) -> 0 | E171: =MIN(U171,Off.Cap.!O194) -> 550 | F171: =MIN(T171,Off.Cap.!P194) -> 0 | G171: =Algoritmus!AP164 -> 0 | H171: =Algoritmus!AQ164 -> 0 | J171: =Off.Cap.!B194 -> 295 | K171: =Algoritmus!AS164 -> 0 | L171: =Off.Cap.!D194 -> 655 | N171: =Algoritmus!AV164 -> 0 | Q171: =Algoritmus!AX164 -> 0 | R171: =Algoritmus!AY164 -> 0 | T171: =Off.Cap.!M194 -> 0 | U171: =Off.Cap.!N194 -> 1400 | V171: =Off.Cap.!F194+0.5*Off.Cap.!R194 -> 2435 | W171: =Off.Cap.!Q194+0.5*Off.Cap.!S194 -> 1165 | X171: =0.5*Off.Cap.!R194 -> 808 | Y171: =0.5*Off.Cap.!S194 -> 392
A172: =MIN(U172,Off.Cap.!L195) -> 900 | B172: 808 | C172: 0 | D172: =MIN(T172,Off.Cap.!E195) -> 0 | E172: =MIN(U172,Off.Cap.!O195) -> 550 | F172: =MIN(T172,Off.Cap.!P195) -> 0 | G172: =Algoritmus!AP165 -> 0 | H172: =Algoritmus!AQ165 -> 0 | J172: =Off.Cap.!B195 -> 295 | K172: =Algoritmus!AS165 -> 0 | L172: =Off.Cap.!D195 -> 655 | N172: =Algoritmus!AV165 -> 0 | Q172: =Algoritmus!AX165 -> 0 | R172: =Algoritmus!AY165 -> 0 | T172: =Off.Cap.!M195 -> 0 | U172: =Off.Cap.!N195 -> 1400 | V172: =Off.Cap.!F195+0.5*Off.Cap.!R195 -> 2435 | W172: =Off.Cap.!Q195+0.5*Off.Cap.!S195 -> 1315 | X172: =0.5*Off.Cap.!R195 -> 808 | Y172: =0.5*Off.Cap.!S195 -> 442
A173: =MIN(U173,Off.Cap.!L196) -> 900 | B173: 808 | C173: 0 | D173: =MIN(T173,Off.Cap.!E196) -> 0 | E173: =MIN(U173,Off.Cap.!O196) -> 550 | F173: =MIN(T173,Off.Cap.!P196) -> 0 | G173: =Algoritmus!AP166 -> 0 | H173: =Algoritmus!AQ166 -> 0 | J173: =Off.Cap.!B196 -> 295 | K173: =Algoritmus!AS166 -> 0 | L173: =Off.Cap.!D196 -> 655 | N173: =Algoritmus!AV166 -> 0 | Q173: =Algoritmus!AX166 -> 0 | R173: =Algoritmus!AY166 -> 0 | T173: =Off.Cap.!M196 -> 0 | U173: =Off.Cap.!N196 -> 1400 | V173: =Off.Cap.!F196+0.5*Off.Cap.!R196 -> 2435 | W173: =Off.Cap.!Q196+0.5*Off.Cap.!S196 -> 1390 | X173: =0.5*Off.Cap.!R196 -> 808 | Y173: =0.5*Off.Cap.!S196 -> 467
A174: =MIN(U174,Off.Cap.!L197) -> 900 | B174: 808 | C174: 0 | D174: =MIN(T174,Off.Cap.!E197) -> 0 | E174: =MIN(U174,Off.Cap.!O197) -> 550 | F174: =MIN(T174,Off.Cap.!P197) -> 0 | G174: =Algoritmus!AP167 -> 0 | H174: =Algoritmus!AQ167 -> 0 | J174: =Off.Cap.!B197 -> 295 | K174: =Algoritmus!AS167 -> 0 | L174: =Off.Cap.!D197 -> 655 | N174: =Algoritmus!AV167 -> 0 | Q174: =Algoritmus!AX167 -> 0 | R174: =Algoritmus!AY167 -> 0 | T174: =Off.Cap.!M197 -> 0 | U174: =Off.Cap.!N197 -> 1400 | V174: =Off.Cap.!F197+0.5*Off.Cap.!R197 -> 2435 | W174: =Off.Cap.!Q197+0.5*Off.Cap.!S197 -> 1465 | X174: =0.5*Off.Cap.!R197 -> 808 | Y174: =0.5*Off.Cap.!S197 -> 492
A175: =MIN(U175,Off.Cap.!L198) -> 900 | B175: 818 | C175: 0 | D175: =MIN(T175,Off.Cap.!E198) -> 0 | E175: =MIN(U175,Off.Cap.!O198) -> 550 | F175: =MIN(T175,Off.Cap.!P198) -> 0 | G175: =Algoritmus!AP168 -> 0 | H175: =Algoritmus!AQ168 -> 0 | J175: =Off.Cap.!B198 -> 245 | K175: =Algoritmus!AS168 -> 0 | L175: =Off.Cap.!D198 -> 705 | N175: =Algoritmus!AV168 -> 0 | Q175: =Algoritmus!AX168 -> 0 | R175: =Algoritmus!AY168 -> 0 | T175: =Off.Cap.!M198 -> 0 | U175: =Off.Cap.!N198 -> 1400 | V175: =Off.Cap.!F198+0.5*Off.Cap.!R198 -> 2455 | W175: =Off.Cap.!Q198+0.5*Off.Cap.!S198 -> 1520 | X175: =0.5*Off.Cap.!R198 -> 818 | Y175: =0.5*Off.Cap.!S198 -> 507
A176: =MIN(U176,Off.Cap.!L199) -> 572 | B176: 572 | C176: 206 | D176: =MIN(T176,Off.Cap.!E199) -> 206 | E176: =MIN(U176,Off.Cap.!O199) -> 550 | F176: =MIN(T176,Off.Cap.!P199) -> 206 | G176: =Algoritmus!AP169 -> 0 | H176: =Algoritmus!AQ169 -> 0 | J176: =Off.Cap.!B199 -> 245 | K176: =Algoritmus!AS169 -> 0 | L176: =Off.Cap.!D199 -> 705 | N176: =Algoritmus!AV169 -> 0 | Q176: =Algoritmus!AX169 -> 0 | R176: =Algoritmus!AY169 -> 0 | T176: =Off.Cap.!M199 -> 206 | U176: =Off.Cap.!N199 -> 572 | V176: =Off.Cap.!F199+0.5*Off.Cap.!R199 -> 2455 | W176: =Off.Cap.!Q199+0.5*Off.Cap.!S199 -> 1370 | X176: =0.5*Off.Cap.!R199 -> 818 | Y176: =0.5*Off.Cap.!S199 -> 457
A177: =MIN(U177,Off.Cap.!L200) -> 630 | B177: 630 | C177: 482 | D177: =MIN(T177,Off.Cap.!E200) -> 500 | E177: =MIN(U177,Off.Cap.!O200) -> 550 | F177: =MIN(T177,Off.Cap.!P200) -> 500 | G177: =Algoritmus!AP170 -> 0 | H177: =Algoritmus!AQ170 -> 0 | J177: =Off.Cap.!B200 -> 245 | K177: =Algoritmus!AS170 -> 0 | L177: =Off.Cap.!D200 -> 705 | N177: =Algoritmus!AV170 -> 0 | Q177: =Algoritmus!AX170 -> 0 | R177: =Algoritmus!AY170 -> 0 | T177: =Off.Cap.!M200 -> 500 | U177: =Off.Cap.!N200 -> 630 | V177: =Off.Cap.!F200+0.5*Off.Cap.!R200 -> 2455 | W177: =Off.Cap.!Q200+0.5*Off.Cap.!S200 -> 1445 | X177: =0.5*Off.Cap.!R200 -> 818 | Y177: =0.5*Off.Cap.!S200 -> 482
A178: =MIN(U178,Off.Cap.!L201) -> 630 | B178: 630 | C178: 382 | D178: =MIN(T178,Off.Cap.!E201) -> 500 | E178: =MIN(U178,Off.Cap.!O201) -> 550 | F178: =MIN(T178,Off.Cap.!P201) -> 500 | G178: =Algoritmus!AP171 -> 0 | H178: =Algoritmus!AQ171 -> 0 | J178: =Off.Cap.!B201 -> 245 | K178: =Algoritmus!AS171 -> 0 | L178: =Off.Cap.!D201 -> 705 | N178: =Algoritmus!AV171 -> 0 | Q178: =Algoritmus!AX171 -> 0 | R178: =Algoritmus!AY171 -> 0 | T178: =Off.Cap.!M201 -> 500 | U178: =Off.Cap.!N201 -> 630 | V178: =Off.Cap.!F201+0.5*Off.Cap.!R201 -> 2470 | W178: =Off.Cap.!Q201+0.5*Off.Cap.!S201 -> 1130 | X178: =0.5*Off.Cap.!R201 -> 818 | Y178: =0.5*Off.Cap.!S201 -> 382
A179: =MIN(U179,Off.Cap.!L202) -> 718 | B179: 718 | C179: 282 | D179: =MIN(T179,Off.Cap.!E202) -> 500 | E179: =MIN(U179,Off.Cap.!O202) -> 550 | F179: =MIN(T179,Off.Cap.!P202) -> 500 | G179: =Algoritmus!AP172 -> 0 | H179: =Algoritmus!AQ172 -> 0 | J179: =Off.Cap.!B202 -> 245 | K179: =Algoritmus!AS172 -> 0 | L179: =Off.Cap.!D202 -> 705 | N179: =Algoritmus!AV172 -> 0 | Q179: =Algoritmus!AX172 -> 0 | R179: =Algoritmus!AY172 -> 0 | T179: =Off.Cap.!M202 -> 500 | U179: =Off.Cap.!N202 -> 718 | V179: =Off.Cap.!F202+0.5*Off.Cap.!R202 -> 2470 | W179: =Off.Cap.!Q202+0.5*Off.Cap.!S202 -> 830 | X179: =0.5*Off.Cap.!R202 -> 818 | Y179: =0.5*Off.Cap.!S202 -> 282
A180: =MIN(U180,Off.Cap.!L203) -> 739 | B180: 739 | C180: 307 | D180: =MIN(T180,Off.Cap.!E203) -> 500 | E180: =MIN(U180,Off.Cap.!O203) -> 550 | F180: =MIN(T180,Off.Cap.!P203) -> 500 | G180: =Algoritmus!AP173 -> 0 | H180: =Algoritmus!AQ173 -> 0 | J180: =Off.Cap.!B203 -> 245 | K180: =Algoritmus!AS173 -> 0 | L180: =Off.Cap.!D203 -> 705 | N180: =Algoritmus!AV173 -> 0 | Q180: =Algoritmus!AX173 -> 0 | R180: =Algoritmus!AY173 -> 0 | T180: =Off.Cap.!M203 -> 500 | U180: =Off.Cap.!N203 -> 739 | V180: =Off.Cap.!F203+0.5*Off.Cap.!R203 -> 2470 | W180: =Off.Cap.!Q203+0.5*Off.Cap.!S203 -> 905 | X180: =0.5*Off.Cap.!R203 -> 818 | Y180: =0.5*Off.Cap.!S203 -> 307
A181: =MIN(U181,Off.Cap.!L204) -> 705 | B181: 705 | C181: 257 | D181: =MIN(T181,Off.Cap.!E204) -> 500 | E181: =MIN(U181,Off.Cap.!O204) -> 550 | F181: =MIN(T181,Off.Cap.!P204) -> 500 | G181: =Algoritmus!AP174 -> 0 | H181: =Algoritmus!AQ174 -> 0 | J181: =Off.Cap.!B204 -> 245 | K181: =Algoritmus!AS174 -> 0 | L181: =Off.Cap.!D204 -> 705 | N181: =Algoritmus!AV174 -> 0 | Q181: =Algoritmus!AX174 -> 0 | R181: =Algoritmus!AY174 -> 0 | T181: =Off.Cap.!M204 -> 500 | U181: =Off.Cap.!N204 -> 705 | V181: =Off.Cap.!F204+0.5*Off.Cap.!R204 -> 2470 | W181: =Off.Cap.!Q204+0.5*Off.Cap.!S204 -> 755 | X181: =0.5*Off.Cap.!R204 -> 818 | Y181: =0.5*Off.Cap.!S204 -> 257
A182: =MIN(U182,Off.Cap.!L205) -> 722 | B182: 722 | C182: 232 | D182: =MIN(T182,Off.Cap.!E205) -> 500 | E182: =MIN(U182,Off.Cap.!O205) -> 550 | F182: =MIN(T182,Off.Cap.!P205) -> 500 | G182: =Algoritmus!AP175 -> 0 | H182: =Algoritmus!AQ175 -> 0 | J182: =Off.Cap.!B205 -> 245 | K182: =Algoritmus!AS175 -> 0 | L182: =Off.Cap.!D205 -> 705 | N182: =Algoritmus!AV175 -> 0 | Q182: =Algoritmus!AX175 -> 0 | R182: =Algoritmus!AY175 -> 0 | T182: =Off.Cap.!M205 -> 500 | U182: =Off.Cap.!N205 -> 722 | V182: =Off.Cap.!F205+0.5*Off.Cap.!R205 -> 2470 | W182: =Off.Cap.!Q205+0.5*Off.Cap.!S205 -> 680 | X182: =0.5*Off.Cap.!R205 -> 818 | Y182: =0.5*Off.Cap.!S205 -> 232
A183: =MIN(U183,Off.Cap.!L206) -> 708 | B183: 708 | C183: 232 | D183: =MIN(T183,Off.Cap.!E206) -> 500 | E183: =MIN(U183,Off.Cap.!O206) -> 550 | F183: =MIN(T183,Off.Cap.!P206) -> 500 | G183: =Algoritmus!AP176 -> 0 | H183: =Algoritmus!AQ176 -> 0 | J183: =Off.Cap.!B206 -> 245 | K183: =Algoritmus!AS176 -> 0 | L183: =Off.Cap.!D206 -> 705 | N183: =Algoritmus!AV176 -> 0 | Q183: =Algoritmus!AX176 -> 0 | R183: =Algoritmus!AY176 -> 0 | T183: =Off.Cap.!M206 -> 500 | U183: =Off.Cap.!N206 -> 708 | V183: =Off.Cap.!F206+0.5*Off.Cap.!R206 -> 2470 | W183: =Off.Cap.!Q206+0.5*Off.Cap.!S206 -> 680 | X183: =0.5*Off.Cap.!R206 -> 818 | Y183: =0.5*Off.Cap.!S206 -> 232
